Workbook

Sheet MAX(2)

Sheet st
B1: NO | C1: =+'3'!A1&"m" ->  | J1: =+IF(CR4=0,"4頭以下のため不可","") ->  | N1: 2022-08-31 | O1: =+INDIRECT("1!A22",TRUE) -> 00:00:00 | P1: =+N1-TODAY() -> 33 | S1: 開催 | W1: =+本日開催!F2 -> 大井 | X1: =+本日開催!G2 -> 笠松 | Y1: =+本日開催!H2 -> 園田 | Z1: =+本日開催!I2 ->  | AA1: =+本日開催!J2 ->  | AB1: =+本日開催!K2 ->  | AC1: =+本日開催!L2 ->  | AD1: 残り | AE1: =+E24 -> 33 | AF1: 日 | AG1: =+IF(A27<=E22,555,30987812) -> 555 | AH1: =+AQ3 -> 0 | AI1: =+AQ4 -> 0 | AJ1: =+AQ5 -> 0 | AK1: =+IFERROR(BI17,"") -> 0 | AL1: =+GF17 -> 0 | AM1: =+IFERROR(INDEX(J3:J19,MATCH(AL1,GF3:GF19,0)),"") -> 15 | AN1: =+IFERROR(IF(AND(AK1>5.9,AL1>19%),"SS",IF(AND(AK1>5.4,AL1>14%,各データ整理!BA4>74%,OR(メイン!U48=3,メイン!U48=4)),"S","")),"") ->  | AQ1: =+COUNTIF(AQ3:AQ32,"<0") -> 0 | AW1: =+COUNTIF(AW3:AW16,">99%") -> 0 | BA1: =+COUNTIF(BA3:BA16,">99%") -> 0 | BC1: 2位 | BE1: 3位 | BG1: 4位 | CO1: 単オッズ | CR1: 複小 | CT1: 複大 | DB1: 複勝大小差 | DO1: 100000 | FM1: =+IF(FN1=16,44,IF(FN1=15,43,IF(FN1=14,42,IF(FN1=13,41,IF(FN1=12,40,IF(FN1=11,39,IF(FN1=10,38,IF(FN1=9,37,"")))))))) -> 41 | FN1: =+COUNT(M3:M18) -> 13 | FP1: '7'! | FQ1: F | FZ1: 枠連 | GP1: 8 | GS1: 枠単 | GX1: =+GW2+HM2+HY2+IK2+IW2+JI2+JU2 -> 0 | GY1: =+GR4 -> 0 | HE1: 枠単 | HQ1: 枠単 | IC1: 枠単 | IO1: 枠単 | JA1: 枠単 | JM1: 枠単 | JX1: 枠単
A2: =+VLOOKUP(B3,A11:B25,2,FALSE) -> 大井 | B2: 2 | D2: 秒 | E2: 00:00:3 | G2: =+TIMEVALUE(E2) -> 3.472222222e-05 | J2: =+INDEX(A26:A41,MATCH(A2,B26:B41,0)) -> O2 | K2: 南 | L2: =+MID(メイン!K3,FIND(" ",メイン!K3)+1,FIND("発走",メイン!K3)-FIND(" ",メイン!K3)-1) ->  | M2: 番 | N2: 馬 名 | O2: 単 | P2: =+INDIRECT("'3'!A35",TRUE) -> 0 | Q2: 馬単/Odds | S2: 馬単馬連比較 | Y2: 馬連/Odds | AA2: ワイド-馬連比 | AD2: 馬連ー枠連 | AF2: 枠複 | AH2: ３連複 | AJ2: ３連複＝ワイド３点 | AP2: 計 | AQ2: 差 | AR2: 枠単順 | AT2: 馬単枠単比 | AW2: 馬単過剰 | AY2: 馬連枠連 | BA2: ワイド過剰 | BC2: 馬単過剰 | BE2: 馬単過剰 | BG2: 馬単過剰 | BI2: =SUM(BI3:BI16) -> 0 | CI2: 枠 | CK2: 単オッズ | CR2: 枠 | CW2: 馬単得票値 | CY2: 馬連得票値 | DE2: 複勝差 | DM2: =100/(IF(ISBLANK(DN4),0,1/DN4)+IF(ISBLANK(DN5),0,1/DN5)+IF(ISBLANK(DN6),0,1/DN6)+IF(ISBLANK(DN7),0,1/DN7)+IF(ISBLANK(DN8),0,1/DN8)+IF(ISBLANK(DN9),0,1/DN9)+IF(ISBLANK(DN10),0,1/DN10)+IF(ISBLANK(DN11),0,1/DN11)+IF(ISBLANK(DN12),0,1/DN12)+IF(ISBLANK(DN13),0,1/DN13)+IF(ISBLANK(DN14),0,1/DN14)+IF(ISBLANK(DN15),0,1/DN15)+IF(ISBLANK(DN16),0,1/DN16)+IF(ISBLANK(DN17),0,1/DN17)+IF(ISBLANK(DN18),0,1/DN18)) -> 666666.6667 | DN2: =100/(IF(ISBLANK(DO4),0,1/DO4)+IF(ISBLANK(DO5),0,1/DO5)+IF(ISBLANK(DO6),0,1/DO6)+IF(ISBLANK(DO7),0,1/DO7)+IF(ISBLANK(DO8),0,1/DO8)+IF(ISBLANK(DO9),0,1/DO9)+IF(ISBLANK(DO10),0,1/DO10)+IF(ISBLANK(DO11),0,1/DO11)+IF(ISBLANK(DO12),0,1/DO12)+IF(ISBLANK(DO13),0,1/DO13)+IF(ISBLANK(DO14),0,1/DO14)+IF(ISBLANK(DO15),0,1/DO15)+IF(ISBLANK(DO16),0,1/DO16)+IF(ISBLANK(DO17),0,1/DO17)+IF(ISBLANK(DO18),0,1/DO18)) -> 666666.6667 | DO2: =100/(IF(ISBLANK(DP4),0,1/DP4)+IF(ISBLANK(DP5),0,1/DP5)+IF(ISBLANK(DP6),0,1/DP6)+IF(ISBLANK(DP7),0,1/DP7)+IF(ISBLANK(DP8),0,1/DP8)+IF(ISBLANK(DP9),0,1/DP9)+IF(ISBLANK(DP10),0,1/DP10)+IF(ISBLANK(DP11),0,1/DP11)+IF(ISBLANK(DP12),0,1/DP12)+IF(ISBLANK(DP13),0,1/DP13)+IF(ISBLANK(DP14),0,1/DP14)+IF(ISBLANK(DP15),0,1/DP15)+IF(ISBLANK(DP16),0,1/DP16)+IF(ISBLANK(DP17),0,1/DP17)+IF(ISBLANK(DP18),0,1/DP18))*3 -> 2000000 | DX2: 2頭枠選出 | FI2: =+U3 -> 0 | FL2: =+FM1*1 -> 41 | FM2: =+"E"&FL2 -> E41 | FN2: =+"F"&FL2 -> F41 | FO2: =+IF(OR(INDIRECT($FP$1&FM2)=0,INDIRECT($FP$1&FM2)="組合せ",INDIRECT($FP$1&FM2)=""),"",INDIRECT($FP$1&FM2)) ->  | FP2: =+INDIRECT($FP$1&FN2) -> 0 | FW2: 枠連 | FX2: 枠単 | FY2: 馬連差 | FZ2: 馬連ー枠連 | GK2: =+L8 -> 3 | GR2: 購入額 | GS2: 100000 | GV2: オッズ | GW2: =SUM(GX3:GX52) -> 0 | GX2: =SUM(GY3:GY52) ->  | GY2: 個々購入額 | GZ2: 払い戻し額 | HA2: =SUM(HB3:HB52) -> 0 | HD2: 購入額 | HE2: 100000 | HH2: オッズ | HI2: =SUM(HJ3:HJ52) -> 0 | HK2: 個々購入額 | HL2: 払い戻し額 | HM2: =SUM(HN3:HN52) -> 0 | HN2: =SUM(HO3:HO52) ->  | HP2: 購入額 | HQ2: 100000 | HT2: オッズ | HU2: =SUM(HV3:HV52) -> 0 | HW2: 個々購入額 | HX2: 払い戻し額 | HY2: =SUM(HZ3:HZ52) -> 0 | HZ2: =SUM(IA3:IA52) ->  | IB2: 購入額 | IC2: 100000 | IF2: オッズ | IG2: =SUM(IH3:IH52) -> 0 | II2: 個々購入額 | IJ2: 払い戻し額 | IK2: =SUM(IL3:IL52) -> 0 | IL2: =SUM(IM3:IM52) ->  | IN2: 購入額 | IO2: 100000 | IR2: オッズ | IS2: =SUM(IT3:IT52) -> 0 | IU2: 個々購入額 | IV2: 払い戻し額 | IW2: =SUM(IX3:IX52) -> 0 | IX2: =SUM(IY3:IY52) ->  | IZ2: 購入額 | JA2: 100000 | JD2: オッズ | JE2: =SUM(JF3:JF52) -> 0 | JG2: 個々購入額 | JH2: 払い戻し額 | JI2: =SUM(JJ3:JJ52) -> 0 | JJ2: =SUM(JK3:JK52) ->  | JL2: 購入額 | JM2: 100000 | JP2: オッズ | JQ2: =SUM(JR3:JR52) -> 0 | JS2: 個々購入額 | JT2: 払い戻し額 | JU2: =SUM(JV3:JV52) -> 0 | JV2: =SUM(JW3:JW52) ->  | JW2: 購入額 | JX2: 100000 | KA2: オッズ | KB2: =SUM(KC3:KC52) -> 0 | KD2: 個々購入額 | KE2: 払い戻し額 | KF2: =SUM(KG3:KG52) -> 0 | KG2: =SUM(KH3:KH52) -> 
A3: 馬場コード | B3: =VLOOKUP(本日開催!F3,A11:B25,1,FALSE) -> 20 | D3: 単多点① | E3: 6 | F3: 0.7907163182 | G3: =IF(TYPE(100/F3)=16,0,100/F3) -> 126.4676063 | H3: =SUM(G3/G5) -> 0.08132760879 | I3: 1 | J3: 1 | L3: =+IFERROR(VLOOKUP(M3,$CL$3:$CS$18,8,FALSE),"") -> 6 | M3: =+IFERROR(VLOOKUP(J3,$CK$3:$CN$18,2,FALSE),"") -> 8 | N3: =+IFERROR(IF(M3="","",VLOOKUP(M3,$CL$3:$CN$18,2,FALSE)),"") -> プリズムムーン | O3: =+IFERROR(IF(VLOOKUP(M3,$CL$3:$CP$18,5,FALSE)=10000,"取消",VLOOKUP(M3,$CL$3:$CP$18,5,FALSE)),"") -> 2.100392999 | P3: =+IFERROR(VLOOKUP(M3,$CL$3:$CR$18,6,FALSE),"") -> 1.3-1.5 | BN3: =+IFERROR(S3&"-"&T3,"") -> - | BO3: =+IFERROR(T3&"-"&S3,"") -> - | BP3: =+IFERROR(INDEX($AR$3:$AR$52,MATCH(BN3,$AT$3:$AT$52,0)),"") ->  | BQ3: =+IFERROR(INDEX($AR$3:$AR$52,MATCH(BO3,$AT$3:$AT$52,0)),"") ->  | CI3: =+CJ3&"-"&CL3 -> 1-1 | CJ3: =+INDIRECT("'1a'!a25",TRUE) -> 1 | CK3: =IF(OR(CP3=0,CP3=""),"",RANK(CP3,$CP$3:$CP$18,1)-COUNTIF($CP$3:$CP$18,0)) -> 3 | CL3: =+INDIRECT("1a!b25",TRUE) -> 1 | CM3: =+INDIRECT("1a!c25",TRUE) -> カリスマパラダイス | CN3: =+IF(CR3=0,"",INDIRECT("1a!k25",TRUE)+CR3/10000) -> 9.10018 | CO3: =+IFERROR(IF(OR(CL3=0,CL3=""),"",SUM(CN3+(CR3/10000)+(CT3/10000)+ROW()/100000)),"") -> 9.10065 | CP3: =IF(CO3="","",CO3) -> 9.10065 | CQ3: =+INDIRECT("1a!l25",TRUE) -> 1.8-2.6 | CR3: =IFERROR(LEFT(CQ3,FIND("-",CQ3)-1)*1,"0") -> 1.8 | CS3: =+IF(CK3="","",MAX(CI3:CJ3)) -> 1 | CT3: =IFERROR(MID(CQ3,FIND("-",CQ3)+1,LEN(CQ3))*1,"") -> 2.6 | CV3: 1 | CW3: =+'9'!B34 -> 306.6 | CX3: =IFERROR(1000/CW3,"") -> 3.261578604 | CY3: =IFERROR(CX3/$DE$294,"") -> 0.002443698433 | CZ3: =IFERROR(1000/Z3,"") ->  | DA3: =IFERROR(CZ3/$CZ$71,"") ->  | DB3: =SUM(1/CT3)-(1/CR3) -> -0.1709401709 | DC3: =IFERROR(LEFT(P3,FIND("-",P3)-1)*1,"") -> 1.3 | DD3: =IFERROR(MID(P3,FIND("-",P3)+1,LEN(P3))*1,"0") -> 1.5 | DE3: =+IFERROR(M3,"") -> 8 | DF3: =+IFERROR(SUM(1/CT3-1/CO3),"") -> 0.2747331235 | DH3: 馬単 | DM3: 馬連 | DN3: 馬単 | DO3: 馬連 | DP3: ワイド | DR3: =+CS3 -> 1 | DS3: =+IFERROR(INDEX(各データ整理!$V$4:$V$19,MATCH(CV3,各データ整理!$D$4:$D$19,0)),"") ->  | DU3: 1 | DV3: =+SUMIF($DR$3:$DR$17,DU3,$DS$3:$DS$17) -> 0 | DX3: 1 | DY3: =+COUNTIF($L$3:$L$18,DX3) -> 1 | DZ3: =+IF(DY3>=2,DX3,"") ->  | FL3: =+SUM(FL2+1) -> 42 | FM3: =+"E"&FL3 -> E42 | FN3: =+"F"&FL3 -> F42 | FO3: =+IF(OR(INDIRECT($FP$1&FM3)=0,INDIRECT($FP$1&FM3)="組合せ",INDIRECT($FP$1&FM3)=""),"",INDIRECT($FP$1&FM3)) ->  | FP3: =+INDIRECT($FP$1&FN3) -> 0 | FR3: =+IFERROR(INDEX($CS$3:$CS$18,MATCH(S3,$CL$3:$CL$18,0)),"") ->  | FS3: =+IFERROR(INDEX($CS$3:$CS$18,MATCH(T3,$CL$3:$CL$18,0)),"") ->  | FT3: =+FR3&"-"&FS3*1 ->  | FU3: =+FS3&"-"&FR3*1 ->  | FV3: =+IFERROR(INDEX(INDIRECT("'7'!F1:F110"),MATCH(FT3,INDIRECT("'7'!E1:E110"),0)),"") ->  | FW3: =+IFERROR(INDEX('7'!#REF!,MATCH(FU3,'7'!#REF!,0)),"") ->  | FX3: =+IFERROR(MAX(FV3:FW3),"") -> 0 | FY3: =+IFERROR(INDEX('7'!#REF!,MATCH(FT3,'7'!#REF!,0)),"") ->  | FZ3: =IFERROR(SUM(1/Z3)/(1/AG3),"") ->  | GF3: =+IFERROR(BI3/$BI$2,"") ->  | GH3: =+IFERROR(BA3/$BA$16,"") ->  | GJ3: =+IF(AND(AC3>119%,OR($M$3=S3,$M$3=T3,$M$4=S3,$M$4=T3,$M$5=S3,$M$5=T3)),AC3,"") ->  | GK3: =+IFERROR(INDEX($Y$3:$Y$22,MATCH(GJ3,$AC$3:$AC$22,0)),"") ->  | GL3: =IFERROR(INDEX($GK$3:$GK$12,MATCH(0,INDEX(COUNTIF($GL2:GL$2,$GK$3:$GK$12&""),),0)),"") ->  | GM3: =IF(GL3="","",LEFT(GL3,FIND("-",GL3)-1)*1) ->  | GN3: =+IF(OR($M$3=GM3,$M$3=GM3,$M$4=GM3,$M$4=GM3,$M$5=GM3,$M$5=GM3),"",GM3) ->  | GO3: =IF(COUNTIF(GN$3:GN3,GN3)=1,ROW(GN3),"") -> 3 | GS3: 実際の額 | GT3: =GY53 -> 0 | GU3: =IFERROR(SUM(HJ3/GW3),"1%")*1 -> 0.01 | GV3: 1 | GW3: =+GC18 ->  | GX3: =IF(TYPE(100/GW3)=16,0,100/GW3) -> 0 | GY3: =GX3/GW$2 ->  | GZ3: =IF(GX3=0,0,IF(FLOOR($DO$1*GY3,100)=0,100,FLOOR($DO$1*GY3,100))) -> 0 | HA3: =IF(GZ3=0,"",GW3*GZ3) ->  | HB3: =IF(TYPE(100/GW3)=16,0,100/GW3) -> 0 | HC3: =SUM(HB3/$HA$2) ->  | HE3: 実際の額 | HF3: =HK53 -> 0 | HG3: =IFERROR(SUM(HV3/HI3),"1%")*1 -> 0.01 | HH3: 1 | HI3: =+GE18 ->  | HJ3: =IF(TYPE(100/HI3)=16,0,100/HI3) -> 0 | HK3: =HJ3/HI$2 ->  | HL3: =IF(HJ3=0,0,IF(FLOOR($DO$1*HK3,100)=0,100,FLOOR($DO$1*HK3,100))) -> 0 | HM3: =IF(HL3=0,"",HI3*HL3) ->  | HN3: =IF(TYPE(100/HI3)=16,0,100/HI3) -> 0 | HO3: =HN3/$GX$1 ->  | HQ3: 実際の額 | HR3: =HW53 -> 0 | HS3: =IFERROR(SUM(IH3/HU3),"1%")*1 -> 0.01 | HT3: 1 | HU3: =+GG18 ->  | HV3: =IF(TYPE(100/HU3)=16,0,100/HU3) -> 0 | HW3: =HV3/HU$2 ->  | HX3: =IF(HV3=0,0,IF(FLOOR($DO$1*HW3,100)=0,100,FLOOR($DO$1*HW3,100))) -> 0 | HY3: =IF(HX3=0,"",HU3*HX3) ->  | HZ3: =IF(TYPE(100/HU3)=16,0,100/HU3) -> 0 | IA3: =HZ3/$GX$1 ->  | IC3: 実際の額 | ID3: =II53 -> 0 | IE3: =IFERROR(SUM(IT3/IG3),"1%")*1 -> 0.01 | IF3: 1 | IG3: =+GI18 ->  | IH3: =IF(TYPE(100/IG3)=16,0,100/IG3) -> 0 | II3: =IH3/IG$2 ->  | IJ3: =IF(IH3=0,0,IF(FLOOR($DO$1*II3,100)=0,100,FLOOR($DO$1*II3,100))) -> 0 | IK3: =IF(IJ3=0,"",IG3*IJ3) ->  | IL3: =IF(TYPE(100/IG3)=16,0,100/IG3) -> 0 | IM3: =IL3/$GX$1 ->  | IO3: 実際の額 | IP3: =IU53 -> 0 | IQ3: =IFERROR(SUM(JF3/IS3),"1%")*1 -> 0.01 | IR3: 1 | IS3: =+GK18 ->  | IT3: =IF(TYPE(100/IS3)=16,0,100/IS3) -> 0 | IU3: =IT3/IS$2 ->  | IV3: =IF(IT3=0,0,IF(FLOOR($DO$1*IU3,100)=0,100,FLOOR($DO$1*IU3,100))) -> 0 | IW3: =IF(IV3=0,"",IS3*IV3) ->  | IX3: =IF(TYPE(100/IS3)=16,0,100/IS3) -> 0 | IY3: =IX3/$GX$1 ->  | JA3: 実際の額 | JB3: =JG53 -> 0 | JC3: =IFERROR(SUM(JR3/JE3),"1%")*1 -> 0.01 | JD3: 1 | JE3: =+GM18 -> 0 | JF3: =IF(TYPE(100/JE3)=16,0,100/JE3) -> 0 | JG3: =JF3/JE$2 ->  | JH3: =IF(JF3=0,0,IF(FLOOR($DO$1*JG3,100)=0,100,FLOOR($DO$1*JG3,100))) -> 0 | JI3: =IF(JH3=0,"",JE3*JH3) ->  | JJ3: =IF(TYPE(100/JE3)=16,0,100/JE3) -> 0 | JK3: =JJ3/$GX$1 ->  | JM3: 実際の額 | JN3: =JS53 -> 0 | JO3: =IFERROR(SUM(KG3/JQ3),"1%")*1 -> 0.01 | JP3: 1 | JQ3: =+GO18 ->  | JR3: =IF(TYPE(100/JQ3)=16,0,100/JQ3) -> 0 | JS3: =JR3/JQ$2 ->  | JT3: =IF(JR3=0,0,IF(FLOOR($DO$1*JS3,100)=0,100,FLOOR($DO$1*JS3,100))) -> 0 | JU3: =IF(JT3=0,"",JQ3*JT3) ->  | JV3: =IF(TYPE(100/JQ3)=16,0,100/JQ3) -> 0 | JW3: =JV3/$GX$1 ->  | JX3: 実際の額 | JY3: =KD53 -> 0 | JZ3: =IFERROR(SUM(KR3/KB3),"1%")*1 -> 0.01 | KA3: 1 | KB3: =+GQ18 ->  | KC3: =IF(TYPE(100/KB3)=16,0,100/KB3) -> 0 | KD3: =KC3/KB$2 ->  | KE3: =IF(KC3=0,0,IF(FLOOR($DO$1*KD3,100)=0,100,FLOOR($DO$1*KD3,100))) -> 0 | KF3: =IF(KE3=0,"",KB3*KE3) ->  | KG3: =IF(TYPE(100/KB3)=16,0,100/KB3) -> 0 | KH3: =KG3/$GX$1 -> 
A4: =+'MAX(2)'!G3 -> 0 | C4: 1000000 | E4: 1→ | F4: 0.07 | G4: =IF(TYPE(100/F4)=16,0,100/F4) -> 1428.571429 | H4: =SUM(G4/G5) -> 0.9186723912 | I4: 2 | J4: 2 | L4: 7 | M4: 11 | N4: エコロタイタン | O4: 5.4005116 | P4: 1.6-2.2 | BN4: =+IFERROR(S4&"-"&T4,"") -> - | BO4: =+IFERROR(T4&"-"&S4,"") -> - | BP4: =+IFERROR(INDEX($AR$3:$AR$52,MATCH(BN4,$AT$3:$AT$52,0)),"") ->  | BQ4: =+IFERROR(INDEX($AR$3:$AR$52,MATCH(BO4,$AT$3:$AT$52,0)),"") ->  | CI4: =+CJ4&"-"&CL4 -> 2-2 | CJ4: =+INDIRECT("'1a'!a26",TRUE) -> 2 | CK4: =IF(OR(CP4=0,CP4=""),"",RANK(CP4,$CP$3:$CP$18,1)-COUNTIF($CP$3:$CP$18,0)) -> 12 | CL4: =+INDIRECT("1a!b26",TRUE) -> 2 | CM4: =+INDIRECT("1a!c26",TRUE) -> シャイネス | CN4: =+IF(CR4=0,"",INDIRECT("1a!k26",TRUE)+CR4/100002) -> 60.800095 | CO4: =+IFERROR(IF(OR(CL4=0,CL4=""),"",SUM(CN4+(CR4/10000)+(CT4/10000)+ROW()/100000)),"") -> 60.802585 | CP4: =IF(CO4="","",CO4) -> 60.802585 | CQ4: =+INDIRECT("1a!l26",TRUE) -> 9.5-15 | CR4: =IFERROR(LEFT(CQ4,FIND("-",CQ4)-1)*1,"0") -> 9.5 | CS4: =+IF(CK4="","",MAX(CI4:CJ4)) -> 2 | CT4: =IFERROR(MID(CQ4,FIND("-",CQ4)+1,LEN(CQ4))*1,"") -> 15 | CU4: =IFERROR(LEFT('9'!A35,FIND("-",'9'!A35)-1)*1,"") -> 1 | CV4: 2 | CW4: =+'9'!B35 -> 74.5 | CX4: =IFERROR(1000/CW4,"") -> 13.42281879 | CY4: 0.01005688509 | DB4: =SUM(1/CT4)-(1/CR4) -> -0.03859649123 | DC4: 1.6 | DD4: 2.2 | DE4: 11 | DF4: 0.0502199975 | DG4: =+AW4 -> 0 | DH4: =+$DG$4&"-"&DG5 -> 0-0 | DI4: =+DG4 -> 0 | DJ4: =+DG5 -> 0 | DK4: =+IFERROR(SMALL(DI4:DJ4,1),"") -> 0 | DL4: =+IFERROR(LARGE(DI4:DJ4,1),"") -> 0 | DM4: =+DK4&"-"&DL4 -> 0-0 | DN4: =+IFERROR(INDEX($R$3:$R$64,MATCH(DH4,$Q$3:$Q$64,0)),"100000") -> 100000 | DO4: =+IFERROR(INDEX($Z$3:$Z$64,MATCH(DM4,$Y$3:$Y$64,0)),"100000") -> 100000 | DP4: =+IFERROR(IF(DM4="-",100000,INDEX('10'!$C$36:$C$86,MATCH(DM4,'10'!$A$39:$A$89,0))),"100000") -> 100000 | DQ4: =SUM(DN4:DP4) -> 0 | DR4: =+CS4 -> 2 | DS4: =+IFERROR(INDEX(各データ整理!$V$4:$V$19,MATCH(CV4,各データ整理!$D$4:$D$19,0)),"") ->  | DU4: 2 | DV4: =+SUMIF($DR$3:$DR$17,DU4,$DS$3:$DS$17) -> 0 | DX4: 2 | DY4: =+COUNTIF($L$3:$L$18,DX4) -> 1 | DZ4: =+IF(DY4>=2,DX4,"") ->  | FL4: =+SUM(FL3+1) -> 43 | FM4: =+"E"&FL4 -> E43 | FN4: F43 | FP4: 0 | FR4: =+IFERROR(INDEX($CS$3:$CS$18,MATCH(S4,$CL$3:$CL$18,0)),"") ->  | FT4: =+FR4&"-"&FS4*1 ->  | FV4: =+IFERROR(INDEX(INDIRECT("'7'!F1:F110"),MATCH(FT4,INDIRECT("'7'!E1:E110"),0)),"") ->  | FW4: =+IFERROR(INDEX('7'!#REF!,MATCH(FU4,'7'!#REF!,0)),"") ->  | FX4: =+IFERROR(MAX(FV4:FW4),"") -> 0 | FY4: =+IFERROR(INDEX('7'!#REF!,MATCH(FT4,'7'!#REF!,0)),"") ->  | GF4: =+IFERROR(BI4/$BI$2,"") ->  | GH4: =+IFERROR(BA4/$BA$16,"") ->  | GJ4: =+IF(AND(AC4>119%,OR($M$3=S4,$M$3=T4,$M$4=S4,$M$4=T4,$M$5=S4,$M$5=T4)),AC4,"") ->  | GK4: =+IFERROR(INDEX($Y$3:$Y$22,MATCH(GJ4,$AC$3:$AC$22,0)),"") ->  | GL4: =IFERROR(INDEX($GK$3:$GK$12,MATCH(0,INDEX(COUNTIF($GL$2:GL3,$GK$3:$GK$12&""),),0)),"") ->  | GM4: =IF(GL4="","",LEFT(GL4,FIND("-",GL4)-1)*1) ->  | GN4: =+IF(OR($M$3=GM4,$M$3=GM4,$M$4=GM4,$M$4=GM4,$M$5=GM4,$M$5=GM4),"",GM4) ->  | GO4: =IF(COUNTIF(GN$3:GN4,GN4)=1,ROW(GN4),"") ->  | GR4: =+GB1 -> 0 | GS4: 最低倍率 | GT4: =MIN(HA3:HA52)/GY53 ->  | GU4: 0.01 | GV4: 2 | GX4: 0 | GZ4: 0 | HB4: 0 | HD4: =+GC2 -> 0 | HE4: 最低倍率 | HF4: =MIN(HM3:HM52)/HK53 ->  | HG4: 0.01 | HH4: 2 | HJ4: 0 | HL4: 0 | HN4: 0 | HP4: =+GE2 -> 0 | HQ4: 最低倍率 | HR4: =MIN(HY3:HY52)/HW53 ->  | HS4: 0.01 | HT4: 2 | HV4: 0 | HX4: 0 | HY4: =IF(HX4=0,"",HU4*HX4) ->  | HZ4: 0 | IB4: =+GG2 -> 0 | IC4: 最低倍率 | ID4: =MIN(IK3:IK52)/II53 ->  | IE4: 0.01 | IF4: 2 | IH4: 0 | IJ4: 0 | IL4: 0 | IN4: =+GI2 -> 0 | IO4: 最低倍率 | IP4: =MIN(IW3:IW52)/IU53 ->  | IQ4: 0.01 | IR4: 2 | IS4: 0 | IT4: 0 | IV4: 0 | IX4: 0 | IZ4: =+GK2 -> 3 | JA4: 最低倍率 | JB4: =MIN(JI3:JI52)/JG53 ->  | JC4: 0.01 | JD4: 2 | JE4: 0 | JF4: 0 | JH4: 0 | JJ4: 0 | JL4: =+GM2 -> 0 | JM4: 最低倍率 | JN4: =MIN(JU3:JU52)/JS53 ->  | JO4: 0.01 | JP4: 2 | JR4: 0 | JT4: 0 | JV4: 0 | JX4: 最低倍率 | JY4: =MIN(KF3:KF52)/KD53 ->  | JZ4: 0.01 | KA4: 2 | KC4: 0 | KE4: 0 | KG4: 0
A5: 2022 | B5: 年 | C5: =SUM(A4-B4)/B4 ->  | D5: オッズ取得時間 | F5: =SUM(F4/F3) -> 0.08852732439 | G5: =SUM(G3:G4) -> 1555.039035 | I5: 3 | J5: 3 | L5: 1 | M5: 1 | N5: カリスマパラダイス | O5: 9.10065 | P5: 1.8-2.6 | BN5: - | BO5: - | CI5: 3-3 | CJ5: =+INDIRECT("'1a'!a27",TRUE) -> 3 | CK5: 6 | CL5: =+INDIRECT("1a!b27",TRUE) -> 3 | CM5: =+INDIRECT("1a!c27",TRUE) -> サファイアサーラ | CN5: =+IF(CR5=0,"",INDIRECT("1a!k27",TRUE)+CR5/100003) -> 12.800032 | CO5: =+IFERROR(IF(OR(CL5=0,CL5=""),"",SUM(CN5+(CR5/10000)+(CT5/10000)+ROW()/100000)),"") -> 12.800902 | CP5: =IF(CO5="","",CO5) -> 12.800902 | CQ5: =+INDIRECT("1a!l27",TRUE) -> 3.2-5 | CR5: 3.2 | CS5: 3 | CT5: 5 | CU5: =IFERROR(LEFT('9'!A36,FIND("-",'9'!A36)-1)*1,"") -> 1 | CV5: 3 | CW5: =+'9'!B36 -> 64.5 | CX5: 15.50387597 | CY5: 0.01161609208 | DB5: =SUM(1/CT5)-(1/CR5) -> -0.1125 | DC5: 1.8 | DD5: 2.6 | DE5: 1 | DF5: 0.121880505 | DG5: =+AW5 -> 0 | DH5: 0-0 | DI5: =+DI4 -> 0 | DJ5: 0 | DK5: 0 | DL5: 0 | DM5: 0-0 | DN5: 100000 | DO5: 100000 | DP5: =+IFERROR(IF(DM5="-",100000,INDEX('10'!$C$36:$C$86,MATCH(DM5,'10'!$A$39:$A$89,0))),"100000") -> 100000 | DQ5: 0 | DR5: 3 | DS5: =+IFERROR(INDEX(各データ整理!$V$4:$V$19,MATCH(CV5,各データ整理!$D$4:$D$19,0)),"") ->  | DU5: 3 | DV5: 0 | DX5: 3 | DY5: 1 | FL5: 44 | FM5: E44 | FN5: F44 | FP5: 0 | FT5: =+FR5&"-"&FS5 -> - | FW5: =+IFERROR(INDEX('7'!#REF!,MATCH(FU5,'7'!#REF!,0)),"") ->  | FX5: =+IFERROR(MAX(FV5:FW5),"") -> 0 | FY5: =+IFERROR(INDEX('7'!#REF!,MATCH(FT5,'7'!#REF!,0)),"") ->  | GL5: =IFERROR(INDEX($GK$3:$GK$12,MATCH(0,INDEX(COUNTIF($GL$2:GL4,$GK$3:$GK$12&""),),0)),"") ->  | GO5: =IF(COUNTIF(GN$3:GN5,GN5)=1,ROW(GN5),"") ->  | GU5: 0.01 | GV5: 3 | GX5: 0 | GZ5: 0 | HB5: 0 | HG5: 0.01 | HH5: 3 | HJ5: 0 | HL5: 0 | HN5: 0 | HS5: 0.01 | HT5: 3 | HV5: 0 | HX5: 0 | HZ5: 0 | IE5: 0.01 | IF5: 3 | IH5: 0 | IJ5: 0 | IL5: 0 | IQ5: 0.01 | IR5: 3 | IS5: 0 | IT5: 0 | IV5: 0 | IX5: 0 | JC5: 0.01 | JD5: 3 | JE5: 0 | JF5: 0 | JH5: 0 | JJ5: 0 | JO5: 0.01 | JP5: 3 | JR5: 0 | JT5: 0 | JV5: 0 | JZ5: 0.01 | KA5: 3 | KC5: 0 | KE5: 0 | KG5: 0
A6: 07 | B6: 月 | C6: 01 | D6: =+各データ整理!E2 -> 44771.95607 | H6: =SUM(G6/G8) -> 0 | I6: 4 | J6: 4 | L6: 4 | M6: 5 | N6: タツノレジェンド | O6: 9.300600999 | P6: 2.1-3 | BN6: - | BO6: - | CI6: 4-4 | CJ6: =+INDIRECT("'1a'!a28",TRUE) -> 4 | CK6: 5 | CL6: =+IF(CT6="","",INDIRECT("1a!b28",TRUE)) -> 4 | CM6: =+INDIRECT("1a!c28",TRUE) -> マルカンブロンド | CN6: =+IF(CR6=0,"",INDIRECT("1a!k28",TRUE)+CR6/100004) -> 10.000027 | CO6: =+IFERROR(IF(OR(CL6=0,CL6=""),"",SUM(CN6+(CR6/10000)+(CT6/10000)+ROW()/100000)),"") -> 10.000767 | CP6: 10.000767 | CQ6: =+INDIRECT("1a!l28",TRUE) -> 2.7-4.1 | CR6: 2.7 | CS6: 4 | CT6: 4.1 | CU6: =IFERROR(LEFT('9'!A37,FIND("-",'9'!A37)-1)*1,"") -> 1 | CV6: 4 | CW6: =+'9'!B37 -> 79 | CX6: 12.65822785 | CY6: 0.009484024549 | DB6: =SUM(1/CT6)-(1/CR6) -> -0.1264679313 | DC6: 2.1 | DD6: 3 | DE6: 5 | DF6: 0.1439101084 | DG6: =+AW6 -> 0 | DH6: 0-0 | DI6: 0 | DJ6: 0 | DK6: 0 | DL6: 0 | DM6: 0-0 | DN6: 100000 | DO6: 100000 | DP6: =+IFERROR(IF(DM6="-",100000,INDEX('10'!$C$36:$C$86,MATCH(DM6,'10'!$A$39:$A$89,0))),"100000") -> 100000 | DQ6: 0 | DR6: 4 | DS6: =+IFERROR(INDEX(各データ整理!$V$4:$V$19,MATCH(CV6,各データ整理!$D$4:$D$19,0)),"") ->  | DU6: 4 | DV6: 0 | DX6: 4 | DY6: 2 | DZ6: 4 | FL6: 45 | FM6: E45 | FN6: F45 | FP6: 0 | FT6: - | FW6: =+IFERROR(INDEX('7'!#REF!,MATCH(FU6,'7'!#REF!,0)),"") ->  | FX6: 0 | FY6: =+IFERROR(INDEX('7'!#REF!,MATCH(FT6,'7'!#REF!,0)),"") ->  | GL6: =IFERROR(INDEX($GK$3:$GK$12,MATCH(0,INDEX(COUNTIF($GL$2:GL5,$GK$3:$GK$12&""),),0)),"") ->  | GO6: =IF(COUNTIF(GN$3:GN6,GN6)=1,ROW(GN6),"") ->  | GU6: 0.01 | GV6: 4 | GX6: 0 | GZ6: 0 | HB6: 0 | HG6: 0.01 | HH6: 4 | HJ6: 0 | HL6: 0 | HN6: 0 | HS6: 0.01 | HT6: 4 | HV6: 0 | HX6: 0 | HZ6: 0 | IE6: 0.01 | IF6: 4 | IH6: 0 | IJ6: 0 | IL6: 0 | IQ6: 0.01 | IR6: 4 | IS6: 0 | IT6: 0 | IV6: 0 | IX6: 0 | JC6: 0.01 | JD6: 4 | JE6: 0 | JF6: 0 | JH6: 0 | JJ6: 0 | JO6: 0.01 | JP6: 4 | JR6: 0 | JT6: 0 | JV6: 0 | JZ6: 0.01 | KA6: 4 | KC6: 0 | KE6: 0 | KG6: 0
A7: 29 | B7: 日 | C7: 1000000 | F7: =+馬②!E3 -> 39.62805 | G7: =IF(TYPE(100/F7)=16,0,100/F7) -> 2.523465071 | H7: =SUM(G7/G8) -> 1 | I7: 5 | J7: 5 | L7: 4 | M7: 4 | N7: マルカンブロンド | O7: 10.000767 | P7: 2.7-4.1 | BN7: - | BO7: - | CI7: 4-5 | CJ7: =+INDIRECT("'1a'!a29",TRUE) -> 4 | CK7: 4 | CL7: =+IF(CT7="","",INDIRECT("1a!b29",TRUE)) -> 5 | CM7: =+IF(CO7="","",INDIRECT("1a!c29",TRUE)) -> タツノレジェンド | CN7: =+IF(CR7=0,"",INDIRECT("1a!k29",TRUE)+CR7/100005) -> 9.300020999 | CO7: 9.300600999 | CP7: 9.300600999 | CQ7: =+INDIRECT("1a!l29",TRUE) -> 2.1-3 | CR7: 2.1 | CS7: 4 | CT7: 3 | CU7: =IFERROR(LEFT('9'!A38,FIND("-",'9'!A38)-1)*1,"") -> 1 | CV7: 5 | CW7: =+'9'!B38 -> 146 | CX7: 6.849315068 | CY7: 0.005131766708 | DB7: -0.1428571429 | DC7: 2.7 | DD7: 4.1 | DE7: 4 | DF7: 0.2258133999 | DG7: =+AW7 -> 0 | DH7: 0-0 | DI7: 0 | DJ7: 0 | DK7: 0 | DL7: 0 | DM7: 0-0 | DN7: 100000 | DO7: 100000 | DP7: =+IFERROR(IF(DM7="-",100000,INDEX('10'!$C$36:$C$86,MATCH(DM7,'10'!$A$39:$A$89,0))),"100000") -> 100000 | DQ7: 0 | DR7: 4 | DS7: =+IFERROR(INDEX(各データ整理!$V$4:$V$19,MATCH(CV7,各データ整理!$D$4:$D$19,0)),"") ->  | DU7: 5 | DV7: 0 | DX7: 5 | DY7: 2 | DZ7: 5 | FL7: 46 | FM7: E46 | FN7: F46 | FP7: 0 | FT7: - | FW7: =+IFERROR(INDEX('7'!#REF!,MATCH(FU7,'7'!#REF!,0)),"") ->  | FX7: 0 | FY7: =+IFERROR(INDEX('7'!#REF!,MATCH(FT7,'7'!#REF!,0)),"") ->  | GL7: =IFERROR(INDEX($GK$3:$GK$12,MATCH(0,INDEX(COUNTIF($GL$2:GL6,$GK$3:$GK$12&""),),0)),"") ->  | GM7: =IF(GL3="","",RIGHT(GL3,LEN(GL3)-FIND("-",GL3,FIND("-",GL3)))*1) ->  | GO7: =IF(COUNTIF(GN$3:GN7,GN7)=1,ROW(GN7),"") ->  | GS7: 黄色の部分だけ | GU7: 0.01 | GV7: 5 | GX7: 0 | GZ7: 0 | HB7: 0 | HE7: 黄色の部分だけ | HG7: 0.01 | HH7: 5 | HJ7: 0 | HL7: 0 | HN7: 0 | HQ7: 黄色の部分だけ | HS7: 0.01 | HT7: 5 | HV7: 0 | HX7: 0 | HZ7: 0 | IC7: 黄色の部分だけ | IE7: 0.01 | IF7: 5 | IH7: 0 | IJ7: 0 | IL7: 0 | IO7: 黄色の部分だけ | IQ7: 0.01 | IR7: 5 | IS7: 0 | IT7: 0 | IV7: 0 | IX7: 0 | JA7: 黄色の部分だけ | JC7: 0.01 | JD7: 5 | JE7: 0 | JF7: 0 | JH7: 0 | JJ7: 0 | JM7: 黄色の部分だけ | JO7: 0.01 | JP7: 5 | JR7: 0 | JT7: 0 | JV7: 0 | JX7: 黄色の部分だけ | JZ7: =IFERROR(SUM(#REF!/KB7),"1%")*1 -> 0.01 | KA7: 5 | KC7: 0 | KE7: 0 | KG7: 0
A8: 発走時間 | C8: 02 | G8: =SUM(G6:G7) -> 2.523465071 | I8: 6 | J8: 6 | L8: 3 | M8: 3 | N8: サファイアサーラ | O8: 12.800902 | P8: 3.2-5 | BN8: - | BO8: - | BP8: =+IFERROR(INDEX($AR$3:$AR$52,MATCH(BN8,$AT$3:$AT$52,0)),"") ->  | CI8: 5-6 | CJ8: =+INDIRECT("'1a'!a30",TRUE) -> 5 | CK8: =IF(OR(CP8=0,CP8=""),"",RANK(CP8,$CP$3:$CP$18,1)-COUNTIF($CP$3:$CP$18,0)) -> 7 | CL8: =+IF(CT8="","",INDIRECT("1a!b30",TRUE)) -> 6 | CM8: =+IF(CO8="","",INDIRECT("1a!c30",TRUE)) -> ラムリケティ | CN8: =+IF(CR8=0,"",INDIRECT("1a!k30",TRUE)+CR8/100006) -> 21.500056 | CO8: 21.501576 | CP8: =IF(CO8="","",CO8) -> 21.501576 | CQ8: =+INDIRECT("1a!l30",TRUE) -> 5.6-8.8 | CR8: 5.6 | CS8: 5 | CT8: 8.8 | CU8: =IFERROR(LEFT('9'!A39,FIND("-",'9'!A39)-1)*1,"") -> 1 | CV8: 6 | CW8: =+'9'!B39 -> 278.8 | CX8: 3.586800574 | CY8: 0.002687367071 | DB8: -0.06493506494 | DC8: 3.2 | DD8: 5 | DE8: 3 | DF8: 0.06712814488 | DG8: =+AW8 -> 0 | DH8: 0-0 | DI8: 0 | DJ8: 0 | DK8: 0 | DL8: 0 | DM8: 0-0 | DN8: 100000 | DO8: 100000 | DP8: =+IFERROR(IF(DM8="-",100000,INDEX('10'!$C$36:$C$86,MATCH(DM8,'10'!$A$39:$A$89,0))),"100000") -> 100000 | DQ8: 0 | DR8: 5 | DS8: =+IFERROR(INDEX(各データ整理!$V$4:$V$19,MATCH(CV8,各データ整理!$D$4:$D$19,0)),"") ->  | DU8: 6 | DV8: 0 | DX8: 6 | DY8: 2 | DZ8: 6 | FL8: 47 | FM8: E47 | FN8: F47 | FP8: 0 | FT8: - | FW8: =+IFERROR(INDEX('7'!#REF!,MATCH(FU8,'7'!#REF!,0)),"") ->  | FX8: 0 | FY8: =+IFERROR(INDEX('7'!#REF!,MATCH(FT8,'7'!#REF!,0)),"") ->  | GM8: =IF(GL4="","",RIGHT(GL4,LEN(GL4)-FIND("-",GL4,FIND("-",GL4)))*1) ->  | GO8: =IF(COUNTIF(GN$3:GN8,GN8)=1,ROW(GN8),"") ->  | GS8: 入力してください。 | GU8: 0.01 | GV8: 6 | GW8: 0 | GX8: 0 | GZ8: 0 | HB8: 0 | HE8: 入力してください。 | HG8: 0.01 | HH8: 6 | HI8: 0 | HJ8: 0 | HL8: 0 | HN8: 0 | HQ8: 入力してください。 | HS8: 0.01 | HT8: 6 | HU8: =+GG23 -> 0 | HV8: 0 | HX8: 0 | HZ8: 0 | IC8: 入力してください。 | IE8: 0.01 | IF8: 6 | IG8: =+#REF! ->  | IH8: 0 | IJ8: 0 | IL8: 0 | IO8: 入力してください。 | IQ8: 0.01 | IR8: 6 | IS8: 0 | IT8: 0 | IV8: 0 | IX8: 0 | JA8: 入力してください。 | JC8: 0.01 | JD8: 6 | JE8: 0 | JF8: 0 | JH8: 0 | JJ8: 0 | JM8: 入力してください。 | JO8: 0.01 | JP8: 6 | JR8: 0 | JT8: 0 | JV8: 0 | JX8: 入力してください。 | JZ8: =IFERROR(SUM(#REF!/KB8),"1%")*1 -> 0.01 | KA8: 6 | KC8: 0 | KE8: 0 | KG8: 0
A9: =INDEX(本日開催!F6:M17,MATCH(B2,本日開催!N6:N17,0),MATCH(B3,本日開催!F3:M3,0)) -> 15:00:00 | H9: =SUM(G9/G11) ->  | I9: 7 | J9: 7 | L9: 5 | M9: 6 | N9: ラムリケティ | O9: 21.501576 | P9: 5.6-8.8 | BN9: - | BO9: - | CI9: 5-7 | CJ9: =+INDIRECT("'1a'!a31",TRUE) -> 5 | CK9: =IF(OR(CP9=0,CP9=""),"",RANK(CP9,$CP$3:$CP$18,1)-COUNTIF($CP$3:$CP$18,0)) -> 11 | CL9: =+IF(CT9="","",INDIRECT("1a!b31",TRUE)) -> 7 | CM9: =+IF(CO9="","",INDIRECT("1a!c31",TRUE)) -> セイジョーベリー | CN9: =+IF(CR9=0,"",INDIRECT("1a!k31",TRUE)+CR9/100007) -> 37.100037 | CO9: 37.101067 | CP9: 37.101067 | CQ9: =+INDIRECT("1a!l31",TRUE) -> 3.7-5.7 | CR9: 3.7 | CS9: 5 | CT9: 5.7 | CU9: =IFERROR(LEFT('9'!A40,FIND("-",'9'!A40)-1)*1,"") -> 1 | CV9: 7 | CW9: =+'9'!B40 -> 35 | CX9: 28.57142857 | CY9: 0.02140679827 | DB9: -0.09483167378 | DC9: 5.6 | DD9: 8.8 | DE9: 6 | DF9: 0.1484851938 | DG9: =+AW12 -> 0 | DH9: 0-0 | DI9: 0 | DJ9: 0 | DK9: 0 | DL9: 0 | DM9: 0-0 | DN9: 100000 | DO9: 100000 | DP9: =+IFERROR(IF(DM9="-",100000,INDEX('10'!$C$36:$C$86,MATCH(DM9,'10'!$A$39:$A$89,0))),"100000") -> 100000 | DQ9: 0 | DR9: 5 | DS9: =+IFERROR(INDEX(各データ整理!$V$4:$V$19,MATCH(CV9,各データ整理!$D$4:$D$19,0)),"") ->  | DU9: 7 | DV9: 0 | DX9: 7 | DY9: 2 | DZ9: 7 | FL9: 48 | FM9: E48 | FN9: F48 | FP9: 0 | FT9: - | FW9: =+IFERROR(INDEX('7'!#REF!,MATCH(FU9,'7'!#REF!,0)),"") ->  | FX9: 0 | FY9: =+IFERROR(INDEX('7'!#REF!,MATCH(FT9,'7'!#REF!,0)),"") ->  | GO9: =IF(COUNTIF(GN$3:GN9,GN9)=1,ROW(GN9),"") ->  | GR9: =+GT4 ->  | GS9: =+GA2 -> 0 | GT9: =IF(COUNT(GS9:GS15),MAX(GS9:GS15),"") -> 3 | GU9: 0.01 | GV9: 7 | GX9: 0 | GZ9: 0 | HB9: 0 | HE9: =+GX2 ->  | HG9: 0.01 | HH9: 7 | HI9: =+GC36 ->  | HJ9: 0 | HL9: 0 | HN9: 0 | HS9: 0.01 | HT9: 7 | HU9: 0 | HV9: 0 | HX9: 0 | HZ9: 0 | IE9: 0.01 | IF9: 7 | IG9: 0 | IH9: 0 | IJ9: 0 | IL9: 0 | IQ9: 0.01 | IR9: 7 | IS9: 0 | IT9: 0 | IV9: 0 | IX9: 0 | JC9: 0.01 | JD9: 7 | JE9: 0 | JF9: 0 | JH9: 0 | JJ9: 0 | JO9: 0.01 | JP9: 7 | JR9: 0 | JT9: 0 | JV9: 0 | JZ9: =IFERROR(SUM(#REF!/KB9),"1%")*1 -> 0.01 | KA9: 7 | KC9: 0 | KE9: 0 | KG9: 0
A10: =+IFERROR(IF(AND(メイン!R48>=1,メイン!R48<5),"大断層有",""),"") ->  | H10: =SUM(G10/G11) ->  | I10: 8 | J10: 8 | L10: 8 | M10: 12 | N10: リヤンフォルス | O10: 22.1012744 | P10: 4.4-6.9 | BN10: - | BO10: - | CI10: 6-8 | CJ10: =+INDIRECT("'1a'!a32",TRUE) -> 6 | CK10: 1 | CL10: =+IF(CT10="","",INDIRECT("1a!b32",TRUE)) -> 8 | CM10: =+IF(CO10="","",INDIRECT("1a!c32",TRUE)) -> プリズムムーン | CN10: =+IF(CR10=0,"",INDIRECT("1a!k32",TRUE)+CR10/100008) -> 2.100012999 | CO10: 2.100392999 | CP10: 2.100392999 | CQ10: =+INDIRECT("1a!l32",TRUE) -> 1.3-1.5 | CR10: 1.3 | CS10: 6 | CT10: 1.5 | CU10: =IFERROR(LEFT('9'!A41,FIND("-",'9'!A41)-1)*1,"") -> 1 | CV10: 8 | CW10: =+'9'!B41 -> 461.6 | CX10: 2.166377816 | CY10: 0.001623132451 | DB10: -0.1025641026 | DC10: 4.4 | DD10: 6.9 | DE10: 12 | DF10: 0.1905652892 | DG10: =+AW13 -> 0 | DH10: 0-0 | DI10: 0 | DJ10: 0 | DK10: 0 | DL10: 0 | DM10: 0-0 | DN10: 100000 | DO10: 100000 | DP10: =+IFERROR(IF(DM10="-",100000,INDEX('10'!$C$36:$C$86,MATCH(DM10,'10'!$A$39:$A$89,0))),"100000") -> 100000 | DQ10: 0 | DR10: 6 | DS10: =+IFERROR(INDEX(各データ整理!$V$4:$V$19,MATCH(CV10,各データ整理!$D$4:$D$19,0)),"") ->  | DU10: 8 | DV10: 0 | DX10: 8 | DY10: 2 | DZ10: 8 | FL10: 49 | FM10: E49 | FN10: F49 | FP10: 0 | FT10: - | FW10: =+IFERROR(INDEX('7'!#REF!,MATCH(FU10,'7'!#REF!,0)),"") ->  | FX10: 0 | FY10: =+IFERROR(INDEX('7'!#REF!,MATCH(FT10,'7'!#REF!,0)),"") ->  | GO10: =IF(COUNTIF(GN$3:GN10,GN10)=1,ROW(GN10),"") ->  | GR10: =+HF4 ->  | GS10: =+GC2 -> 0 | GT10: =IF(GT9="","",IF(D3=MIN(GS$9:GS$15),"",SMALL(GS$9:GS$15,RANK(GT9,GS$9:GS$15,1)-1))) -> 0 | GU10: 0.01 | GV10: 8 | GX10: 0 | GZ10: 0 | HB10: 0 | HE10: =+HN2 ->  | HG10: 0.01 | HH10: 8 | HI10: =+GC37 ->  | HJ10: 0 | HL10: 0 | HN10: 0 | HS10: 0.01 | HT10: 8 | HU10: 0 | HV10: 0 | HX10: 0 | HZ10: 0 | IE10: 0.01 | IF10: 8 | IG10: 0 | IH10: 0 | IJ10: 0 | IL10: 0 | IQ10: 0.01 | IR10: 8 | IS10: 0 | IT10: 0 | IV10: 0 | IX10: 0 | JC10: 0.01 | JD10: 8 | JE10: 0 | JF10: 0 | JH10: 0 | JJ10: 0 | JO10: 0.01 | JP10: 8 | JR10: 0 | JT10: 0 | JV10: 0 | JZ10: =IFERROR(SUM(#REF!/KB10),"1%")*1 -> 0.01 | KA10: 8 | KC10: 0 | KE10: 0 | KG10: 0
A11: 3 | B11: 帯広ば | C11: 1000000 | I11: 9 | J11: 9 | L11: 7 | M11: 10 | N11: ベルムフェリクス | O11: 26.7010838 | P11: 3.8-5.8 | BN11: - | BO11: - | CI11: 6-9 | CJ11: =+INDIRECT("'1a'!a33",TRUE) -> 6 | CK11: 13 | CL11: =+IF(CT11="","",INDIRECT("1a!b33",TRUE)) -> 9 | CM11: =+IF(CO11="","",INDIRECT("1a!c33",TRUE)) -> サカベンクイーン | CN11: =+IF(CR11=0,"",INDIRECT("1a!k33",TRUE)+CR11/100009) -> 158.400251 | CO11: 158.406831 | CP11: =IF(CO11="","",CO11) -> 158.406831 | CQ11: =+INDIRECT("1a!l33",TRUE) -> 25.1-39.6 | CR11: 25.1 | CS11: 6 | CT11: 39.6 | CU11: =IFERROR(LEFT('9'!A42,FIND("-",'9'!A42)-1)*1,"") -> 1 | CV11: 9 | CW11: =+'9'!B42 -> 123.3 | CX11: 8.110300081 | CY11: 0.006076544521 | DB11: -0.0145881122 | DC11: 3.8 | DD11: 5.8 | DE11: 10 | DF11: 0.01893966618 | DG11: =+AW14 -> 0 | DH11: 0- | DI11: 0 | DJ11: 0 | DK11: 0 | DL11: 0 | DM11: 0-0 | DN11: 100000 | DO11: 100000 | DP11: =+IFERROR(IF(DM11="-",100000,INDEX('10'!$C$36:$C$86,MATCH(DM11,'10'!$A$39:$A$89,0))),"100000") -> 100000 | DQ11: 0 | DR11: 6 | DS11: =+IFERROR(INDEX(各データ整理!$V$4:$V$19,MATCH(CV11,各データ整理!$D$4:$D$19,0)),"") ->  | FL11: 50 | FM11: E50 | FN11: F50 | FP11: 0 | FT11: - | FW11: =+IFERROR(INDEX('7'!#REF!,MATCH(FU11,'7'!#REF!,0)),"") ->  | FX11: 0 | FY11: =+IFERROR(INDEX('7'!#REF!,MATCH(FT11,'7'!#REF!,0)),"") ->  | GM11: =IF(GL7="","",RIGHT(GL7,LEN(GL7)-FIND("-",GL7,FIND("-",GL7)))*1) ->  | GO11: =IF(COUNTIF(GN$3:GN11,GN11)=1,ROW(GN11),"") ->  | GR11: =+HR4 ->  | GS11: =+GE2 -> 0 | GU11: 0.01 | GV11: 9 | GX11: 0 | GZ11: 0 | HB11: 0 | HE11: =+HZ2 ->  | HG11: 0.01 | HH11: 9 | HI11: =+GC38 ->  | HJ11: 0 | HL11: 0 | HN11: 0 | HS11: 0.01 | HT11: 9 | HU11: 0 | HV11: 0 | HX11: 0 | HZ11: 0 | IE11: 0.01 | IF11: 9 | IG11: 0 | IH11: 0 | IJ11: 0 | IL11: 0 | IQ11: 0.01 | IR11: 9 | IS11: 0 | IT11: 0 | IV11: 0 | IX11: 0 | JC11: 0.01 | JD11: 9 | JE11: 0 | JF11: 0 | JH11: 0 | JJ11: 0 | JO11: 0.01 | JP11: 9 | JQ11: 0 | JR11: 0 | JT11: 0 | JV11: 0 | JZ11: =IFERROR(SUM(#REF!/KB11),"1%")*1 -> 0.01 | KA11: 9 | KB11: 0 | KC11: 0 | KE11: 0 | KG11: 0
A12: 28 | B12: 姫路 | H12: =SUM(G12/G14) ->  | I12: 10 | J12: 10 | L12: 8 | M12: 13 | N12: アスランラリー | O12: 30.0011138 | P12: 3.8-5.8 | BN12: - | BO12: - | CI12: 7-10 | CJ12: =+INDIRECT("'1a'!a34",TRUE) -> 7 | CK12: 9 | CL12: =+IF(CT12="","",INDIRECT("1a!b34",TRUE)) -> 10 | CM12: =+IF(CO12="","",INDIRECT("1a!c34",TRUE)) -> ベルムフェリクス | CN12: =+IF(CR12=0,"",INDIRECT("1a!k34",TRUE)+CR12/1000010) -> 26.7000038 | CO12: =+IFERROR(IF(OR(CL12=0,CL12="",CN12=0),"",SUM(CN12+(CR12/10000)+(CT12/10000)+ROW()/100000)),"") -> 26.7010838 | CP12: =IF(CO12="","",CO12) -> 26.7010838 | CQ12: =+INDIRECT("1a!l34",TRUE) -> 3.8-5.8 | CR12: 3.8 | CS12: 7 | CT12: 5.8 | CU12: =IFERROR(LEFT('9'!A43,FIND("-",'9'!A43)-1)*1,"") -> 1 | CV12: 10 | CW12: =+'9'!B43 -> 25 | CX12: 40 | CY12: 0.02996951758 | DB12: -0.09074410163 | DC12: 3.8 | DD12: 5.8 | DE12: 13 | DF12: 0.1349621298 | DH12: =+DG5&"-"&$DG$4 -> 0-0 | DI12: =+DG5 -> 0 | DJ12: =+DG4 -> 0 | DK12: 0 | DL12: 0 | DM12: 0-0 | DN12: 100000 | DO12: 100000 | DP12: =+IFERROR(IF(DM12="-",100000,INDEX('10'!$C$36:$C$86,MATCH(DM12,'10'!$A$39:$A$89,0))),"100000") -> 100000 | DQ12: 0 | DR12: 7 | DS12: =+IFERROR(INDEX(各データ整理!$V$4:$V$19,MATCH(CV12,各データ整理!$D$4:$D$19,0)),"") ->  | DZ12: =IFERROR(INDEX($DZ$3:$DZ$10,MATCH(0,INDEX(COUNTIF($DZ11:DZ$11,$DZ$3:$DZ$10&""),),0)),"") -> 4 | FL12: 51 | FM12: E51 | FN12: F51 | FP12: 0 | FT12: - | FW12: =+IFERROR(INDEX('7'!#REF!,MATCH(FU12,'7'!#REF!,0)),"") ->  | FX12: 0 | FY12: =+IFERROR(INDEX('7'!#REF!,MATCH(FT12,'7'!#REF!,0)),"") ->  | GN12: =IFERROR(INDEX($GN$3:$GN$10,MATCH(0,INDEX(COUNTIF($GN11:GN$11,$GN$3:$GN$10&""),),0)),"") ->  | GO12: =IF(COUNTIF(GN$3:GN12,GN12)=1,ROW(GN12),"") ->  | GR12: =+ID4 ->  | GS12: =+GG2 -> 0 | GU12: 0.01 | GV12: 10 | GX12: 0 | GZ12: 0 | HB12: 0 | HE12: =+IL2 ->  | HG12: 0.01 | HH12: 10 | HI12: =+GC39 ->  | HJ12: 0 | HL12: 0 | HN12: 0 | HS12: 0.01 | HT12: 10 | HU12: 0 | HV12: 0 | HX12: 0 | HZ12: 0 | IE12: 0.01 | IF12: 10 | IG12: 0 | IH12: 0 | IJ12: 0 | IL12: 0 | IQ12: 0.01 | IR12: 10 | IS12: 0 | IT12: 0 | IV12: 0 | IX12: 0 | JC12: 0.01 | JD12: 10 | JE12: 0 | JF12: 0 | JH12: 0 | JJ12: 0 | JO12: 0.01 | JP12: 10 | JQ12: 0 | JR12: 0 | JT12: 0 | JV12: 0 | JZ12: =IFERROR(SUM(#REF!/KB12),"1%")*1 -> 0.01 | KA12: 10 | KB12: 0 | KC12: 0 | KE12: 0 | KG12: 0
A13: 36 | B13: 門別 | C13: 03 | H13: =SUM(G13/G14) ->  | I13: 11 | J13: 11 | L13: 5 | M13: 7 | N13: セイジョーベリー | O13: 37.101067 | P13: 3.7-5.7 | BN13: - | BO13: - | CI13: 7-11 | CJ13: =+INDIRECT("'1a'!a35",TRUE) -> 7 | CK13: 2 | CL13: =+IF(CT13="","",INDIRECT("1a!b35",TRUE)) -> 11 | CM13: =+IF(CO13="","",INDIRECT("1a!c35",TRUE)) -> エコロタイタン | CN13: =+IF(CR13=0,"",INDIRECT("1a!k35",TRUE)+CR13/1000011) -> 5.4000016 | CO13: 5.4005116 | CP13: 5.4005116 | CQ13: =+INDIRECT("1a!l35",TRUE) -> 1.6-2.2 | CR13: 1.6 | CS13: 7 | CT13: 2.2 | CU13: =IFERROR(LEFT('9'!A44,FIND("-",'9'!A44)-1)*1,"") -> 1 | CV13: 11 | CW13: =+'9'!B44 -> 150.1 | CX13: 6.662225183 | CY13: 0.004991591868 | DB13: -0.1704545455 | DC13: 3.7 | DD13: 5.7 | DE13: 7 | DF13: 0.2693778123 | DH13: 0-0 | DI13: =+DI12 -> 0 | DJ13: =+DG6 -> 0 | DK13: 0 | DL13: 0 | DM13: 0-0 | DN13: 100000 | DO13: 100000 | DP13: =+IFERROR(IF(DM13="-",100000,INDEX('10'!$C$36:$C$86,MATCH(DM13,'10'!$A$39:$A$89,0))),"100000") -> 100000 | DQ13: 0 | DR13: 7 | DS13: =+IFERROR(INDEX(各データ整理!$V$4:$V$19,MATCH(CV13,各データ整理!$D$4:$D$19,0)),"") ->  | DZ13: =IFERROR(INDEX($DZ$3:$DZ$10,MATCH(0,INDEX(COUNTIF($DZ$11:DZ12,$DZ$3:$DZ$10&""),),0)),"") -> 5 | FL13: 52 | FM13: E52 | FN13: F52 | FP13: 0 | FT13: - | FW13: =+IFERROR(INDEX('7'!#REF!,MATCH(FU13,'7'!#REF!,0)),"") ->  | FX13: 0 | FY13: =+IFERROR(INDEX('7'!#REF!,MATCH(FT13,'7'!#REF!,0)),"") ->  | GN13: =IFERROR(INDEX($GN$3:$GN$10,MATCH(0,INDEX(COUNTIF($GN$11:GN12,$GN$3:$GN$10&""),),0)),"") ->  | GO13: =IF(COUNTIF(GN$3:GN13,GN13)=1,ROW(GN13),"") ->  | GR13: =+IP4 ->  | GS13: =+GI2 -> 0 | GU13: 0.01 | GV13: 11 | GW13: =+#REF! ->  | GX13: 0 | GZ13: 0 | HB13: 0 | HE13: =+IX2 ->  | HG13: 0.01 | HH13: 11 | HI13: =+GE30 -> 0 | HJ13: 0 | HL13: 0 | HN13: 0 | HS13: 0.01 | HT13: 11 | HU13: 0 | HV13: 0 | HX13: 0 | HZ13: 0 | IE13: 0.01 | IF13: 11 | IG13: 0 | IH13: 0 | IJ13: 0 | IL13: 0 | IQ13: 0.01 | IR13: 11 | IS13: 0 | IT13: 0 | IV13: 0 | IX13: 0 | JC13: 0.01 | JD13: 11 | JE13: 0 | JF13: 0 | JH13: 0 | JJ13: 0 | JO13: 0.01 | JP13: 11 | JQ13: 0 | JR13: 0 | JT13: 0 | JV13: 0 | JZ13: =IFERROR(SUM(#REF!/KB13),"1%")*1 -> 0.01 | KA13: 11 | KB13: 0 | KC13: 0 | KE13: 0 | KG13: 0
A14: 10 | B14: 盛岡 | C14: 1000000 | D14: 1位以外の | I14: 12 | J14: 12 | L14: 2 | M14: 2 | N14: シャイネス | O14: 60.802585 | P14: 9.5-15 | BN14: - | BO14: - | CI14: 8-12 | CJ14: =+INDIRECT("'1a'!a36",TRUE) -> 8 | CK14: 8 | CL14: =+IF(CT14="","",INDIRECT("1a!b36",TRUE)) -> 12 | CM14: =+IF(CO14="","",INDIRECT("1a!c36",TRUE)) -> リヤンフォルス | CN14: =+IF(CR14=0,"",INDIRECT("1a!k36",TRUE)+CR14/1000012) -> 22.1000044 | CO14: 22.1012744 | CP14: 22.1012744 | CQ14: =+INDIRECT("1a!l36",TRUE) -> 4.4-6.9 | CR14: 4.4 | CS14: 8 | CT14: 6.9 | CU14: =IFERROR(LEFT('9'!A45,FIND("-",'9'!A45)-1)*1,"") -> 1 | CV14: 12 | CW14: =+'9'!B45 -> 224.7 | CX14: 4.450378282 | CY14: 0.003334392254 | DB14: -0.08234519104 | DC14: 9.5 | DD14: 15 | DE14: 2 | DF14: 0.09968127659 | DH14: 0-0 | DI14: 0 | DJ14: 0 | DK14: 0 | DL14: 0 | DM14: 0-0 | DN14: 100000 | DO14: 100000 | DP14: =+IFERROR(IF(DM14="-",100000,INDEX('10'!$C$36:$C$86,MATCH(DM14,'10'!$A$39:$A$89,0))),"100000") -> 100000 | DQ14: 0 | DR14: 8 | DS14: =+IFERROR(INDEX(各データ整理!$V$4:$V$19,MATCH(CV14,各データ整理!$D$4:$D$19,0)),"") ->  | DZ14: =IFERROR(INDEX($DZ$3:$DZ$10,MATCH(0,INDEX(COUNTIF($DZ$11:DZ13,$DZ$3:$DZ$10&""),),0)),"") -> 6 | FL14: 53 | FM14: E53 | FN14: F53 | FP14: 0 | FT14: - | FW14: =+IFERROR(INDEX('7'!#REF!,MATCH(FU14,'7'!#REF!,0)),"") ->  | FX14: 0 | FY14: =+IFERROR(INDEX('7'!#REF!,MATCH(FT14,'7'!#REF!,0)),"") ->  | GO14: =IF(COUNTIF(GN$3:GN14,GN14)=1,ROW(GN14),"") ->  | GR14: =+JB4 ->  | GS14: =+GK2 -> 3 | GU14: 0.01 | GV14: 12 | GW14: =+#REF! ->  | GX14: 0 | GZ14: 0 | HB14: 0 | HE14: =+JJ2 ->  | HG14: 0.01 | HH14: 12 | HI14: =+GE31 -> 0 | HJ14: 0 | HL14: 0 | HN14: 0 | HS14: 0.01 | HT14: 12 | HU14: 0 | HV14: 0 | HX14: 0 | HZ14: 0 | IE14: 0.01 | IF14: 12 | IG14: 0 | IH14: 0 | IJ14: 0 | IL14: 0 | IQ14: 0.01 | IR14: 12 | IS14: 0 | IT14: 0 | IV14: 0 | IX14: 0 | JC14: 0.01 | JD14: 12 | JE14: 0 | JF14: 0 | JH14: 0 | JJ14: 0 | JO14: =IFERROR(SUM(KG14/JQ14),"1%")*1 -> 0.01 | JP14: 12 | JQ14: 0 | JR14: 0 | JT14: 0 | JV14: 0 | JZ14: =IFERROR(SUM(#REF!/KB14),"1%")*1 -> 0.01 | KA14: 12 | KB14: 0 | KC14: 0 | KE14: 0 | KG14: 0
A15: 11 | B15: 水沢 | D15: 単勝全買い | H15: =SUM(G15/G17) ->  | I15: 13 | J15: 13 | L15: 6 | M15: 9 | N15: サカベンクイーン | O15: 158.406831 | P15: 25.1-39.6 | BN15: - | BO15: - | CI15: 8-13 | CJ15: =+INDIRECT("'1a'!a37",TRUE) -> 8 | CK15: 10 | CL15: =+IF(CT15="","",INDIRECT("1a!b37",TRUE)) -> 13 | CM15: =+IF(CO15="","",INDIRECT("1a!c37",TRUE)) -> アスランラリー | CN15: =+IF(CR15=0,"",INDIRECT("1a!k37",TRUE)+CR15/1000013) -> 30.0000038 | CO15: 30.0011138 | CP15: 30.0011138 | CQ15: =+INDIRECT("1a!l37",TRUE) -> 3.8-5.8 | CR15: 3.8 | CS15: 8 | CT15: 5.8 | CU15: =IFERROR(LEFT('9'!A46,FIND("-",'9'!A46)-1)*1,"") -> 1 | CV15: 13 | CW15: =+'9'!B46 -> 0 | DB15: -0.09074410163 | DC15: 25.1 | DD15: 39.6 | DE15: 9 | DF15: 0.1390816973 | DH15: 0-0 | DI15: 0 | DJ15: 0 | DK15: 0 | DL15: 0 | DM15: 0-0 | DN15: 100000 | DO15: 100000 | DP15: =+IFERROR(IF(DM15="-",100000,INDEX('10'!$C$36:$C$86,MATCH(DM15,'10'!$A$39:$A$89,0))),"100000") -> 100000 | DQ15: 0 | DR15: 8 | DS15: =+IFERROR(INDEX(各データ整理!$V$4:$V$19,MATCH(CV15,各データ整理!$D$4:$D$19,0)),"") ->  | DZ15: =IFERROR(INDEX($DZ$3:$DZ$10,MATCH(0,INDEX(COUNTIF($DZ$11:DZ14,$DZ$3:$DZ$10&""),),0)),"") -> 7 | FL15: 54 | FM15: E54 | FN15: F54 | FP15: 0 | FT15: - | FW15: =+IFERROR(INDEX('7'!#REF!,MATCH(FU15,'7'!#REF!,0)),"") ->  | FX15: 0 | FY15: =+IFERROR(INDEX('7'!#REF!,MATCH(FT15,'7'!#REF!,0)),"") ->  | GO15: =IF(COUNTIF(GN$3:GN15,GN15)=1,ROW(GN15),"") ->  | GR15: =+JN4 ->  | GS15: =+GM2 -> 0 | GU15: 0.01 | GV15: 13 | GW15: =+#REF! ->  | GX15: 0 | GZ15: 0 | HB15: 0 | HE15: =+JV2 ->  | HG15: 0.01 | HH15: 13 | HI15: =+GE32 -> 0 | HJ15: 0 | HL15: 0 | HN15: 0 | HS15: 0.01 | HT15: 13 | HU15: 0 | HV15: 0 | HX15: 0 | HZ15: 0 | IE15: 0.01 | IF15: 13 | IG15: 0 | IH15: 0 | IJ15: 0 | IL15: 0 | IQ15: 0.01 | IR15: 13 | IS15: 0 | IT15: 0 | IV15: 0 | IX15: 0 | JC15: 0.01 | JD15: 13 | JE15: 0 | JF15: 0 | JH15: 0 | JJ15: 0 | JO15: 0.01 | JP15: 13 | JQ15: 0 | JR15: 0 | JT15: 0 | JV15: 0 | JZ15: =IFERROR(SUM(#REF!/KB15),"1%")*1 -> 0.01 | KA15: 13 | KB15: 0 | KC15: 0 | KE15: 0 | KG15: 0
A16: 22 | B16: 金沢 | D16: =+'MAX(2)'!E3 -> 0 | H16: =SUM(G16/G17) ->  | I16: 14 | J16: 14 | BN16: - | BO16: - | CI16: 0- | CJ16: =+INDIRECT("'1a'!a38",TRUE) -> 0 | CL16: =+IF(CT16="","",INDIRECT("1a!b38",TRUE)) ->  | CM16: =+IF(CO16="","",INDIRECT("1a!c38",TRUE)) ->  | CN16: =+IF(CR16=0,"",INDIRECT("1a!k38",TRUE)+CR16/100014) -> 0 | CQ16: =+INDIRECT("1a!l38",TRUE) ->  | CR16: 0 | CU16: =IFERROR(LEFT('9'!A47,FIND("-",'9'!A47)-1)*1,"") -> 1 | CV16: 14 | CW16: =+'9'!B47 -> 0 | DD16: 0 | DH16: 0-0 | DI16: 0 | DJ16: 0 | DK16: 0 | DL16: 0 | DM16: 0-0 | DN16: 100000 | DO16: 100000 | DP16: =+IFERROR(IF(DM16="-",100000,INDEX('10'!$C$36:$C$86,MATCH(DM16,'10'!$A$39:$A$89,0))),"100000") -> 100000 | DQ16: 0 | DS16: =+IFERROR(INDEX(各データ整理!$V$4:$V$19,MATCH(CV16,各データ整理!$D$4:$D$19,0)),"") ->  | DZ16: =IFERROR(INDEX($DZ$3:$DZ$10,MATCH(0,INDEX(COUNTIF($DZ$11:DZ15,$DZ$3:$DZ$10&""),),0)),"") -> 8 | FL16: =+SUM(FL15+1) -> 55 | FM16: E55 | FN16: F55 | FP16: 0 | FT16: - | FW16: =+IFERROR(INDEX('7'!#REF!,MATCH(FU16,'7'!#REF!,0)),"") ->  | FX16: 0 | FY16: =+IFERROR(INDEX('7'!#REF!,MATCH(FT16,'7'!#REF!,0)),"") ->  | GO16: =IF(COUNTIF(GN$3:GN16,GN16)=1,ROW(GN16),"") ->  | GU16: 0.01 | GV16: 14 | GW16: =+#REF! ->  | GX16: 0 | GZ16: 0 | HB16: 0 | HG16: 0.01 | HH16: 14 | HI16: =+GE33 -> 0 | HJ16: 0 | HL16: 0 | HN16: 0 | HS16: 0.01 | HT16: 14 | HU16: 0 | HV16: 0 | HX16: 0 | HZ16: 0 | IE16: 0.01 | IF16: 14 | IG16: 0 | IH16: 0 | IJ16: 0 | IL16: 0 | IQ16: 0.01 | IR16: 14 | IS16: 0 | IT16: 0 | IV16: 0 | IX16: 0 | JC16: 0.01 | JD16: 14 | JE16: 0 | JF16: 0 | JH16: 0 | JJ16: 0 | JO16: 0.01 | JP16: 14 | JQ16: 0 | JR16: 0 | JT16: 0 | JV16: 0 | JZ16: =IFERROR(SUM(#REF!/KB16),"1%")*1 -> 0.01 | KA16: 14 | KB16: 0 | KC16: 0 | KE16: 0 | KG16: 0
A17: 23 | B17: 笠松 | C17: 1000000 | I17: 15 | J17: 15 | BN17: - | BO17: - | CI17: 0- | CJ17: =+INDIRECT("'1a'!a39",TRUE) -> 0 | CL17: =+IF(CT17="","",INDIRECT("1a!b39",TRUE)) ->  | CM17: =+IF(CO17="","",INDIRECT("1a!c39",TRUE)) ->  | CN17: =+IF(CR17=0,"",INDIRECT("1a!k39",TRUE)+CR17/1000015) -> 0 | CQ17: =+INDIRECT("1a!l39",TRUE) ->  | CR17: 0 | CU17: =IFERROR(LEFT('9'!A48,FIND("-",'9'!A48)-1)*1,"") -> 1 | CV17: 15 | CW17: =+'9'!B48 -> 0 | DD17: 0 | DH17: 0-0 | DI17: 0 | DJ17: 0 | DK17: 0 | DL17: 0 | DM17: 0-0 | DN17: 100000 | DO17: 100000 | DP17: =+IFERROR(IF(DM17="-",100000,INDEX('10'!$C$36:$C$86,MATCH(DM17,'10'!$A$39:$A$89,0))),"100000") -> 100000 | DQ17: 0 | DS17: =+IFERROR(INDEX(各データ整理!$V$4:$V$19,MATCH(CV17,各データ整理!$D$4:$D$19,0)),"") ->  | FL17: 56 | FM17: E56 | FN17: F56 | FP17: 0 | FT17: - | FW17: =+IFERROR(INDEX('7'!#REF!,MATCH(FU17,'7'!#REF!,0)),"") ->  | FX17: 0 | FY17: =+IFERROR(INDEX('7'!#REF!,MATCH(FT17,'7'!#REF!,0)),"") ->  | GF17: =+MAX(GF3:GF16) -> 0 | GO17: =IF(COUNTIF(GN$3:GN17,GN17)=1,ROW(GN17),"") ->  | GS17: 枠単点買い | GU17: 0.01 | GV17: 15 | GW17: =+#REF! ->  | GX17: 0 | GZ17: 0 | HB17: 0 | HG17: 0.01 | HH17: 15 | HI17: =+GE36 -> 0 | HJ17: 0 | HL17: 0 | HN17: 0 | HS17: 0.01 | HT17: 15 | HU17: 0 | HV17: 0 | HX17: 0 | HZ17: 0 | IE17: 0.01 | IF17: 15 | IG17: 0 | IH17: 0 | IJ17: 0 | IL17: 0 | IQ17: 0.01 | IR17: 15 | IS17: 0 | IT17: 0 | IV17: 0 | IX17: 0 | JC17: 0.01 | JD17: 15 | JE17: 0 | JF17: 0 | JH17: 0 | JJ17: 0 | JO17: 0.01 | JP17: 15 | JQ17: 0 | JR17: 0 | JT17: 0 | JV17: 0 | JZ17: =IFERROR(SUM(#REF!/KB17),"1%")*1 -> 0.01 | KA17: 15 | KB17: 0 | KC17: 0 | KE17: 0 | KG17: 0
A18: 24 | B18: 名古屋 | D18: =+TEXT(D19,"#,##0")&":"&TEXT(E19,"#,##0")&":"&TEXT(J19,"#,##00") -> 20:5:00 | H18: =SUM(G18/G20) ->  | I18: 16 | J18: 16 | BN18: - | BO18: - | CI18: 0- | CJ18: =+INDIRECT("'1a'!a40",TRUE) -> 0 | CL18: =+IF(CT18="","",INDIRECT("1a!b40",TRUE)) ->  | CM18: =+IF(CO18="","",INDIRECT("1a!c40",TRUE)) ->  | CN18: =+IF(CR18=0,"",INDIRECT("1a!k40",TRUE)+CR18/1000016) -> 0 | CQ18: =+INDIRECT("1a!l40",TRUE) ->  | CR18: 0 | CU18: =IFERROR(LEFT('9'!A49,FIND("-",'9'!A49)-1)*1,"") -> 2 | CV18: =IFERROR(MID('9'!A49,FIND("-",'9'!A49)+1,LEN('9'!A49))*1,"") -> 1 | CW18: =+'9'!B49 -> 408.9 | CX18: 2.445585718 | CY18: 0.001832325604 | DD18: 0 | DH18: 0-0 | DI18: 0 | DJ18: 0 | DK18: 0 | DL18: 0 | DM18: 0-0 | DN18: 100000 | DO18: 100000 | DP18: =+IFERROR(IF(DM18="-",100000,INDEX('10'!$C$36:$C$86,MATCH(DM18,'10'!$A$39:$A$89,0))),"100000") -> 100000 | DQ18: 0 | FL18: =+SUM(FL17+1) -> 57 | FM18: E57 | FN18: F57 | FP18: 0 | FT18: - | FW18: =+IFERROR(INDEX('7'!#REF!,MATCH(FU18,'7'!#REF!,0)),"") ->  | FX18: 0 | FY18: =+IFERROR(INDEX('7'!#REF!,MATCH(FT18,'7'!#REF!,0)),"") ->  | GC18: =+IFERROR(INDEX('5'!$A$10:$A$54,MATCH(st!GG18,'5'!$E$10:$E$54,0)),"") ->  | GD18: =+IFERROR(INDEX('5'!$B$10:$B$54,MATCH(st!GG18,'5'!$E$10:$E$54,0)),"") ->  | GE18: =+IFERROR(INDEX('5'!$C$10:$C$54,MATCH(st!GG18,'5'!$E$10:$E$54,0)),"") ->  | GF18: =+LARGE(BI3:BI16,1) ->  | GG18: =+IFERROR(INDEX($AH$3:$AH$16,MATCH(GF18,$BI$3:$BI$16,0)),"") ->  | GI18: =+IFERROR(INDEX($AI$3:$AI$16,MATCH(GF18,$BI$3:$BI$16,0)),"") ->  | GJ18: =+IFERROR(INDEX($AJ$3:$AJ$16,MATCH(GF18,$BI$3:$BI$16,0)),"") ->  | GK18: =+IFERROR(INDEX($AL$3:$AL$16,MATCH(GF18,$BI$3:$BI$16,0)),"") ->  | GL18: =+IFERROR(INDEX($AN$3:$AN$16,MATCH(GF18,$BI$3:$BI$16,0)),"") ->  | GO18: =+IFERROR(INDEX('7'!#REF!,MATCH(GN18,'7'!#REF!,0)),"") ->  | GP18: =+GP1&"-"&1 -> 8-1 | GQ18: =+IFERROR(INDEX('7'!#REF!,MATCH(GP18,'7'!#REF!,0)),"") ->  | GS18: =+IFERROR(GT9,"") -> 3 | GT18: =+IFERROR(INDEX($GR$9:$GR$15,MATCH(GS18,$GS$9:$GS$15,0)),"") ->  | GU18: 0.01 | GV18: 16 | GW18: =+#REF! ->  | GX18: =IF(TYPE(100/GW18)=16,0,100/GW18) -> 0 | GZ18: 0 | HB18: =IF(TYPE(100/GW18)=16,0,100/GW18) -> 0 | HG18: 0.01 | HH18: 16 | HI18: =+GE37 -> 0 | HJ18: 0 | HL18: 0 | HN18: =IF(TYPE(100/HI18)=16,0,100/HI18) -> 0 | HS18: 0.01 | HT18: 16 | HU18: 0 | HV18: 0 | HX18: 0 | HZ18: =IF(TYPE(100/HU18)=16,0,100/HU18) -> 0 | IE18: 0.01 | IF18: 16 | IG18: 0 | IH18: 0 | IJ18: 0 | IL18: =IF(TYPE(100/IG18)=16,0,100/IG18) -> 0 | IQ18: 0.01 | IR18: 16 | IS18: 0 | IT18: 0 | IV18: 0 | IX18: =IF(TYPE(100/IS18)=16,0,100/IS18) -> 0 | JC18: 0.01 | JD18: 16 | JE18: 0 | JF18: 0 | JH18: 0 | JJ18: =IF(TYPE(100/JE18)=16,0,100/JE18) -> 0 | JO18: 0.01 | JP18: 16 | JQ18: 0 | JR18: 0 | JT18: 0 | JV18: =IF(TYPE(100/JQ18)=16,0,100/JQ18) -> 0 | JZ18: =IFERROR(SUM(#REF!/KB18),"1%")*1 -> 0.01 | KA18: 16 | KB18: 0 | KC18: 0 | KE18: 0 | KG18: =IF(TYPE(100/KB18)=16,0,100/KB18) -> 0
A19: 27 | B19: 園田 | D19: 20 | E19: 05 | H19: =SUM(G19/G20) ->  | I19: 17 | J19: 00 | K19: =+INDEX(O3:O18,MATCH(L19,M3:M18,0)) -> 158.406831 | L19: =+INDEX(M3:M18,MATCH(M19,J3:J18,0)) -> 9 | M19: =+COUNTIF('1a'!K25:K40,">0.1") -> 13 | N19: =+M19-1 -> 12 | O19: =+INDEX(M3:M18,N19,1) -> 2 | BN19: - | BO19: - | CK19: =+VLOOKUP(1,CK3:CR18,5,FALSE) -> 2.100392999 | CL19: =+VLOOKUP(1,CK3:CR18,8,FALSE) -> 1.3 | CM19: =+IF(AND(CK21<=0.2,CK19>1.99,I3>83.9%),"１飛",IF(AND(CL20<CL19,CK19>1.6,I3>83.9%),"１飛",IF(AND(CL19*2<CL20,CK19>1.6,I3>83.9%),"１飛",IF(AND(CL19*2<CL20,CK20-CK19>4.99,I3>83.9%),"１飛",0)))) -> 0 | CU19: =IFERROR(LEFT('9'!A50,FIND("-",'9'!A50)-1)*1,"") -> 2 | CV19: =IFERROR(MID('9'!A50,FIND("-",'9'!A50)+1,LEN('9'!A50))*1,"") -> 2 | CW19: =+'9'!B50 -> 0 | DD19: =IFERROR(MID(P19,FIND("-",P19)+1,LEN(P19))*1,"") ->  | FL19: 58 | FM19: E58 | FN19: F58 | FP19: 0 | FT19: - | FW19: =+IFERROR(INDEX('7'!#REF!,MATCH(FU19,'7'!#REF!,0)),"") ->  | FX19: 0 | FY19: =+IFERROR(INDEX('7'!#REF!,MATCH(FT19,'7'!#REF!,0)),"") ->  | GC19: =+IFERROR(INDEX('5'!$A$10:$A$54,MATCH(st!GG19,'5'!$E$10:$E$54,0)),"") ->  | GD19: =+IFERROR(INDEX('5'!$B$10:$B$54,MATCH(st!GG19,'5'!$E$10:$E$54,0)),"") ->  | GE19: =+IFERROR(INDEX('5'!$C$10:$C$54,MATCH(st!GG19,'5'!$E$10:$E$54,0)),"") ->  | GF19: =+LARGE(BI3:BI16,2) ->  | GG19: =+IFERROR(INDEX($AH$3:$AH$16,MATCH(GF19,$BI$3:$BI$16,0)),"") ->  | GI19: =+IFERROR(INDEX($AI$3:$AI$16,MATCH(GF19,$BI$3:$BI$16,0)),"") ->  | GO19: =+IFERROR(INDEX('7'!#REF!,MATCH(GN19,'7'!#REF!,0)),"") ->  | GP19: =+GP1&"-"&2 -> 8-2 | GQ19: =+IFERROR(INDEX('7'!#REF!,MATCH(GP19,'7'!#REF!,0)),"") ->  | GS19: =+IFERROR(GT10,"") -> 0 | GU19: 0.01 | GV19: 17 | GX19: 0 | GZ19: 0 | HB19: =IF(TYPE(100/GW19)=16,0,100/GW19) -> 0 | HG19: 0.01 | HH19: 17 | HJ19: 0 | HL19: 0 | HN19: =IF(TYPE(100/HI19)=16,0,100/HI19) -> 0 | HS19: 0.01 | HT19: 17 | HV19: 0 | HX19: 0 | HZ19: =IF(TYPE(100/HU19)=16,0,100/HU19) -> 0 | IE19: 0.01 | IF19: 17 | IH19: 0 | IJ19: 0 | IL19: =IF(TYPE(100/IG19)=16,0,100/IG19) -> 0 | IQ19: 0.01 | IR19: 17 | IT19: 0 | IV19: 0 | IX19: =IF(TYPE(100/IS19)=16,0,100/IS19) -> 0 | JC19: 0.01 | JD19: 17 | JF19: 0 | JH19: 0 | JJ19: =IF(TYPE(100/JE19)=16,0,100/JE19) -> 0 | JO19: 0.01 | JP19: 17 | JR19: 0 | JT19: 0 | JV19: =IF(TYPE(100/JQ19)=16,0,100/JQ19) -> 0 | JZ19: =IFERROR(SUM(#REF!/KB19),"1%")*1 -> 0.01 | KA19: 17 | KC19: 0 | KE19: 0 | KG19: =IF(TYPE(100/KB19)=16,0,100/KB19) -> 0
A20: 31 | B20: 高知 | C20: 1000000 | E20: : | F20: 00 | I20: 18 | N20: =+Sheet101!BG1 -> 0 | BN20: - | BO20: - | CK20: =+VLOOKUP(2,CK3:CR18,5,FALSE) -> 5.4005116 | CL20: =+VLOOKUP(2,CK3:CR18,8,FALSE) -> 1.6 | CU20: =IFERROR(LEFT('9'!A51,FIND("-",'9'!A51)-1)*1,"") -> 2 | CV20: =IFERROR(MID('9'!A51,FIND("-",'9'!A51)+1,LEN('9'!A51))*1,"") -> 3 | CW20: =+'9'!B51 -> 604.7 | CX20: 1.653712585 | CY20: 0.001239024209 | DD20: =IFERROR(MID(P20,FIND("-",P20)+1,LEN(P20))*1,"") ->  | FL20: =+SUM(FL19+1) -> 59 | FM20: E59 | FN20: F59 | FP20: 0 | FT20: - | FW20: =+IFERROR(INDEX('7'!#REF!,MATCH(FU20,'7'!#REF!,0)),"") ->  | FX20: 0 | FY20: =+IFERROR(INDEX('7'!#REF!,MATCH(FT20,'7'!#REF!,0)),"") ->  | GC20: =+IFERROR(INDEX('5'!$A$10:$A$54,MATCH(st!GG20,'5'!$E$10:$E$54,0)),"") ->  | GD20: =+IFERROR(INDEX('5'!$B$10:$B$54,MATCH(st!GG20,'5'!$E$10:$E$54,0)),"") ->  | GE20: =+IFERROR(INDEX('5'!$C$10:$C$54,MATCH(st!GG20,'5'!$E$10:$E$54,0)),"") ->  | GF20: =+LARGE(BI3:BI16,3) ->  | GO20: =+IFERROR(INDEX('7'!#REF!,MATCH(GN20,'7'!#REF!,0)),"") ->  | GP20: =+GP1&"-"&3 -> 8-3 | GQ20: =+IFERROR(INDEX('7'!#REF!,MATCH(GP20,'7'!#REF!,0)),"") ->  | GU20: 0.01 | GV20: 18 | GX20: 0 | GZ20: 0 | HB20: 0 | HG20: 0.01 | HH20: 18 | HJ20: 0 | HL20: 0 | HN20: 0 | HS20: 0.01 | HT20: 18 | HV20: 0 | HX20: 0 | HZ20: 0 | IE20: 0.01 | IF20: 18 | IH20: 0 | IJ20: 0 | IL20: 0 | IQ20: 0.01 | IR20: 18 | IT20: 0 | IV20: 0 | IX20: 0 | JC20: 0.01 | JD20: 18 | JF20: 0 | JH20: 0 | JJ20: 0 | JO20: 0.01 | JP20: 18 | JR20: 0 | JT20: 0 | JV20: 0 | JZ20: =IFERROR(SUM(#REF!/KB20),"1%")*1 -> 0.01 | KA20: 18 | KC20: 0 | KE20: 0 | KG20: 0
A21: 32 | B21: 佐賀 | E21: : | F21: 00 | H21: =SUM(G21/G23) ->  | I21: 19 | J21: =LEFT(Q3,FIND("-",Q3)-1)*1 ->  | L21: =RIGHT(Q3,LEN(Q3)-FIND("-",Q3,FIND("-",Q3)))*1 ->  | M21: =+SMALL(J21:L21,1) ->  | N21: =+SMALL(J21:L21,2) ->  | O21: =+M21&"-"&N21 ->  | BN21: - | BO21: - | CK21: =+CL20-CL19 -> 0.3 | CU21: =IFERROR(LEFT('9'!A52,FIND("-",'9'!A52)-1)*1,"") -> 2 | CV21: =IFERROR(MID('9'!A52,FIND("-",'9'!A52)+1,LEN('9'!A52))*1,"") -> 4 | CW21: =+'9'!B52 -> 499.2 | CX21: 2.003205128 | CY21: 0.001500877282 | FL21: 60 | FM21: E60 | FN21: F60 | FP21: 0 | FT21: - | FW21: =+IFERROR(INDEX('7'!#REF!,MATCH(FU21,'7'!#REF!,0)),"") ->  | FX21: 0 | FY21: =+IFERROR(INDEX('7'!#REF!,MATCH(FT21,'7'!#REF!,0)),"") ->  | GC21: =+IFERROR(INDEX('5'!$A$10:$A$54,MATCH(st!GG21,'5'!$E$10:$E$54,0)),"") ->  | GD21: =+IFERROR(INDEX('5'!$B$10:$B$54,MATCH(st!GG21,'5'!$E$10:$E$54,0)),"") ->  | GE21: =+IFERROR(INDEX('5'!$C$10:$C$54,MATCH(st!GG21,'5'!$E$10:$E$54,0)),"") ->  | GF21: =+LARGE(BI3:BI16,4) ->  | GO21: =+IFERROR(INDEX('7'!#REF!,MATCH(GN21,'7'!#REF!,0)),"") ->  | GP21: =+GP1&"-"&4 -> 8-4 | GQ21: =+IFERROR(INDEX('7'!#REF!,MATCH(GP21,'7'!#REF!,0)),"") ->  | GU21: 0.01 | GV21: 19 | GX21: 0 | GZ21: 0 | HB21: 0 | HG21: 0.01 | HH21: 19 | HJ21: 0 | HL21: 0 | HN21: 0 | HS21: 0.01 | HT21: 19 | HV21: 0 | HX21: 0 | HZ21: 0 | IE21: 0.01 | IF21: 19 | IH21: 0 | IJ21: 0 | IL21: 0 | IQ21: 0.01 | IR21: 19 | IT21: 0 | IV21: 0 | IX21: 0 | JC21: 0.01 | JD21: 19 | JF21: 0 | JH21: 0 | JJ21: 0 | JO21: 0.01 | JP21: 19 | JR21: 0 | JT21: 0 | JV21: 0 | JZ21: =IFERROR(SUM(#REF!/KB21),"1%")*1 -> 0.01 | KA21: 19 | KC21: 0 | KE21: 0 | KG21: 0
A22: 18 | B22: 浦和 | E22: =+N1 -> 44804 | H22: =SUM(G22/G23) ->  | I22: 20 | J22: =LEFT(Q4,FIND("-",Q4)-1)*1 ->  | L22: =RIGHT(Q4,LEN(Q4)-FIND("-",Q4,FIND("-",Q4)))*1 ->  | M22: =+SMALL(J22:L22,1) ->  | N22: =+SMALL(J22:L22,2) ->  | O22: =+M22&"-"&N22 ->  | CU22: =IFERROR(LEFT('9'!A53,FIND("-",'9'!A53)-1)*1,"") -> 2 | CV22: =IFERROR(MID('9'!A53,FIND("-",'9'!A53)+1,LEN('9'!A53))*1,"") -> 5 | CW22: =+'9'!B53 -> 397.5 | CX22: 2.51572327 | CY22: 0.001884875319 | FL22: 61 | FM22: E61 | FN22: F61 | FP22: 0 | FT22: - | FW22: =+IFERROR(INDEX('7'!#REF!,MATCH(FU22,'7'!#REF!,0)),"") ->  | FX22: 0 | FY22: =+IFERROR(INDEX('7'!#REF!,MATCH(FT22,'7'!#REF!,0)),"") ->  | GC22: =+IFERROR(INDEX('5'!$A$10:$A$54,MATCH(st!GG22,'5'!$E$10:$E$54,0)),"") ->  | GD22: =+IFERROR(INDEX('5'!$B$10:$B$54,MATCH(st!GG22,'5'!$E$10:$E$54,0)),"") ->  | GE22: =+IFERROR(INDEX('5'!$C$10:$C$54,MATCH(st!GG22,'5'!$E$10:$E$54,0)),"") ->  | GF22: =+LARGE(BI3:BI16,5) ->  | GO22: =+IFERROR(INDEX('7'!#REF!,MATCH(GN22,'7'!#REF!,0)),"") ->  | GP22: =+GP1&"-"&5 -> 8-5 | GQ22: =+IFERROR(INDEX('7'!#REF!,MATCH(GP22,'7'!#REF!,0)),"") ->  | GU22: 0.01 | GV22: 20 | GX22: 0 | GZ22: 0 | HB22: 0 | HG22: 0.01 | HH22: 20 | HJ22: 0 | HL22: 0 | HN22: 0 | HS22: 0.01 | HT22: 20 | HV22: 0 | HX22: 0 | HZ22: 0 | IE22: 0.01 | IF22: 20 | IH22: 0 | IJ22: 0 | IL22: 0 | IQ22: 0.01 | IR22: 20 | IT22: 0 | IV22: 0 | IX22: 0 | JC22: 0.01 | JD22: 20 | JF22: 0 | JH22: 0 | JJ22: 0 | JO22: 0.01 | JP22: 20 | JR22: 0 | JT22: 0 | JV22: 0 | JZ22: =IFERROR(SUM(#REF!/KB22),"1%")*1 -> 0.01 | KA22: 20 | KC22: 0 | KE22: 0 | KG22: 0
A23: 19 | B23: 船橋 | C23: 1000000 | E23: =+TEXT(A5&"/"&A6&"/"&A7,0) -> 44771 | I23: 21 | CU23: =IFERROR(LEFT('9'!A54,FIND("-",'9'!A54)-1)*1,"") -> 2 | CV23: =IFERROR(MID('9'!A54,FIND("-",'9'!A54)+1,LEN('9'!A54))*1,"") -> 6 | CW23: =+'9'!B54 -> 780.6 | CX23: 1.281065847 | CY23: 0.0009598231353 | FL23: 62 | FM23: E62 | FN23: F62 | FP23: 0 | FT23: - | FW23: =+IFERROR(INDEX('7'!#REF!,MATCH(FU23,'7'!#REF!,0)),"") ->  | FX23: 0 | FY23: =+IFERROR(INDEX('7'!#REF!,MATCH(FT23,'7'!#REF!,0)),"") ->  | GH23: =8-COUNTBLANK(GC42:GC49) -> 0 | GI23: =+Z389 ->  | GO23: =+IFERROR(INDEX('7'!#REF!,MATCH(GN23,'7'!#REF!,0)),"") ->  | GP23: =+GP1&"-"&6 -> 8-6 | GQ23: =+IFERROR(INDEX('7'!#REF!,MATCH(GP23,'7'!#REF!,0)),"") ->  | GU23: 0.01 | GV23: 21 | GX23: 0 | GZ23: 0 | HB23: 0 | HG23: 0.01 | HH23: 21 | HJ23: 0 | HL23: 0 | HN23: 0 | HS23: 0.01 | HT23: 21 | HV23: 0 | HX23: 0 | HZ23: 0 | IE23: 0.01 | IF23: 21 | IH23: 0 | IJ23: 0 | IL23: 0 | IQ23: 0.01 | IR23: 21 | IT23: 0 | IV23: 0 | IX23: 0 | JC23: 0.01 | JD23: 21 | JF23: 0 | JH23: 0 | JJ23: 0 | JO23: 0.01 | JP23: 21 | JR23: 0 | JT23: 0 | JV23: 0 | JZ23: =IFERROR(SUM(#REF!/KB23),"1%")*1 -> 0.01 | KA23: 21 | KC23: 0 | KE23: 0 | KG23: 0
A24: 20 | B24: 大井 | E24: =SUM(E22-E23) -> 33 | H24: =SUM(G24/G26) ->  | I24: 22 | CU24: =IFERROR(LEFT('9'!A55,FIND("-",'9'!A55)-1)*1,"") -> 2 | CV24: =IFERROR(MID('9'!A55,FIND("-",'9'!A55)+1,LEN('9'!A55))*1,"") -> 7 | CW24: =+'9'!B55 -> 482.4 | CX24: 2.072968491 | CY24: 0.001553146641 | FL24: 63 | FM24: E63 | FN24: F63 | FP24: 0 | FT24: - | FW24: =+IFERROR(INDEX('7'!#REF!,MATCH(FU24,'7'!#REF!,0)),"") ->  | FX24: 0 | FY24: =+IFERROR(INDEX('7'!#REF!,MATCH(FT24,'7'!#REF!,0)),"") ->  | GC24: =IFERROR(INDEX($GC$18:$GC$22,MATCH(0,INDEX(COUNTIF($GA23:GC$23,$GC$18:$GC$22&""),),0)),"") ->  | GH24: ↑５以下 | GO24: =+IFERROR(INDEX('7'!#REF!,MATCH(GN24,'7'!#REF!,0)),"") ->  | GP24: =+GP1&"-"&7 -> 8-7 | GQ24: =+IFERROR(INDEX('7'!#REF!,MATCH(GP24,'7'!#REF!,0)),"") ->  | GU24: 0.01 | GV24: 22 | GX24: 0 | GZ24: 0 | HB24: 0 | HG24: 0.01 | HH24: 22 | HJ24: 0 | HL24: 0 | HN24: 0 | HS24: 0.01 | HT24: 22 | HV24: 0 | HX24: 0 | HZ24: 0 | IE24: 0.01 | IF24: 22 | IH24: 0 | IJ24: 0 | IL24: 0 | IQ24: 0.01 | IR24: 22 | IT24: 0 | IV24: 0 | IX24: 0 | JC24: 0.01 | JD24: 22 | JF24: 0 | JH24: 0 | JJ24: 0 | JO24: 0.01 | JP24: 22 | JR24: 0 | JT24: 0 | JV24: 0 | JZ24: =IFERROR(SUM(#REF!/KB24),"1%")*1 -> 0.01 | KA24: 22 | KC24: 0 | KE24: 0 | KG24: 0
A25: 21 | B25: 川崎 | E25: 555 | H25: =SUM(G25/G26) ->  | I25: 23 | CU25: =IFERROR(LEFT('9'!A56,FIND("-",'9'!A56)-1)*1,"") -> 2 | CV25: =IFERROR(MID('9'!A56,FIND("-",'9'!A56)+1,LEN('9'!A56))*1,"") -> 8 | CW25: =+'9'!B56 -> 208.4 | CX25: 4.798464491 | CY25: 0.003595191648 | FL25: =+SUM(FL24+1) -> 64 | FM25: E64 | FN25: F64 | FP25: 0 | FT25: - | FW25: =+IFERROR(INDEX('7'!#REF!,MATCH(FU25,'7'!#REF!,0)),"") ->  | FX25: 0 | FY25: =+IFERROR(INDEX('7'!#REF!,MATCH(FT25,'7'!#REF!,0)),"") ->  | GC25: =IFERROR(INDEX($GC$18:$GC$22,MATCH(0,INDEX(COUNTIF($GA$23:GC24,$GC$18:$GC$22&""),),0)),"") ->  | GO25: =+IFERROR(INDEX('7'!#REF!,MATCH(GN25,'7'!#REF!,0)),"") ->  | GP25: =+GP1&"-"&8 -> 8-8 | GQ25: =+IFERROR(INDEX('7'!#REF!,MATCH(GP25,'7'!#REF!,0)),"") ->  | GU25: 0.01 | GV25: 23 | GX25: 0 | GZ25: 0 | HB25: 0 | HG25: 0.01 | HH25: 23 | HJ25: 0 | HL25: 0 | HN25: 0 | HS25: 0.01 | HT25: 23 | HV25: 0 | HX25: 0 | HZ25: 0 | IE25: 0.01 | IF25: 23 | IH25: 0 | IJ25: 0 | IL25: 0 | IQ25: 0.01 | IR25: 23 | IT25: 0 | IV25: 0 | IX25: 0 | JC25: 0.01 | JD25: 23 | JF25: 0 | JH25: 0 | JJ25: 0 | JO25: 0.01 | JP25: 23 | JR25: 0 | JT25: 0 | JV25: 0 | JZ25: =IFERROR(SUM(#REF!/KB25),"1%")*1 -> 0.01 | KA25: 23 | KC25: 0 | KE25: 0 | KG25: 0
A26: A2 | B26: 帯広 | C26: 1000000 | I26: 24 | CU26: =IFERROR(LEFT('9'!A57,FIND("-",'9'!A57)-1)*1,"") -> 2 | CV26: =IFERROR(MID('9'!A57,FIND("-",'9'!A57)+1,LEN('9'!A57))*1,"") -> 9 | CW26: =+'9'!B57 -> 998.5 | CX26: 1.001502253 | CY26: 0.0007503634846 | FL26: 65 | FM26: E65 | FN26: F65 | FP26: 0 | FT26: - | FW26: =+IFERROR(INDEX('7'!#REF!,MATCH(FU26,'7'!#REF!,0)),"") ->  | FX26: 0 | FY26: =+IFERROR(INDEX('7'!#REF!,MATCH(FT26,'7'!#REF!,0)),"") ->  | GC26: =IFERROR(INDEX($GC$18:$GC$22,MATCH(0,INDEX(COUNTIF($GA$23:GC25,$GC$18:$GC$22&""),),0)),"") ->  | GU26: 0.01 | GV26: 24 | GX26: 0 | GZ26: 0 | HB26: 0 | HG26: 0.01 | HH26: 24 | HJ26: 0 | HL26: 0 | HN26: 0 | HS26: 0.01 | HT26: 24 | HV26: 0 | HX26: 0 | HZ26: 0 | IE26: 0.01 | IF26: 24 | IH26: 0 | IJ26: 0 | IL26: 0 | IQ26: 0.01 | IR26: 24 | IT26: 0 | IV26: 0 | IX26: 0 | JC26: 0.01 | JD26: 24 | JF26: 0 | JH26: 0 | JJ26: 0 | JO26: 0.01 | JP26: 24 | JR26: 0 | JT26: 0 | JV26: 0 | JZ26: =IFERROR(SUM(#REF!/KB26),"1%")*1 -> 0.01 | KA26: 24 | KC26: 0 | KE26: 0 | KG26: 0
A27: =+A61 -> 44771 | B27: 門別 | H27: =SUM(G27/G29) ->  | I27: 25 | CU27: =IFERROR(LEFT('9'!A58,FIND("-",'9'!A58)-1)*1,"") -> 2 | CV27: =IFERROR(MID('9'!A58,FIND("-",'9'!A58)+1,LEN('9'!A58))*1,"") -> 10 | CW27: =+'9'!B58 -> 681.5 | CX27: 1.467351431 | CY27: 0.001099395362 | FL27: 66 | FM27: E66 | FN27: F66 | FP27: 0 | FT27: - | FW27: =+IFERROR(INDEX('7'!#REF!,MATCH(FU27,'7'!#REF!,0)),"") ->  | FX27: 0 | FY27: =+IFERROR(INDEX('7'!#REF!,MATCH(FT27,'7'!#REF!,0)),"") ->  | GC27: =IFERROR(INDEX($GC$18:$GC$22,MATCH(0,INDEX(COUNTIF($GA$23:GC26,$GC$18:$GC$22&""),),0)),"") ->  | GU27: 0.01 | GV27: 25 | GX27: 0 | GZ27: 0 | HB27: 0 | HG27: 0.01 | HH27: 25 | HJ27: 0 | HL27: 0 | HN27: 0 | HS27: 0.01 | HT27: 25 | HV27: 0 | HX27: 0 | HZ27: 0 | IE27: 0.01 | IF27: 25 | IH27: 0 | IJ27: 0 | IL27: 0 | IQ27: 0.01 | IR27: 25 | IT27: 0 | IV27: 0 | IX27: 0 | JC27: 0.01 | JD27: 25 | JF27: 0 | JH27: 0 | JJ27: 0 | JO27: 0.01 | JP27: 25 | JR27: 0 | JT27: 0 | JV27: 0 | JZ27: =IFERROR(SUM(#REF!/KB27),"1%")*1 -> 0.01 | KA27: 25 | KC27: 0 | KE27: 0 | KG27: 0
B28: 盛岡 | H28: =SUM(G28/G29) ->  | I28: 26 | GC28: =IFERROR(INDEX($GC$18:$GC$22,MATCH(0,INDEX(COUNTIF($GA$23:GC27,$GC$18:$GC$22&""),),0)),"") ->  | GU28: 0.01 | GV28: 26 | GX28: 0 | GZ28: 0 | HB28: 0 | HG28: 0.01 | HH28: 26 | HJ28: 0 | HL28: 0 | HN28: 0 | HS28: 0.01 | HT28: 26 | HV28: 0 | HX28: 0 | HZ28: 0 | IE28: 0.01 | IF28: 26 | IH28: 0 | IJ28: 0 | IL28: 0 | IQ28: 0.01 | IR28: 26 | IT28: 0 | IV28: 0 | IX28: 0 | JC28: 0.01 | JD28: 26 | JF28: 0 | JH28: 0 | JJ28: 0 | JO28: 0.01 | JP28: 26 | JR28: 0 | JT28: 0 | JV28: 0 | JZ28: =IFERROR(SUM(#REF!/KB28),"1%")*1 -> 0.01 | KA28: 26 | KC28: 0 | KE28: 0 | KG28: 0
A29: D2 | B29: 水沢 | C29: 1000000 | I29: 27 | GU29: 0.01 | GV29: 27 | GX29: 0 | GZ29: 0 | HB29: 0 | HG29: 0.01 | HH29: 27 | HJ29: 0 | HL29: 0 | HN29: 0 | HS29: 0.01 | HT29: 27 | HV29: 0 | HX29: 0 | HZ29: 0 | IE29: 0.01 | IF29: 27 | IH29: 0 | IJ29: 0 | IL29: 0 | IQ29: 0.01 | IR29: 27 | IT29: 0 | IV29: 0 | IX29: 0 | JC29: 0.01 | JD29: 27 | JF29: 0 | JH29: 0 | JJ29: 0 | JO29: 0.01 | JP29: 27 | JR29: 0 | JT29: 0 | JV29: 0 | JZ29: =IFERROR(SUM(#REF!/KB29),"1%")*1 -> 0.01 | KA29: 27 | KC29: 0 | KE29: 0 | KG29: 0
A30: E2 | B30: 金沢 | H30: =SUM(G30/G32) ->  | I30: 28 | CU30: =IFERROR(LEFT('9'!A59,FIND("-",'9'!A59)-1)*1,"") -> 2 | CV30: =IFERROR(MID('9'!A59,FIND("-",'9'!A59)+1,LEN('9'!A59))*1,"") -> 11 | CW30: =+'9'!B59 -> 405 | CX30: 2.469135802 | CY30: =IFERROR(CX30/$DE$294,"") -> 0.001849970221 | CZ30: =IFERROR(1000/Z28,"") ->  | DA30: =IFERROR(CZ30/$CZ$71,"") ->  | FL30: =+SUM(FL27+1) -> 67 | FM30: E67 | FN30: F67 | FP30: 0 | FR30: =+IFERROR(INDEX($CS$3:$CS$18,MATCH(S28,$CL$3:$CL$18,0)),"") ->  | FT30: - | FW30: =+IFERROR(INDEX('7'!#REF!,MATCH(FU30,'7'!#REF!,0)),"") ->  | FX30: 0 | FY30: =+IFERROR(INDEX('7'!#REF!,MATCH(FT30,'7'!#REF!,0)),"") ->  | FZ30: =IFERROR(SUM(1/Z28)/(1/AG28),"") ->  | GC30: =IFERROR(INDEX($GD$18:$GD$22,MATCH(0,INDEX(COUNTIF($GC29:GC$29,$GD$18:$GD$22&""),),0)),"") ->  | GU30: 0.01 | GV30: 28 | GX30: 0 | GZ30: 0 | HB30: 0 | HG30: 0.01 | HH30: 28 | HJ30: 0 | HL30: 0 | HN30: 0 | HS30: 0.01 | HT30: 28 | HV30: 0 | HX30: 0 | HZ30: 0 | IE30: 0.01 | IF30: 28 | IH30: 0 | IJ30: 0 | IL30: 0 | IQ30: 0.01 | IR30: 28 | IT30: 0 | IV30: 0 | IX30: 0 | JC30: 0.01 | JD30: 28 | JF30: 0 | JH30: 0 | JJ30: 0 | JO30: 0.01 | JP30: 28 | JR30: 0 | JT30: 0 | JV30: 0 | JZ30: =IFERROR(SUM(#REF!/KB30),"1%")*1 -> 0.01 | KA30: 28 | KC30: 0 | KE30: 0 | KG30: 0
A31: F2 | B31: 笠松 | H31: =SUM(G31/G32) ->  | I31: 29 | CU31: =IFERROR(LEFT('9'!A60,FIND("-",'9'!A60)-1)*1,"") -> 2 | CV31: =IFERROR(MID('9'!A60,FIND("-",'9'!A60)+1,LEN('9'!A60))*1,"") -> 12 | CW31: =+'9'!B60 -> 493.5 | CX31: 2.026342452 | CY31: =IFERROR(CX31/$DE$294,"") -> 0.001518212643 | CZ31: =IFERROR(1000/Z29,"") ->  | DA31: =IFERROR(CZ31/$CZ$71,"") ->  | FL31: =+SUM(FL30+1) -> 68 | FM31: E68 | FN31: F68 | FP31: 0 | FT31: - | FW31: =+IFERROR(INDEX('7'!#REF!,MATCH(FU31,'7'!#REF!,0)),"") ->  | FX31: 0 | FY31: =+IFERROR(INDEX('7'!#REF!,MATCH(FT31,'7'!#REF!,0)),"") ->  | FZ31: =IFERROR(SUM(1/Z29)/(1/AG29),"") ->  | GC31: =IFERROR(INDEX($GD$18:$GD$22,MATCH(0,INDEX(COUNTIF($GC$29:GC30,$GD$18:$GD$22&""),),0)),"") ->  | GU31: 0.01 | GV31: 29 | GX31: 0 | GZ31: 0 | HB31: 0 | HG31: 0.01 | HH31: 29 | HJ31: 0 | HL31: 0 | HN31: 0 | HS31: 0.01 | HT31: 29 | HV31: 0 | HX31: 0 | HZ31: 0 | IE31: 0.01 | IF31: 29 | IH31: 0 | IJ31: 0 | IL31: 0 | IQ31: 0.01 | IR31: 29 | IT31: 0 | IV31: 0 | IX31: 0 | JC31: 0.01 | JD31: 29 | JF31: 0 | JH31: 0 | JJ31: 0 | JO31: 0.01 | JP31: 29 | JR31: 0 | JT31: 0 | JV31: 0 | JZ31: =IFERROR(SUM(#REF!/KB31),"1%")*1 -> 0.01 | KA31: 29 | KC31: 0 | KE31: 0 | KG31: 0
A32: G2 | B32: 名古屋 | C32: 1000000 | I32: 30 | CU32: =IFERROR(LEFT('9'!A61,FIND("-",'9'!A61)-1)*1,"") -> 2 | CV32: =IFERROR(MID('9'!A61,FIND("-",'9'!A61)+1,LEN('9'!A61))*1,"") -> 13 | CW32: =+'9'!B61 -> 681.5 | CX32: 1.467351431 | CY32: =IFERROR(CX32/$DE$294,"") -> 0.001099395362 | CZ32: =IFERROR(1000/Z30,"") ->  | DA32: =IFERROR(CZ32/$CZ$71,"") ->  | FL32: 69 | FM32: E69 | FN32: F69 | FP32: 0 | FT32: - | FW32: =+IFERROR(INDEX('7'!#REF!,MATCH(FU32,'7'!#REF!,0)),"") ->  | FX32: 0 | FY32: =+IFERROR(INDEX('7'!#REF!,MATCH(FT32,'7'!#REF!,0)),"") ->  | FZ32: =IFERROR(SUM(1/Z30)/(1/AG30),"") ->  | GC32: =IFERROR(INDEX($GD$18:$GD$22,MATCH(0,INDEX(COUNTIF($GC$29:GC31,$GD$18:$GD$22&""),),0)),"") ->  | GU32: 0.01 | GV32: 30 | GX32: 0 | GZ32: 0 | HB32: 0 | HG32: 0.01 | HH32: 30 | HJ32: 0 | HL32: 0 | HN32: 0 | HS32: 0.01 | HT32: 30 | HV32: 0 | HX32: 0 | HZ32: 0 | IE32: 0.01 | IF32: 30 | IH32: 0 | IJ32: 0 | IL32: 0 | IQ32: 0.01 | IR32: 30 | IT32: 0 | IV32: 0 | IX32: 0 | JC32: 0.01 | JD32: 30 | JF32: 0 | JH32: 0 | JJ32: 0 | JO32: 0.01 | JP32: 30 | JR32: 0 | JT32: 0 | JV32: 0 | JZ32: =IFERROR(SUM(#REF!/KB32),"1%")*1 -> 0.01 | KA32: 30 | KC32: 0 | KE32: 0 | KG32: 0
A33: H2 | B33: 園田 | H33: =SUM(G33/G35) ->  | I33: 31 | CU33: =IFERROR(LEFT('9'!A62,FIND("-",'9'!A62)-1)*1,"") -> 2 | CV33: =IFERROR(MID('9'!A62,FIND("-",'9'!A62)+1,LEN('9'!A62))*1,"") -> 14 | CW33: =+'9'!B62 -> 0 | CY33: =IFERROR(CX33/$DE$294,"") ->  | CZ33: =IFERROR(1000/Z31,"") ->  | DA33: =IFERROR(CZ33/$CZ$71,"") ->  | FL33: 70 | FM33: E70 | FN33: F70 | FP33: 0 | FT33: - | FW33: =+IFERROR(INDEX('7'!#REF!,MATCH(FU33,'7'!#REF!,0)),"") ->  | FX33: 0 | FY33: =+IFERROR(INDEX('7'!#REF!,MATCH(FT33,'7'!#REF!,0)),"") ->  | FZ33: =IFERROR(SUM(1/Z31)/(1/AG31),"") ->  | GC33: =IFERROR(INDEX($GD$18:$GD$22,MATCH(0,INDEX(COUNTIF($GC$29:GC32,$GD$18:$GD$22&""),),0)),"") ->  | GU33: 0.01 | GV33: 31 | GX33: 0 | GZ33: 0 | HB33: 0 | HG33: 0.01 | HH33: 31 | HJ33: 0 | HL33: 0 | HN33: 0 | HS33: 0.01 | HT33: 31 | HV33: 0 | HX33: 0 | HZ33: 0 | IE33: 0.01 | IF33: 31 | IH33: 0 | IJ33: 0 | IL33: 0 | IQ33: 0.01 | IR33: 31 | IT33: 0 | IV33: 0 | IX33: 0 | JC33: 0.01 | JD33: 31 | JF33: 0 | JH33: 0 | JJ33: 0 | JO33: 0.01 | JP33: 31 | JR33: 0 | JT33: 0 | JV33: 0 | JZ33: =IFERROR(SUM(#REF!/KB33),"1%")*1 -> 0.01 | KA33: 31 | KC33: 0 | KE33: 0 | KG33: 0
A34: I2 | B34: 姫路 | H34: =SUM(G34/G35) ->  | I34: 32 | GC34: =IFERROR(INDEX($GD$18:$GD$22,MATCH(0,INDEX(COUNTIF($GC$29:GC33,$GD$18:$GD$22&""),),0)),"") ->  | GU34: 0.01 | GV34: 32 | GX34: 0 | GZ34: 0 | HB34: 0 | HG34: 0.01 | HH34: 32 | HJ34: 0 | HL34: 0 | HN34: 0 | HS34: 0.01 | HT34: 32 | HV34: 0 | HX34: 0 | HZ34: 0 | IE34: 0.01 | IF34: 32 | IH34: 0 | IJ34: 0 | IL34: 0 | IQ34: 0.01 | IR34: 32 | IT34: 0 | IV34: 0 | IX34: 0 | JC34: 0.01 | JD34: 32 | JF34: 0 | JH34: 0 | JJ34: 0 | JO34: 0.01 | JP34: 32 | JR34: 0 | JT34: 0 | JV34: 0 | JZ34: =IFERROR(SUM(#REF!/KB34),"1%")*1 -> 0.01 | KA34: 32 | KC34: 0 | KE34: 0 | KG34: 0
A35: J2 | B35: 福山 | C35: 1000000 | I35: 33 | GU35: =IFERROR(SUM(HJ35/GW35),"1%")*1 -> 0.01 | GV35: 33 | GX35: 0 | GY35: =GX35/GW$2 ->  | GZ35: 0 | HB35: 0 | HC35: =SUM(HB35/$HA$2) ->  | HG35: =IFERROR(SUM(HV35/HI35),"1%")*1 -> 0.01 | HH35: 33 | HJ35: 0 | HK35: =HJ35/HI$2 ->  | HL35: 0 | HN35: 0 | HS35: =IFERROR(SUM(IH35/HU35),"1%")*1 -> 0.01 | HT35: 33 | HV35: 0 | HW35: =HV35/HU$2 ->  | HX35: 0 | HZ35: 0 | IE35: =IFERROR(SUM(IT35/IG35),"1%")*1 -> 0.01 | IF35: 33 | IH35: 0 | II35: =IH35/IG$2 ->  | IJ35: 0 | IL35: 0 | IQ35: =IFERROR(SUM(JF35/IS35),"1%")*1 -> 0.01 | IR35: 33 | IT35: 0 | IU35: =IT35/IS$2 ->  | IV35: 0 | IX35: 0 | JC35: =IFERROR(SUM(JR35/JE35),"1%")*1 -> 0.01 | JD35: 33 | JF35: 0 | JG35: =JF35/JE$2 ->  | JH35: 0 | JJ35: 0 | JO35: 0.01 | JP35: 33 | JR35: 0 | JS35: =JR35/JQ$2 ->  | JT35: 0 | JV35: 0 | JZ35: =IFERROR(SUM(#REF!/KB35),"1%")*1 -> 0.01 | KA35: 33 | KC35: 0 | KD35: =KC35/KB$2 ->  | KE35: 0 | KG35: 0
A36: K2 | B36: 高知 | H36: =SUM(G36/G38) ->  | I36: 34 | CU36: =IFERROR(LEFT('9'!A63,FIND("-",'9'!A63)-1)*1,"") -> 2 | CV36: =IFERROR(MID('9'!A63,FIND("-",'9'!A63)+1,LEN('9'!A63))*1,"") -> 15 | CW36: =+'9'!B63 -> 0 | CY36: =IFERROR(CX36/$DE$294,"") ->  | CZ36: =IFERROR(1000/Z32,"") ->  | DA36: =IFERROR(CZ36/$CZ$71,"") ->  | FL36: =+SUM(FL33+1) -> 71 | FM36: E71 | FN36: F71 | FP36: 0 | FR36: =+IFERROR(INDEX($CS$3:$CS$18,MATCH(S32,$CL$3:$CL$18,0)),"") ->  | FT36: - | FW36: =+IFERROR(INDEX('7'!#REF!,MATCH(FU36,'7'!#REF!,0)),"") ->  | FX36: 0 | FY36: =+IFERROR(INDEX('7'!#REF!,MATCH(FT36,'7'!#REF!,0)),"") ->  | FZ36: =IFERROR(SUM(1/Z32)/(1/AG32),"") ->  | GC36: =IFERROR(INDEX($GE$18:$GE$22,MATCH(0,INDEX(COUNTIF($GC35:GC$35,$GE$18:$GE$22&""),),0)),"") ->  | GU36: 0.01 | GV36: 34 | GX36: 0 | GZ36: 0 | HB36: 0 | HG36: 0.01 | HH36: 34 | HJ36: 0 | HL36: 0 | HN36: 0 | HS36: 0.01 | HT36: 34 | HV36: 0 | HX36: 0 | HZ36: 0 | IE36: 0.01 | IF36: 34 | IH36: 0 | IJ36: 0 | IL36: 0 | IQ36: 0.01 | IR36: 34 | IT36: 0 | IV36: 0 | IX36: 0 | JC36: 0.01 | JD36: 34 | JF36: 0 | JH36: 0 | JJ36: 0 | JO36: 0.01 | JP36: 34 | JR36: 0 | JT36: 0 | JV36: 0 | JZ36: =IFERROR(SUM(#REF!/KB36),"1%")*1 -> 0.01 | KA36: 34 | KC36: 0 | KE36: 0 | KG36: 0
A37: L2 | B37: 佐賀 | H37: =SUM(G37/G38) ->  | I37: 35 | CU37: =IFERROR(LEFT('9'!A64,FIND("-",'9'!A64)-1)*1,"") -> 2 | CV37: =IFERROR(MID('9'!A64,FIND("-",'9'!A64)+1,LEN('9'!A64))*1,"") -> 16 | CW37: =+'9'!B64 -> 0 | CY37: =IFERROR(CX37/$DE$294,"") ->  | CZ37: =IFERROR(1000/Z33,"") ->  | DA37: =IFERROR(CZ37/$CZ$71,"") ->  | FL37: 72 | FM37: E72 | FN37: F72 | FP37: 0 | FT37: - | FW37: =+IFERROR(INDEX('7'!#REF!,MATCH(FU37,'7'!#REF!,0)),"") ->  | FX37: 0 | FY37: =+IFERROR(INDEX('7'!#REF!,MATCH(FT37,'7'!#REF!,0)),"") ->  | FZ37: =IFERROR(SUM(1/Z33)/(1/AG33),"") ->  | GC37: =IFERROR(INDEX($GE$18:$GE$22,MATCH(0,INDEX(COUNTIF($GC$35:GC36,$GE$18:$GE$22&""),),0)),"") ->  | GU37: 0.01 | GV37: 35 | GX37: 0 | GZ37: 0 | HB37: 0 | HG37: 0.01 | HH37: 35 | HJ37: 0 | HL37: 0 | HN37: 0 | HS37: 0.01 | HT37: 35 | HV37: 0 | HX37: 0 | HZ37: 0 | IE37: 0.01 | IF37: 35 | IH37: 0 | IJ37: 0 | IL37: 0 | IQ37: 0.01 | IR37: 35 | IT37: 0 | IV37: 0 | IX37: 0 | JC37: 0.01 | JD37: 35 | JF37: 0 | JH37: 0 | JJ37: 0 | JO37: 0.01 | JP37: 35 | JR37: 0 | JT37: 0 | JV37: 0 | JZ37: =IFERROR(SUM(#REF!/KB37),"1%")*1 -> 0.01 | KA37: 35 | KC37: 0 | KE37: 0 | KG37: 0
A38: M2 | B38: 浦和 | C38: 1000000 | I38: 36 | CU38: =IFERROR(LEFT('9'!A65,FIND("-",'9'!A65)-1)*1,"") -> 3 | CV38: =IFERROR(MID('9'!A65,FIND("-",'9'!A65)+1,LEN('9'!A65))*1,"") -> 1 | CW38: =+'9'!B65 -> 90 | CX38: 11.11111111 | CY38: =IFERROR(CX38/$DE$294,"") -> 0.008324865993 | CZ38: =IFERROR(1000/Z34,"") ->  | DA38: =IFERROR(CZ38/$CZ$71,"") ->  | FL38: 73 | FM38: E73 | FN38: F73 | FP38: 0 | FT38: - | FW38: =+IFERROR(INDEX('7'!#REF!,MATCH(FU38,'7'!#REF!,0)),"") ->  | FX38: 0 | FY38: =+IFERROR(INDEX('7'!#REF!,MATCH(FT38,'7'!#REF!,0)),"") ->  | FZ38: =IFERROR(SUM(1/Z34)/(1/AG34),"") ->  | GC38: =IFERROR(INDEX($GE$18:$GE$22,MATCH(0,INDEX(COUNTIF($GC$35:GC37,$GE$18:$GE$22&""),),0)),"") ->  | GU38: 0.01 | GV38: 36 | GX38: 0 | GZ38: 0 | HB38: 0 | HG38: 0.01 | HH38: 36 | HJ38: 0 | HL38: 0 | HN38: 0 | HS38: 0.01 | HT38: 36 | HV38: 0 | HX38: 0 | HZ38: 0 | IE38: 0.01 | IF38: 36 | IH38: 0 | IJ38: 0 | IL38: 0 | IQ38: 0.01 | IR38: 36 | IT38: 0 | IV38: 0 | IX38: 0 | JC38: 0.01 | JD38: 36 | JF38: 0 | JH38: 0 | JJ38: 0 | JO38: 0.01 | JP38: 36 | JR38: 0 | JT38: 0 | JV38: 0 | JZ38: =IFERROR(SUM(#REF!/KB38),"1%")*1 -> 0.01 | KA38: 36 | KC38: 0 | KE38: 0 | KG38: 0
A39: N2 | B39: 船橋 | H39: =SUM(G39/G41) ->  | I39: 37 | CU39: =IFERROR(LEFT('9'!A66,FIND("-",'9'!A66)-1)*1,"") -> 3 | CV39: =IFERROR(MID('9'!A66,FIND("-",'9'!A66)+1,LEN('9'!A66))*1,"") -> 2 | CW39: =+'9'!B66 -> 442.6 | CX39: 2.259376412 | CY39: =IFERROR(CX39/$DE$294,"") -> 0.001692810527 | CZ39: =IFERROR(1000/Z35,"") ->  | DA39: =IFERROR(CZ39/$CZ$71,"") ->  | FL39: 74 | FM39: E74 | FN39: F74 | FP39: 0 | FT39: - | FW39: =+IFERROR(INDEX('7'!#REF!,MATCH(FU39,'7'!#REF!,0)),"") ->  | FX39: 0 | FY39: =+IFERROR(INDEX('7'!#REF!,MATCH(FT39,'7'!#REF!,0)),"") ->  | FZ39: =IFERROR(SUM(1/Z35)/(1/AG35),"") ->  | GC39: =IFERROR(INDEX($GE$18:$GE$22,MATCH(0,INDEX(COUNTIF($GC$35:GC38,$GE$18:$GE$22&""),),0)),"") ->  | GU39: 0.01 | GV39: 37 | GX39: 0 | GZ39: 0 | HB39: 0 | HG39: 0.01 | HH39: 37 | HJ39: 0 | HL39: 0 | HN39: 0 | HS39: 0.01 | HT39: 37 | HV39: 0 | HX39: 0 | HZ39: 0 | IE39: 0.01 | IF39: 37 | IH39: 0 | IJ39: 0 | IL39: 0 | IQ39: 0.01 | IR39: 37 | IT39: 0 | IV39: 0 | IX39: 0 | JC39: 0.01 | JD39: 37 | JF39: 0 | JH39: 0 | JJ39: 0 | JO39: 0.01 | JP39: 37 | JR39: 0 | JT39: 0 | JV39: 0 | JZ39: =IFERROR(SUM(#REF!/KB39),"1%")*1 -> 0.01 | KA39: 37 | KC39: 0 | KE39: 0 | KG39: 0
A40: O2 | B40: 大井 | H40: =SUM(G40/G41) ->  | I40: 38 | GC40: =IFERROR(INDEX($GE$18:$GE$22,MATCH(0,INDEX(COUNTIF($GC$35:GC39,$GE$18:$GE$22&""),),0)),"") ->  | GU40: 0.01 | GV40: 38 | GX40: 0 | GZ40: 0 | HB40: 0 | HG40: 0.01 | HH40: 38 | HJ40: 0 | HL40: 0 | HN40: 0 | HS40: 0.01 | HT40: 38 | HV40: 0 | HX40: 0 | HZ40: 0 | IE40: 0.01 | IF40: 38 | IH40: 0 | IJ40: 0 | IL40: 0 | IQ40: 0.01 | IR40: 38 | IT40: 0 | IV40: 0 | IX40: 0 | JC40: 0.01 | JD40: 38 | JF40: 0 | JH40: 0 | JJ40: 0 | JO40: 0.01 | JP40: 38 | JR40: 0 | JT40: 0 | JV40: 0 | JZ40: =IFERROR(SUM(#REF!/KB40),"1%")*1 -> 0.01 | KA40: 38 | KC40: 0 | KE40: 0 | KG40: 0
A41: P2 | B41: 川崎 | C41: 1000000 | I41: 39 | CU41: =IFERROR(LEFT('9'!A67,FIND("-",'9'!A67)-1)*1,"") -> 3 | CV41: =IFERROR(MID('9'!A67,FIND("-",'9'!A67)+1,LEN('9'!A67))*1,"") -> 3 | CW41: =+'9'!B67 -> 0 | CY41: =IFERROR(CX41/$DE$294,"") ->  | CZ41: =IFERROR(1000/Z36,"") ->  | DA41: =IFERROR(CZ41/$CZ$71,"") ->  | FL41: =+SUM(FL39+1) -> 75 | FM41: E75 | FN41: F75 | FP41: =+INDIRECT($FP$1&FN41) -> 0 | FR41: =+IFERROR(INDEX($CS$3:$CS$18,MATCH(S36,$CL$3:$CL$18,0)),"") ->  | FS41: =+IFERROR(INDEX($CS$3:$CS$18,MATCH(T36,$CL$3:$CL$18,0)),"") ->  | FT41: - | FW41: =+IFERROR(INDEX('7'!#REF!,MATCH(FU41,'7'!#REF!,0)),"") ->  | FX41: 0 | FY41: =+IFERROR(INDEX('7'!#REF!,MATCH(FT41,'7'!#REF!,0)),"") ->  | FZ41: =IFERROR(SUM(1/Z36)/(1/AG36),"") ->  | GU41: 0.01 | GV41: 39 | GX41: 0 | GZ41: 0 | HB41: 0 | HG41: 0.01 | HH41: 39 | HJ41: 0 | HL41: 0 | HN41: 0 | HS41: 0.01 | HT41: 39 | HV41: 0 | HX41: 0 | HZ41: 0 | IE41: 0.01 | IF41: 39 | IH41: 0 | IJ41: 0 | IL41: 0 | IQ41: 0.01 | IR41: 39 | IT41: 0 | IV41: 0 | IX41: 0 | JC41: 0.01 | JD41: 39 | JF41: 0 | JH41: 0 | JJ41: 0 | JO41: 0.01 | JP41: 39 | JR41: 0 | JT41: 0 | JV41: 0 | JZ41: =IFERROR(SUM(#REF!/KB41),"1%")*1 -> 0.01 | KA41: 39 | KC41: 0 | KE41: 0 | KG41: 0
B42: =+INDIRECT("本日開催!j4",TRUE) -> 0 | H42: =SUM(G42/G44) ->  | I42: 40 | CU42: =IFERROR(LEFT('9'!A68,FIND("-",'9'!A68)-1)*1,"") -> 3 | CV42: =IFERROR(MID('9'!A68,FIND("-",'9'!A68)+1,LEN('9'!A68))*1,"") -> 4 | CW42: =+'9'!B68 -> 104.2 | CX42: 9.596928983 | CY42: 0.007190383296 | FL42: =+SUM(FL41+1) -> 76 | FM42: =+"E"&FL42 -> E76 | FN42: =+"F"&FL42 -> F76 | FP42: =+INDIRECT($FP$1&FN42) -> 0 | FT42: - | FW42: =+IFERROR(INDEX('7'!#REF!,MATCH(FU42,'7'!#REF!,0)),"") ->  | FX42: 0 | FY42: =+IFERROR(INDEX('7'!#REF!,MATCH(FT42,'7'!#REF!,0)),"") ->  | GC42: =IFERROR(INDEX($GC$24:$GC$39,MATCH(0,INDEX(COUNTIF($GC$41:GC41,$GC$24:$GC$39&""),),0)),"") ->  | GU42: 0.01 | GV42: 40 | GX42: 0 | GZ42: 0 | HB42: 0 | HG42: 0.01 | HH42: 40 | HJ42: 0 | HL42: 0 | HN42: 0 | HS42: 0.01 | HT42: 40 | HV42: 0 | HX42: 0 | HZ42: 0 | IE42: 0.01 | IF42: 40 | IH42: 0 | IJ42: 0 | IL42: 0 | IQ42: 0.01 | IR42: 40 | IT42: 0 | IV42: 0 | IX42: 0 | JC42: 0.01 | JD42: 40 | JF42: 0 | JH42: 0 | JJ42: 0 | JO42: 0.01 | JP42: 40 | JR42: 0 | JT42: 0 | JV42: 0 | JZ42: =IFERROR(SUM(#REF!/KB42),"1%")*1 -> 0.01 | KA42: 40 | KC42: 0 | KE42: 0 | KG42: 0
A43: =LEFT(A44,LEN(A44)-3) ->  | B43: =+INDIRECT("本日開催!k4",TRUE) -> 0 | H43: =SUM(G43/G44) ->  | I43: 41 | CU43: =IFERROR(LEFT('9'!A69,FIND("-",'9'!A69)-1)*1,"") -> 3 | CV43: =IFERROR(MID('9'!A69,FIND("-",'9'!A69)+1,LEN('9'!A69))*1,"") -> 5 | CW43: =+'9'!B69 -> 112.9 | CX43: 8.857395926 | CY43: 0.006636297072 | FL43: 77 | FM43: E77 | FN43: F77 | FP43: 0 | FT43: - | FW43: =+IFERROR(INDEX('7'!#REF!,MATCH(FU43,'7'!#REF!,0)),"") ->  | FX43: 0 | FY43: =+IFERROR(INDEX('7'!#REF!,MATCH(FT43,'7'!#REF!,0)),"") ->  | GC43: =IFERROR(INDEX($GC$24:$GC$39,MATCH(0,INDEX(COUNTIF($GC$41:GC42,$GC$24:$GC$39&""),),0)),"") ->  | GU43: 0.01 | GV43: 41 | GX43: 0 | GZ43: 0 | HB43: 0 | HG43: 0.01 | HH43: 41 | HJ43: 0 | HL43: 0 | HN43: 0 | HS43: 0.01 | HT43: 41 | HV43: 0 | HX43: 0 | HZ43: 0 | IE43: 0.01 | IF43: 41 | IH43: 0 | IJ43: 0 | IL43: 0 | IQ43: 0.01 | IR43: 41 | IT43: 0 | IV43: 0 | IX43: 0 | JC43: 0.01 | JD43: 41 | JF43: 0 | JH43: 0 | JJ43: 0 | JO43: 0.01 | JP43: 41 | JR43: 0 | JT43: 0 | JV43: 0 | JZ43: =IFERROR(SUM(#REF!/KB43),"1%")*1 -> 0.01 | KA43: 41 | KC43: 0 | KE43: 0 | KG43: 0
A44: =RIGHT(メイン!F3,LEN(メイン!F3)-FIND("ズ",メイン!F3,1)) ->  | B44: =+INDIRECT("本日開催!l4",TRUE) -> 0 | C44: 1000000 | I44: 42 | CU44: =IFERROR(LEFT('9'!A70,FIND("-",'9'!A70)-1)*1,"") -> 3 | CV44: =IFERROR(MID('9'!A70,FIND("-",'9'!A70)+1,LEN('9'!A70))*1,"") -> 6 | CW44: =+'9'!B70 -> 167.7 | CX44: 5.963029219 | CY44: 0.004467727725 | FL44: 78 | FM44: E78 | FN44: F78 | FP44: 0 | FT44: - | FW44: =+IFERROR(INDEX('7'!#REF!,MATCH(FU44,'7'!#REF!,0)),"") ->  | FX44: 0 | FY44: =+IFERROR(INDEX('7'!#REF!,MATCH(FT44,'7'!#REF!,0)),"") ->  | GC44: =IFERROR(INDEX($GC$24:$GC$39,MATCH(0,INDEX(COUNTIF($GC$41:GC43,$GC$24:$GC$39&""),),0)),"") ->  | GU44: 0.01 | GV44: 42 | GX44: 0 | GZ44: 0 | HB44: 0 | HG44: 0.01 | HH44: 42 | HJ44: 0 | HL44: 0 | HN44: 0 | HS44: 0.01 | HT44: 42 | HV44: 0 | HX44: 0 | HZ44: 0 | IE44: 0.01 | IF44: 42 | IH44: 0 | IJ44: 0 | IL44: 0 | IQ44: 0.01 | IR44: 42 | IT44: 0 | IV44: 0 | IX44: 0 | JC44: 0.01 | JD44: 42 | JF44: 0 | JH44: 0 | JJ44: 0 | JO44: 0.01 | JP44: 42 | JR44: 0 | JT44: 0 | JV44: 0 | JZ44: =IFERROR(SUM(#REF!/KB44),"1%")*1 -> 0.01 | KA44: 42 | KC44: 0 | KE44: 0 | KG44: 0
B45: =+INDIRECT("本日開催!m4",TRUE) -> 0 | I45: 43 | CU45: =IFERROR(LEFT('9'!A71,FIND("-",'9'!A71)-1)*1,"") -> 3 | CV45: =IFERROR(MID('9'!A71,FIND("-",'9'!A71)+1,LEN('9'!A71))*1,"") -> 7 | CW45: =+'9'!B71 -> 292 | CX45: 3.424657534 | CY45: 0.002565883354 | FL45: 79 | FM45: E79 | FN45: F79 | FP45: 0 | FT45: - | FW45: =+IFERROR(INDEX('7'!#REF!,MATCH(FU45,'7'!#REF!,0)),"") ->  | FX45: 0 | FY45: =+IFERROR(INDEX('7'!#REF!,MATCH(FT45,'7'!#REF!,0)),"") ->  | GC45: =IFERROR(INDEX($GC$24:$GC$39,MATCH(0,INDEX(COUNTIF($GC$41:GC44,$GC$24:$GC$39&""),),0)),"") ->  | GU45: 0.01 | GV45: 43 | GX45: 0 | GZ45: 0 | HB45: 0 | HG45: 0.01 | HH45: 43 | HJ45: 0 | HL45: 0 | HN45: 0 | HS45: 0.01 | HT45: 43 | HV45: 0 | HX45: 0 | HZ45: 0 | IE45: 0.01 | IF45: 43 | IH45: 0 | IJ45: 0 | IL45: 0 | IQ45: 0.01 | IR45: 43 | IT45: 0 | IV45: 0 | IX45: 0 | JC45: 0.01 | JD45: 43 | JF45: 0 | JH45: 0 | JJ45: 0 | JO45: 0.01 | JP45: 43 | JR45: 0 | JT45: 0 | JV45: 0 | JZ45: =IFERROR(SUM(#REF!/KB45),"1%")*1 -> 0.01 | KA45: 43 | KC45: 0 | KE45: 0 | KG45: 0
B46: =+INDIRECT("本日開催!n4",TRUE) -> 0 | I46: 44 | CU46: =IFERROR(LEFT('9'!A72,FIND("-",'9'!A72)-1)*1,"") -> 3 | CV46: =IFERROR(MID('9'!A72,FIND("-",'9'!A72)+1,LEN('9'!A72))*1,"") -> 8 | CW46: =+'9'!B72 -> 57.2 | CX46: 17.48251748 | CY46: 0.01309856537 | FL46: 80 | FM46: E80 | FN46: F80 | FP46: 0 | FT46: - | FW46: =+IFERROR(INDEX('7'!#REF!,MATCH(FU46,'7'!#REF!,0)),"") ->  | FX46: 0 | FY46: =+IFERROR(INDEX('7'!#REF!,MATCH(FT46,'7'!#REF!,0)),"") ->  | GC46: =IFERROR(INDEX($GC$24:$GC$39,MATCH(0,INDEX(COUNTIF($GC$41:GC45,$GC$24:$GC$39&""),),0)),"") ->  | GU46: 0.01 | GV46: 44 | GX46: 0 | GZ46: 0 | HB46: 0 | HG46: 0.01 | HH46: 44 | HJ46: 0 | HL46: 0 | HN46: 0 | HS46: 0.01 | HT46: 44 | HV46: 0 | HX46: 0 | HZ46: 0 | IE46: 0.01 | IF46: 44 | IH46: 0 | IJ46: 0 | IL46: 0 | IQ46: 0.01 | IR46: 44 | IT46: 0 | IV46: 0 | IX46: 0 | JC46: 0.01 | JD46: 44 | JF46: 0 | JH46: 0 | JJ46: 0 | JO46: 0.01 | JP46: 44 | JR46: 0 | JT46: 0 | JV46: 0 | JZ46: =IFERROR(SUM(#REF!/KB46),"1%")*1 -> 0.01 | KA46: 44 | KC46: 0 | KE46: 0 | KG46: 0
B47: =+INDIRECT("本日開催!o4",TRUE) -> 0 | I47: 45 | CU47: =IFERROR(LEFT('9'!A73,FIND("-",'9'!A73)-1)*1,"") -> 3 | CV47: =IFERROR(MID('9'!A73,FIND("-",'9'!A73)+1,LEN('9'!A73))*1,"") -> 9 | CW47: =+'9'!B73 -> 703.8 | CX47: 1.420858198 | CY47: 0.001064560869 | FL47: 81 | FM47: E81 | FN47: F81 | FP47: 0 | FT47: - | FW47: =+IFERROR(INDEX('7'!#REF!,MATCH(FU47,'7'!#REF!,0)),"") ->  | FX47: 0 | FY47: =+IFERROR(INDEX('7'!#REF!,MATCH(FT47,'7'!#REF!,0)),"") ->  | GC47: =IFERROR(INDEX($GC$24:$GC$39,MATCH(0,INDEX(COUNTIF($GC$41:GC46,$GC$24:$GC$39&""),),0)),"") ->  | GU47: 0.01 | GV47: 45 | GX47: 0 | GZ47: 0 | HB47: 0 | HG47: 0.01 | HH47: 45 | HJ47: 0 | HL47: 0 | HN47: 0 | HS47: 0.01 | HT47: 45 | HV47: 0 | HX47: 0 | HZ47: 0 | IE47: 0.01 | IF47: 45 | IH47: 0 | IJ47: 0 | IL47: 0 | IQ47: 0.01 | IR47: 45 | IT47: 0 | IV47: 0 | IX47: 0 | JC47: 0.01 | JD47: 45 | JF47: 0 | JH47: 0 | JJ47: 0 | JO47: 0.01 | JP47: 45 | JR47: 0 | JT47: 0 | JV47: 0 | JZ47: =IFERROR(SUM(#REF!/KB47),"1%")*1 -> 0.01 | KA47: 45 | KC47: 0 | KE47: 0 | KG47: 0
I48: 46 | CU48: =IFERROR(LEFT('9'!A74,FIND("-",'9'!A74)-1)*1,"") -> 3 | CV48: =IFERROR(MID('9'!A74,FIND("-",'9'!A74)+1,LEN('9'!A74))*1,"") -> 10 | CW48: =+'9'!B74 -> 225.9 | CX48: 4.426737494 | CY48: 0.003316679679 | FL48: 82 | FM48: E82 | FN48: F82 | FP48: 0 | FT48: - | FW48: =+IFERROR(INDEX('7'!#REF!,MATCH(FU48,'7'!#REF!,0)),"") ->  | FX48: 0 | FY48: =+IFERROR(INDEX('7'!#REF!,MATCH(FT48,'7'!#REF!,0)),"") ->  | GC48: =IFERROR(INDEX($GC$24:$GC$39,MATCH(0,INDEX(COUNTIF($GC$41:GC47,$GC$24:$GC$39&""),),0)),"") ->  | GU48: 0.01 | GV48: 46 | GX48: 0 | GZ48: 0 | HB48: 0 | HG48: 0.01 | HH48: 46 | HJ48: 0 | HL48: 0 | HN48: 0 | HS48: 0.01 | HT48: 46 | HV48: 0 | HX48: 0 | HZ48: 0 | IE48: 0.01 | IF48: 46 | IH48: 0 | IJ48: 0 | IL48: 0 | IQ48: 0.01 | IR48: 46 | IT48: 0 | IV48: 0 | IX48: 0 | JC48: 0.01 | JD48: 46 | JF48: 0 | JH48: 0 | JJ48: 0 | JO48: 0.01 | JP48: 46 | JR48: 0 | JT48: 0 | JV48: 0 | JZ48: =IFERROR(SUM(#REF!/KB48),"1%")*1 -> 0.01 | KA48: 46 | KC48: 0 | KE48: 0 | KG48: 0
B49: =+#REF! ->  | I49: 47 | CU49: =IFERROR(LEFT('9'!A75,FIND("-",'9'!A75)-1)*1,"") -> 3 | CV49: =IFERROR(MID('9'!A75,FIND("-",'9'!A75)+1,LEN('9'!A75))*1,"") -> 11 | CW49: =+'9'!B75 -> 91.9 | CX49: 10.88139282 | CY49: 0.008152752333 | FL49: 83 | FM49: E83 | FN49: F83 | FP49: 0 | FT49: - | FW49: =+IFERROR(INDEX('7'!#REF!,MATCH(FU49,'7'!#REF!,0)),"") ->  | FX49: 0 | FY49: =+IFERROR(INDEX('7'!#REF!,MATCH(FT49,'7'!#REF!,0)),"") ->  | GC49: =IFERROR(INDEX($GC$24:$GC$39,MATCH(0,INDEX(COUNTIF($GC$41:GC48,$GC$24:$GC$39&""),),0)),"") ->  | GU49: 0.01 | GV49: 47 | GX49: 0 | GZ49: 0 | HB49: 0 | HG49: 0.01 | HH49: 47 | HJ49: 0 | HL49: 0 | HN49: 0 | HS49: 0.01 | HT49: 47 | HV49: 0 | HX49: 0 | HZ49: 0 | IE49: 0.01 | IF49: 47 | IH49: 0 | IJ49: 0 | IL49: 0 | IQ49: 0.01 | IR49: 47 | IT49: 0 | IV49: 0 | IX49: 0 | JC49: 0.01 | JD49: 47 | JF49: 0 | JH49: 0 | JJ49: 0 | JO49: 0.01 | JP49: 47 | JR49: 0 | JT49: 0 | JV49: 0 | JZ49: =IFERROR(SUM(#REF!/KB49),"1%")*1 -> 0.01 | KA49: 47 | KC49: 0 | KE49: 0 | KG49: 0
B50: =+#REF! ->  | I50: 48 | CU50: =IFERROR(LEFT('9'!A76,FIND("-",'9'!A76)-1)*1,"") -> 3 | CV50: =IFERROR(MID('9'!A76,FIND("-",'9'!A76)+1,LEN('9'!A76))*1,"") -> 12 | CW50: =+'9'!B76 -> 204.4 | CX50: 4.892367906 | CY50: 0.003665547649 | FL50: 84 | FM50: E84 | FN50: F84 | FP50: 0 | FT50: - | FW50: =+IFERROR(INDEX('7'!#REF!,MATCH(FU50,'7'!#REF!,0)),"") ->  | FX50: 0 | FY50: =+IFERROR(INDEX('7'!#REF!,MATCH(FT50,'7'!#REF!,0)),"") ->  | GU50: 0.01 | GV50: 48 | GX50: 0 | GZ50: 0 | HB50: 0 | HG50: 0.01 | HH50: 48 | HJ50: 0 | HL50: 0 | HN50: 0 | HS50: 0.01 | HT50: 48 | HV50: 0 | HX50: 0 | HZ50: 0 | IE50: 0.01 | IF50: 48 | IH50: 0 | IJ50: 0 | IL50: 0 | IQ50: 0.01 | IR50: 48 | IT50: 0 | IV50: 0 | IX50: 0 | JC50: 0.01 | JD50: 48 | JF50: 0 | JH50: 0 | JJ50: 0 | JO50: 0.01 | JP50: 48 | JR50: 0 | JT50: 0 | JV50: 0 | JZ50: =IFERROR(SUM(#REF!/KB50),"1%")*1 -> 0.01 | KA50: 48 | KC50: 0 | KE50: 0 | KG50: 0
I51: 49 | CU51: =IFERROR(LEFT('9'!A77,FIND("-",'9'!A77)-1)*1,"") -> 3 | CV51: =IFERROR(MID('9'!A77,FIND("-",'9'!A77)+1,LEN('9'!A77))*1,"") -> 13 | CW51: =+'9'!B77 -> 298.1 | CX51: 3.354579 | CY51: 0.002513377858 | FL51: 85 | FM51: E85 | FN51: F85 | FP51: 0 | FT51: - | FW51: =+IFERROR(INDEX('7'!#REF!,MATCH(FU51,'7'!#REF!,0)),"") ->  | FX51: 0 | FY51: =+IFERROR(INDEX('7'!#REF!,MATCH(FT51,'7'!#REF!,0)),"") ->  | GU51: 0.01 | GV51: 49 | GX51: 0 | GZ51: 0 | HB51: 0 | HG51: 0.01 | HH51: 49 | HJ51: 0 | HL51: 0 | HN51: 0 | HS51: 0.01 | HT51: 49 | HV51: 0 | HX51: 0 | HZ51: 0 | IE51: 0.01 | IF51: 49 | IH51: 0 | IJ51: 0 | IL51: 0 | IQ51: 0.01 | IR51: 49 | IT51: 0 | IV51: 0 | IX51: 0 | JC51: 0.01 | JD51: 49 | JF51: 0 | JH51: 0 | JJ51: 0 | JO51: 0.01 | JP51: 49 | JR51: 0 | JT51: 0 | JV51: 0 | JZ51: =IFERROR(SUM(#REF!/KB51),"1%")*1 -> 0.01 | KA51: 49 | KC51: 0 | KE51: 0 | KG51: 0
H52: =+_xlfn.AGGREGATE(5,6,H44,H41,H38,H35,H32,H29,H26) -> 0 | I52: 50 | CU52: =IFERROR(LEFT('9'!A78,FIND("-",'9'!A78)-1)*1,"") -> 3 | CV52: =IFERROR(MID('9'!A78,FIND("-",'9'!A78)+1,LEN('9'!A78))*1,"") -> 14 | CW52: =+'9'!B78 -> 0 | FL52: 86 | FM52: E86 | FN52: F86 | FP52: 0 | FT52: - | FW52: =+IFERROR(INDEX('7'!#REF!,MATCH(FU52,'7'!#REF!,0)),"") ->  | FX52: 0 | FY52: =+IFERROR(INDEX('7'!#REF!,MATCH(FT52,'7'!#REF!,0)),"") ->  | GV52: 50 | GX52: 0 | GZ52: 0 | HB52: 0 | HH52: 50 | HJ52: 0 | HL52: 0 | HN52: 0 | HT52: 50 | HV52: 0 | HX52: 0 | HZ52: 0 | IF52: 50 | IH52: 0 | IJ52: 0 | IL52: 0 | IR52: 50 | IT52: 0 | IV52: 0 | IX52: 0 | JD52: 50 | JF52: 0 | JH52: 0 | JJ52: 0 | JP52: 50 | JR52: 0 | JT52: 0 | JV52: 0 | KA52: 50 | KC52: 0 | KE52: 0 | KG52: 0
F53: =+MAX(F3,F24,F27,F30) -> 0.7907163182 | H53: =+_xlfn.AGGREGATE(5,6,H8,H11,H14,H17) -> 0 | I53: 51 | CU53: =IFERROR(LEFT('9'!A79,FIND("-",'9'!A79)-1)*1,"") -> 3 | CV53: =IFERROR(MID('9'!A79,FIND("-",'9'!A79)+1,LEN('9'!A79))*1,"") -> 15 | CW53: =+'9'!B79 -> 0 | FL53: 87 | FM53: E87 | FN53: F87 | FO53: =+IF(OR(INDIRECT($FP$1&FM53)=0,INDIRECT($FP$1&FM53)="組合せ",INDIRECT($FP$1&FM53)=""),"",INDIRECT($FP$1&FM53)) ->  | FP53: =+INDIRECT($FP$1&FN53) -> 0 | FT53: - | FW53: =+IFERROR(INDEX('7'!#REF!,MATCH(FU53,'7'!#REF!,0)),"") ->  | FX53: 0 | FY53: =+IFERROR(INDEX('7'!#REF!,MATCH(FT53,'7'!#REF!,0)),"") ->  | GV53: TOTAL | GY53: =SUM(GZ3:GZ52) -> 0 | HH53: TOTAL | HK53: =SUM(HL3:HL52) -> 0 | HT53: TOTAL | HW53: =SUM(HX3:HX52) -> 0 | IF53: TOTAL | II53: =SUM(IJ3:IJ52) -> 0 | IR53: TOTAL | IU53: =SUM(IV3:IV52) -> 0 | JD53: TOTAL | JG53: =SUM(JH3:JH52) -> 0 | JP53: TOTAL | JS53: =SUM(JT3:JT52) -> 0 | KA53: TOTAL | KD53: =SUM(KE3:KE52) -> 0
F54: =+MAX(F4,F25,F28,F31) -> 0.07 | I54: 52 | CU54: =IFERROR(LEFT('9'!A80,FIND("-",'9'!A80)-1)*1,"") -> 3 | CV54: =IFERROR(MID('9'!A80,FIND("-",'9'!A80)+1,LEN('9'!A80))*1,"") -> 16 | CW54: =+'9'!B80 -> 0 | FL54: 88 | FM54: E88 | FN54: F88 | FO54: =+IF(OR(INDIRECT($FP$1&FM54)=0,INDIRECT($FP$1&FM54)="組合せ",INDIRECT($FP$1&FM54)=""),"",INDIRECT($FP$1&FM54)) ->  | FP54: =+INDIRECT($FP$1&FN54) -> 0 | FT54: - | FW54: =+IFERROR(INDEX('7'!#REF!,MATCH(FU54,'7'!#REF!,0)),"") ->  | FX54: 0 | FY54: =+IFERROR(INDEX('7'!#REF!,MATCH(FT54,'7'!#REF!,0)),"") -> 
I55: 53 | CU55: =IFERROR(LEFT('9'!A81,FIND("-",'9'!A81)-1)*1,"") -> 4 | CV55: =IFERROR(MID('9'!A81,FIND("-",'9'!A81)+1,LEN('9'!A81))*1,"") -> 1 | CW55: =+'9'!B81 -> 57.7 | CX55: 17.33102253 | CY55: 0.01298505961 | FL55: 89 | FM55: E89 | FN55: F89 | FO55: =+IF(OR(INDIRECT($FP$1&FM55)=0,INDIRECT($FP$1&FM55)="組合せ",INDIRECT($FP$1&FM55)=""),"",INDIRECT($FP$1&FM55)) ->  | FP55: =+INDIRECT($FP$1&FN55) -> 0 | FT55: - | FW55: =+IFERROR(INDEX('7'!#REF!,MATCH(FU55,'7'!#REF!,0)),"") ->  | FX55: 0 | FY55: =+IFERROR(INDEX('7'!#REF!,MATCH(FT55,'7'!#REF!,0)),"") -> 
I56: 54 | CU56: =IFERROR(LEFT('9'!A82,FIND("-",'9'!A82)-1)*1,"") -> 4 | CV56: =IFERROR(MID('9'!A82,FIND("-",'9'!A82)+1,LEN('9'!A82))*1,"") -> 2 | CW56: =+'9'!B82 -> 322.8 | CX56: 3.097893432 | CY56: 0.002321059292 | FL56: 90 | FM56: E90 | FN56: F90 | FO56: =+IF(OR(INDIRECT($FP$1&FM56)=0,INDIRECT($FP$1&FM56)="組合せ",INDIRECT($FP$1&FM56)=""),"",INDIRECT($FP$1&FM56)) ->  | FP56: =+INDIRECT($FP$1&FN56) -> 0 | FT56: - | FW56: =+IFERROR(INDEX('7'!#REF!,MATCH(FU56,'7'!#REF!,0)),"") ->  | FX56: 0 | FY56: =+IFERROR(INDEX('7'!#REF!,MATCH(FT56,'7'!#REF!,0)),"") -> 
I57: 55 | CU57: =IFERROR(LEFT('9'!A83,FIND("-",'9'!A83)-1)*1,"") -> 4 | CV57: =IFERROR(MID('9'!A83,FIND("-",'9'!A83)+1,LEN('9'!A83))*1,"") -> 3 | CW57: =+'9'!B83 -> 81 | CX57: 12.34567901 | CY57: 0.009249851104 | FL57: 91 | FM57: E91 | FN57: F91 | FO57: =+IF(OR(INDIRECT($FP$1&FM57)=0,INDIRECT($FP$1&FM57)="組合せ",INDIRECT($FP$1&FM57)=""),"",INDIRECT($FP$1&FM57)) ->  | FP57: =+INDIRECT($FP$1&FN57) -> 0 | FT57: =+FR57&"-"&FS57 -> - | FW57: =+IFERROR(INDEX('7'!#REF!,MATCH(FU57,'7'!#REF!,0)),"") ->  | FX57: 0 | FY57: =+IFERROR(INDEX('7'!#REF!,MATCH(FT57,'7'!#REF!,0)),"") -> 
I58: 56 | CU58: =IFERROR(LEFT('9'!A84,FIND("-",'9'!A84)-1)*1,"") -> 4 | CV58: =IFERROR(MID('9'!A84,FIND("-",'9'!A84)+1,LEN('9'!A84))*1,"") -> 4 | CW58: =+'9'!B84 -> 0 | FL58: =+SUM(FL57+1) -> 92 | FM58: E92 | FN58: F92 | FP58: 0 | FT58: =+FR58&"-"&FS58 -> - | FU58: =+FS58&"-"&FR58*1 ->  | FV58: =+IFERROR(INDEX(INDIRECT("'7'!F1:F110"),MATCH(FT58,INDIRECT("'7'!E1:E110"),0)),"") ->  | FW58: =+IFERROR(INDEX('7'!#REF!,MATCH(FU58,'7'!#REF!,0)),"") ->  | FX58: =+IFERROR(MAX(FV58:FW58),"") -> 0 | FY58: =+IFERROR(INDEX('7'!#REF!,MATCH(FT58,'7'!#REF!,0)),"") -> 
I59: 57 | CU59: =IFERROR(LEFT('9'!A85,FIND("-",'9'!A85)-1)*1,"") -> 4 | CV59: =IFERROR(MID('9'!A85,FIND("-",'9'!A85)+1,LEN('9'!A85))*1,"") -> 5 | CW59: =+'9'!B85 -> 77.9 | CX59: 12.83697047 | CY59: 0.009617945307 | FL59: =+SUM(FL58+1) -> 93 | FM59: E93 | FN59: F93 | FP59: 0 | FT59: - | FW59: =+IFERROR(INDEX('7'!#REF!,MATCH(FU59,'7'!#REF!,0)),"") ->  | FX59: 0 | FY59: =+IFERROR(INDEX('7'!#REF!,MATCH(FT59,'7'!#REF!,0)),"") -> 
I60: 58 | J60: =LEFT(Q42,FIND("-",Q42)-1)*1 ->  | N60: =+SMALL(J60:L60,2) ->  | CU60: =IFERROR(LEFT('9'!A86,FIND("-",'9'!A86)-1)*1,"") -> 4 | CV60: =IFERROR(MID('9'!A86,FIND("-",'9'!A86)+1,LEN('9'!A86))*1,"") -> 6 | CW60: =+'9'!B86 -> 112.6 | CX60: 8.880994671 | CY60: 0.006653978148 | FL60: 94 | FM60: E94 | FN60: F94 | FP60: 0 | FT60: - | FW60: =+IFERROR(INDEX('7'!#REF!,MATCH(FU60,'7'!#REF!,0)),"") ->  | FX60: 0 | FY60: =+IFERROR(INDEX('7'!#REF!,MATCH(FT60,'7'!#REF!,0)),"") -> 
A61: =+TODAY() -> 2022-07-29 | I61: 59 | CU61: =IFERROR(LEFT('9'!A87,FIND("-",'9'!A87)-1)*1,"") -> 4 | CV61: =IFERROR(MID('9'!A87,FIND("-",'9'!A87)+1,LEN('9'!A87))*1,"") -> 7 | CW61: =+'9'!B87 -> 209.4 | CX61: 4.775549188 | CY61: 0.003578022633 | FL61: 95 | FM61: E95 | FN61: F95 | FP61: 0 | FT61: - | FW61: =+IFERROR(INDEX('7'!#REF!,MATCH(FU61,'7'!#REF!,0)),"") ->  | FX61: 0 | FY61: =+IFERROR(INDEX('7'!#REF!,MATCH(FT61,'7'!#REF!,0)),"") -> 
CU62: =IFERROR(LEFT('9'!A88,FIND("-",'9'!A88)-1)*1,"") -> 4 | CV62: =IFERROR(MID('9'!A88,FIND("-",'9'!A88)+1,LEN('9'!A88))*1,"") -> 8 | CW62: =+'9'!B88 -> 32.2 | CX62: 31.05590062 | CY62: 0.02326825899 | FL62: 96 | FM62: E96 | FN62: F96 | FP62: 0 | FT62: - | FW62: =+IFERROR(INDEX('7'!#REF!,MATCH(FU62,'7'!#REF!,0)),"") ->  | FX62: 0 | FY62: =+IFERROR(INDEX('7'!#REF!,MATCH(FT62,'7'!#REF!,0)),"") -> 
CU63: =IFERROR(LEFT('9'!A89,FIND("-",'9'!A89)-1)*1,"") -> 4 | CV63: =IFERROR(MID('9'!A89,FIND("-",'9'!A89)+1,LEN('9'!A89))*1,"") -> 9 | CW63: =+'9'!B89 -> 482.4 | CX63: 2.072968491 | CY63: 0.001553146641 | FL63: 97 | FM63: E97 | FN63: F97 | FP63: 0 | FT63: - | FW63: =+IFERROR(INDEX('7'!#REF!,MATCH(FU63,'7'!#REF!,0)),"") ->  | FX63: 0 | FY63: =+IFERROR(INDEX('7'!#REF!,MATCH(FT63,'7'!#REF!,0)),"") -> 
CU64: =IFERROR(LEFT('9'!A90,FIND("-",'9'!A90)-1)*1,"") -> 4 | CV64: =IFERROR(MID('9'!A90,FIND("-",'9'!A90)+1,LEN('9'!A90))*1,"") -> 10 | CW64: =+'9'!B90 -> 105.4 | CX64: 9.487666034 | CY64: 0.007108519349 | FL64: 98 | FM64: E98 | FN64: F98 | FP64: 0 | FT64: - | FW64: =+IFERROR(INDEX('7'!#REF!,MATCH(FU64,'7'!#REF!,0)),"") ->  | FX64: 0 | FY64: =+IFERROR(INDEX('7'!#REF!,MATCH(FT64,'7'!#REF!,0)),"") -> 
J65: =LEFT(Q47,FIND("-",Q47)-1)*1 ->  | M65: =+SMALL(J65:L65,1) ->  | N65: =+SMALL(J65:L65,2) ->  | O65: =+M65&"-"&N65 ->  | CU65: =IFERROR(LEFT('9'!A91,FIND("-",'9'!A91)-1)*1,"") -> 4 | CV65: =IFERROR(MID('9'!A91,FIND("-",'9'!A91)+1,LEN('9'!A91))*1,"") -> 11 | CW65: =+'9'!B91 -> 46.3 | CX65: 21.59827214 | CY65: 0.01618224491 | FL65: 99 | FM65: E99 | FN65: F99 | FP65: 0 | FT65: - | FW65: =+IFERROR(INDEX('7'!#REF!,MATCH(FU65,'7'!#REF!,0)),"") ->  | FX65: 0 | FY65: =+IFERROR(INDEX('7'!#REF!,MATCH(FT65,'7'!#REF!,0)),"") -> 
CU66: =IFERROR(LEFT('9'!A92,FIND("-",'9'!A92)-1)*1,"") -> 4 | CV66: =IFERROR(MID('9'!A92,FIND("-",'9'!A92)+1,LEN('9'!A92))*1,"") -> 12 | CW66: =+'9'!B92 -> 129.7 | CX66: 7.710100231 | CY66: 0.00577669961 | FL66: 100 | FM66: E100 | FN66: F100 | FP66: 0 | FT66: - | FW66: =+IFERROR(INDEX('7'!#REF!,MATCH(FU66,'7'!#REF!,0)),"") ->  | FX66: 0 | FY66: =+IFERROR(INDEX('7'!#REF!,MATCH(FT66,'7'!#REF!,0)),"") -> 
CU67: =IFERROR(LEFT('9'!A93,FIND("-",'9'!A93)-1)*1,"") -> 4 | CV67: =IFERROR(MID('9'!A93,FIND("-",'9'!A93)+1,LEN('9'!A93))*1,"") -> 13 | CW67: =+'9'!B93 -> 134.1 | CX67: 7.457121551 | CY67: 0.005587158385 | FL67: 101 | FM67: E101 | FN67: F101 | FP67: 0 | FT67: - | FW67: =+IFERROR(INDEX('7'!#REF!,MATCH(FU67,'7'!#REF!,0)),"") ->  | FX67: 0 | FY67: =+IFERROR(INDEX('7'!#REF!,MATCH(FT67,'7'!#REF!,0)),"") -> 
CU68: =IFERROR(LEFT('9'!A94,FIND("-",'9'!A94)-1)*1,"") -> 4 | CV68: =IFERROR(MID('9'!A94,FIND("-",'9'!A94)+1,LEN('9'!A94))*1,"") -> 14 | CW68: =+'9'!B94 -> 0 | FL68: 102 | FM68: E102 | FN68: F102 | FP68: 0 | FT68: - | FW68: =+IFERROR(INDEX('7'!#REF!,MATCH(FU68,'7'!#REF!,0)),"") ->  | FX68: 0 | FY68: =+IFERROR(INDEX('7'!#REF!,MATCH(FT68,'7'!#REF!,0)),"") -> 
CU69: =IFERROR(LEFT('9'!A95,FIND("-",'9'!A95)-1)*1,"") -> 4 | CV69: =IFERROR(MID('9'!A95,FIND("-",'9'!A95)+1,LEN('9'!A95))*1,"") -> 15 | CW69: =+'9'!B95 -> 0 | FL69: 103 | FM69: E103 | FN69: F103 | FP69: 0 | FT69: - | FW69: =+IFERROR(INDEX('7'!#REF!,MATCH(FU69,'7'!#REF!,0)),"") ->  | FX69: 0 | FY69: =+IFERROR(INDEX('7'!#REF!,MATCH(FT69,'7'!#REF!,0)),"") -> 
CU70: =IFERROR(LEFT('9'!A96,FIND("-",'9'!A96)-1)*1,"") -> 4 | CV70: =IFERROR(MID('9'!A96,FIND("-",'9'!A96)+1,LEN('9'!A96))*1,"") -> 16 | CW70: =+'9'!B96 -> 0 | FL70: =+SUM(FL69+1) -> 104 | FM70: E104 | FN70: F104 | FP70: 0 | FT70: - | FW70: =+IFERROR(INDEX('7'!#REF!,MATCH(FU70,'7'!#REF!,0)),"") ->  | FX70: 0 | FY70: =+IFERROR(INDEX('7'!#REF!,MATCH(FT70,'7'!#REF!,0)),"") -> 
CU71: =IFERROR(LEFT('9'!A97,FIND("-",'9'!A97)-1)*1,"") -> 5 | CV71: =IFERROR(MID('9'!A97,FIND("-",'9'!A97)+1,LEN('9'!A97))*1,"") -> 1 | CW71: =+'9'!B97 -> 83 | CX71: 12.04819277 | CY71: 0.009026963125 | CZ71: =SUM(CZ3:CZ70) -> 0 | FL71: 105 | FM71: E105 | FN71: F105 | FP71: 0 | FT71: - | FW71: =+IFERROR(INDEX('7'!#REF!,MATCH(FU71,'7'!#REF!,0)),"") ->  | FX71: 0 | FY71: =+IFERROR(INDEX('7'!#REF!,MATCH(FT71,'7'!#REF!,0)),"") -> 
CU72: =IFERROR(LEFT('9'!A98,FIND("-",'9'!A98)-1)*1,"") -> 5 | CV72: =IFERROR(MID('9'!A98,FIND("-",'9'!A98)+1,LEN('9'!A98))*1,"") -> 2 | CW72: =+'9'!B98 -> 327.7 | CX72: 3.051571559 | CY72: 0.002286353187 | FL72: 106 | FM72: E106 | FN72: =+"F"&FL72 -> F106 | FO72: =+IF(OR(INDIRECT($FP$1&FM72)=0,INDIRECT($FP$1&FM72)="組合せ",INDIRECT($FP$1&FM72)=""),"",INDIRECT($FP$1&FM72)) ->  | FP72: =+INDIRECT($FP$1&FN72) -> 0 | FT72: - | FW72: =+IFERROR(INDEX('7'!#REF!,MATCH(FU72,'7'!#REF!,0)),"") ->  | FX72: 0 | FY72: =+IFERROR(INDEX('7'!#REF!,MATCH(FT72,'7'!#REF!,0)),"") -> 
CU73: =IFERROR(LEFT('9'!A99,FIND("-",'9'!A99)-1)*1,"") -> 5 | CV73: =IFERROR(MID('9'!A99,FIND("-",'9'!A99)+1,LEN('9'!A99))*1,"") -> 3 | CW73: =+'9'!B99 -> 128.9 | CX73: =IFERROR(1000/CW73,"") -> 7.757951901 | CY73: 0.005812551896 | FL73: =+SUM(FL72+1) -> 107 | FM73: =+"E"&FL73 -> E107 | FN73: F107 | FP73: 0 | FT73: - | FW73: =+IFERROR(INDEX('7'!#REF!,MATCH(FU73,'7'!#REF!,0)),"") ->  | FX73: 0 | FY73: =+IFERROR(INDEX('7'!#REF!,MATCH(FT73,'7'!#REF!,0)),"") -> 
CU74: =IFERROR(LEFT('9'!A100,FIND("-",'9'!A100)-1)*1,"") -> 5 | CV74: =IFERROR(MID('9'!A100,FIND("-",'9'!A100)+1,LEN('9'!A100))*1,"") -> 4 | CW74: =+'9'!B100 -> 101.7 | CX74: 9.832841691 | CY74: 0.007367138047 | FL74: 108 | FM74: E108 | FN74: F108 | FP74: 0 | FT74: - | FW74: =+IFERROR(INDEX('7'!#REF!,MATCH(FU74,'7'!#REF!,0)),"") ->  | FX74: 0 | FY74: =+IFERROR(INDEX('7'!#REF!,MATCH(FT74,'7'!#REF!,0)),"") -> 
CU75: =IFERROR(LEFT('9'!A101,FIND("-",'9'!A101)-1)*1,"") -> 5 | CV75: =IFERROR(MID('9'!A101,FIND("-",'9'!A101)+1,LEN('9'!A101))*1,"") -> 5 | CW75: =+'9'!B101 -> 0 | FL75: 109 | FM75: E109 | FN75: F109 | FP75: 0 | FT75: - | FW75: =+IFERROR(INDEX('7'!#REF!,MATCH(FU75,'7'!#REF!,0)),"") ->  | FX75: 0 | FY75: =+IFERROR(INDEX('7'!#REF!,MATCH(FT75,'7'!#REF!,0)),"") -> 
CU76: =IFERROR(LEFT('9'!A102,FIND("-",'9'!A102)-1)*1,"") -> 5 | CV76: =IFERROR(MID('9'!A102,FIND("-",'9'!A102)+1,LEN('9'!A102))*1,"") -> 6 | CW76: =+'9'!B102 -> 155 | CX76: 6.451612903 | CY76: 0.004833793157 | FL76: 110 | FM76: E110 | FN76: F110 | FP76: 0 | FT76: - | FW76: =+IFERROR(INDEX('7'!#REF!,MATCH(FU76,'7'!#REF!,0)),"") ->  | FX76: 0 | FY76: =+IFERROR(INDEX('7'!#REF!,MATCH(FT76,'7'!#REF!,0)),"") -> 
CU77: =IFERROR(LEFT('9'!A103,FIND("-",'9'!A103)-1)*1,"") -> 5 | CV77: =IFERROR(MID('9'!A103,FIND("-",'9'!A103)+1,LEN('9'!A103))*1,"") -> 7 | CW77: =+'9'!B103 -> 265 | CX77: 3.773584906 | CY77: 0.002827312979 | FL77: 111 | FM77: E111 | FN77: F111 | FP77: 0 | FT77: - | FW77: =+IFERROR(INDEX('7'!#REF!,MATCH(FU77,'7'!#REF!,0)),"") ->  | FX77: 0 | FY77: =+IFERROR(INDEX('7'!#REF!,MATCH(FT77,'7'!#REF!,0)),"") -> 
CU78: =IFERROR(LEFT('9'!A104,FIND("-",'9'!A104)-1)*1,"") -> 5 | CV78: =IFERROR(MID('9'!A104,FIND("-",'9'!A104)+1,LEN('9'!A104))*1,"") -> 8 | CW78: =+'9'!B104 -> 45.6 | CX78: 21.92982456 | CY78: 0.01643065657
CU79: =IFERROR(LEFT('9'!A105,FIND("-",'9'!A105)-1)*1,"") -> 5 | CV79: =IFERROR(MID('9'!A105,FIND("-",'9'!A105)+1,LEN('9'!A105))*1,"") -> 9 | CW79: =+'9'!B105 -> 461.6 | CX79: 2.166377816 | CY79: 0.001623132451
CU80: =IFERROR(LEFT('9'!A106,FIND("-",'9'!A106)-1)*1,"") -> 5 | CV80: =IFERROR(MID('9'!A106,FIND("-",'9'!A106)+1,LEN('9'!A106))*1,"") -> 10 | CW80: =+'9'!B106 -> 173.1 | CX80: 5.77700751 | CY80: 0.004328353203
CU81: =IFERROR(LEFT('9'!A107,FIND("-",'9'!A107)-1)*1,"") -> 5 | CV81: =IFERROR(MID('9'!A107,FIND("-",'9'!A107)+1,LEN('9'!A107))*1,"") -> 11 | CW81: =+'9'!B107 -> 73.7 | CX81: 13.56852103 | CY81: 0.01016605074 | DS81: 馬連 | DT81: 枠連 | FQ81: 枠連ばらす | FS81: 馬番に変換
CU82: =IFERROR(LEFT('9'!A108,FIND("-",'9'!A108)-1)*1,"") -> 5 | CV82: =IFERROR(MID('9'!A108,FIND("-",'9'!A108)+1,LEN('9'!A108))*1,"") -> 12 | CW82: =+'9'!B108 -> 128.1 | CX82: 7.806401249 | CY82: 0.005848851986 | DQ82: =IFERROR(LEFT(DZ82,FIND("-",DZ82)-1)*1,"") ->  | FK82: =LEFT(FO82,FIND("-",FO82)-1)*1 ->  | FL82: =RIGHT(FO82,LEN(FO82)-FIND("-",FO82,FIND("-",FO82)))*1 ->  | FO82: =IFERROR(INDEX($FO$1:$FO$80,SMALL(IF($FO$1:$FO$80<>"",ROW($FO$1:$FO$80)),ROW(FO1))),"") ->  | FP82: =+IFERROR(INDEX($FP$2:$FP$80,MATCH(FO82,$FO$2:$FO$80,0)),"") -> 0 | FQ82: =LEFT(FO82,FIND("-",FO82)-1)*1 ->  | FR82: =RIGHT(FO82,LEN(FO82)-FIND("-",FO82,FIND("-",FO82)))*1 ->  | FS82: =+IFERROR(INDEX($M$3:$M$18,MATCH(FQ82,$L$3:$L$18,0)),"") ->  | FT82: =+IFERROR(INDEX($M$3:$M$18,MATCH(FR82,$L$3:$L$18,0)),"") ->  | FU82: =+IFERROR(IF(FS82=FT82,FO82,FS82&"-"&FT82),"") ->  | FV82: =+IFERROR(IF(FQ82=FR82,FP82,INDEX($R$3:$R$52,MATCH(FU82,$Q$3:$Q$52,0))),"") -> 
CU83: =IFERROR(LEFT('9'!A109,FIND("-",'9'!A109)-1)*1,"") -> 5 | CV83: =IFERROR(MID('9'!A109,FIND("-",'9'!A109)+1,LEN('9'!A109))*1,"") -> 13 | CW83: =+'9'!B109 -> 219 | CX83: 4.566210046 | CY83: 0.003421177806 | FK83: =LEFT(FO83,FIND("-",FO83)-1)*1 ->  | FL83: =RIGHT(FO83,LEN(FO83)-FIND("-",FO83,FIND("-",FO83)))*1 ->  | FO83: =IFERROR(INDEX($FO$1:$FO$80,SMALL(IF($FO$1:$FO$80<>"",ROW($FO$1:$FO$80)),ROW(FO2))),"") ->  | FP83: 0 | FQ83: =LEFT(FO83,FIND("-",FO83)-1)*1 ->  | FR83: =RIGHT(FO83,LEN(FO83)-FIND("-",FO83,FIND("-",FO83)))*1 ->  | FS83: =+IFERROR(INDEX($M$3:$M$18,MATCH(FQ83,$L$3:$L$18,0)),"") ->  | FT83: =+IFERROR(INDEX($M$3:$M$18,MATCH(FR83,$L$3:$L$18,0)),"") ->  | FU83: =+IFERROR(IF(FS83=FT83,FO83,FS83&"-"&FT83),"") ->  | FV83: =+IFERROR(IF(FQ83=FR83,FP83,INDEX($R$3:$R$52,MATCH(FU83,$Q$3:$Q$52,0))),"") -> 
CU84: =IFERROR(LEFT('9'!A110,FIND("-",'9'!A110)-1)*1,"") -> 5 | CV84: =IFERROR(MID('9'!A110,FIND("-",'9'!A110)+1,LEN('9'!A110))*1,"") -> 14 | CW84: =+'9'!B110 -> 0 | DQ84: =IFERROR(LEFT(DZ84,FIND("-",DZ84)-1)*1,"") ->  | FO84: =IFERROR(INDEX($FO$1:$FO$80,SMALL(IF($FO$1:$FO$80<>"",ROW($FO$1:$FO$80)),ROW(FO3))),"") ->  | FP84: 0
Y85: =+'1a'!S118 -> 0 | Z85: =+INDEX('8'!$F$6:$F$180,MATCH(Y85,'8'!$E$6:$E$180,0)) ->  | CU85: =IFERROR(LEFT('9'!A111,FIND("-",'9'!A111)-1)*1,"") -> 5 | CV85: =IFERROR(MID('9'!A111,FIND("-",'9'!A111)+1,LEN('9'!A111))*1,"") -> 15 | CW85: =+'9'!B111 -> 0 | DQ85: =IFERROR(LEFT(DZ85,FIND("-",DZ85)-1)*1,"") ->  | FO85: =IFERROR(INDEX($FO$1:$FO$80,SMALL(IF($FO$1:$FO$80<>"",ROW($FO$1:$FO$80)),ROW(FO4))),"") ->  | FP85: 0
Y86: =+'1a'!S119 -> 0 | Z86: =+INDEX('8'!$F$6:$F$180,MATCH(Y86,'8'!$E$6:$E$180,0)) ->  | CU86: =IFERROR(LEFT('9'!A112,FIND("-",'9'!A112)-1)*1,"") -> 5 | CV86: =IFERROR(MID('9'!A112,FIND("-",'9'!A112)+1,LEN('9'!A112))*1,"") -> 16 | CW86: =+'9'!B112 -> 0 | DQ86: =IFERROR(LEFT(DZ86,FIND("-",DZ86)-1)*1,"") ->  | FO86: =IFERROR(INDEX($FO$1:$FO$80,SMALL(IF($FO$1:$FO$80<>"",ROW($FO$1:$FO$80)),ROW(FO5))),"") ->  | FP86: 0
Y87: =+'1a'!S120 -> 0 | Z87: =+INDEX('8'!$F$6:$F$180,MATCH(Y87,'8'!$E$6:$E$180,0)) ->  | CU87: =IFERROR(LEFT('9'!A113,FIND("-",'9'!A113)-1)*1,"") -> 6 | CV87: =IFERROR(MID('9'!A113,FIND("-",'9'!A113)+1,LEN('9'!A113))*1,"") -> 1 | CW87: =+'9'!B113 -> 193.4 | CX87: 5.170630817 | CY87: 0.003874032779 | FO87: =IFERROR(INDEX($FO$1:$FO$80,SMALL(IF($FO$1:$FO$80<>"",ROW($FO$1:$FO$80)),ROW(FO6))),"") ->  | FP87: 0
Y88: =+'1a'!S121 -> 0 | Z88: =+INDEX('8'!$F$6:$F$180,MATCH(Y88,'8'!$E$6:$E$180,0)) ->  | CU88: =IFERROR(LEFT('9'!A114,FIND("-",'9'!A114)-1)*1,"") -> 6 | CV88: =IFERROR(MID('9'!A114,FIND("-",'9'!A114)+1,LEN('9'!A114))*1,"") -> 2 | CW88: =+'9'!B114 -> 703.8 | CX88: 1.420858198 | CY88: 0.001064560869 | FO88: =IFERROR(INDEX($FO$1:$FO$80,SMALL(IF($FO$1:$FO$80<>"",ROW($FO$1:$FO$80)),ROW(FO7))),"") ->  | FP88: 0
Y89: =+'1a'!S122 -> 0 | Z89: =+INDEX('8'!$F$6:$F$180,MATCH(Y89,'8'!$E$6:$E$180,0)) ->  | CU89: =IFERROR(LEFT('9'!A115,FIND("-",'9'!A115)-1)*1,"") -> 6 | CV89: =IFERROR(MID('9'!A115,FIND("-",'9'!A115)+1,LEN('9'!A115))*1,"") -> 3 | CW89: =+'9'!B115 -> 193.4 | CX89: 5.170630817 | CY89: 0.003874032779 | FO89: =IFERROR(INDEX($FO$1:$FO$80,SMALL(IF($FO$1:$FO$80<>"",ROW($FO$1:$FO$80)),ROW(FO8))),"") ->  | FP89: 0
Y90: =+'1a'!S123 -> 0 | Z90: =+INDEX('8'!$F$6:$F$180,MATCH(Y90,'8'!$E$6:$E$180,0)) ->  | CU90: =IFERROR(LEFT('9'!A116,FIND("-",'9'!A116)-1)*1,"") -> 6 | CV90: =IFERROR(MID('9'!A116,FIND("-",'9'!A116)+1,LEN('9'!A116))*1,"") -> 4 | CW90: =+'9'!B116 -> 164.5 | CX90: 6.079027356 | CY90: 0.00455463793 | FO90: =IFERROR(INDEX($FO$1:$FO$80,SMALL(IF($FO$1:$FO$80<>"",ROW($FO$1:$FO$80)),ROW(FO9))),"") ->  | FP90: 0
Y91: =+'1a'!S124 -> 0 | Z91: =+INDEX('8'!$F$6:$F$180,MATCH(Y91,'8'!$E$6:$E$180,0)) ->  | CU91: =IFERROR(LEFT('9'!A117,FIND("-",'9'!A117)-1)*1,"") -> 6 | CV91: =IFERROR(MID('9'!A117,FIND("-",'9'!A117)+1,LEN('9'!A117))*1,"") -> 5 | CW91: =+'9'!B117 -> 177.4 | CX91: 5.636978579 | CY91: 0.004223438215 | FO91: =IFERROR(INDEX($FO$1:$FO$80,SMALL(IF($FO$1:$FO$80<>"",ROW($FO$1:$FO$80)),ROW(FO10))),"") ->  | FP91: 0
Y92: =+'1a'!S125 -> 0 | Z92: =+INDEX('8'!$F$6:$F$180,MATCH(Y92,'8'!$E$6:$E$180,0)) ->  | CU92: =IFERROR(LEFT('9'!A118,FIND("-",'9'!A118)-1)*1,"") -> 6 | CV92: =IFERROR(MID('9'!A118,FIND("-",'9'!A118)+1,LEN('9'!A118))*1,"") -> 6 | CW92: =+'9'!B118 -> 0 | FO92: =IFERROR(INDEX($FO$1:$FO$80,SMALL(IF($FO$1:$FO$80<>"",ROW($FO$1:$FO$80)),ROW(FO11))),"") ->  | FP92: 0
Y93: =+'1a'!S126 -> 0 | Z93: =+INDEX('8'!$F$6:$F$180,MATCH(Y93,'8'!$E$6:$E$180,0)) ->  | CU93: =IFERROR(LEFT('9'!A119,FIND("-",'9'!A119)-1)*1,"") -> 6 | CV93: =IFERROR(MID('9'!A119,FIND("-",'9'!A119)+1,LEN('9'!A119))*1,"") -> 7 | CW93: =+'9'!B119 -> 379.9 | CX93: 2.63227165 | CY93: 0.001972197787 | FO93: =IFERROR(INDEX($FO$1:$FO$80,SMALL(IF($FO$1:$FO$80<>"",ROW($FO$1:$FO$80)),ROW(FO12))),"") ->  | FP93: 0
Y94: =+'1a'!S127 -> 0 | Z94: =+INDEX('8'!$F$6:$F$180,MATCH(Y94,'8'!$E$6:$E$180,0)) ->  | CU94: =IFERROR(LEFT('9'!A120,FIND("-",'9'!A120)-1)*1,"") -> 6 | CV94: =IFERROR(MID('9'!A120,FIND("-",'9'!A120)+1,LEN('9'!A120))*1,"") -> 8 | CW94: =+'9'!B120 -> 95.2 | CX94: 10.50420168 | CY94: 0.007870146422 | FO94: =IFERROR(INDEX($FO$1:$FO$80,SMALL(IF($FO$1:$FO$80<>"",ROW($FO$1:$FO$80)),ROW(FO13))),"") ->  | FP94: 0
Y95: =+'1a'!S128 -> 0 | Z95: =+INDEX('8'!$F$6:$F$180,MATCH(Y95,'8'!$E$6:$E$180,0)) ->  | CU95: =IFERROR(LEFT('9'!A121,FIND("-",'9'!A121)-1)*1,"") -> 6 | CV95: =IFERROR(MID('9'!A121,FIND("-",'9'!A121)+1,LEN('9'!A121))*1,"") -> 9 | CW95: =+'9'!B121 -> 1073.4 | CX95: 0.9316191541 | CY95: 0.0006980044153 | FO95: =IFERROR(INDEX($FO$1:$FO$80,SMALL(IF($FO$1:$FO$80<>"",ROW($FO$1:$FO$80)),ROW(FO14))),"") ->  | FP95: 0
Y96: =+'1a'!S129 -> 0 | Z96: =+INDEX('8'!$F$6:$F$180,MATCH(Y96,'8'!$E$6:$E$180,0)) ->  | CU96: =IFERROR(LEFT('9'!A122,FIND("-",'9'!A122)-1)*1,"") -> 6 | CV96: =IFERROR(MID('9'!A122,FIND("-",'9'!A122)+1,LEN('9'!A122))*1,"") -> 10 | CW96: =+'9'!B122 -> 401.2 | CX96: 2.492522433 | CY96: 0.001867492371 | FO96: =IFERROR(INDEX($FO$1:$FO$80,SMALL(IF($FO$1:$FO$80<>"",ROW($FO$1:$FO$80)),ROW(FO15))),"") ->  | FP96: 0
Y97: =+'1a'!S130 -> 0 | Z97: =+INDEX('8'!$F$6:$F$180,MATCH(Y97,'8'!$E$6:$E$180,0)) ->  | CU97: =IFERROR(LEFT('9'!A123,FIND("-",'9'!A123)-1)*1,"") -> 6 | CV97: =IFERROR(MID('9'!A123,FIND("-",'9'!A123)+1,LEN('9'!A123))*1,"") -> 11 | CW97: =+'9'!B123 -> 123.3 | CX97: 8.110300081 | CY97: 0.006076544521 | FO97: =IFERROR(INDEX($FO$1:$FO$80,SMALL(IF($FO$1:$FO$80<>"",ROW($FO$1:$FO$80)),ROW(FO16))),"") ->  | FP97: 0
Y98: =+'1a'!S131 -> 0 | Z98: =+INDEX('8'!$F$6:$F$180,MATCH(Y98,'8'!$E$6:$E$180,0)) ->  | CU98: =IFERROR(LEFT('9'!A124,FIND("-",'9'!A124)-1)*1,"") -> 6 | CV98: =IFERROR(MID('9'!A124,FIND("-",'9'!A124)+1,LEN('9'!A124))*1,"") -> 12 | CW98: =+'9'!B124 -> 298.1 | CX98: 3.354579 | CY98: 0.002513377858 | FO98: =IFERROR(INDEX($FO$1:$FO$80,SMALL(IF($FO$1:$FO$80<>"",ROW($FO$1:$FO$80)),ROW(FO17))),"") ->  | FP98: 0
Y99: =+'1a'!S132 -> 0 | Z99: =+INDEX('8'!$F$6:$F$180,MATCH(Y99,'8'!$E$6:$E$180,0)) ->  | CU99: =IFERROR(LEFT('9'!A125,FIND("-",'9'!A125)-1)*1,"") -> 6 | CV99: =IFERROR(MID('9'!A125,FIND("-",'9'!A125)+1,LEN('9'!A125))*1,"") -> 13 | CW99: =+'9'!B125 -> 313.4 | CX99: 3.190810466 | CY99: 0.002390676258 | FO99: =IFERROR(INDEX($FO$1:$FO$80,SMALL(IF($FO$1:$FO$80<>"",ROW($FO$1:$FO$80)),ROW(FO18))),"") ->  | FP99: 0
Y100: =+'1a'!S133 -> 0 | Z100: =+INDEX('8'!$F$6:$F$180,MATCH(Y100,'8'!$E$6:$E$180,0)) ->  | CU100: =IFERROR(LEFT('9'!A126,FIND("-",'9'!A126)-1)*1,"") -> 6 | CV100: =IFERROR(MID('9'!A126,FIND("-",'9'!A126)+1,LEN('9'!A126))*1,"") -> 14 | CW100: =+'9'!B126 -> 0 | FO100: =IFERROR(INDEX($FO$1:$FO$80,SMALL(IF($FO$1:$FO$80<>"",ROW($FO$1:$FO$80)),ROW(FO19))),"") ->  | FP100: 0
Y101: =+'1a'!S134 -> 0 | Z101: =+IFERROR(INDEX('8'!#REF!,MATCH(st!Y101,'8'!#REF!,0)),"100000") -> 100000 | CU101: =IFERROR(LEFT('9'!A127,FIND("-",'9'!A127)-1)*1,"") -> 6 | CV101: =IFERROR(MID('9'!A127,FIND("-",'9'!A127)+1,LEN('9'!A127))*1,"") -> 15 | CW101: =+'9'!B127 -> 0 | FO101: =IFERROR(INDEX($FO$1:$FO$80,SMALL(IF($FO$1:$FO$80<>"",ROW($FO$1:$FO$80)),ROW(FO20))),"") ->  | FP101: 0
Z102: =+IFERROR(VLOOKUP(U168,'8'!$A$32:$B$151,2,FALSE),"") ->  | CU102: =IFERROR(LEFT('9'!A128,FIND("-",'9'!A128)-1)*1,"") -> 6 | CV102: =IFERROR(MID('9'!A128,FIND("-",'9'!A128)+1,LEN('9'!A128))*1,"") -> 16 | CW102: =+'9'!B128 -> 0 | FO102: =IFERROR(INDEX($FO$1:$FO$80,SMALL(IF($FO$1:$FO$80<>"",ROW($FO$1:$FO$80)),ROW(FO21))),"") ->  | FP102: 0
CU103: =IFERROR(LEFT('9'!A129,FIND("-",'9'!A129)-1)*1,"") -> 7 | CV103: =IFERROR(MID('9'!A129,FIND("-",'9'!A129)+1,LEN('9'!A129))*1,"") -> 1 | CW103: =+'9'!B129 -> 433.6 | CX103: 2.306273063 | CY103: 0.001727947277 | FO103: =IFERROR(INDEX($FO$1:$FO$80,SMALL(IF($FO$1:$FO$80<>"",ROW($FO$1:$FO$80)),ROW(FO22))),"") ->  | FP103: 0
CU104: =IFERROR(LEFT('9'!A130,FIND("-",'9'!A130)-1)*1,"") -> 7 | CV104: =IFERROR(MID('9'!A130,FIND("-",'9'!A130)+1,LEN('9'!A130))*1,"") -> 2 | CW104: =+'9'!B130 -> 505.1 | CX104: 1.979805979 | CY104: 0.001483345752 | FK104: =LEFT(FO104,FIND("-",FO104)-1)*1 ->  | FO104: =IFERROR(INDEX($FO$1:$FO$80,SMALL(IF($FO$1:$FO$80<>"",ROW($FO$1:$FO$80)),ROW(FO23))),"") ->  | FP104: 0
CU105: =IFERROR(LEFT('9'!A131,FIND("-",'9'!A131)-1)*1,"") -> 7 | CV105: =IFERROR(MID('9'!A131,FIND("-",'9'!A131)+1,LEN('9'!A131))*1,"") -> 3 | CW105: =+'9'!B131 -> 517.3 | CX105: 1.933114247 | CY105: =IFERROR(CX105/$DE$294,"") -> 0.001448362535 | FK105: =LEFT(FO105,FIND("-",FO105)-1)*1 ->  | FO105: =IFERROR(INDEX($FO$1:$FO$80,SMALL(IF($FO$1:$FO$80<>"",ROW($FO$1:$FO$80)),ROW(FO24))),"") ->  | FP105: 0
CU106: =IFERROR(LEFT('9'!A132,FIND("-",'9'!A132)-1)*1,"") -> 7 | CV106: =IFERROR(MID('9'!A132,FIND("-",'9'!A132)+1,LEN('9'!A132))*1,"") -> 4 | CW106: =+'9'!B132 -> 360.8 | CX106: 2.771618625 | CY106: 0.002076601828 | FO106: =IFERROR(INDEX($FO$1:$FO$80,SMALL(IF($FO$1:$FO$80<>"",ROW($FO$1:$FO$80)),ROW(FO25))),"") ->  | FP106: 0
CU107: =IFERROR(LEFT('9'!A133,FIND("-",'9'!A133)-1)*1,"") -> 7 | CV107: =IFERROR(MID('9'!A133,FIND("-",'9'!A133)+1,LEN('9'!A133))*1,"") -> 5 | CW107: =+'9'!B133 -> 379.9 | CX107: 2.63227165 | CY107: 0.001972197787 | FO107: =IFERROR(INDEX($FO$1:$FO$80,SMALL(IF($FO$1:$FO$80<>"",ROW($FO$1:$FO$80)),ROW(FO26))),"") ->  | FP107: 0
AF108: =IFERROR(MID(AE102,FIND("-",AE102)+1,LEN(AE102))*1,"") ->  | CU108: =IFERROR(LEFT('9'!A134,FIND("-",'9'!A134)-1)*1,"") -> 7 | CV108: =IFERROR(MID('9'!A134,FIND("-",'9'!A134)+1,LEN('9'!A134))*1,"") -> 6 | CW108: =+'9'!B134 -> 466.6 | CX108: 2.143163309 | CY108: 0.001605739261 | FO108: =IFERROR(INDEX($FO$1:$FO$80,SMALL(IF($FO$1:$FO$80<>"",ROW($FO$1:$FO$80)),ROW(FO27))),"") ->  | FP108: 0
CU109: =IFERROR(LEFT('9'!A135,FIND("-",'9'!A135)-1)*1,"") -> 7 | CV109: =IFERROR(MID('9'!A135,FIND("-",'9'!A135)+1,LEN('9'!A135))*1,"") -> 7 | CW109: =+'9'!B135 -> 0 | FO109: =IFERROR(INDEX($FO$1:$FO$80,SMALL(IF($FO$1:$FO$80<>"",ROW($FO$1:$FO$80)),ROW(FO30))),"") ->  | FP109: 0
CU110: =IFERROR(LEFT('9'!A136,FIND("-",'9'!A136)-1)*1,"") -> 7 | CV110: =IFERROR(MID('9'!A136,FIND("-",'9'!A136)+1,LEN('9'!A136))*1,"") -> 8 | CW110: =+'9'!B136 -> 152.2 | CX110: 6.570302234 | CY110: 0.004922719707 | FO110: =IFERROR(INDEX($FO$1:$FO$80,SMALL(IF($FO$1:$FO$80<>"",ROW($FO$1:$FO$80)),ROW(FO31))),"") ->  | FP110: 0
CU111: =IFERROR(LEFT('9'!A137,FIND("-",'9'!A137)-1)*1,"") -> 7 | CV111: =IFERROR(MID('9'!A137,FIND("-",'9'!A137)+1,LEN('9'!A137))*1,"") -> 9 | CW111: =+'9'!B137 -> 933.3 | CX111: 1.071466838 | CY111: 0.0008027836059 | FO111: =IFERROR(INDEX($FO$1:$FO$80,SMALL(IF($FO$1:$FO$80<>"",ROW($FO$1:$FO$80)),ROW(FO32))),"") ->  | FP111: 0
CU112: =IFERROR(LEFT('9'!A138,FIND("-",'9'!A138)-1)*1,"") -> 7 | CV112: =IFERROR(MID('9'!A138,FIND("-",'9'!A138)+1,LEN('9'!A138))*1,"") -> 10 | CW112: =+'9'!B138 -> 596.3 | CX112: 1.677008217 | CY112: 0.001256478181 | FO112: =IFERROR(INDEX($FO$1:$FO$80,SMALL(IF($FO$1:$FO$80<>"",ROW($FO$1:$FO$80)),ROW(FO33))),"") ->  | FP112: 0
CU113: =IFERROR(LEFT('9'!A139,FIND("-",'9'!A139)-1)*1,"") -> 7 | CV113: =IFERROR(MID('9'!A139,FIND("-",'9'!A139)+1,LEN('9'!A139))*1,"") -> 11 | CW113: =+'9'!B139 -> 266.6 | CX113: 3.750937734 | CY113: 0.002810344859 | FO113: =IFERROR(INDEX($FO$1:$FO$80,SMALL(IF($FO$1:$FO$80<>"",ROW($FO$1:$FO$80)),ROW(FO36))),"") ->  | FP113: 0
AF114: =IFERROR(INDEX($AF$101:$AF$111,MATCH(0,INDEX(COUNTIF(AF$113:$AF113,$AF$101:$AF$111&""),),0)),"") ->  | CU114: =IFERROR(LEFT('9'!A140,FIND("-",'9'!A140)-1)*1,"") -> 7 | CV114: =IFERROR(MID('9'!A140,FIND("-",'9'!A140)+1,LEN('9'!A140))*1,"") -> 12 | CW114: =+'9'!B140 -> 511.1 | CX114: 1.956564273 | CY114: 0.001465932184 | FO114: =IFERROR(INDEX($FO$1:$FO$80,SMALL(IF($FO$1:$FO$80<>"",ROW($FO$1:$FO$80)),ROW(FO37))),"") ->  | FP114: =+IFERROR(INDEX($FP$2:$FP$80,MATCH(FO114,$FO$2:$FO$80,0)),"") -> 0
AF115: =IFERROR(INDEX($AF$101:$AF$111,MATCH(0,INDEX(COUNTIF(AF$113:$AF114,$AF$101:$AF$111&""),),0)),"") ->  | CU115: =IFERROR(LEFT('9'!A141,FIND("-",'9'!A141)-1)*1,"") -> 7 | CV115: =IFERROR(MID('9'!A141,FIND("-",'9'!A141)+1,LEN('9'!A141))*1,"") -> 13 | CW115: =+'9'!B141 -> 640.8 | CX115: 1.560549313 | CY115: 0.001169222752 | FO115: =IFERROR(INDEX($FO$1:$FO$80,SMALL(IF($FO$1:$FO$80<>"",ROW($FO$1:$FO$80)),ROW(FO38))),"") ->  | FP115: 0
AF116: =IFERROR(INDEX($AF$101:$AF$111,MATCH(0,INDEX(COUNTIF(AF$113:$AF115,$AF$101:$AF$111&""),),0)),"") ->  | CU116: =IFERROR(LEFT('9'!A142,FIND("-",'9'!A142)-1)*1,"") -> 7 | CV116: =IFERROR(MID('9'!A142,FIND("-",'9'!A142)+1,LEN('9'!A142))*1,"") -> 14 | CW116: =+'9'!B142 -> 0 | FO116: =IFERROR(INDEX($FO$1:$FO$80,SMALL(IF($FO$1:$FO$80<>"",ROW($FO$1:$FO$80)),ROW(FO39))),"") ->  | FP116: 0
AF117: =IFERROR(INDEX($AF$101:$AF$111,MATCH(0,INDEX(COUNTIF(AF$113:$AF116,$AF$101:$AF$111&""),),0)),"") ->  | CU117: =IFERROR(LEFT('9'!A143,FIND("-",'9'!A143)-1)*1,"") -> 7 | CV117: =IFERROR(MID('9'!A143,FIND("-",'9'!A143)+1,LEN('9'!A143))*1,"") -> 15 | CW117: =+'9'!B143 -> 0 | FO117: =IFERROR(INDEX($FO$1:$FO$80,SMALL(IF($FO$1:$FO$80<>"",ROW($FO$1:$FO$80)),ROW(FO41))),"") ->  | FP117: 0
AF118: =IFERROR(INDEX($AF$101:$AF$111,MATCH(0,INDEX(COUNTIF(AF$113:$AF117,$AF$101:$AF$111&""),),0)),"") ->  | CU118: =IFERROR(LEFT('9'!A144,FIND("-",'9'!A144)-1)*1,"") -> 7 | CV118: =IFERROR(MID('9'!A144,FIND("-",'9'!A144)+1,LEN('9'!A144))*1,"") -> 16 | CW118: =+'9'!B144 -> 0 | FO118: =IFERROR(INDEX($FO$1:$FO$80,SMALL(IF($FO$1:$FO$80<>"",ROW($FO$1:$FO$80)),ROW(FO42))),"") ->  | FP118: 0
AF119: =IFERROR(INDEX($AF$101:$AF$111,MATCH(0,INDEX(COUNTIF(AF$113:$AF118,$AF$101:$AF$111&""),),0)),"") ->  | CU119: =IFERROR(LEFT('9'!A145,FIND("-",'9'!A145)-1)*1,"") -> 8 | CV119: =IFERROR(MID('9'!A145,FIND("-",'9'!A145)+1,LEN('9'!A145))*1,"") -> 1 | CW119: =+'9'!B145 -> 18.7 | CX119: 53.47593583 | CY119: 0.04006619997 | FO119: =IFERROR(INDEX($FO$1:$FO$80,SMALL(IF($FO$1:$FO$80<>"",ROW($FO$1:$FO$80)),ROW(FO43))),"") ->  | FP119: 0
AF120: =IFERROR(INDEX($AF$101:$AF$111,MATCH(0,INDEX(COUNTIF(AF$113:$AF119,$AF$101:$AF$111&""),),0)),"") ->  | CU120: =IFERROR(LEFT('9'!A146,FIND("-",'9'!A146)-1)*1,"") -> 8 | CV120: =IFERROR(MID('9'!A146,FIND("-",'9'!A146)+1,LEN('9'!A146))*1,"") -> 2 | CW120: =+'9'!B146 -> 93.9 | CX120: 10.64962726 | CY120: 0.007979104786 | FO120: =IFERROR(INDEX($FO$1:$FO$80,SMALL(IF($FO$1:$FO$80<>"",ROW($FO$1:$FO$80)),ROW(FO44))),"") ->  | FP120: 0
AF121: =IFERROR(INDEX($AF$101:$AF$111,MATCH(0,INDEX(COUNTIF(AF$113:$AF120,$AF$101:$AF$111&""),),0)),"") ->  | CU121: =IFERROR(LEFT('9'!A147,FIND("-",'9'!A147)-1)*1,"") -> 8 | CV121: =IFERROR(MID('9'!A147,FIND("-",'9'!A147)+1,LEN('9'!A147))*1,"") -> 3 | CW121: =+'9'!B147 -> 32.9 | CX121: 30.39513678 | CY121: 0.02277318965 | FO121: =IFERROR(INDEX($FO$1:$FO$80,SMALL(IF($FO$1:$FO$80<>"",ROW($FO$1:$FO$80)),ROW(FO45))),"") ->  | FP121: 0
AF122: =IFERROR(INDEX($AF$101:$AF$111,MATCH(0,INDEX(COUNTIF(AF$113:$AF121,$AF$101:$AF$111&""),),0)),"") ->  | CU122: =IFERROR(LEFT('9'!A148,FIND("-",'9'!A148)-1)*1,"") -> 8 | CV122: =IFERROR(MID('9'!A148,FIND("-",'9'!A148)+1,LEN('9'!A148))*1,"") -> 4 | CW122: =+'9'!B148 -> 19.4 | CX122: 51.54639175 | CY122: 0.03862051234 | FO122: =IFERROR(INDEX($FO$1:$FO$80,SMALL(IF($FO$1:$FO$80<>"",ROW($FO$1:$FO$80)),ROW(FO46))),"") ->  | FP122: 0
AF123: =IFERROR(INDEX($AF$101:$AF$111,MATCH(0,INDEX(COUNTIF(AF$113:$AF122,$AF$101:$AF$111&""),),0)),"") ->  | CU123: =IFERROR(LEFT('9'!A149,FIND("-",'9'!A149)-1)*1,"") -> 8 | CV123: =IFERROR(MID('9'!A149,FIND("-",'9'!A149)+1,LEN('9'!A149))*1,"") -> 5 | CW123: =+'9'!B149 -> 20 | CX123: 50 | CY123: 0.03746189697 | FO123: =IFERROR(INDEX($FO$1:$FO$80,SMALL(IF($FO$1:$FO$80<>"",ROW($FO$1:$FO$80)),ROW(FO47))),"") ->  | FP123: 0
AF124: =IFERROR(INDEX($AF$101:$AF$111,MATCH(0,INDEX(COUNTIF(AF$113:$AF123,$AF$101:$AF$111&""),),0)),"") ->  | CU124: =IFERROR(LEFT('9'!A150,FIND("-",'9'!A150)-1)*1,"") -> 8 | CV124: =IFERROR(MID('9'!A150,FIND("-",'9'!A150)+1,LEN('9'!A150))*1,"") -> 6 | CW124: =+'9'!B150 -> 50.6 | CX124: 19.76284585 | CY124: 0.0148070739 | FO124: =IFERROR(INDEX($FO$1:$FO$80,SMALL(IF($FO$1:$FO$80<>"",ROW($FO$1:$FO$80)),ROW(FO48))),"") ->  | FP124: 0
CU125: =IFERROR(LEFT('9'!A151,FIND("-",'9'!A151)-1)*1,"") -> 8 | CV125: =IFERROR(MID('9'!A151,FIND("-",'9'!A151)+1,LEN('9'!A151))*1,"") -> 7 | CW125: =+'9'!B151 -> 66 | CX125: 15.15151515 | CY125: 0.01135208999 | FO125: =IFERROR(INDEX($FO$1:$FO$80,SMALL(IF($FO$1:$FO$80<>"",ROW($FO$1:$FO$80)),ROW(FO49))),"") ->  | FP125: 0
CU126: =IFERROR(LEFT('9'!A152,FIND("-",'9'!A152)-1)*1,"") -> 8 | CV126: =IFERROR(MID('9'!A152,FIND("-",'9'!A152)+1,LEN('9'!A152))*1,"") -> 8 | CW126: =+'9'!B152 -> 0 | FO126: =IFERROR(INDEX($FO$1:$FO$80,SMALL(IF($FO$1:$FO$80<>"",ROW($FO$1:$FO$80)),ROW(FO50))),"") ->  | FP126: 0
CU127: =IFERROR(LEFT('9'!A153,FIND("-",'9'!A153)-1)*1,"") -> 8 | CV127: =IFERROR(MID('9'!A153,FIND("-",'9'!A153)+1,LEN('9'!A153))*1,"") -> 9 | CW127: =+'9'!B153 -> 169.7 | CX127: 5.892751915 | CY127: 0.004415073302 | FO127: =IFERROR(INDEX($FO$1:$FO$80,SMALL(IF($FO$1:$FO$80<>"",ROW($FO$1:$FO$80)),ROW(FO51))),"") ->  | FP127: 0
CU128: =IFERROR(LEFT('9'!A154,FIND("-",'9'!A154)-1)*1,"") -> 8 | CV128: =IFERROR(MID('9'!A154,FIND("-",'9'!A154)+1,LEN('9'!A154))*1,"") -> 10 | CW128: =+'9'!B154 -> 37.7 | CX128: 26.52519894 | CY128: 0.0198736854 | FO128: =IFERROR(INDEX($FO$1:$FO$80,SMALL(IF($FO$1:$FO$80<>"",ROW($FO$1:$FO$80)),ROW(FO52))),"") ->  | FP128: 0
CU129: =IFERROR(LEFT('9'!A155,FIND("-",'9'!A155)-1)*1,"") -> 8 | CV129: =IFERROR(MID('9'!A155,FIND("-",'9'!A155)+1,LEN('9'!A155))*1,"") -> 11 | CW129: =+'9'!B155 -> 13 | CX129: 76.92307692 | CY129: 0.05763368765 | FO129: =IFERROR(INDEX($FO$1:$FO$80,SMALL(IF($FO$1:$FO$80<>"",ROW($FO$1:$FO$80)),ROW(FO53))),"") ->  | FP129: 0
CU130: =IFERROR(LEFT('9'!A156,FIND("-",'9'!A156)-1)*1,"") -> 8 | CV130: =IFERROR(MID('9'!A156,FIND("-",'9'!A156)+1,LEN('9'!A156))*1,"") -> 12 | CW130: =+'9'!B156 -> 38 | CX130: 26.31578947 | CY130: 0.01971678788 | FO130: =IFERROR(INDEX($FO$1:$FO$80,SMALL(IF($FO$1:$FO$80<>"",ROW($FO$1:$FO$80)),ROW(FO54))),"") ->  | FP130: 0
CU131: =IFERROR(LEFT('9'!A157,FIND("-",'9'!A157)-1)*1,"") -> 8 | CV131: =IFERROR(MID('9'!A157,FIND("-",'9'!A157)+1,LEN('9'!A157))*1,"") -> 13 | CW131: =+'9'!B157 -> 46.8 | CX131: 21.36752137 | CY131: 0.01600935768 | FO131: =IFERROR(INDEX($FO$1:$FO$80,SMALL(IF($FO$1:$FO$80<>"",ROW($FO$1:$FO$80)),ROW(FO55))),"") ->  | FP131: 0
CU132: =IFERROR(LEFT('9'!A158,FIND("-",'9'!A158)-1)*1,"") -> 8 | CV132: =IFERROR(MID('9'!A158,FIND("-",'9'!A158)+1,LEN('9'!A158))*1,"") -> 14 | CW132: =+'9'!B158 -> 0 | FO132: =IFERROR(INDEX($FO$1:$FO$80,SMALL(IF($FO$1:$FO$80<>"",ROW($FO$1:$FO$80)),ROW(FO56))),"") ->  | FP132: 0
CU133: =IFERROR(LEFT('9'!A159,FIND("-",'9'!A159)-1)*1,"") -> 8 | CV133: =IFERROR(MID('9'!A159,FIND("-",'9'!A159)+1,LEN('9'!A159))*1,"") -> 15 | CW133: =+'9'!B159 -> 0 | FO133: =IFERROR(INDEX($FO$1:$FO$80,SMALL(IF($FO$1:$FO$80<>"",ROW($FO$1:$FO$80)),ROW(FO57))),"") ->  | FP133: 0
CU134: =IFERROR(LEFT('9'!A160,FIND("-",'9'!A160)-1)*1,"") -> 8 | CV134: =IFERROR(MID('9'!A160,FIND("-",'9'!A160)+1,LEN('9'!A160))*1,"") -> 16 | CW134: =+'9'!B160 -> 0 | DQ134: =IFERROR(MID(DZ82,FIND("-",DZ82)+1,LEN(DZ82))*1,"") ->  | FO134: =IFERROR(INDEX($FO$1:$FO$80,SMALL(IF($FO$1:$FO$80<>"",ROW($FO$1:$FO$80)),ROW(FN58))),"") ->  | FP134: 0
X135: 枠-馬連比較 | CU135: =IFERROR(LEFT('9'!A161,FIND("-",'9'!A161)-1)*1,"") -> 9 | CV135: =IFERROR(MID('9'!A161,FIND("-",'9'!A161)+1,LEN('9'!A161))*1,"") -> 1 | CW135: =+'9'!B161 -> 703.8 | CX135: 1.420858198 | CY135: 0.001064560869 | DO135: =IFERROR(LEFT(DS135,FIND("-",DS135)-1)*1,"") ->  | DP135: =IFERROR(MID(DS135,FIND("-",DS135)+1,LEN(DS135))*1,"") ->  | FO135: =IFERROR(INDEX($FO$1:$FO$80,SMALL(IF($FO$1:$FO$80<>"",ROW($FO$1:$FO$80)),ROW(FN59))),"") ->  | FP135: 0
X136: 購入額 | Y136: 1000000 | AC136: =SUM(AC137:AC154) -> 0 | AE136: 個々購入額 | AF136: 払い戻し額 | CU136: =IFERROR(LEFT('9'!A162,FIND("-",'9'!A162)-1)*1,"") -> 9 | CV136: =IFERROR(MID('9'!A162,FIND("-",'9'!A162)+1,LEN('9'!A162))*1,"") -> 2 | CW136: =+'9'!B162 -> 1100.9 | CX136: 0.9083477155 | CY136: 0.0006805685706 | DO136: =IFERROR(LEFT(DS136,FIND("-",DS136)-1)*1,"") ->  | DP136: =IFERROR(MID(DS136,FIND("-",DS136)+1,LEN(DS136))*1,"") ->  | FO136: =IFERROR(INDEX($FO$1:$FO$80,SMALL(IF($FO$1:$FO$80<>"",ROW($FO$1:$FO$80)),ROW(FN60))),"") ->  | FP136: 0
X137: 実際の額 | Y137: =AE155 -> 0 | AA137: 1 | AB137: =+作業ページ!AQ133 ->  | AC137: =IF(TYPE(100/AB137)=16,0,100/AB137) -> 0 | AD137: =AC137/$AC$136 ->  | AE137: =IF(AC137=0,0,IF(FLOOR($Y$136*AD137,100)=0,100,FLOOR($Y$136*AD137,100))) -> 0 | AF137: =IF(AE137=0,"",AB137*AE137) ->  | AG137: =+Sheet11!DX53 -> 0 | CU137: =IFERROR(LEFT('9'!A163,FIND("-",'9'!A163)-1)*1,"") -> 9 | CV137: =IFERROR(MID('9'!A163,FIND("-",'9'!A163)+1,LEN('9'!A163))*1,"") -> 3 | CW137: =+'9'!B163 -> 933.3 | CX137: =IFERROR(1000/CW137,"") -> 1.071466838 | CY137: 0.0008027836059 | FO137: =IFERROR(INDEX($FO$1:$FO$80,SMALL(IF($FO$1:$FO$80<>"",ROW($FO$1:$FO$80)),ROW(FN61))),"") ->  | FP137: 0
W138: 5 | X138: 最低倍率 | Z138: =MIN(AF137:AF154)/AE155 ->  | AA138: 2 | AB138: =+作業ページ!AQ134 ->  | AC138: =IF(TYPE(100/AB138)=16,0,100/AB138) -> 0 | AD138: =AC138/$AC$136 ->  | AE138: =IF(AC138=0,0,IF(FLOOR($Y$136*AD138,100)=0,100,FLOOR($Y$136*AD138,100))) -> 0 | AG138: =+Sheet11!DX54 -> 0 | CU138: =IFERROR(LEFT('9'!A164,FIND("-",'9'!A164)-1)*1,"") -> 9 | CV138: =IFERROR(MID('9'!A164,FIND("-",'9'!A164)+1,LEN('9'!A164))*1,"") -> 4 | CW138: =+'9'!B164 -> 681.5 | CX138: 1.467351431 | CY138: 0.001099395362 | FO138: =IFERROR(INDEX($FO$1:$FO$80,SMALL(IF($FO$1:$FO$80<>"",ROW($FO$1:$FO$80)),ROW(FN62))),"") ->  | FP138: 0
AA139: 3 | AB139: =+作業ページ!AQ135 ->  | AC139: 0 | AE139: 0 | AG139: =+Sheet11!DX55 -> 0 | CU139: =IFERROR(LEFT('9'!A165,FIND("-",'9'!A165)-1)*1,"") -> 9 | CV139: =IFERROR(MID('9'!A165,FIND("-",'9'!A165)+1,LEN('9'!A165))*1,"") -> 5 | CW139: =+'9'!B165 -> 650.5 | CX139: 1.537279016 | CY139: 0.001151787762 | FO139: =IFERROR(INDEX($FO$1:$FO$80,SMALL(IF($FO$1:$FO$80<>"",ROW($FO$1:$FO$80)),ROW(FN63))),"") ->  | FP139: 0
AA140: 4 | AB140: =+作業ページ!AQ136 ->  | AC140: 0 | AE140: 0 | AG140: =+Sheet11!DX56 -> 0 | CU140: =IFERROR(LEFT('9'!A166,FIND("-",'9'!A166)-1)*1,"") -> 9 | CV140: =IFERROR(MID('9'!A166,FIND("-",'9'!A166)+1,LEN('9'!A166))*1,"") -> 6 | CW140: =+'9'!B166 -> 1073.4 | CX140: 0.9316191541 | CY140: 0.0006980044153 | FO140: =IFERROR(INDEX($FO$1:$FO$80,SMALL(IF($FO$1:$FO$80<>"",ROW($FO$1:$FO$80)),ROW(FN64))),"") ->  | FP140: 0
AA141: 5 | AB141: =+作業ページ!AQ137 ->  | AC141: 0 | AE141: 0 | AG141: =+Sheet11!DX57 -> 0 | CU141: =IFERROR(LEFT('9'!A167,FIND("-",'9'!A167)-1)*1,"") -> 9 | CV141: =IFERROR(MID('9'!A167,FIND("-",'9'!A167)+1,LEN('9'!A167))*1,"") -> 7 | CW141: =+'9'!B167 -> 1073.4 | CX141: 0.9316191541 | CY141: 0.0006980044153 | FO141: =IFERROR(INDEX($FO$1:$FO$80,SMALL(IF($FO$1:$FO$80<>"",ROW($FO$1:$FO$80)),ROW(FN65))),"") ->  | FP141: 0
AA142: 6 | AB142: =+作業ページ!AQ138 ->  | AC142: 0 | AE142: 0 | AG142: =+IFERROR(INDEX($X$109:$X$119,MATCH(AB142,$Y$109:$Y$119,0)),"") ->  | CU142: =IFERROR(LEFT('9'!A168,FIND("-",'9'!A168)-1)*1,"") -> 9 | CV142: =IFERROR(MID('9'!A168,FIND("-",'9'!A168)+1,LEN('9'!A168))*1,"") -> 8 | CW142: =+'9'!B168 -> 376.6 | CX142: 2.655337228 | CY142: 0.001989479393 | DR142: A | FO142: =IFERROR(INDEX($FO$1:$FO$80,SMALL(IF($FO$1:$FO$80<>"",ROW($FO$1:$FO$80)),ROW(FN66))),"") ->  | FP142: 0
AA143: 7 | AB143: =+作業ページ!AQ139 ->  | AC143: 0 | AE143: 0 | CU143: =IFERROR(LEFT('9'!A169,FIND("-",'9'!A169)-1)*1,"") -> 9 | CV143: =IFERROR(MID('9'!A169,FIND("-",'9'!A169)+1,LEN('9'!A169))*1,"") -> 9 | CW143: =+'9'!B169 -> 0 | FO143: =IFERROR(INDEX($FO$1:$FO$80,SMALL(IF($FO$1:$FO$80<>"",ROW($FO$1:$FO$80)),ROW(FN67))),"") ->  | FP143: 0
AA144: 8 | AB144: =+作業ページ!AQ140 ->  | AC144: 0 | AE144: 0 | CU144: =IFERROR(LEFT('9'!A170,FIND("-",'9'!A170)-1)*1,"") -> 9 | CV144: =IFERROR(MID('9'!A170,FIND("-",'9'!A170)+1,LEN('9'!A170))*1,"") -> 10 | CW144: =+'9'!B170 -> 858.7 | CX144: 1.164551066 | CY144: 0.0008725258407 | FO144: =IFERROR(INDEX($FO$1:$FO$80,SMALL(IF($FO$1:$FO$80<>"",ROW($FO$1:$FO$80)),ROW(FN68))),"") ->  | FP144: 0
AA145: 9 | AB145: =+作業ページ!AQ141 ->  | AC145: 0 | AE145: 0 | CU145: =IFERROR(LEFT('9'!A171,FIND("-",'9'!A171)-1)*1,"") -> 9 | CV145: =IFERROR(MID('9'!A171,FIND("-",'9'!A171)+1,LEN('9'!A171))*1,"") -> 11 | CW145: =+'9'!B171 -> 631.4 | CX145: 1.583782072 | CY145: 0.001186629616 | FO145: =IFERROR(INDEX($FO$1:$FO$80,SMALL(IF($FO$1:$FO$80<>"",ROW($FO$1:$FO$80)),ROW(FN69))),"") ->  | FP145: 0
AA146: 10 | AB146: =+作業ページ!AQ142 ->  | AC146: 0 | AE146: 0 | CU146: =IFERROR(LEFT('9'!A172,FIND("-",'9'!A172)-1)*1,"") -> 9 | CV146: =IFERROR(MID('9'!A172,FIND("-",'9'!A172)+1,LEN('9'!A172))*1,"") -> 12 | CW146: =+'9'!B172 -> 660.5 | CX146: 1.514004542 | CY146: 0.001134349643
AA147: 11 | AB147: =+作業ページ!AQ143 ->  | AC147: 0 | AE147: 0 | AG147: =+IFERROR(INDEX($Y$123:$Y$133,MATCH(AB147,$Z$123:$Z$133,0)),"") ->  | CU147: =IFERROR(LEFT('9'!A173,FIND("-",'9'!A173)-1)*1,"") -> 9 | CV147: =IFERROR(MID('9'!A173,FIND("-",'9'!A173)+1,LEN('9'!A173))*1,"") -> 13 | CW147: =+'9'!B173 -> 933.3 | CX147: 1.071466838 | CY147: 0.0008027836059
AA148: 12 | AB148: =+作業ページ!AQ144 ->  | AC148: =IF(TYPE(100/AB148)=16,0,100/AB148) -> 0 | AD148: =AC148/$AC$136 ->  | AE148: =IF(AC148=0,0,IF(FLOOR($Y$136*AD148,100)=0,100,FLOOR($Y$136*AD148,100))) -> 0 | AF148: =IF(AE148=0,"",AB148*AE148) ->  | AG148: =+IFERROR(INDEX($Y$123:$Y$133,MATCH(AB148,$Z$123:$Z$133,0)),"") ->  | CU148: =IFERROR(LEFT('9'!A174,FIND("-",'9'!A174)-1)*1,"") -> 9 | CV148: =IFERROR(MID('9'!A174,FIND("-",'9'!A174)+1,LEN('9'!A174))*1,"") -> 14 | CW148: =+'9'!B174 -> 0
AA149: 13 | AB149: =+作業ページ!AQ145 ->  | AC149: 0 | AE149: 0 | CU149: =IFERROR(LEFT('9'!A175,FIND("-",'9'!A175)-1)*1,"") -> 9 | CV149: =IFERROR(MID('9'!A175,FIND("-",'9'!A175)+1,LEN('9'!A175))*1,"") -> 15 | CW149: =+'9'!B175 -> 0
AA150: 14 | AB150: =+作業ページ!AQ146 ->  | AC150: 0 | AE150: 0 | CU150: =IFERROR(LEFT('9'!A176,FIND("-",'9'!A176)-1)*1,"") -> 9 | CV150: =IFERROR(MID('9'!A176,FIND("-",'9'!A176)+1,LEN('9'!A176))*1,"") -> 16 | CW150: =+'9'!B176 -> 0
AA151: 15 | AB151: =+作業ページ!AQ147 ->  | AC151: 0 | AE151: 0 | CU151: =IFERROR(LEFT('9'!A177,FIND("-",'9'!A177)-1)*1,"") -> 10 | CV151: =IFERROR(MID('9'!A177,FIND("-",'9'!A177)+1,LEN('9'!A177))*1,"") -> 1 | CW151: =+'9'!B177 -> 136.3 | CX151: 7.336757153 | CY151: 0.005496976812
AA152: 16 | AB152: =+作業ページ!AQ148 -> 0 | AC152: 0 | AE152: 0 | CU152: =IFERROR(LEFT('9'!A178,FIND("-",'9'!A178)-1)*1,"") -> 10 | CV152: =IFERROR(MID('9'!A178,FIND("-",'9'!A178)+1,LEN('9'!A178))*1,"") -> 2 | CW152: =+'9'!B178 -> 596.3 | CX152: 1.677008217 | CY152: 0.001256478181
AA153: 17 | AB153: =+作業ページ!AQ149 -> 0 | AC153: 0 | AE153: 0 | CU153: =IFERROR(LEFT('9'!A179,FIND("-",'9'!A179)-1)*1,"") -> 10 | CV153: =IFERROR(MID('9'!A179,FIND("-",'9'!A179)+1,LEN('9'!A179))*1,"") -> 3 | CW153: =+'9'!B179 -> 243.9 | CX153: 4.100041 | CY153: 0.003071906271
AA154: 18 | AB154: =+作業ページ!AQ150 -> 0 | AC154: 0 | AE154: 0 | CU154: =IFERROR(LEFT('9'!A180,FIND("-",'9'!A180)-1)*1,"") -> 10 | CV154: =IFERROR(MID('9'!A180,FIND("-",'9'!A180)+1,LEN('9'!A180))*1,"") -> 4 | CW154: =+'9'!B180 -> 152.2 | CX154: 6.570302234 | CY154: 0.004922719707
AA155: 19 | AC155: 0 | AE155: =SUM(AE137:AE154) -> 0 | CU155: =IFERROR(LEFT('9'!A181,FIND("-",'9'!A181)-1)*1,"") -> 10 | CV155: =IFERROR(MID('9'!A181,FIND("-",'9'!A181)+1,LEN('9'!A181))*1,"") -> 5 | CW155: =+'9'!B181 -> 190.8 | CX155: 5.241090147 | CY155: 0.003926823582
X156: 枠-馬連比較 | CU156: =IFERROR(LEFT('9'!A182,FIND("-",'9'!A182)-1)*1,"") -> 10 | CV156: =IFERROR(MID('9'!A182,FIND("-",'9'!A182)+1,LEN('9'!A182))*1,"") -> 6 | CW156: =+'9'!B182 -> 390.3 | CX156: 2.562131694 | CY156: 0.001919646271
X157: 購入額 | Y157: 1000000 | AC157: =SUM(AC158:AC170) -> 0 | AE157: 個々購入額 | AF157: 払い戻し額 | CU157: =IFERROR(LEFT('9'!A183,FIND("-",'9'!A183)-1)*1,"") -> 10 | CV157: =IFERROR(MID('9'!A183,FIND("-",'9'!A183)+1,LEN('9'!A183))*1,"") -> 7 | CW157: =+'9'!B183 -> 596.3 | CX157: 1.677008217 | CY157: 0.001256478181
X158: 実際の額 | Y158: =AE171 -> 0 | AA158: 1 | AB158: =+作業ページ!BD7 ->  | AC158: =IF(TYPE(100/AB158)=16,0,100/AB158) -> 0 | AD158: =AC158/$AC$157 ->  | AE158: =IF(AC158=0,0,IF(FLOOR($Y$136*AD158,100)=0,100,FLOOR($Y$136*AD158,100))) -> 0 | AF158: =IF(AE158=0,"",AB158*AE158) ->  | AG158: =+AG137 -> 0 | CU158: =IFERROR(LEFT('9'!A184,FIND("-",'9'!A184)-1)*1,"") -> 10 | CV158: =IFERROR(MID('9'!A184,FIND("-",'9'!A184)+1,LEN('9'!A184))*1,"") -> 8 | CW158: =+'9'!B184 -> 77.7 | CX158: 12.87001287 | CY158: 0.009642701923
W159: 4 | X159: 最低倍率 | Z159: =MIN(AF158:AF170)/AE171 ->  | AA159: 2 | AB159: =+作業ページ!BD8 ->  | AC159: =IF(TYPE(100/AB159)=16,0,100/AB159) -> 0 | AE159: =IF(AC159=0,0,IF(FLOOR($Y$136*AD159,100)=0,100,FLOOR($Y$136*AD159,100))) -> 0 | AG159: =+AG138 -> 0 | CU159: =IFERROR(LEFT('9'!A185,FIND("-",'9'!A185)-1)*1,"") -> 10 | CV159: =IFERROR(MID('9'!A185,FIND("-",'9'!A185)+1,LEN('9'!A185))*1,"") -> 9 | CW159: =+'9'!B185 -> 795.1 | CX159: 1.257703434 | CY159: 0.0009423191289
AA160: 3 | AB160: =+作業ページ!BD9 ->  | AC160: 0 | AE160: 0 | AG160: =+AG139 -> 0 | CU160: =IFERROR(LEFT('9'!A186,FIND("-",'9'!A186)-1)*1,"") -> 10 | CV160: =IFERROR(MID('9'!A186,FIND("-",'9'!A186)+1,LEN('9'!A186))*1,"") -> 10 | CW160: =+'9'!B186 -> 0
AA161: 4 | AB161: =+作業ページ!BD10 ->  | AC161: 0 | AE161: 0 | AG161: =+AG140 -> 0 | CU161: =IFERROR(LEFT('9'!A187,FIND("-",'9'!A187)-1)*1,"") -> 10 | CV161: =IFERROR(MID('9'!A187,FIND("-",'9'!A187)+1,LEN('9'!A187))*1,"") -> 11 | CW161: =+'9'!B187 -> 102.7 | CX161: 9.737098345 | CY161: 0.0072954035
AA162: 5 | AB162: =+作業ページ!BD11 ->  | AC162: 0 | AE162: 0 | AG162: =+IFERROR(INDEX($X$109:$X$119,MATCH(AB162,$Y$109:$Y$119,0)),"") ->  | CU162: =IFERROR(LEFT('9'!A188,FIND("-",'9'!A188)-1)*1,"") -> 10 | CV162: =IFERROR(MID('9'!A188,FIND("-",'9'!A188)+1,LEN('9'!A188))*1,"") -> 12 | CW162: =+'9'!B188 -> 175.2 | CX162: 5.707762557 | CY162: 0.004276472257
AA163: 6 | AB163: =+作業ページ!BD12 ->  | AC163: 0 | AE163: 0 | CU163: =IFERROR(LEFT('9'!A189,FIND("-",'9'!A189)-1)*1,"") -> 10 | CV163: =IFERROR(MID('9'!A189,FIND("-",'9'!A189)+1,LEN('9'!A189))*1,"") -> 13 | CW163: =+'9'!B189 -> 123 | CX163: 8.130081301 | CY163: 0.006091365361
AA164: 7 | AB164: =+作業ページ!BD13 ->  | AC164: 0 | AE164: 0 | CU164: =IFERROR(LEFT('9'!A190,FIND("-",'9'!A190)-1)*1,"") -> 10 | CV164: =IFERROR(MID('9'!A190,FIND("-",'9'!A190)+1,LEN('9'!A190))*1,"") -> 14 | CW164: =+'9'!B190 -> 0
AA165: 8 | AB165: =+作業ページ!BD14 -> 0 | AC165: 0 | AE165: 0 | CU165: =IFERROR(LEFT('9'!A191,FIND("-",'9'!A191)-1)*1,"") -> 10 | CV165: =IFERROR(MID('9'!A191,FIND("-",'9'!A191)+1,LEN('9'!A191))*1,"") -> 15 | CW165: =+'9'!B191 -> 0
AA166: 9 | AC166: 0 | AE166: 0 | CU166: =IFERROR(LEFT('9'!A192,FIND("-",'9'!A192)-1)*1,"") -> 10 | CV166: =IFERROR(MID('9'!A192,FIND("-",'9'!A192)+1,LEN('9'!A192))*1,"") -> 16 | CW166: =+'9'!B192 -> 0
AA167: 10 | AC167: 0 | AE167: 0 | AG167: =+IFERROR(INDEX($X$109:$X$119,MATCH(AB167,$Y$109:$Y$119,0)),"") ->  | CU167: =IFERROR(LEFT('9'!A193,FIND("-",'9'!A193)-1)*1,"") -> 11 | CV167: =IFERROR(MID('9'!A193,FIND("-",'9'!A193)+1,LEN('9'!A193))*1,"") -> 1 | CW167: =+'9'!B193 -> 46.3 | CX167: 21.59827214 | CY167: 0.01618224491
AA168: 11 | AC168: 0 | AE168: 0 | AG168: =+IFERROR(INDEX($Y$123:$Y$133,MATCH(AB168,$Z$123:$Z$133,0)),"") ->  | CU168: =IFERROR(LEFT('9'!A194,FIND("-",'9'!A194)-1)*1,"") -> 11 | CV168: =IFERROR(MID('9'!A194,FIND("-",'9'!A194)+1,LEN('9'!A194))*1,"") -> 2 | CW168: =+'9'!B194 -> 265 | CX168: 3.773584906 | CY168: 0.002827312979
AA169: 12 | AC169: 0 | AE169: 0 | AJ169: =IFERROR(IF(AG174="","",MID(AG174,SEARCH("-",AG174,1)+1,SEARCH("-",AG174,SEARCH("-",AG174,1)+1)-(SEARCH("-",AG174,1)+1)))*1,"") ->  | AK169: =IFERROR(TRIM(MID(SUBSTITUTE(AG174,"-",REPT(" ",100)),100*2,100))*1,"") ->  | AL169: 1 | AM169: =+COUNTIF($AI$169:$AK$180,AL169) -> 0 | CU169: =IFERROR(LEFT('9'!A195,FIND("-",'9'!A195)-1)*1,"") -> 11 | CV169: =IFERROR(MID('9'!A195,FIND("-",'9'!A195)+1,LEN('9'!A195))*1,"") -> 3 | CW169: =+'9'!B195 -> 84 | CX169: 11.9047619 | CY169: =IFERROR(CX169/$DE$294,"") -> 0.008919499279
AA170: 13 | AC170: 0 | AE170: 0 | AL170: 2 | AM170: =+COUNTIF($AI$169:$AK$180,AL170) -> 0 | CU170: =IFERROR(LEFT('9'!A196,FIND("-",'9'!A196)-1)*1,"") -> 11 | CV170: =IFERROR(MID('9'!A196,FIND("-",'9'!A196)+1,LEN('9'!A196))*1,"") -> 4 | CW170: =+'9'!B196 -> 46.9 | CX170: 21.32196162 | CY170: 0.01597522259
AB171: TOTAL | AE171: =SUM(AE158:AE170) -> 0 | AL171: 3 | AM171: 0 | CU171: =IFERROR(LEFT('9'!A197,FIND("-",'9'!A197)-1)*1,"") -> 11 | CV171: =IFERROR(MID('9'!A197,FIND("-",'9'!A197)+1,LEN('9'!A197))*1,"") -> 5 | CW171: =+'9'!B197 -> 52.9 | CX171: 18.90359168 | CY171: 0.01416328808
X172: 枠-馬連比較 | AL172: 4 | AM172: 0 | CU172: =IFERROR(LEFT('9'!A198,FIND("-",'9'!A198)-1)*1,"") -> 11 | CV172: =IFERROR(MID('9'!A198,FIND("-",'9'!A198)+1,LEN('9'!A198))*1,"") -> 6 | CW172: =+'9'!B198 -> 90.7 | CX172: 11.02535832 | CY172: 0.008260616752
X173: 購入額 | Y173: 1000000 | AC173: =SUM(AC174:AC192) -> 0 | AE173: 個々購入額 | AF173: 払い戻し額 | AL173: 5 | AM173: 0 | CU173: =IFERROR(LEFT('9'!A199,FIND("-",'9'!A199)-1)*1,"") -> 11 | CV173: =IFERROR(MID('9'!A199,FIND("-",'9'!A199)+1,LEN('9'!A199))*1,"") -> 7 | CW173: =+'9'!B199 -> 155.5 | CX173: 6.430868167 | CY173: 0.004818250414
X174: 実際の額 | Y174: =AE193 -> 0 | AA174: 1 | AB174: =+メイン!Z26 -> 0 | AC174: =IF(TYPE(100/AB174)=16,0,100/AB174) -> 0 | AD174: =AC174/$AC$173 ->  | AE174: =IF(AC174=0,0,IF(FLOOR($Y$136*AD174,100)=0,100,FLOOR($Y$136*AD174,100))) -> 0 | AF174: =IF(AE174=0,"",AB174*AE174) ->  | AG174: =+INDEX($AH$3:$AH$52,MATCH(AB174,$AI$3:$AI$52,0)) ->  | AH174: =+AI174 ->  | AI174: =+IFERROR(IF(AG174="","",LEFT(AG174,FIND("-",SUBSTITUTE(AG174,"-","-",4))-1))*1,"") ->  | AL174: 6 | AM174: 0 | CU174: =IFERROR(LEFT('9'!A200,FIND("-",'9'!A200)-1)*1,"") -> 11 | CV174: =IFERROR(MID('9'!A200,FIND("-",'9'!A200)+1,LEN('9'!A200))*1,"") -> 8 | CW174: =+'9'!B200 -> 20.8 | CX174: 48.07692308 | CY174: 0.03602105478
W175: 5 | X175: 最低倍率 | Z175: =MIN(AF174:AF192)/AE193 ->  | AA175: 2 | AB175: =+メイン!Z27 -> 0 | AC175: =IF(TYPE(100/AB175)=16,0,100/AB175) -> 0 | AE175: =IF(AC175=0,0,IF(FLOOR($Y$136*AD175,100)=0,100,FLOOR($Y$136*AD175,100))) -> 0 | AH175: =+AI175 ->  | AL175: 7 | AM175: 0 | CU175: =IFERROR(LEFT('9'!A201,FIND("-",'9'!A201)-1)*1,"") -> 11 | CV175: =IFERROR(MID('9'!A201,FIND("-",'9'!A201)+1,LEN('9'!A201))*1,"") -> 9 | CW175: =+'9'!B201 -> 366.9 | CX175: 2.725538294 | CY175: 0.002042076695
AA176: 3 | AB176: =+メイン!Z28 -> 0 | AC176: 0 | AE176: 0 | AL176: 8 | AM176: 0 | CU176: =IFERROR(LEFT('9'!A202,FIND("-",'9'!A202)-1)*1,"") -> 11 | CV176: =IFERROR(MID('9'!A202,FIND("-",'9'!A202)+1,LEN('9'!A202))*1,"") -> 10 | CW176: =+'9'!B202 -> 76.8 | CX176: 13.02083333 | CY176: 0.009755702336
AA177: 4 | AB177: =+メイン!Z29 -> 0 | AC177: 0 | AE177: 0 | AH177: =+AI177 ->  | AL177: 9 | AM177: 0 | CU177: =IFERROR(LEFT('9'!A203,FIND("-",'9'!A203)-1)*1,"") -> 11 | CV177: =IFERROR(MID('9'!A203,FIND("-",'9'!A203)+1,LEN('9'!A203))*1,"") -> 11 | CW177: =+'9'!B203 -> 0
AA178: 5 | AB178: =+メイン!Z30 -> 0 | AC178: 0 | AE178: 0 | AH178: =+AJ169 ->  | AL178: 10 | AM178: 0 | CU178: =IFERROR(LEFT('9'!A204,FIND("-",'9'!A204)-1)*1,"") -> 11 | CV178: =IFERROR(MID('9'!A204,FIND("-",'9'!A204)+1,LEN('9'!A204))*1,"") -> 12 | CW178: =+'9'!B204 -> 93.3 | CX178: 10.71811361 | CY178: 0.008030417357
AA179: 6 | AB179: =+メイン!Z31 -> 0 | AC179: 0 | AE179: 0 | AH179: =+AJ170 ->  | AL179: 11 | AM179: 0 | CU179: =IFERROR(LEFT('9'!A205,FIND("-",'9'!A205)-1)*1,"") -> 11 | CV179: =IFERROR(MID('9'!A205,FIND("-",'9'!A205)+1,LEN('9'!A205))*1,"") -> 13 | CW179: =+'9'!B205 -> 87.8 | CX179: 11.38952164 | CY179: 0.008533461724
AA180: 7 | AB180: =+メイン!Z32 -> 0 | AC180: 0 | AE180: 0 | AH180: =+AJ171 ->  | AJ180: =IFERROR(IF(AG191="","",MID(AG191,SEARCH("-",AG191,1)+1,SEARCH("-",AG191,SEARCH("-",AG191,1)+1)-(SEARCH("-",AG191,1)+1)))*1,"") ->  | AK180: =IFERROR(TRIM(MID(SUBSTITUTE(AG191,"-",REPT(" ",100)),100*2,100))*1,"") ->  | AL180: 12 | AM180: 0 | CU180: =IFERROR(LEFT('9'!A206,FIND("-",'9'!A206)-1)*1,"") -> 11 | CV180: =IFERROR(MID('9'!A206,FIND("-",'9'!A206)+1,LEN('9'!A206))*1,"") -> 14 | CW180: =+'9'!B206 -> 0
AA181: 8 | AB181: =+メイン!Z33 -> 0 | AC181: 0 | AE181: 0 | AH181: =+AJ172 ->  | AL181: 13 | AM181: 0 | CU181: =IFERROR(LEFT('9'!A207,FIND("-",'9'!A207)-1)*1,"") -> 11 | CV181: =IFERROR(MID('9'!A207,FIND("-",'9'!A207)+1,LEN('9'!A207))*1,"") -> 15 | CW181: =+'9'!B207 -> 0
AA182: 9 | AB182: =+メイン!Z34 -> 0 | AC182: 0 | AE182: 0 | AH182: =+AK169 ->  | AL182: 14 | AM182: 0 | CU182: =IFERROR(LEFT('9'!A208,FIND("-",'9'!A208)-1)*1,"") -> 11 | CV182: =IFERROR(MID('9'!A208,FIND("-",'9'!A208)+1,LEN('9'!A208))*1,"") -> 16 | CW182: =+'9'!B208 -> 0
AA183: 10 | AB183: =+メイン!Z35 -> 0 | AC183: 0 | AE183: 0 | AH183: =+AK170 ->  | AL183: 15 | AM183: 0 | CU183: =IFERROR(LEFT('9'!A209,FIND("-",'9'!A209)-1)*1,"") -> 12 | CV183: =IFERROR(MID('9'!A209,FIND("-",'9'!A209)+1,LEN('9'!A209))*1,"") -> 1 | CW183: =+'9'!B209 -> 181.1 | CX183: 5.521811154 | CY183: 0.004137150411
AA184: 11 | AB184: =+メイン!Z36 -> 0 | AC184: 0 | AE184: 0 | AH184: =+AK171 ->  | AL184: 16 | AM184: 0 | CU184: =IFERROR(LEFT('9'!A210,FIND("-",'9'!A210)-1)*1,"") -> 12 | CV184: =IFERROR(MID('9'!A210,FIND("-",'9'!A210)+1,LEN('9'!A210))*1,"") -> 2 | CW184: =+'9'!B210 -> 433.6 | CX184: 2.306273063 | CY184: 0.001727947277
AA185: 12 | AB185: =+メイン!Z37 -> 0 | AC185: =IF(TYPE(100/AB185)=16,0,100/AB185) -> 0 | AD185: =AC185/$AC$173 ->  | AE185: =IF(AC185=0,0,IF(FLOOR($Y$136*AD185,100)=0,100,FLOOR($Y$136*AD185,100))) -> 0 | AF185: =IF(AE185=0,"",AB185*AE185) ->  | AG185: =+INDEX($AH$3:$AH$52,MATCH(AB185,$AI$3:$AI$52,0)) ->  | AH185: =+AK172 ->  | AI185: =+IFERROR(IF(AG185="","",LEFT(AG185,FIND("-",SUBSTITUTE(AG185,"-","-",4))-1))*1,"") ->  | CU185: =IFERROR(LEFT('9'!A211,FIND("-",'9'!A211)-1)*1,"") -> 12 | CV185: =IFERROR(MID('9'!A211,FIND("-",'9'!A211)+1,LEN('9'!A211))*1,"") -> 3 | CW185: =+'9'!B211 -> 227.1 | CX185: 4.403346543 | CY185: 0.003299154291
AA186: 13 | AB186: =+メイン!Z38 -> 0 | AC186: 0 | AE186: 0 | CU186: =IFERROR(LEFT('9'!A212,FIND("-",'9'!A212)-1)*1,"") -> 12 | CV186: =IFERROR(MID('9'!A212,FIND("-",'9'!A212)+1,LEN('9'!A212))*1,"") -> 4 | CW186: =+'9'!B212 -> 179.6 | CX186: 5.567928731 | CY186: 0.004171703449 | DO186: 現最新頭
AA187: 14 | AB187: =+メイン!Z39 -> 0 | AC187: 0 | AE187: 0 | CU187: =IFERROR(LEFT('9'!A213,FIND("-",'9'!A213)-1)*1,"") -> 12 | CV187: =IFERROR(MID('9'!A213,FIND("-",'9'!A213)+1,LEN('9'!A213))*1,"") -> 5 | CW187: =+'9'!B213 -> 170.3 | CX187: 5.871990605 | CY187: 0.004399518141
AA188: 15 | AB188: =+メイン!Z40 -> 0 | AC188: 0 | AE188: 0 | CU188: =IFERROR(LEFT('9'!A214,FIND("-",'9'!A214)-1)*1,"") -> 12 | CV188: =IFERROR(MID('9'!A214,FIND("-",'9'!A214)+1,LEN('9'!A214))*1,"") -> 6 | CW188: =+'9'!B214 -> 261.8 | CX188: 3.819709702 | CY188: 0.002861871426
AA189: 16 | AB189: =+メイン!Z41 -> 0 | AC189: 0 | AE189: 0 | CU189: =IFERROR(LEFT('9'!A215,FIND("-",'9'!A215)-1)*1,"") -> 12 | CV189: =IFERROR(MID('9'!A215,FIND("-",'9'!A215)+1,LEN('9'!A215))*1,"") -> 7 | CW189: =+'9'!B215 -> 397.5 | CX189: 2.51572327 | CY189: 0.001884875319
AA190: 17 | AB190: =+メイン!Z42 -> 0 | AC190: 0 | AE190: 0 | CU190: =IFERROR(LEFT('9'!A216,FIND("-",'9'!A216)-1)*1,"") -> 12 | CV190: =IFERROR(MID('9'!A216,FIND("-",'9'!A216)+1,LEN('9'!A216))*1,"") -> 8 | CW190: =+'9'!B216 -> 86.3 | CX190: 11.58748552 | CY190: 0.008681783771
AA191: 18 | AB191: =+メイン!Z43 -> 0 | AC191: 0 | AE191: 0 | CU191: =IFERROR(LEFT('9'!A217,FIND("-",'9'!A217)-1)*1,"") -> 12 | CV191: =IFERROR(MID('9'!A217,FIND("-",'9'!A217)+1,LEN('9'!A217))*1,"") -> 9 | CW191: =+'9'!B217 -> 543.4 | CX191: 1.840264998 | CY191: 0.001378796355
AA192: 19 | AB192: =+メイン!Z44 -> 0 | AC192: 0 | AE192: 0 | CU192: =IFERROR(LEFT('9'!A218,FIND("-",'9'!A218)-1)*1,"") -> 12 | CV192: =IFERROR(MID('9'!A218,FIND("-",'9'!A218)+1,LEN('9'!A218))*1,"") -> 10 | CW192: =+'9'!B218 -> 165.7 | CX192: 6.035003018 | CY192: 0.004521653225
AB193: TOTAL | AE193: =SUM(AE174:AE192) -> 0 | AH193: =IFERROR(INDEX($AH$174:$AH$191,MATCH(0,INDEX(COUNTIF($AH$192:AH192,$AH$174:$AH$191&""),),0)),"") ->  | AI193: =+IF(OR(AH193=$M$3,AH193=$M$4,AH193=$M$5),"",AH193) ->  | CU193: =IFERROR(LEFT('9'!A219,FIND("-",'9'!A219)-1)*1,"") -> 12 | CV193: =IFERROR(MID('9'!A219,FIND("-",'9'!A219)+1,LEN('9'!A219))*1,"") -> 11 | CW193: =+'9'!B219 -> 132.1 | CX193: 7.57002271 | CY193: 0.005671748217
X194: 枠-馬連比較 | AH194: =IFERROR(INDEX($AH$174:$AH$191,MATCH(0,INDEX(COUNTIF($AH$192:AH193,$AH$174:$AH$191&""),),0)),"") ->  | AI194: =+IF(OR(AH194=$M$3,AH194=$M$4,AH194=$M$5),"",AH194) ->  | CU194: =IFERROR(LEFT('9'!A220,FIND("-",'9'!A220)-1)*1,"") -> 12 | CV194: =IFERROR(MID('9'!A220,FIND("-",'9'!A220)+1,LEN('9'!A220))*1,"") -> 12 | CW194: =+'9'!B220 -> 0
X195: 購入額 | Y195: 1000000 | AC195: =SUM(AC196:AC208) -> 0 | AE195: 個々購入額 | AF195: 払い戻し額 | AH195: =IFERROR(INDEX($AH$174:$AH$191,MATCH(0,INDEX(COUNTIF($AH$192:AH194,$AH$174:$AH$191&""),),0)),"") ->  | CU195: =IFERROR(LEFT('9'!A221,FIND("-",'9'!A221)-1)*1,"") -> 12 | CV195: =IFERROR(MID('9'!A221,FIND("-",'9'!A221)+1,LEN('9'!A221))*1,"") -> 13 | CW195: =+'9'!B221 -> 271.7 | CX195: 3.680529996 | CY195: 0.00275759271
X196: 実際の額 | Y196: =AE209 -> 0 | AA196: 1 | AB196: =+メイン!N4 -> 0 | AC196: =IF(TYPE(100/AB196)=16,0,100/AB196) -> 0 | AD196: =AC196/$AC$195 ->  | AE196: =IF(AC196=0,0,IF(FLOOR($Y$136*AD196,100)=0,100,FLOOR($Y$136*AD196,100))) -> 0 | AF196: =IF(AE196=0,"",AB196*AE196) ->  | AG196: =+AG174 ->  | AH196: =IFERROR(INDEX($AH$174:$AH$191,MATCH(0,INDEX(COUNTIF($AH$192:AH195,$AH$174:$AH$191&""),),0)),"") ->  | CU196: =IFERROR(LEFT('9'!A222,FIND("-",'9'!A222)-1)*1,"") -> 12 | CV196: =IFERROR(MID('9'!A222,FIND("-",'9'!A222)+1,LEN('9'!A222))*1,"") -> 14 | CW196: =+'9'!B222 -> 0
W197: 4 | X197: 最低倍率 | Z197: =MIN(AF196:AF208)/AE209 ->  | AA197: 2 | AB197: =+メイン!N5 -> 0 | AC197: =IF(TYPE(100/AB197)=16,0,100/AB197) -> 0 | AE197: =IF(AC197=0,0,IF(FLOOR($Y$136*AD197,100)=0,100,FLOOR($Y$136*AD197,100))) -> 0 | AH197: =IFERROR(INDEX($AH$174:$AH$191,MATCH(0,INDEX(COUNTIF($AH$192:AH196,$AH$174:$AH$191&""),),0)),"") ->  | CU197: =IFERROR(LEFT('9'!A223,FIND("-",'9'!A223)-1)*1,"") -> 12 | CV197: =IFERROR(MID('9'!A223,FIND("-",'9'!A223)+1,LEN('9'!A223))*1,"") -> 15 | CW197: =+'9'!B223 -> 0
AA198: 3 | AB198: =+メイン!N6 -> 0 | AC198: 0 | AE198: 0 | AH198: =IFERROR(INDEX($AH$174:$AH$191,MATCH(0,INDEX(COUNTIF($AH$192:AH197,$AH$174:$AH$191&""),),0)),"") ->  | CU198: =IFERROR(LEFT('9'!A224,FIND("-",'9'!A224)-1)*1,"") -> 12 | CV198: =IFERROR(MID('9'!A224,FIND("-",'9'!A224)+1,LEN('9'!A224))*1,"") -> 16 | CW198: =+'9'!B224 -> 0
AA199: 4 | AB199: =+メイン!N7 -> 0 | AC199: 0 | AE199: 0 | AH199: =IFERROR(INDEX($AH$174:$AH$191,MATCH(0,INDEX(COUNTIF($AH$192:AH198,$AH$174:$AH$191&""),),0)),"") ->  | CU199: =IFERROR(LEFT('9'!A225,FIND("-",'9'!A225)-1)*1,"") -> 13 | CV199: =IFERROR(MID('9'!A225,FIND("-",'9'!A225)+1,LEN('9'!A225))*1,"") -> 1 | CW199: =+'9'!B225 -> 296.1 | CX199: 3.37723742 | CY199: 0.002530354405
AA200: 5 | AB200: =+メイン!N8 -> 0 | AC200: 0 | AE200: 0 | AI200: =IFERROR(INDEX($AI$193:$AI$198,MATCH(0,INDEX(COUNTIF($AI$199:AI199,$AI$193:$AI$198&""),),0)),"") ->  | CU200: =IFERROR(LEFT('9'!A226,FIND("-",'9'!A226)-1)*1,"") -> 13 | CV200: =IFERROR(MID('9'!A226,FIND("-",'9'!A226)+1,LEN('9'!A226))*1,"") -> 2 | CW200: =+'9'!B226 -> 572.4 | CX200: 1.747030049 | CY200: 0.001308941194
... 217 more rows

Sheet メイン
A1: =+st!A2&st!B2&"R" -> 大井2R | C1: =+F65 -> 0 | D1: =+st!C1 ->  | E1: =+IF(st!M19<8,"７頭以下レース","８頭以上") -> ８頭以上 | F1: ◇連単指数 | I1: ■1位安定度 | J1: =+IF(AND(作業ページ!AX13<1.5,作業ページ!BF133<4),"",IF(AND(Sheet11!BD29<=1,作業ページ!BB76<=4,作業ページ!AX1=1,作業ページ!BK33>24.9,N25>2.49,D27>E27,作業ページ!AZ31>21.9%,OR(S41<-4%,S41>14%,D59>4,作業ページ!AZ31>21.9%,T41>34%)),"単/馬単",IF(AND(N25>2.99,M24<36%,F25>2.9,各データ整理!BA4>74.9%,作業ページ!AZ31>21.9%,OR(S41<-4%,S41>14%,D59>4,T41>34%)),"単/馬単",IF(AND(st!A4<79%,メイン!N25>2.29,Sheet11!BC28>=2,作業ページ!AZ31>21.9%,OR(S41<-4%,S41>14%,D59>4,T41>34%)),"単/馬単",IF(Q40="確","確",""))))) -> 
A2: MAX | B2: 発走時間 | E2: =+st!A9 -> 15:00:00 | F2: =+作業ページ!BH70*3 -> 0 | G2: =+IFERROR(st!Z261,"") ->  | I2: ■馬券範囲 | J2: =+IF(AND(作業ページ!AX13<1.5,作業ページ!BF133<4),"",IF(作業ページ!BI66="V","Ｖレース",IF(AND(作業ページ!BI66="",作業ページ!BJ67="F"),"参考レース",IF(作業ページ!BI59="Z","三つ巴",IF(作業ページ!BI57="Y","上位４頭",IF(OR(Sheet11!BD30>4,Sheet11!AW50>3),"",IF(AND(作業ページ!BI66="",作業ページ!BJ67="",作業ページ!AX89>=1),"参考レース",""))))))) ->  | AM2: 累積損失金額 | AO2: 係数 | AQ2: 合成オッズ
A3: 15 | C3: 枠番 | D3: 馬番 | E3: 馬 名 | F3: 単 | G3: 複 | I3: ■アタマ候補 | J3: =+作業ページ!BI66 ->  | K3: Odds | AN3: =+E21 -> 0 | AP3: 1.1 | AR3: =IFERROR(1/SUM(AQ7:AQ16),"") -> 
A4: =+COUNTIF(st!$S$3:$V$7,メイン!D4)+COUNTIF(各データ整理!$AO$3:$AP$7,メイン!D4) -> 0 | B4: 1 | C4: =+st!L3 -> 6 | D4: =+st!M3 -> 8 | E4: =+st!N3 -> プリズムムーン | F4: =+st!O3 -> 2.100392999 | G4: =+st!P3 -> 1.3-1.5 | I4: シグナル数 | J4: 馬番 | K4: =+IF(作業ページ!BI59="Z","三つ巴","") -> 
A5: =+COUNTIF(st!$S$3:$V$7,メイン!D5)+COUNTIF(各データ整理!$AO$3:$AP$7,メイン!D5) -> 0 | B5: 2 | C5: =+st!L4 -> 7 | D5: =+st!M4 -> 11 | E5: =+st!N4 -> エコロタイタン | F5: =+st!O4 -> 5.4005116 | G5: =+st!P4 -> 1.6-2.2
A6: =+COUNTIF(st!$S$3:$V$7,メイン!D6)+COUNTIF(各データ整理!$AO$3:$AP$7,メイン!D6) -> 0 | B6: 3 | C6: =+st!L5 -> 1 | D6: =+st!M5 -> 1 | E6: =+st!N5 -> カリスマパラダイス | F6: =+st!O5 -> 9.10065 | G6: =+st!P5 -> 1.8-2.6 | I6: ■アタマ単候補 | AK6: オッズ昇順 | AL6: 比率数値 | AM6: 金額計算 | AN6: 投票金額 | AO6: 想定回収金額 | AP6: 想定利益 | AQ6: 合成オッズ | AR6: 想定回収率
A7: =+COUNTIF(st!$S$3:$V$7,メイン!D7)+COUNTIF(各データ整理!$AO$3:$AP$7,メイン!D7) -> 0 | B7: 4 | C7: =+st!L6 -> 4 | D7: =+st!M6 -> 5 | E7: =+st!N6 -> タツノレジェンド | F7: =+st!O6 -> 9.300600999 | G7: =+st!P6 -> 2.1-3 | I7: シグナル数 | J7: 単勝 | AK7: =IF(AJ7="","",SMALL(AJ7:AJ16,AI7)) ->  | AL7: =SUM(AL8:AL16)+1 -> 1 | AM7: =IF(OR(AK7=0,AK7=""),"",ROUNDUP(((AI3+AN3)*AP3)/(AK7-AL7),-2)) ->  | AN7: =IFERROR(VLOOKUP(AJ7,AK7:AM16,3,FALSE),"") ->  | AO7: =IF(AK7="","",AM7*AK7) ->  | AP7: =IF(AJ7="","",AO7-AM17) ->  | AQ7: =IFERROR(1/AJ7,"") ->  | AR7: =IFERROR(AO7/AM17,"") -> 
A8: =+COUNTIF(st!$S$3:$V$7,メイン!D8)+COUNTIF(各データ整理!$AO$3:$AP$7,メイン!D8) -> 0 | B8: 5 | C8: =+st!L7 -> 4 | D8: =+st!M7 -> 4 | E8: =+st!N7 -> マルカンブロンド | F8: =+st!O7 -> 10.000767 | G8: =+st!P7 -> 2.7-4.1 | J8: =+IF(I8>=1,C4,"") ->  | K8: =+IF(J8="","",INDEX(F4:F19,MATCH(J8,D4:D19,0))) ->  | AK8: =IF(AJ8="","",SMALL(AJ7:AJ16,AI8)) ->  | AL8: =IFERROR(AK7/AK8,"") ->  | AM8: =IF(AK8="","",ROUNDUP((AM7*AK7)/AK8,-2)) ->  | AN8: =IFERROR(VLOOKUP(AJ8,AK7:AM16,3,FALSE),"") ->  | AO8: =IF(AK8="","",AM8*AK8) ->  | AP8: =IF(AJ8="","",AO8-AM17) ->  | AQ8: =IFERROR(1/AJ8,"") ->  | AR8: =IFERROR(AO8/AM17,"") -> 
A9: =+COUNTIF(st!$S$3:$V$7,メイン!D9)+COUNTIF(各データ整理!$AO$3:$AP$7,メイン!D9) -> 0 | B9: 6 | C9: =+st!L8 -> 3 | D9: =+st!M8 -> 3 | E9: =+st!N8 -> サファイアサーラ | F9: =+st!O8 -> 12.800902 | G9: =+st!P8 -> 3.2-5 | I9: ■2位以降推奨馬 | J9: 馬番 | AK9: =IF(AJ9="","",SMALL(AJ7:AJ16,AI9)) ->  | AL9: =IFERROR(AK7/AK9,"") ->  | AM9: =IF(AK9="","",ROUNDUP((AM7*AK7)/AK9,-2)) ->  | AN9: =IFERROR(VLOOKUP(AJ9,AK7:AM16,3,FALSE),"") ->  | AP9: =IF(AJ9="","",AO9-AM17) ->  | AR9: =IFERROR(AO9/AM17,"") -> 
A10: =+COUNTIF(st!$S$3:$V$7,メイン!D10)+COUNTIF(各データ整理!$AO$3:$AP$7,メイン!D10) -> 0 | B10: 7 | C10: =+st!L9 -> 5 | D10: =+st!M9 -> 6 | E10: =+st!N9 -> ラムリケティ | F10: =+st!O9 -> 21.501576 | G10: =+st!P9 -> 5.6-8.8 | J10: =+IF(作業ページ!BT30>=1,作業ページ!BV33,"") ->  | AK10: =IF(AJ10="","",SMALL(AJ7:AJ16,AI10)) ->  | AL10: =IFERROR(AK7/AK10,"") ->  | AM10: =IF(AK10="","",ROUNDUP((AM7*AK7)/AK10,-2)) ->  | AN10: =IFERROR(VLOOKUP(AJ10,AK7:AM16,3,FALSE),"") ->  | AP10: =IF(AJ10="","",AO10-AM17) ->  | AR10: =IFERROR(AO10/AM17,"") -> 
A11: =+COUNTIF(st!$S$3:$V$7,メイン!D11)+COUNTIF(各データ整理!$AO$3:$AP$7,メイン!D11) -> 0 | B11: 8 | C11: =+st!L10 -> 8 | D11: =+st!M10 -> 12 | E11: =+st!N10 -> リヤンフォルス | F11: =+st!O10 -> 22.1012744 | G11: =+st!P10 -> 4.4-6.9 | I11: ■1位飛び | J11: 馬番 | AK11: =IF(AJ11="","",SMALL(AJ7:AJ16,AI11)) ->  | AL11: =IFERROR(AK7/AK11,"") ->  | AM11: =IF(AK11="","",ROUNDUP((AM7*AK7)/AK11,-2)) ->  | AN11: =IFERROR(VLOOKUP(AJ11,AK7:AM16,3,FALSE),"") ->  | AP11: =IF(AJ11="","",AO11-AM17) ->  | AR11: =IFERROR(AO11/AM17,"") -> 
A12: =+COUNTIF(st!$S$3:$V$7,メイン!D12)+COUNTIF(各データ整理!$AO$3:$AP$7,メイン!D12) -> 0 | B12: 9 | C12: =+st!L11 -> 7 | D12: =+st!M11 -> 10 | E12: =+st!N11 -> ベルムフェリクス | F12: =+st!O11 -> 26.7010838 | G12: =+st!P11 -> 3.8-5.8 | I12: シグナル数 | AK12: =IF(AJ12="","",SMALL(AJ7:AJ16,AI12)) ->  | AL12: =IFERROR(AK7/AK12,"") ->  | AM12: =IF(AK12="","",ROUNDUP((AM7*AK7)/AK12,-2)) ->  | AN12: =IFERROR(VLOOKUP(AJ12,AK7:AM16,3,FALSE),"") ->  | AP12: =IF(AJ12="","",AO12-AM17) ->  | AR12: =IFERROR(AO12/AM17,"") -> 
A13: =+COUNTIF(st!$S$3:$V$7,メイン!D13)+COUNTIF(各データ整理!$AO$3:$AP$7,メイン!D13) -> 0 | B13: 10 | C13: =+st!L12 -> 8 | D13: =+st!M12 -> 13 | E13: =+st!N12 -> アスランラリー | F13: =+st!O12 -> 30.0011138 | G13: =+st!P12 -> 3.8-5.8 | I13: =+IFERROR(IF(AND(U48=0,OR(Sheet11!BD30>9,作業ページ!BB87>8)),0,作業ページ!AX70),0) -> 12 | AK13: =IF(AJ13="","",SMALL(AJ7:AJ16,AI13)) ->  | AL13: =IFERROR(AK7/AK13,"") ->  | AM13: =IF(AK13="","",ROUNDUP((AM7*AK7)/AK13,-2)) ->  | AN13: =IFERROR(VLOOKUP(AJ13,AK7:AM16,3,FALSE),"") ->  | AP13: =IF(AJ13="","",AO13-AM17) ->  | AR13: =IFERROR(AO13/AM17,"") -> 
B14: 11 | C14: =+st!L13 -> 5 | D14: =+st!M13 -> 7 | E14: =+st!N13 -> セイジョーベリー | F14: =+st!O13 -> 37.101067 | G14: =+st!P13 -> 3.7-5.7 | I14: =+IF(作業ページ!AX70>=1,"1位飛ぶ","") -> 1位飛ぶ | AK14: =IF(AJ14="","",SMALL(AJ7:AJ16,AI14)) ->  | AL14: =IFERROR(AK7/AK14,"") ->  | AM14: =IF(AK14="","",ROUNDUP((AM7*AK7)/AK14,-2)) ->  | AN14: =IFERROR(VLOOKUP(AJ14,AK7:AM16,3,FALSE),"") ->  | AP14: =IF(AJ14="","",AO14-AM17) ->  | AR14: =IFERROR(AO14/AM17,"") -> 
B15: 12 | C15: =+st!L14 -> 2 | D15: =+st!M14 -> 2 | E15: =+st!N14 -> シャイネス | F15: =+st!O14 -> 60.802585 | G15: =+st!P14 -> 9.5-15 | I15: =+IF(作業ページ!CA102>=7,"ヒモ範囲い","") -> ヒモ範囲い | AK15: =IF(AJ15="","",SMALL(AJ7:AJ16,AI15)) ->  | AL15: =IFERROR(AK7/AK15,"") ->  | AM15: =IF(AK15="","",ROUNDUP((AM7*AK7)/AK15,-2)) ->  | AN15: =IFERROR(VLOOKUP(AJ15,AK7:AM16,3,FALSE),"") ->  | AP15: =IF(AJ15="","",AO15-AM17) ->  | AR15: =IFERROR(AO15/AM17,"") -> 
B16: 13 | C16: =+st!L15 -> 6 | D16: =+st!M15 -> 9 | E16: =+st!N15 -> サカベンクイーン | F16: =+st!O15 -> 158.406831 | G16: =+st!P15 -> 25.1-39.6 | AK16: =IF(AJ16="","",SMALL(AJ7:AJ16,AI16)) ->  | AL16: =IFERROR(AK7/AK16,"") ->  | AM16: =IF(AK16="","",ROUNDUP((AM7*AK7)/AK16,-2)) ->  | AN16: =IFERROR(VLOOKUP(AJ16,AK7:AM16,3,FALSE),"") ->  | AP16: =IF(AJ16="","",AO16-AM17) ->  | AR16: =IFERROR(AO16/AM17,"") -> 
B17: 14 | C17: =+st!L16 ->  | D17: =+st!M16 ->  | E17: =+st!N16 ->  | F17: =+st!O16 ->  | G17: =+st!P16 ->  | AM17: =SUM(AM7:AM16) -> 0 | AN17: =SUM(AN7:AN16) -> 0 | AO17: =IF(AJ17="","",AM17*AJ17) -> 
B18: 15 | C18: =+st!L17 ->  | D18: =+st!M17 ->  | E18: =+st!N17 ->  | F18: =+st!O17 ->  | G18: =+st!P17 -> 
B19: 16 | C19: =+st!L18 ->  | D19: =+st!M18 ->  | E19: =+st!N18 ->  | F19: =+st!O18 ->  | G19: =+st!P18 ->  | H19: =+IFERROR(INDEX(作業ページ!$BS$20:$BS$28,MATCH(メイン!J19,作業ページ!$BI$20:$BI$29,0)),"") -> 
A20: ◇ | B20: 希望回収額 | E20: 3000 | F20: ←入力可 | J20: 回収率 | K20: =+IFERROR(IF(I13=0,"",作業ページ!BB15),"") -> 
A21: ◇ | B21: 損失金 | F21: ←入力可 | I21: MAX | J21: =+MAX(K5,K8,K20,N20,P20,R20,AC20,U20,Z20,W20) -> 0
A22: ◇ | B22: 次レース回収率 | E22: =+G2 ->  | F22: ←入力可 | J22: =+IFERROR(SMALL((K5,K8,K20,N20,P20,R20,AC20,U20,Z20,W20),2),"") -> 
A23: ◆ | B23: 投資金額 | E23: =+AN17 -> 0 | F23: =+SUM(1/D28)/(1/D27) -> 
A24: ◇ | B24: 想定回収額 | E24: =+AO7 ->  | F24: 1-21位ｵｯｽﾞ差 | I24: ~30%小ほど1位安定→
A25: ◆ | B25: 想定利益 | E25: =+MROUND(AP7,10) ->  | F25: =+D28/D27 ->  | G25: 小 | I25: .-59%以下 | J25: 6以下 | K25: =+作業ページ!BJ70 -> 
F65: =+COUNTIF(F53:F64,"〇") -> 0
E66: 3以上なら単多点

Sheet 各データ整理
C1: 各オッズ | J1: =INDIRECT("'3'!f1",TRUE) -> 0 | L1: ①単 | M1: ➄表 | N1: ⑥裏 | O1: 複勝小 | P1: 複勝大 | R1: 馬単 | S1: ワイド | T1: ワイド | AO1: =SUMPRODUCT(1/COUNTIFS(AN3:AO12,AO3:AO12)) ->  | AP1: =SUMPRODUCT(1/COUNTIFS($AP$3:$AP$12,$AP$3:$AP$12)) ->  | AQ1: =SUMPRODUCT(1/COUNTIFS($AQ$3:$AQ$12,$AQ$3:$AQ$12)) ->  | AR1: 1位数
C2: =+st!A2 -> 大井 | D2: =+st!B2&"R" -> 2R | E2: =+NOW() -> 44771.95607 | F2: 表 | G2: 裏 | H2: 小 | I2: 大 | K2: 馬単 | L2: 得票率 | M2: 馬単 | N2: 馬単 | O2: 得票率 | P2: 得票率 | Q2: 馬連 | R2: 裏表 | S2: 小 | T2: 大 | U2: 馬単 | V2: 馬連 | AO2: ３連単オッズ | AR2: =+COUNTIF(AO3:AO19,D4) -> 0
C3: 枠番 | D3: 単順位 | E3: 単勝 | F3: 馬単 | G3: 馬単 | H3: 複勝 | I3: 複勝 | J3: 馬連 | K3: 裏表 | L3: A | M3: 得票a | N3: 得票b | O3: B | P3: C | Q3: 得票c | R3: 得票d | S3: 得票e | T3: 得票f | U3: 期待値 | V3: 期待値
A4: １位 | B4: 1
A5: ２位 | B5: 2
A6: ３位 | B6: 3
A7: ４位 | B7: 4
A8: ５位 | B8: 5
A9: ６位 | B9: 6
A10: ７位 | B10: 7
A11: ８位 | B11: 8
A12: ９位 | B12: 9
A13: １０位 | B13: 10
A14: =+IFERROR(INDEX(st!$DF$3:$DF$18,MATCH(各データ整理!D14,st!$CL$3:$CL$18,0)),"") ->  | B14: 11
A15: =+IFERROR(INDEX(st!$DF$3:$DF$18,MATCH(各データ整理!D15,st!$CL$3:$CL$18,0)),"") ->  | B15: 12
A16: =+IFERROR(INDEX(st!$DF$3:$DF$18,MATCH(各データ整理!D16,st!$CL$3:$CL$18,0)),"") ->  | B16: 13
A17: =+IFERROR(INDEX(st!$DF$3:$DF$18,MATCH(各データ整理!D17,st!$CL$3:$CL$18,0)),"") ->  | B17: 14
A18: =+IFERROR(INDEX(st!$DF$3:$DF$18,MATCH(各データ整理!D18,st!$CL$3:$CL$18,0)),"") ->  | B18: 15
A19: =+IFERROR(INDEX(st!$DF$3:$DF$18,MATCH(各データ整理!D19,st!$CL$3:$CL$18,0)),"") ->  | B19: 16
A20: =+MIN(A4:A8) -> 0
A21: =+INDEX(D4:D19,MATCH(A20,A4:A19,0)) ->  | D21: =+COUNTIF(E4:E19,"<30")/st!M19 -> 0 | E21: =+COUNTIF(L4:L19,">"&E20) -> 0 | F21: =+COUNTIF(M4:M19,">"&F20) -> 0 | G21: =+COUNTIF(AI4:AI19,">"&G20) -> 0 | K21: =+COUNTIF(AE4:AE19,">"&K20) -> 0 | L21: =+COUNTIF(AD4:AD19,">"&L20) -> 0 | M21: =+COUNTIF(AA4:AA19,">"&M20) -> 0 | N21: =+COUNTIF(P4:P19,">3%")/st!M19 -> 0 | O21: =SUM(O4:O6) -> 0 | P21: =SUM(P4:P6) -> 0 | Q21: =SUM(P21-O21) -> 0 | R21: =+COUNTIF(U4:U19,"<20")/st!M19 -> 0 | S21: =+COUNTIF(V4:V19,"<20")/st!M19 -> 0 | T21: 枠連 | U21: =+LARGE(V4:V19,2) ->  | V21: =+MAX(V4:V19) -> 0 | Y21: =+st!AW25 -> 0 | Z21: =+st!AX25 -> 0
A22: 1 | C22: 1 | D22: 2 | E22: 3 | F22: 4 | G22: 5 | H22: 6 | J22: 7 | K22: 8 | L22: 9 | M22: 10 | N22: 11 | O22: 12 | P22: 13 | Q22: 14 | R22: 15 | S22: 16 | T22: 馬連 | U22: =+U21*0.9 ->  | V22: =+IF(V21>U22,"","飛") -> 
A23: 2 | B23: 馬単得票表 | C23: =+馬①!I3 -> 0.1091183957 | D23: =+馬②!I3 -> 0.01893667785 | E23: =+馬③!I3 -> 0.06286201332 | F23: =+馬④!I3 -> 0.1041659192 | G23: =+馬5!I3 -> 0.07417541362 | H23: =+馬⑥!I3 -> 0.04039384275 | J23: =+馬⑦!I3 -> 0.02280619033 | K23: =+馬⑧!I3 -> 0.291497946 | L23: =+馬9!I3 -> 0.0101368837 | M23: =+馬10!I3 -> 0.05023780008 | N23: =+馬11!I3 -> 0.1358987195 | O23: =+馬12!I3 -> 0.04561984699 | P23: =+馬13!I3 -> 0.03411429035 | Q23: =+馬14!I3 -> 1.202023052e-05 | R23: =+馬15!I3 -> 1.202023052e-05 | S23: =+馬16!I3 -> 1.202023052e-05 | U23: =SUM(U4:U19) -> 0 | V23: =SUM(V4:V19) -> 0
A24: 3 | B24: 馬単得票裏 | C24: =+'01'!I3 -> 0.10724418 | D24: =+'01 (2)'!I3 -> 0.02707272491 | E24: =+'01 (3)'!I3 -> 0.07230743578 | F24: =+'01 (4)'!I3 -> 0.1017959551 | G24: =+'01 (5)'!I3 -> 0.09751882069 | H24: =+'01 (6)'!I3 -> 0.05390909424 | J24: =+'01 (7)'!I3 -> 0.03645006066 | K24: =+'01 (8)'!I3 -> 0.1535386512 | L24: =+'01 (9)'!I3 -> 0.01792410632 | M24: =+'01 (10)'!I3 -> 0.06555604337 | N24: =+'01 (11)'!I3 -> 0.1514553376 | O24: =+'01 (12)'!I3 -> 0.06148504739 | P24: =+'01 (13)'!I3 -> 0.05370882925 | Q24: =+'01 (14)'!I3 -> 1.123786183e-05 | R24: =+'01 (15)'!I3 -> 1.123786183e-05 | S24: =+'01 (16)'!I3 -> 1.123786183e-05
A25: 4 | B25: 馬連得票 | C25: =+'1-2345(u)'!BT22 ->  | D25: =+'1-2345(u) (2)'!BT22 ->  | E25: =+'1-2345(u) (3)'!BT22 ->  | F25: =+'1-2345(u) (4)'!BT22 ->  | G25: =+'1-2345(u) (5)'!BT22 ->  | H25: =+'1-2345(u) (6)'!BT22 ->  | J25: =+'1-2345(u) (7)'!BT22 ->  | K25: =+'1-2345(u) (8)'!BT22 ->  | L25: =+'1-2345(u) (9)'!BT22 ->  | M25: =+'1-2345(u) (10)'!BT22 ->  | N25: =+'1-2345(u) (11)'!BT22 ->  | O25: =+'1-2345(u) (12)'!BT22 ->  | P25: =+'1-2345(u) (13)'!BT22 ->  | Q25: =+'1-2345(u) (14)'!BT22 ->  | R25: =+'1-2345(u) (15)'!BT22 ->  | S25: =+'1-2345(u) (16)'!BT22 ->  | V25: 大 | W25: 小
A26: 5 | B26: 馬単期待値 | C26: =+馬①!G3 -> 0.1452453368 | D26: =+馬②!G3 -> 0.0252044189 | E26: =+馬③!G3 -> 0.08367296208 | F26: =+馬④!G3 -> 0.1386521484 | G26: =+馬5!G3 -> 0.09873210794 | H26: =+馬⑥!G3 -> 0.05376582108 | J26: =+馬⑦!G3 -> 0.03035508548 | K26: =+馬⑧!G3 -> 0.3880078012 | L26: =+馬9!G3 -> 0.01349110723 | M26: =+馬10!G3 -> 0.06686900717 | N26: =+馬11!G3 -> 0.1808913387 | O26: =+馬12!G3 -> 0.06072209931 | P26: =+馬13!G3 -> 0.0454071762 | Q26: =+馬14!G3 -> 1.401e-05 | R26: =+馬15!G3 -> 1.401e-05 | S26: =+馬16!G3 -> 1.401e-05 | T26: =+st!M3 -> 8 | U26: =+INDEX($C$33:$S$33,MATCH(T26,$C$22:$S$22,0)) -> 2.893290533 | V26: =+INDEX($C$25:$S$25,MATCH(T26,$C$22:$S$22,0)) ->  | W26: =IFERROR(SUM(U26/V26),"") -> 
A27: 6 | B27: 馬連期待値 | C27: =+'1-2345(u)'!G3 -> 0.001401 | D27: =+'1-2345(u) (2)'!G3 -> 0.001401 | E27: =+'1-2345(u) (3)'!G3 -> 0.001401 | F27: =+'1-2345(u) (4)'!G3 -> 0.001401 | G27: =+'1-2345(u) (5)'!G3 -> 0.001401 | H27: =+'1-2345(u) (6)'!G3 -> 0.001401 | J27: =+'1-2345(u) (7)'!G3 -> 0.001401 | K27: =+'1-2345(u) (8)'!G3 -> 0.001401 | L27: =+'1-2345(u) (9)'!G3 -> 0.001401 | M27: =+'1-2345(u) (10)'!G3 -> 0.001401 | N27: =+'1-2345(u) (11)'!G3 -> 0.001401 | O27: =+'1-2345(u) (12)'!G3 -> 0.001401 | P27: =+'1-2345(u) (13)'!G3 -> 0.001401 | Q27: =+'1-2345(u) (14)'!G3 -> 0.001401 | R27: =+'1-2345(u) (15)'!G3 -> 0.001401 | S27: =+'1-2345(u) (16)'!G3 -> 0.001401 | T27: =+st!M4 -> 11 | U27: =+INDEX($C$33:$S$33,MATCH(T27,$C$22:$S$22,0)) -> 1.894803646 | V27: =+INDEX($C$25:$S$25,MATCH(T27,$C$22:$S$22,0)) ->  | W27: =IFERROR(SUM(U27/V27),"") -> 
A28: 7 | B28: 馬単裏期待値 | C28: =+'01'!F3 -> 0.1431456979 | D28: =+'01 (2)'!F3 -> 0.0361349654 | E28: =+'01 (3)'!F3 -> 0.09651305809 | F28: =+'01 (4)'!F3 -> 0.1358735518 | G28: =+'01 (5)'!F3 -> 0.1301645462 | H28: =+'01 (6)'!F3 -> 0.07195543963 | J28: =+'01 (7)'!F3 -> 0.04865158452 | K28: =+'01 (8)'!F3 -> 0.2049383306 | L28: =+'01 (9)'!F3 -> 0.02392363187 | M28: =+'01 (10)'!F3 -> 0.08750147851 | N28: =+'01 (11)'!F3 -> 0.2021575789 | O28: =+'01 (12)'!F3 -> 0.08206762102 | P28: =+'01 (13)'!F3 -> 0.07168813123 | Q28: =+'01 (14)'!F3 -> 1.401e-05 | R28: =+'01 (15)'!F3 -> 1.401e-05 | S28: =+'01 (16)'!F3 -> 1.401e-05 | T28: =+st!M5 -> 1 | U28: 2.014667845
A29: 8 | B29: 馬単裏表期待値 | C29: =+'1-2345'!G3 -> 0.1454443268 | D29: =+'1-2345 (2)'!G3 -> 0.0254034089 | E29: =+'1-2345 (3)'!G3 -> 0.08387195208 | F29: =+'1-2345 (4)'!G3 -> 0.1388511384 | G29: =+'1-2345 (5)'!G3 -> 0.09893109794 | H29: =+'1-2345 (6)'!G3 -> 0.05489543023 | J29: =+'1-2345 (7)'!G3 -> 0.03055407548 | K29: =+'1-2345 (8)'!G3 -> 0.3882067912 | L29: =+'1-2345 (9)'!G3 -> 0.01645868325 | M29: =+'1-2345 (10)'!G3 -> 0.06706799717 | N29: =+'1-2345 (11)'!G3 -> 0.1810903287 | O29: =+'1-2345 (12)'!G3 -> 0.06092108931 | P29: =+'1-2345 (13)'!G3 -> 0.0456061662 | Q29: =+'1-2345 (14)'!G3 -> 0.001401 | R29: =+'1-2345 (15)'!G3 -> 0.001401 | S29: =+'1-2345 (16)'!G3 -> 0.001401 | T29: =+st!M6 -> 5 | U29: =+INDEX($C$33:$S$33,MATCH(T29,$C$22:$S$22,0)) -> 1.758517667 | V29: =+INDEX($C$25:$S$25,MATCH(T29,$C$22:$S$22,0)) ->  | W29: =IFERROR(SUM(U29/V29),"") -> 
A30: 9 | B30: ３連単得票 | C30: =+IFERROR(VLOOKUP(C22,$D$4:$AC$19,20,FALSE),"") ->  | D30: =+IFERROR(VLOOKUP(D22,$D$4:$AC$19,20,FALSE),"") ->  | T30: =+st!M7 -> 4 | U30: 2.020449871
A31: 10 | B31: ワイド | C31: =+IFERROR(VLOOKUP(C22,$D$4:$AC$19,17,FALSE),"") ->  | D31: =+IFERROR(VLOOKUP(D22,$D$4:$AC$19,17,FALSE),"") ->  | T31: =+st!M8 -> 3 | U31: 1.866960013
A32: 11 | B32: ワイド | C32: =+IFERROR(VLOOKUP(C22,$D$4:$AC$19,16,FALSE),"") ->  | D32: =+IFERROR(VLOOKUP(D22,$D$4:$AC$19,16,FALSE),"") ->  | T32: =+st!M9 -> 6 | U32: 1.747209959
A33: 12 | B33: １円UT往復 | C33: =IF(OR(C26<1%,C28<1%),"",SUM(C28+C26)/C28) -> 2.014667845 | D33: =IF(OR(D26<1%,D28<1%),"",SUM(D28+D26)/D28) -> 1.697507763 | E33: =IF(OR(E26<1%,E28<1%),"",SUM(E28+E26)/E28) -> 1.866960013 | F33: 2.020449871 | G33: 1.758517667 | H33: 1.747209959 | J33: 1.623927993 | K33: 2.893290533 | L33: 1.563923877 | M33: =IF(OR(M26<1%,M28<1%),"",SUM(M28+M26)/M28) -> 1.764204312 | N33: =IF(OR(N26<1%,N28<1%),"",SUM(N28+N26)/N28) -> 1.894803646 | O33: 1.739903247 | P33: 1.633398799 | T33: =+st!M10 -> 12 | U33: =+INDEX($C$33:$S$33,MATCH(T33,$C$22:$S$22,0)) -> 1.739903247
A34: 13 | B34: 各オッズ | C34: =IFERROR(ABS(C30-C31)+ABS(C32-C33),"") ->  | S34: =IFERROR(ABS(S30-S31)+ABS(S32-S33),"") ->  | T34: =+st!M11 -> 10 | U34: 1.764204312
A35: 14 | B35: 単勝 | C35: =+IFERROR(INDEX($E$4:$E$19,MATCH(C22,$D$4:$D$19,0)),"") ->  | J35: =+IFERROR(INDEX($E$4:$E$19,MATCH(J22,$D$4:$D$19,0)),"") ->  | T35: =+st!M12 -> 13 | U35: 1.633398799
A36: 15 | B36: 馬単表 | C36: =+馬①!E3 -> 6.85848 | D36: =+馬②!E3 -> 39.62805 | E36: =+馬③!E3 -> 11.89422 | F36: =+馬④!E3 -> 7.18776 | G36: =+馬5!E3 -> 10.10904 | H36: =+馬⑥!E3 -> 18.57163 | J36: =+馬⑦!E3 -> 32.85216 | K36: =+馬⑧!E3 -> 2.56247 | L36: =+馬9!E3 -> 74.06322 | M36: =+馬10!E3 -> 14.9075 | N36: =+馬11!E3 -> 5.5035 | O36: =+馬12!E3 -> 16.43344 | P36: =+馬13!E3 -> 21.97654 | Q36: =+馬14!E3 -> 100 | R36: =+馬15!E3 -> 100 | S36: =+馬16!E3 -> 100 | T36: =+st!M13 -> 7
A37: 16 | B37: 馬単裏 | C37: =+IFERROR('01'!E3,"") -> 6.9513 | D37: =+'01 (2)'!E3 -> 27.62897 | E37: =+'01 (3)'!E3 -> 10.32993 | F37: =+'01 (4)'!E3 -> 7.29205 | G37: =+'01 (5)'!E3 -> 7.66346 | H37: =+IFERROR('01 (6)'!E3,"") -> 13.84686 | J37: =+'01 (7)'!E3 -> 20.50194 | K37: =+'01 (8)'!E3 -> 4.85814 | L37: =+'01 (9)'!E3 -> 41.71851 | M37: =+'01 (10)'!E3 -> 11.38105 | N37: =+'01 (11)'!E3 -> 4.92492 | O37: =+'01 (12)'!E3 -> 12.1401 | P37: =+'01 (13)'!E3 -> 13.9026 | Q37: =+'01 (14)'!E3 ->  | R37: =+IFERROR('01 (15)'!E3,"") ->  | S37: =+IFERROR('01 (16)'!E3,"") ->  | T37: =+st!M14 -> 2
A38: 17 | B38: 馬連 | C38: =+IFERROR('1-2345(u)'!E3,"") ->  | D38: =+IFERROR('1-2345(u) (2)'!E3,"") ->  | E38: =+IFERROR('1-2345(u) (3)'!E3,"") ->  | F38: =+IFERROR('1-2345(u) (4)'!E3,"") ->  | G38: =+IFERROR('1-2345(u) (5)'!E3,"") ->  | H38: =+IFERROR('1-2345(u) (6)'!E3,"") ->  | J38: =+IFERROR('1-2345(u) (7)'!E3,"") ->  | K38: =+IFERROR('1-2345(u) (8)'!E3,"") ->  | L38: =+IFERROR('1-2345(u) (9)'!E3,"") ->  | M38: =+IFERROR('1-2345(u) (10)'!E3,"") ->  | N38: =+IFERROR('1-2345(u) (11)'!E3,"") ->  | O38: =+IFERROR('1-2345(u) (12)'!E3,"") ->  | P38: =+IFERROR('1-2345(u) (13)'!E3,"") ->  | Q38: =+IFERROR('1-2345(u) (14)'!E3,"") ->  | R38: =+IFERROR('1-2345(u) (15)'!E3,"") ->  | S38: =+IFERROR('1-2345(u) (16)'!E3,"") ->  | T38: =+st!M15 -> 9 | AB38: =+st!BG49 -> 0
B39: 馬単往復 | C39: =+'1-2345'!E3 -> 3.004807692 | D39: =+'1-2345 (2)'!E3 -> 16.0224314 | E39: =+'1-2345 (3)'!E3 -> 5.008514475 | F39: =+'1-2345 (4)'!E3 -> 3.005108685 | G39: =+'1-2345 (5)'!E3 -> 4.006410256 | H39: =+'1-2345 (6)'!E3 -> 7.011920264 | I39: =+INDEX(J42:J49,MATCH(T39,G42:G49,0)) ->  | J39: =+'1-2345 (7)'!E3 -> 12.01802704 | K39: =+'1-2345 (8)'!E3 -> 1.001602564 | L39: =+'1-2345 (9)'!E3 -> 24.03605408 | M39: =+'1-2345 (10)'!E3 -> 6.007810153 | N39: =+'1-2345 (11)'!E3 -> 2.003205128 | O39: =+'1-2345 (12)'!E3 -> 6.01021737 | P39: =+'1-2345 (13)'!E3 -> 8.013623159 | Q39: =+'1-2345 (14)'!E3 ->  | R39: =+'1-2345 (15)'!E3 ->  | S39: =+'1-2345 (16)'!E3 ->  | T39: =+st!M16 ->  | AB39: =+st!BG50 -> 0
C40: =+'1-2345'!BQ2 -> 0.1075829339 | D40: =+'1-2345 (2)'!BQ2 -> 0.025185912 | E40: =+'1-2345 (3)'!BQ2 -> 0.07012561151 | F40: =+'1-2345 (4)'!BQ2 -> 0.1029526162 | G40: =+'1-2345 (5)'!BQ2 -> 0.08736969599 | H40: =+'1-2345 (6)'!BQ2 -> 0.05040637492 | J40: =+'1-2345 (7)'!BQ2 -> 0.03213938281 | K40: =+'1-2345 (8)'!BQ2 -> 0.1984603439 | L40: =+'1-2345 (9)'!BQ2 -> 0.01672673742 | M40: =+'1-2345 (10)'!BQ2 -> 0.06071976736 | N40: =+'1-2345 (11)'!BQ2 -> 0.137960232 | O40: =+'1-2345 (12)'!BQ2 -> 0.05643822771 | P40: =+'1-2345 (13)'!BQ2 -> 0.04679791307 | Q40: =+'1-2345 (14)'!BQ2 -> 0.001249900031 | R40: =+'1-2345 (15)'!BQ2 -> 0.001249900031 | S40: =+'1-2345 (16)'!BQ2 -> 0.001249900031 | T40: =+st!M17 -> 
T41: =+st!M18 ->  | AE41: =+IF(AND(AD5>99%,AL5>9%,AM5>29%),D5,"") -> 
B161: MIN | C161: =+C27/C23 -> 0.01283926501 | D161: =+D27/D23 -> 0.07398340991 | E161: 0.02228690947 | F161: 0.01344969652 | G161: 0.0188876601 | H161: 0.03468350384 | J161: 0.06143068963 | K161: 0.004806208823 | L161: 0.1382081557 | M161: 0.02788736763 | N161: 0.01030914791 | O161: 0.03071031782 | P161: 0.04106783362 | Q161: 116.5535051 | R161: 116.5535051 | S161: 116.5535051
AO326: =MAX(FREQUENCY(ROW(3:10),ROW(3:10)*(AO3:AO10<>D4)))-1 -> 7
AO327: =MAX(FREQUENCY(ROW(3:19),ROW(3:19)*(AO3:AO19<>D4)))-1 -> 16

Sheet Sheet11 (hidden)
U1: =+st!A2 -> 大井 | V1: =+st!B2&"R" -> 2R | X1: =SUM(X3/W3) -> 0 | Z1: 馬 連 | AB1: 馬 単 | AD1: ワイド | AF1: ３ 連 複 | AH1: =+COUNTIF(AH2:AH6,">99.9%") -> 0 | AJ1: 馬単 | AK1: =+COUNTIF(AO2:AO21,"<70%") -> 0 | AL1: 高→ | AM1: 連/馬単 | AN1: 合成オッズ | AO1: 差（低） | AR1: =+st!AQ53 -> 0 | AS1: =+st!AQ54 -> 0 | AT1: =SUM(AO2:AO5) -> 0 | AU1: =+MIN(AO2:AO12) -> 0 | AV1: =+AVERAGE(AO2:AO27) ->  | AW1: =+MIN(INDEX((AO2:AO27<=99%)*10^5+Y2:Y27,)) -> 1 | AZ1: 単１位からの馬連
U2: 番号 | V2: 名 前 | W2: 単勝 | X2: 馬単表 | Y2: 1 | Z2: =+st!Y3 -> 0 | AA2: =+st!Z3 -> 0 | AB2: =+st!Q3 -> 0 | AC2: =+st!R3 -> 0 | AD2: =+st!Y3 -> 0 | AE2: =+st!AA3 -> 0 | AF2: =+st!AH3 -> 0 | AG2: =+st!AI3 -> 0 | AH2: =+st!AQ3 -> 0 | AI2: =+IFERROR(LEFT(AB2,FIND("-",AB2)-1)*1,"") ->  | AJ2: =+IFERROR(MID(AB2,FIND("-",AB2)+1,LEN(AB2))*1,"") ->  | AK2: =+IFERROR(MIN(AI2:AJ2)&"-"&MAX(AI2:AJ2),"") -> 0-0 | AL2: =+IFERROR(INDEX(st!$Z$3:$Z$52,MATCH(AK2,st!$Y$3:$Y$52,0)),"") ->  | AM2: =IFERROR(SUM(1/AC2)/(1/AL2),"") ->  | AN2: =+IFERROR(INDEX($W$3:$W$18,MATCH(AI2,$U$3:$U$18,0))+INDEX($W$3:$W$18,MATCH(AJ2,$U$3:$U$18,0)),"") ->  | AO2: =+IFERROR(SUM(1/AN2)/(1/AL2),"") ->  | AP2: =+IFERROR(LEFT(Z2,FIND("-",Z2)-1)*1,"") ->  | AQ2: =+IFERROR(MID(Z2,FIND("-",Z2)+1,LEN(Z2))*1,"") ->  | AR2: =+INDEX(st!AJ3:AJ32,MATCH(st!AQ53,st!AQ3:AQ32,0)) ->  | AS2: =+IF(OR($U$3=AI2,$U$3=AJ2),MIN(AI2:AJ2)&"-"&MAX(AI2:AJ2),"") ->  | AW2: ３連単流入 | AY2: 1 | AZ2: =+IF(OR(st!$M$3=st!S3,st!$M$3=st!T3),st!Y3,"") ->  | BA2: =+IF(AZ2="",AY2,"") -> 1 | BT2: 4.479442731
U3: =+st!M3 -> 8 | V3: =+st!N3 -> プリズムムーン | W3: =+st!O3 -> 2.100392999 | X3: =+各データ整理!F4 -> 0 | Y3: 2 | Z3: =+st!Y4 -> 0 | AA3: =+st!Z4 -> 0 | AB3: =+st!Q4 -> 0 | AC3: =+st!R4 -> 0 | AD3: =+st!Y4 -> 0 | AE3: =+st!AA4 -> 0 | AF3: =+st!AH4 -> 0 | AG3: =+st!AI4 -> 0 | AH3: =+st!AQ4 -> 0 | AI3: =+IFERROR(LEFT(AB3,FIND("-",AB3)-1)*1,"") ->  | AJ3: =+IFERROR(MID(AB3,FIND("-",AB3)+1,LEN(AB3))*1,"") ->  | AK3: =+IFERROR(MIN(AI3:AJ3)&"-"&MAX(AI3:AJ3),"") -> 0-0 | AL3: =+IFERROR(INDEX(st!$Z$3:$Z$52,MATCH(AK3,st!$Y$3:$Y$52,0)),"") ->  | AM3: =IFERROR(SUM(1/AC3)/(1/AL3),"") ->  | AN3: =+IFERROR(INDEX($W$3:$W$18,MATCH(AI3,$U$3:$U$18,0))+INDEX($W$3:$W$18,MATCH(AJ3,$U$3:$U$18,0)),"") ->  | AO3: =+IFERROR(SUM(1/AN3)/(1/AL3),"") ->  | AP3: =+IFERROR(LEFT(Z3,FIND("-",Z3)-1)*1,"") ->  | AQ3: =+IFERROR(MID(Z3,FIND("-",Z3)+1,LEN(Z3))*1,"") ->  | AR3: =+INDEX(st!AL3:AL32,MATCH(st!AQ53,st!AQ3:AQ32,0)) ->  | AS3: =+IF(OR($U$3=AI3,$U$3=AJ3),MIN(AI3:AJ3)&"-"&MAX(AI3:AJ3),"") ->  | AT3: =IFERROR(INDEX($AS$2:$AS$27,MATCH(0,INDEX(COUNTIF($AT2:AT$2,$AS$2:$AS$27&""),),0)),"") ->  | AW3: 1 | AX3: =+IFERROR(COUNTIF(各データ整理!$AO$3:$AQ$13,Sheet11!AW3),"") -> 0 | AY3: 2 | AZ3: =+IF(OR(st!$M$3=st!S4,st!$M$3=st!T4),st!Y4,"") ->  | BA3: =+IF(AZ3="",AY3,"") -> 2
U4: =+st!M4 -> 11 | V4: =+st!N4 -> エコロタイタン | W4: =+st!O4 -> 5.4005116 | X4: =+各データ整理!F5 -> 0 | Y4: 3 | Z4: =+st!Y5 -> 0 | AA4: =+st!Z5 -> 0 | AB4: =+st!Q5 -> 0 | AC4: =+st!R5 -> 0 | AD4: =+st!Y5 -> 0 | AE4: =+st!AA5 -> 0 | AF4: =+st!AH5 -> 0 | AG4: =+st!AI5 -> 0 | AH4: =+st!AQ5 -> 0 | AK4: 0-0 | AL4: =+IFERROR(INDEX(st!$Z$3:$Z$52,MATCH(AK4,st!$Y$3:$Y$52,0)),"") ->  | AR4: =+INDEX(st!AN3:AN32,MATCH(st!AQ53,st!AQ3:AQ32,0)) ->  | AT4: =IFERROR(INDEX($AS$2:$AS$27,MATCH(0,INDEX(COUNTIF($AT$2:AT3,$AS$2:$AS$27&""),),0)),"") ->  | AW4: 2 | AX4: =+IFERROR(COUNTIF(各データ整理!$AO$3:$AQ$13,Sheet11!AW4),"") -> 0 | AY4: 3 | AZ4: =+IF(OR(st!$M$3=st!S5,st!$M$3=st!T5),st!Y5,"") ->  | BA4: 3
U5: =+st!M5 -> 1 | V5: =+st!N5 -> カリスマパラダイス | W5: =+st!O5 -> 9.10065 | X5: =+各データ整理!F6 -> 0 | Y5: 4 | Z5: =+st!Y6 -> 0 | AA5: =+st!Z6 -> 0 | AB5: =+st!Q6 -> 0 | AC5: =+st!R6 -> 0 | AD5: =+st!Y6 -> 0 | AE5: =+st!AA6 -> 0 | AF5: =+st!AH6 -> 0 | AG5: =+st!AI6 -> 0 | AH5: =+st!AQ6 -> 0 | AK5: 0-0 | AL5: =+IFERROR(INDEX(st!$Z$3:$Z$52,MATCH(AK5,st!$Y$3:$Y$52,0)),"") ->  | AM5: =IFERROR(SUM(1/AC5)/(1/AL5),"") ->  | AN5: =+IFERROR(INDEX($W$3:$W$18,MATCH(AI5,$U$3:$U$18,0))+INDEX($W$3:$W$18,MATCH(AJ5,$U$3:$U$18,0)),"") ->  | AO5: =+IFERROR(SUM(1/AN5)/(1/AL5),"") ->  | AR5: =+INDEX(st!AJ3:AJ32,MATCH(st!AQ54,st!AQ3:AQ32,0)) ->  | AT5: =IFERROR(INDEX($AS$2:$AS$27,MATCH(0,INDEX(COUNTIF($AT$2:AT4,$AS$2:$AS$27&""),),0)),"") ->  | AW5: 3 | AX5: =+IFERROR(COUNTIF(各データ整理!$AO$3:$AQ$13,Sheet11!AW5),"") -> 0 | AY5: 4 | AZ5: =+IF(OR(st!$M$3=st!S6,st!$M$3=st!T6),st!Y6,"") ->  | BA5: 4
U6: =+st!M6 -> 5 | V6: =+st!N6 -> タツノレジェンド | W6: =+st!O6 -> 9.300600999 | X6: =+各データ整理!F7 -> 0 | Y6: 5 | Z6: =+st!Y7 -> 0 | AA6: =+st!Z7 -> 0 | AB6: =+st!Q7 -> 0 | AC6: =+st!R7 -> 0 | AD6: =+st!Y7 -> 0 | AE6: =+st!AA7 -> 0 | AF6: =+st!AH7 -> 0 | AG6: =+st!AI7 -> 0 | AH6: =+st!AQ7 -> 0 | AK6: 0-0 | AL6: =+IFERROR(INDEX(st!$Z$3:$Z$52,MATCH(AK6,st!$Y$3:$Y$52,0)),"") ->  | AM6: =IFERROR(SUM(1/AC6)/(1/AL6),"") ->  | AR6: =+INDEX(st!AL3:AL32,MATCH(st!AQ54,st!AQ3:AQ32,0)) ->  | AT6: =IFERROR(INDEX($AS$2:$AS$27,MATCH(0,INDEX(COUNTIF($AT$2:AT5,$AS$2:$AS$27&""),),0)),"") ->  | AW6: 4 | AX6: =+IFERROR(COUNTIF(各データ整理!$AO$3:$AQ$13,Sheet11!AW6),"") -> 0 | AY6: 5 | AZ6: =+IF(OR(st!$M$3=st!S7,st!$M$3=st!T7),st!Y7,"") ->  | BA6: 5
U7: =+st!M7 -> 4 | V7: =+st!N7 -> マルカンブロンド | W7: =+st!O7 -> 10.000767 | X7: =+各データ整理!F8 -> 0 | Y7: 6 | Z7: =+st!Y8 -> 0 | AA7: =+st!Z8 -> 0 | AB7: =+st!Q8 -> 0 | AC7: =+st!R8 -> 0 | AD7: =+st!Y8 -> 0 | AE7: =+st!AA8 -> 0 | AF7: =+st!AH8 -> 0 | AG7: =+st!AI8 -> 0 | AH7: =+st!AQ8 -> 0 | AK7: 0-0 | AL7: =+IFERROR(INDEX(st!$Z$3:$Z$52,MATCH(AK7,st!$Y$3:$Y$52,0)),"") ->  | AR7: =+INDEX(st!AN3:AN32,MATCH(st!AQ54,st!AQ3:AQ32,0)) ->  | AT7: =IFERROR(INDEX($AS$2:$AS$27,MATCH(0,INDEX(COUNTIF($AT$2:AT6,$AS$2:$AS$27&""),),0)),"") ->  | AW7: 5 | AX7: =+IFERROR(COUNTIF(各データ整理!$AO$3:$AQ$13,Sheet11!AW7),"") -> 0 | AY7: 6 | AZ7: =+IFERROR(IF(OR(st!$M$3=st!S8,st!$M$3=st!T8),st!Y8,""),"") ->  | BA7: 6
U8: =+st!M8 -> 3 | V8: =+st!N8 -> サファイアサーラ | W8: =+st!O8 -> 12.800902 | X8: =+各データ整理!F9 -> 0 | Y8: 7 | Z8: =+st!Y9 -> 0 | AA8: =+st!Z9 -> 0 | AB8: =+st!Q9 -> 0 | AC8: =+st!R9 -> 0 | AD8: =+st!Y9 -> 0 | AE8: =+st!AA9 -> 0 | AF8: =+st!AH9 -> 0 | AG8: =+st!AI9 -> 0 | AH8: =+st!AQ9 -> 0 | AK8: 0-0 | AL8: =+IFERROR(INDEX(st!$Z$3:$Z$52,MATCH(AK8,st!$Y$3:$Y$52,0)),"") ->  | AT8: =IFERROR(INDEX($AS$2:$AS$27,MATCH(0,INDEX(COUNTIF($AT$2:AT7,$AS$2:$AS$27&""),),0)),"") ->  | AW8: 6 | AX8: =+IFERROR(COUNTIF(各データ整理!$AO$3:$AQ$13,Sheet11!AW8),"") -> 0 | AY8: 7 | AZ8: =+IFERROR(IF(OR(st!$M$3=st!S9,st!$M$3=st!T9),st!Y9,""),"") ->  | BA8: 7
U9: =+st!M9 -> 6 | V9: =+st!N9 -> ラムリケティ | W9: =+st!O9 -> 21.501576 | X9: =+各データ整理!F10 -> 0 | Y9: 8 | Z9: =+st!Y10 -> 0 | AA9: =+st!Z10 -> 0 | AB9: =+st!Q10 -> 0 | AC9: =+st!R10 -> 0 | AD9: =+st!Y10 -> 0 | AE9: =+st!AA10 -> 0 | AF9: =+st!AH10 -> 0 | AG9: =+st!AI10 -> 0 | AH9: =+st!AQ10 -> 0 | AK9: 0-0 | AL9: =+IFERROR(INDEX(st!$Z$3:$Z$52,MATCH(AK9,st!$Y$3:$Y$52,0)),"") ->  | AM9: =IFERROR(SUM(1/AC9)/(1/AL9),"") ->  | AT9: =IFERROR(INDEX($AS$2:$AS$27,MATCH(0,INDEX(COUNTIF($AT$2:AT8,$AS$2:$AS$27&""),),0)),"") ->  | AW9: 7 | AX9: =+IFERROR(COUNTIF(各データ整理!$AO$3:$AQ$13,Sheet11!AW9),"") -> 0 | AY9: 8 | AZ9: =+IFERROR(IF(OR(st!$M$3=st!S10,st!$M$3=st!T10),st!Y10,""),"") ->  | BA9: 8
U10: =+st!M10 -> 12 | V10: =+st!N10 -> リヤンフォルス | W10: =+st!O10 -> 22.1012744 | X10: =+各データ整理!F11 -> 0 | Y10: 9 | Z10: =+st!Y11 -> 0 | AA10: =+st!Z11 -> 0 | AB10: =+st!Q11 -> 0 | AC10: =+st!R11 -> 0 | AD10: =+st!Y11 -> 0 | AE10: =+st!AA11 -> 0 | AF10: =+st!AH11 -> 0 | AG10: =+st!AI11 -> 0 | AH10: =+st!AQ11 -> 0 | AK10: 0-0 | AL10: =+IFERROR(INDEX(st!$Z$3:$Z$52,MATCH(AK10,st!$Y$3:$Y$52,0)),"") ->  | AN10: =+IFERROR(INDEX($W$3:$W$18,MATCH(AI10,$U$3:$U$18,0))+INDEX($W$3:$W$18,MATCH(AJ10,$U$3:$U$18,0)),"") ->  | AO10: =+IFERROR(SUM(1/AN10)/(1/AL10),"") ->  | AT10: =IFERROR(INDEX($AS$2:$AS$27,MATCH(0,INDEX(COUNTIF($AT$2:AT9,$AS$2:$AS$27&""),),0)),"") ->  | AW10: 8 | AX10: =+IFERROR(COUNTIF(各データ整理!$AO$3:$AQ$13,Sheet11!AW10),"") -> 0 | AY10: 9 | AZ10: =+IFERROR(IF(OR(st!$M$3=st!S11,st!$M$3=st!T11),st!Y11,""),"") ->  | BA10: 9
U11: =+st!M11 -> 10 | V11: =+st!N11 -> ベルムフェリクス | W11: =+st!O11 -> 26.7010838 | X11: =+各データ整理!F12 -> 0 | Y11: 10 | Z11: =+st!Y12 -> 0 | AA11: =+st!Z12 -> 0 | AB11: =+st!Q12 -> 0 | AC11: =+st!R12 -> 0 | AD11: =+st!Y12 -> 0 | AE11: =+st!AA12 -> 0 | AF11: =+st!AH12 -> 0 | AG11: =+st!AI12 -> 0 | AH11: =+st!AQ12 -> 0 | AK11: 0-0 | AL11: =+IFERROR(INDEX(st!$Z$3:$Z$52,MATCH(AK11,st!$Y$3:$Y$52,0)),"") ->  | AT11: =IFERROR(INDEX($AS$2:$AS$27,MATCH(0,INDEX(COUNTIF($AT$2:AT10,$AS$2:$AS$27&""),),0)),"") ->  | AW11: 9 | AX11: =+IFERROR(COUNTIF(各データ整理!$AO$3:$AQ$13,Sheet11!AW11),"") -> 0 | AY11: 10 | AZ11: =+IFERROR(IF(OR(st!$M$3=st!S12,st!$M$3=st!T12),st!Y12,""),"") ->  | BA11: 10
U12: =+st!M12 -> 13 | V12: =+st!N12 -> アスランラリー | W12: =+st!O12 -> 30.0011138 | X12: =+各データ整理!F13 -> 0 | Y12: 11 | Z12: =+st!Y13 -> 0 | AA12: =+st!Z13 -> 0 | AB12: =+st!Q13 -> 0 | AC12: =+st!R13 -> 0 | AD12: =+st!Y13 -> 0 | AE12: =+st!AA13 -> 0 | AF12: =+st!AH13 -> 0 | AG12: =+st!AI13 -> 0 | AH12: =+st!AQ13 -> 0 | AK12: 0-0 | AL12: =+IFERROR(INDEX(st!$Z$3:$Z$52,MATCH(AK12,st!$Y$3:$Y$52,0)),"") ->  | AT12: =IFERROR(INDEX($AS$2:$AS$27,MATCH(0,INDEX(COUNTIF($AT$2:AT11,$AS$2:$AS$27&""),),0)),"") ->  | AU12: =+AY36 ->  | AW12: 10 | AX12: =+IFERROR(COUNTIF(各データ整理!$AO$3:$AQ$13,Sheet11!AW12),"") -> 0 | AY12: 11 | AZ12: =+IFERROR(IF(OR(st!$M$3=st!S13,st!$M$3=st!T13),st!Y13,""),"") ->  | BA12: 11
U13: =+st!M13 -> 7 | V13: =+st!N13 -> セイジョーベリー | W13: =+st!O13 -> 37.101067 | X13: =+各データ整理!F14 -> 0 | Y13: 12 | Z13: =+st!Y14 -> 0 | AA13: =+st!Z14 -> 0 | AB13: =+st!Q14 -> 0 | AC13: =+st!R14 -> 0 | AD13: =+st!Y14 -> 0 | AE13: =+st!AA14 -> 0 | AF13: =+st!AH14 -> 0 | AG13: =+st!AI14 -> 0 | AH13: =+st!AQ14 -> 0 | AK13: 0-0 | AL13: =+IFERROR(INDEX(st!$Z$3:$Z$52,MATCH(AK13,st!$Y$3:$Y$52,0)),"") ->  | AT13: =IFERROR(INDEX($AS$2:$AS$27,MATCH(0,INDEX(COUNTIF($AT$2:AT12,$AS$2:$AS$27&""),),0)),"") ->  | AU13: =+AY37 ->  | AW13: 11 | AX13: =+IFERROR(COUNTIF(各データ整理!$AO$3:$AQ$13,Sheet11!AW13),"") -> 0 | AY13: 12 | AZ13: =+IFERROR(IF(OR(st!$M$3=st!S14,st!$M$3=st!T14),st!Y14,""),"") -> 
U14: =+st!M14 -> 2 | V14: =+st!N14 -> シャイネス | W14: =+st!O14 -> 60.802585 | X14: =+各データ整理!F15 -> 0 | Y14: 13 | Z14: =+st!Y15 -> 0 | AA14: =+st!Z15 -> 0 | AB14: =+st!Q15 -> 0 | AC14: =+st!R15 -> 0 | AD14: =+st!Y15 -> 0 | AE14: =+st!AA15 -> 0 | AF14: =+st!AH15 -> 0 | AG14: =+st!AI15 -> 0 | AH14: =+st!AQ15 -> 0 | AK14: 0-0 | AL14: =+IFERROR(INDEX(st!$Z$3:$Z$52,MATCH(AK14,st!$Y$3:$Y$52,0)),"") ->  | AT14: =IFERROR(INDEX($AS$2:$AS$27,MATCH(0,INDEX(COUNTIF($AT$2:AT13,$AS$2:$AS$27&""),),0)),"") ->  | AW14: 12 | AX14: =+IFERROR(COUNTIF(各データ整理!$AO$3:$AQ$13,Sheet11!AW14),"") -> 0 | AY14: 13 | AZ14: =+IFERROR(IF(OR(st!$M$3=st!S15,st!$M$3=st!T15),st!Y15,""),"") -> 
U15: =+st!M15 -> 9 | V15: =+st!N15 -> サカベンクイーン | W15: =+st!O15 -> 158.406831 | X15: =+各データ整理!F16 -> 0 | Y15: 14 | Z15: =+st!Y16 -> 0 | AA15: =+st!Z16 -> 0 | AB15: =+st!Q16 -> 0 | AC15: =+st!R16 -> 0 | AD15: =+st!Y16 -> 0 | AE15: =+st!AA16 -> 0 | AF15: =+st!AH16 -> 0 | AG15: =+st!AI16 -> 0 | AH15: =+st!AQ16 -> 0 | AK15: 0-0 | AL15: =+IFERROR(INDEX(st!$Z$3:$Z$52,MATCH(AK15,st!$Y$3:$Y$52,0)),"") ->  | AW15: 13 | AX15: =+IFERROR(COUNTIF(各データ整理!$AO$3:$AQ$13,Sheet11!AW15),"") -> 0 | AY15: 14 | AZ15: =+IFERROR(IF(OR(st!$M$3=st!S16,st!$M$3=st!T16),st!Y16,""),"") -> 
U16: =+st!M16 ->  | V16: =+st!N16 ->  | W16: =+st!O16 ->  | X16: =+各データ整理!F17 -> 0 | Y16: 15 | Z16: =+st!Y17 -> 0 | AA16: =+st!Z17 -> 0 | AB16: =+st!Q17 -> 0 | AC16: =+st!R17 -> 0 | AD16: =+st!Y17 -> 0 | AE16: =+st!AA17 -> 0 | AF16: =+st!AH17 -> 0 | AG16: =+st!AI17 -> 0 | AH16: =+st!AQ17 -> 0 | AK16: 0-0 | AL16: =+IFERROR(INDEX(st!$Z$3:$Z$52,MATCH(AK16,st!$Y$3:$Y$52,0)),"") ->  | AT16: =IFERROR(RIGHT(AR22,LEN(AR22)-FIND("-",AR22,FIND("-",AR22)))*1,"") ->  | AU16: =+IF($U$3=AT16,"",AT16) ->  | AV16: =+IF(AT16<>$U$3,AT16,"") ->  | AW16: 14 | AX16: =+IFERROR(COUNTIF(各データ整理!$AO$3:$AQ$13,Sheet11!AW16),"") -> 0 | AY16: 15 | AZ16: =+IFERROR(IF(OR(st!$M$3=st!S17,st!$M$3=st!T17),st!Y17,""),"") -> 
U17: =+st!M17 ->  | V17: =+st!N17 ->  | W17: =+st!O17 ->  | X17: =+各データ整理!F18 -> 0 | Y17: 16 | Z17: =+st!Y18 -> 0 | AA17: =+st!Z18 -> 0 | AB17: =+st!Q18 -> 0 | AC17: =+st!R18 -> 0 | AD17: =+st!Y18 -> 0 | AE17: =+st!AA18 -> 0 | AF17: =+st!AH18 -> 0 | AG17: =+st!AI18 -> 0 | AH17: =+st!AQ18 -> 0 | AK17: 0-0 | AL17: =+IFERROR(INDEX(st!$Z$3:$Z$52,MATCH(AK17,st!$Y$3:$Y$52,0)),"") ->  | AT17: =IFERROR(RIGHT(AR23,LEN(AR23)-FIND("-",AR23,FIND("-",AR23)))*1,"") ->  | AV17: =+IF(AT17<>$U$3,AT17,"") ->  | AW17: 15 | AX17: =+IFERROR(COUNTIF(各データ整理!$AO$3:$AQ$13,Sheet11!AW17),"") -> 0 | AY17: 16 | AZ17: =+IFERROR(IF(OR(st!$M$3=st!S18,st!$M$3=st!T18),st!Y18,""),"") -> 
U18: =+st!M18 ->  | V18: =+st!N18 ->  | W18: =+st!O18 ->  | X18: =+各データ整理!F19 -> 0 | Y18: 17 | Z18: =+st!Y19 -> 0 | AA18: =+st!Z19 -> 0 | AB18: =+st!Q19 -> 0 | AC18: =+st!R19 -> 0 | AD18: =+st!Y19 -> 0 | AE18: =+st!AA19 -> 0 | AF18: =+st!AH19 -> 0 | AG18: =+st!AI19 -> 0 | AH18: =+st!AQ19 -> 0 | AK18: 0-0 | AL18: =+IFERROR(INDEX(st!$Z$3:$Z$52,MATCH(AK18,st!$Y$3:$Y$52,0)),"") ->  | AT18: =IFERROR(RIGHT(AR24,LEN(AR24)-FIND("-",AR24,FIND("-",AR24)))*1,"") ->  | AW18: 16 | AX18: =+IFERROR(COUNTIF(各データ整理!$AO$3:$AQ$13,Sheet11!AW18),"") -> 0 | AY18: 17 | AZ18: =+IFERROR(IF(OR(st!$M$3=st!S19,st!$M$3=st!T19),st!Y19,""),"") -> 
U19: 推奨軸馬（穴馬） | W19: =+A17 -> 0 | X19: =+B17 -> 0 | Y19: 18 | Z19: =+st!Y20 -> 0 | AA19: =+st!Z20 -> 0 | AB19: =+st!Q20 -> 0 | AC19: =+st!R20 -> 0 | AD19: =+st!Y20 -> 0 | AE19: =+st!AA20 -> 0 | AF19: =+st!AH20 -> 0 | AG19: =+st!AI20 -> 0 | AH19: =+st!AQ20 -> 0 | AK19: 0-0 | AL19: =+IFERROR(INDEX(st!$Z$3:$Z$52,MATCH(AK19,st!$Y$3:$Y$52,0)),"") ->  | AT19: =IFERROR(RIGHT(AR25,LEN(AR25)-FIND("-",AR25,FIND("-",AR25)))*1,"") -> 
U20: 参考馬連 | W20: =+IF(作業ページ!AE146="2頭","上位２頭",IF(A9="見送り","見送り",IF(AND(st!Q54>=6,OR(B11>=1,T20="A",T20="D")),"勝負",IF(B11<>"","推奨馬券",IF(AM30>179%,"見送り",IF(AND(AO28>54%,AT34<2),"見送り","推奨馬連")))))) ->  | X20: 太字強 | Y20: 19 | Z20: =+st!Y21 -> 0 | AA20: =+st!Z21 -> 0 | AB20: =+st!Q21 -> 0 | AC20: =+st!R21 -> 0 | AD20: =+st!Y21 -> 0 | AE20: =+st!AA21 -> 0 | AF20: =+st!AH21 -> 0 | AG20: =+st!AI21 -> 0 | AH20: =+st!AQ21 -> 0 | AK20: 0-0 | AL20: =+IFERROR(INDEX(st!$Z$3:$Z$52,MATCH(AK20,st!$Y$3:$Y$52,0)),"") ->  | AT20: =IFERROR(RIGHT(AR26,LEN(AR26)-FIND("-",AR26,FIND("-",AR26)))*1,"") ->  | AY20: 1 | AZ20: =IFERROR(INDEX($AZ$2:$AZ$18,MATCH(0,INDEX(COUNTIF($AZ19:AZ$19,$AZ$2:$AZ$18&""),),0)),"") ->  | BA20: =+IFERROR(IF(INDEX(st!$Z$3:$Z$52,MATCH(Sheet11!AZ20,st!$Y$3:$Y$52,0))>50,"",INDEX(st!$Z$3:$Z$52,MATCH(Sheet11!AZ20,st!$Y$3:$Y$52,0))),"") -> 
Y21: 20 | Z21: =+st!Y22 -> 0 | AA21: =+st!Z22 -> 0 | AB21: =+st!Q22 -> 0 | AC21: =+st!R22 -> 0 | AD21: =+st!Y22 -> 0 | AE21: =+st!AA22 -> 0 | AF21: =+st!AH22 -> 0 | AG21: =+st!AI22 -> 0 | AH21: =+st!AQ22 -> 0 | AK21: 0-0 | AL21: =+IFERROR(INDEX(st!$Z$3:$Z$52,MATCH(AK21,st!$Y$3:$Y$52,0)),"") ->  | AS21: =+IF(OR($U$3=AI21,$U$3=AJ21),MIN(AI21:AJ21)&"-"&MAX(AI21:AJ21),"") ->  | AT21: =IFERROR(RIGHT(AR27,LEN(AR27)-FIND("-",AR27,FIND("-",AR27)))*1,"") ->  | AX21: =+BB21 ->  | AY21: 2 | AZ21: =IFERROR(INDEX($AZ$2:$AZ$18,MATCH(0,INDEX(COUNTIF($AZ$19:AZ20,$AZ$2:$AZ$18&""),),0)),"") ->  | BA21: =+IFERROR(IF(INDEX(st!$Z$3:$Z$52,MATCH(Sheet11!AZ21,st!$Y$3:$Y$52,0))>50,"",INDEX(st!$Z$3:$Z$52,MATCH(Sheet11!AZ21,st!$Y$3:$Y$52,0))),"") ->  | BB21: =IFERROR(IF(AZ21="","",SUM(BA21/BA20)),"") -> 
Y22: 21 | Z22: =+st!Y23 -> 0 | AA22: =+st!Z23 -> 0 | AB22: =+st!Q23 -> 0 | AC22: =+st!R23 -> 0 | AD22: =+st!Y23 -> 0 | AE22: =+st!AA23 -> 0 | AF22: =+st!AH23 -> 0 | AG22: =+st!AI23 -> 0 | AH22: =+st!AQ23 -> 0 | AK22: 0-0 | AL22: =+IFERROR(INDEX(st!$Z$3:$Z$52,MATCH(AK22,st!$Y$3:$Y$52,0)),"") ->  | AR22: =+st!BD18 -> 0 | AT22: =IFERROR(LEFT(AR22,FIND("-",AR22)-1)*1,"") ->  | AX22: =+BB22 ->  | AY22: 3 | AZ22: =IFERROR(INDEX($AZ$2:$AZ$18,MATCH(0,INDEX(COUNTIF($AZ$19:AZ21,$AZ$2:$AZ$18&""),),0)),"") ->  | BA22: =+IFERROR(IF(INDEX(st!$Z$3:$Z$52,MATCH(Sheet11!AZ22,st!$Y$3:$Y$52,0))>50,"",INDEX(st!$Z$3:$Z$52,MATCH(Sheet11!AZ22,st!$Y$3:$Y$52,0))),"") ->  | BB22: =IFERROR(IF(AZ22="","",SUM(BA22/BA21)),"") -> 
Y23: 22 | Z23: =+st!Y24 -> 0 | AA23: =+st!Z24 -> 0 | AB23: =+st!Q24 -> 0 | AC23: =+st!R24 -> 0 | AD23: =+st!Y24 -> 0 | AE23: =+st!AA24 -> 0 | AF23: =+st!AH24 -> 0 | AG23: =+st!AI24 -> 0 | AH23: =+st!AQ24 -> 0 | AK23: 0-0 | AL23: =+IFERROR(INDEX(st!$Z$3:$Z$52,MATCH(AK23,st!$Y$3:$Y$52,0)),"") ->  | AR23: =+st!BD19 -> 0 | AY23: 4 | AZ23: =IFERROR(INDEX($AZ$2:$AZ$18,MATCH(0,INDEX(COUNTIF($AZ$19:AZ22,$AZ$2:$AZ$18&""),),0)),"") ->  | BA23: =+IFERROR(IF(INDEX(st!$Z$3:$Z$52,MATCH(Sheet11!AZ23,st!$Y$3:$Y$52,0))>50,"",INDEX(st!$Z$3:$Z$52,MATCH(Sheet11!AZ23,st!$Y$3:$Y$52,0))),"") -> 
Y24: 23 | Z24: =+st!Y25 -> 0 | AA24: =+st!Z25 -> 0 | AB24: =+st!Q25 -> 0 | AC24: =+st!R25 -> 0 | AD24: =+st!Y25 -> 0 | AE24: =+st!AA25 -> 0 | AF24: =+st!AH25 -> 0 | AG24: =+st!AI25 -> 0 | AH24: =+st!AQ25 -> 0 | AK24: 0-0 | AL24: =+IFERROR(INDEX(st!$Z$3:$Z$52,MATCH(AK24,st!$Y$3:$Y$52,0)),"") ->  | AR24: =+st!BD20 -> 0 | AY24: 5 | AZ24: =IFERROR(INDEX($AZ$2:$AZ$18,MATCH(0,INDEX(COUNTIF($AZ$19:AZ23,$AZ$2:$AZ$18&""),),0)),"") ->  | BA24: =+IFERROR(IF(INDEX(st!$Z$3:$Z$52,MATCH(Sheet11!AZ24,st!$Y$3:$Y$52,0))>50,"",INDEX(st!$Z$3:$Z$52,MATCH(Sheet11!AZ24,st!$Y$3:$Y$52,0))),"") -> 
Y25: 24 | Z25: =+st!Y26 -> 0 | AA25: =+st!Z26 -> 0 | AB25: =+st!Q26 -> 0 | AC25: =+st!R26 -> 0 | AD25: =+st!Y26 -> 0 | AE25: =+st!AA26 -> 0 | AF25: =+st!AH26 -> 0 | AG25: =+st!AI26 -> 0 | AH25: =+st!AQ26 -> 0 | AK25: 0-0 | AL25: =+IFERROR(INDEX(st!$Z$3:$Z$52,MATCH(AK25,st!$Y$3:$Y$52,0)),"") ->  | AR25: =+st!BB18 -> 0 | AS25: =+IF(OR($U$3=AI25,$U$3=AJ25),MIN(AI25:AJ25)&"-"&MAX(AI25:AJ25),"") ->  | AT25: =IFERROR(LEFT(AR25,FIND("-",AR25)-1)*1,"") ->  | AY25: 6 | AZ25: =IFERROR(INDEX($AZ$2:$AZ$18,MATCH(0,INDEX(COUNTIF($AZ$19:AZ24,$AZ$2:$AZ$18&""),),0)),"") ->  | BA25: =+IFERROR(IF(INDEX(st!$Z$3:$Z$52,MATCH(Sheet11!AZ25,st!$Y$3:$Y$52,0))>50,"",INDEX(st!$Z$3:$Z$52,MATCH(Sheet11!AZ25,st!$Y$3:$Y$52,0))),"") -> 
Y26: 25 | Z26: =+st!Y27 -> 0 | AA26: =+st!Z27 -> 0 | AB26: =+st!Q27 -> 0 | AC26: =+st!R27 -> 0 | AD26: =+st!Y27 -> 0 | AE26: =+st!AA27 -> 0 | AF26: =+st!AH27 -> 0 | AG26: =+st!AI27 -> 0 | AH26: =+st!AQ27 -> 0 | AK26: 0-0 | AL26: =+IFERROR(INDEX(st!$Z$3:$Z$52,MATCH(AK26,st!$Y$3:$Y$52,0)),"") ->  | AR26: =+st!BB19 -> 0 | AT26: =IFERROR(LEFT(AR26,FIND("-",AR26)-1)*1,"") ->  | AY26: 7 | AZ26: =IFERROR(INDEX($AZ$2:$AZ$18,MATCH(0,INDEX(COUNTIF($AZ$19:AZ25,$AZ$2:$AZ$18&""),),0)),"") ->  | BA26: =+IFERROR(IF(INDEX(st!$Z$3:$Z$52,MATCH(Sheet11!AZ26,st!$Y$3:$Y$52,0))>50,"",INDEX(st!$Z$3:$Z$52,MATCH(Sheet11!AZ26,st!$Y$3:$Y$52,0))),"") -> 
Y27: 26 | Z27: =+st!Y28 -> 0 | AA27: =+st!Z28 -> 0 | AB27: =+st!Q28 -> 0 | AC27: =+st!R28 -> 0 | AD27: =+st!Y28 -> 0 | AE27: =+st!AA28 -> 0 | AF27: =+st!AH28 -> 0 | AG27: =+st!AI28 -> 0 | AH27: =+st!AQ28 -> 0 | AI27: =+IFERROR(LEFT(AB27,FIND("-",AB27)-1)*1,"") ->  | AK27: 0-0 | AL27: =+IFERROR(INDEX(st!$Z$3:$Z$52,MATCH(AK27,st!$Y$3:$Y$52,0)),"") ->  | AR27: =+st!BB20 -> 0 | AS27: =+IF(OR($U$3=AI27,$U$3=AJ27),MIN(AI27:AJ27)&"-"&MAX(AI27:AJ27),"") ->  | AY27: 8 | AZ27: =IFERROR(INDEX($AZ$2:$AZ$18,MATCH(0,INDEX(COUNTIF($AZ$19:AZ26,$AZ$2:$AZ$18&""),),0)),"") ->  | BA27: =+IFERROR(IF(INDEX(st!$Z$3:$Z$52,MATCH(Sheet11!AZ27,st!$Y$3:$Y$52,0))>50,"",INDEX(st!$Z$3:$Z$52,MATCH(Sheet11!AZ27,st!$Y$3:$Y$52,0))),"") ->  | BC27: 159~ | BD27: 断層位置
Y28: 27 | Z28: =+st!Y29 -> 0 | AA28: =+st!Z29 -> 0 | AB28: =+st!Q29 -> 0 | AC28: =+st!R29 -> 0 | AD28: =+st!Y29 -> 0 | AE28: =+st!AA29 -> 0 | AF28: =+st!AH29 -> 0 | AG28: =+st!AI29 -> 0 | AH28: =+st!AQ29 -> 0 | AI28: =+IFERROR(LEFT(AB28,FIND("-",AB28)-1)*1,"") ->  | AJ28: =+IFERROR(MID(AB28,FIND("-",AB28)+1,LEN(AB28))*1,"") ->  | AK28: =+IFERROR(MIN(AI28:AJ28)&"-"&MAX(AI28:AJ28),"") -> 0-0 | AL28: =+IFERROR(INDEX(st!$Z$3:$Z$52,MATCH(AK28,st!$Y$3:$Y$52,0)),"") ->  | AM28: =IFERROR(SUM(1/AC28)/(1/AL28),"") ->  | AN28: =+IFERROR(INDEX($W$3:$W$18,MATCH(AI28,$U$3:$U$18,0))+INDEX($W$3:$W$18,MATCH(AJ28,$U$3:$U$18,0)),"") ->  | AO28: =+MIN(AO2:AO27) -> 0 | AR28: =+INDEX(AK2:AK27,MATCH(AO28,AO2:AO27,0)) ->  | AT28: =IFERROR(LEFT(AR39,FIND("-",AR39)-1)*1,"") ->  | AW28: min | BA28: =IFERROR(INDEX(AX20:AX27,MATCH(0,INDEX(0/(BB20:BB27>=1.59),),0)),10) ->  | BC28: =+COUNTIF(BB20:BB27,">=159%") -> 0 | BD28: =+IFERROR(IF(MIN(INDEX(((BB20:BB27<=159%)+(AY20:AY27=""))*10^5+AY20:AY27,))>17,"",MIN(INDEX(((BB20:BB27<=159%)+(AY20:AY27=""))*10^5+AY20:AY27,))),0) -> 2 | BE28: 番目
Y29: 28 | Z29: =+st!Y30 -> 0 | AA29: =+st!Z30 -> 0 | AB29: =+st!Q30 -> 0 | AC29: =+st!R30 -> 0 | AD29: =+st!Y30 -> 0 | AE29: =+st!AA30 -> 0 | AF29: =+st!AH30 -> 0 | AG29: =+st!AI30 -> 0 | AH29: =+st!AQ30 -> 0 | AK29: 0-0 | AL29: =+IFERROR(INDEX(st!$Z$3:$Z$52,MATCH(AK29,st!$Y$3:$Y$52,0)),"") ->  | AO29: =+SMALL(AO2:AO27,2) ->  | AR29: =+INDEX(AK2:AK27,MATCH(AO29,AO2:AO27,0)) ->  | AT29: =IFERROR(LEFT(AR40,FIND("-",AR40)-1)*1,"") ->  | AU29: =+IF($U$3=AT29,"",AT29) ->  | AV29: =+IF(AT29<>$U$3,AT29,"") ->  | AW29: =+SMALL(AY40:AY49,1) ->  | AX29: =+IF(AW29<30.1,INDEX($AK$45:$AK$54,MATCH(AW29,$AY$40:$AY$49,0)),"") ->  | AY29: =IFERROR(LEFT(AX29,FIND("-",AX29)-1)*1,"") ->  | BB29: =+IFERROR(INDEX(AZ20:AZ27,MATCH(BA28,BB20:BB27,0)),"") ->  | BC29: 空白 | BD29: =+COUNTBLANK(AZ2:AZ6) -> 5
AA30: A低い | AC30: B高い | AH30: 1人気 | AI30: =+U3 -> 8 | AM30: =+AVERAGE(AO2:AO27) ->  | AO30: =+SMALL(AO2:AO27,3) ->  | AR30: =+INDEX(AK2:AK27,MATCH(AO30,AO2:AO27,0)) ->  | AT30: =IFERROR(LEFT(AR41,FIND("-",AR41)-1)*1,"") ->  | AU30: =+IF($U$3=AT30,"",AT30) ->  | AV30: =+IF(AT30<>$U$3,AT30,"") ->  | AW30: =+SMALL(AY40:AY49,2) ->  | AX30: =+IF(AW30<30.1,INDEX($AK$45:$AK$54,MATCH(AW30,$AY$40:$AY$49,0)),"") ->  | AY30: =IFERROR(LEFT(AX30,FIND("-",AX30)-1)*1,"") ->  | BD30: =+INDEX(AY2:AY18,MATCH(BB29,AZ2:AZ18,0)) -> 1 | BE30: =+MIN(BA2:BA18) -> 1
Z31: =+AI2&"-"&AJ2 -> - | AA31: =+INDEX($AM$2:$AM$27,MATCH(Z31,$AB$2:$AB$27,0)) ->  | AB31: =+AJ2&"-"&AI2 -> - | AC31: =+IFERROR(INDEX($AM$2:$AM$29,MATCH(AB31,$AB$2:$AB$29,0)),"") ->  | AE31: =+SMALL(AC31:AC40,1) ->  | AF31: =+IFERROR(INDEX($AB$31:$AB$40,MATCH(AE31,$AC$31:$AC$40,0)),"") ->  | AG31: 1 | AH31: =IFERROR(LEFT(AF31,FIND("-",AF31)-1)*1,"") ->  | AI31: =IFERROR(RIGHT(AF31,LEN(AF31)-FIND("-",AF31,FIND("-",AF31)))*1,"") ->  | AK31: =+IFERROR(IF(AH31="","",MIN(AH31:AI31)&"-"&MAX(AH31:AI31)),"") ->  | AL31: =IFERROR(LEFT(AK45,FIND("-",AK45)-1)*1,"") ->  | AM31: =IFERROR(RIGHT(AK45,LEN(AK45)-FIND("-",AK45,FIND("-",AK45)))*1,"") ->  | AO31: =+SMALL(AO2:AO27,4) ->  | AR31: =+INDEX(AK2:AK27,MATCH(AO31,AO2:AO27,0)) ->  | AT31: =IFERROR(LEFT(AR42,FIND("-",AR42)-1)*1,"") ->  | AV31: =+IF(AT31<>$U$3,AT31,"") ->  | AW31: =+SMALL(AY40:AY49,3) ->  | AX31: =+IF(AW31<30.1,INDEX($AK$45:$AK$54,MATCH(AW31,$AY$40:$AY$49,0)),"") ->  | AY31: =IFERROR(LEFT(AX31,FIND("-",AX31)-1)*1,"") -> 
Z32: - | AA32: =+INDEX($AM$2:$AM$27,MATCH(Z32,$AB$2:$AB$27,0)) ->  | AB32: - | AC32: =+IFERROR(INDEX($AM$2:$AM$29,MATCH(AB32,$AB$2:$AB$29,0)),"") ->  | AD32: =+AE32/AE31 ->  | AE32: =+SMALL(AC31:AC40,2) ->  | AG32: 2 | AH32: =IFERROR(LEFT(AF32,FIND("-",AF32)-1)*1,"") ->  | AI32: =IFERROR(RIGHT(AF32,LEN(AF32)-FIND("-",AF32,FIND("-",AF32)))*1,"") ->  | AK32: =+IFERROR(IF(AH32="","",MIN(AH32:AI32)&"-"&MAX(AH32:AI32)),"") ->  | AO32: =+SMALL(AO2:AO27,5) ->  | AR32: =+INDEX(AK2:AK27,MATCH(AO32,AO2:AO27,0)) ->  | AT32: =IFERROR(LEFT(AR43,FIND("-",AR43)-1)*1,"") ->  | AU32: =+IF($U$3=AT32,"",AT32) ->  | AY32: =IFERROR(RIGHT(AX29,LEN(AX29)-FIND("-",AX29,FIND("-",AX29)))*1,"") -> 
Z33: - | AB33: - | AD33: =+AE33/AE32 ->  | AE33: =+SMALL(AC31:AC40,3) ->  | AG33: 3 | AO33: =+SMALL(AO2:AO27,6) ->  | AR33: =+INDEX(AK2:AK27,MATCH(AO33,AO2:AO27,0)) ->  | AT33: =IFERROR(LEFT(AR44,FIND("-",AR44)-1)*1,"") ->  | AU33: =+IF($U$3=AT33,"",AT33) ->  | AY33: =IFERROR(RIGHT(AX30,LEN(AX30)-FIND("-",AX30,FIND("-",AX30)))*1,"") -> 
U34: 回収率 | V34: =+st!BD127 -> 0 | W34: 回収率 | X34: =+st!Z138 ->  | Z34: - | AB34: - | AE34: =+SMALL(AC31:AC40,4) ->  | AG34: 4 | AO34: =+SMALL(AO2:AO27,7) ->  | AR34: =+INDEX(AK2:AK27,MATCH(AO34,AO2:AO27,0)) ->  | AT34: =IFERROR(RIGHT(AR39,LEN(AR39)-FIND("-",AR39,FIND("-",AR39)))*1,"") ->  | AU34: =+IF($U$3=AT34,"",AT34) ->  | AV34: =+IF(AT34<>$U$3,AT34,"") ->  | AY34: =IFERROR(RIGHT(AX31,LEN(AX31)-FIND("-",AX31,FIND("-",AX31)))*1,"") -> 
Z35: - | AB35: - | AE35: =+SMALL(AC31:AC40,5) ->  | AG35: 5 | AO35: =+SMALL(AO2:AO27,8) ->  | AR35: =+INDEX(AK2:AK27,MATCH(AO35,AO2:AO27,0)) ->  | AT35: =IFERROR(RIGHT(AR40,LEN(AR40)-FIND("-",AR40,FIND("-",AR40)))*1,"") ->  | AV35: =+IF(AT35<>$U$3,AT35,"") -> 
Z36: - | AB36: - | AE36: =+SMALL(AC31:AC40,6) ->  | AG36: 6 | AO36: =+SMALL(AO2:AO27,9) ->  | AR36: =+INDEX(AK2:AK27,MATCH(AO36,AO2:AO27,0)) ->  | AY36: =IFERROR(INDEX($AY$29:$AY$34,MATCH(0,INDEX(COUNTIF(AY35:$AY$35,$AY$29:$AY$34&""),),0)),"") ->  | AZ36: ←単複候補 | BA36: =+IF(AND(作業ページ!AY8<>"〇",$AT$34<>AI31),MIN(AI31,$AT$34)&"-"&MAX(AI31,$AT$34),"") ->  | BB36: =+IF(AY36=$U$3,"",AY36) -> 
Z37: =+AI8&"-"&AJ8 -> - | AA37: =+INDEX($AM$2:$AM$27,MATCH(Z37,$AB$2:$AB$27,0)) ->  | AB37: - | AE37: =+SMALL(AC31:AC40,7) ->  | AG37: 7 | AO37: =+SMALL(AO2:AO27,10) ->  | AR37: =+INDEX(AK2:AK27,MATCH(AO37,AO2:AO27,0)) ->  | AT37: =IFERROR(RIGHT(AR42,LEN(AR42)-FIND("-",AR42,FIND("-",AR42)))*1,"") ->  | AY37: =IFERROR(INDEX($AY$29:$AY$34,MATCH(0,INDEX(COUNTIF(AY$35:$AY36,$AY$29:$AY$34&""),),0)),"") ->  | BA37: =+IF(AND(作業ページ!AY9<>"〇",$AT$34<>AH31),MIN(AH31,$AT$34)&"-"&MAX(AH31,$AT$34),"") ->  | BB37: =+IF(AY37=$U$3,"",AY37) -> 
Z38: - | AB38: - | AD38: =+AE38/AE37 ->  | AE38: =+SMALL(AC31:AC40,8) ->  | AG38: 8 | AU38: =+IF($U$3=AT38,"",AT38) ->  | AY38: =IFERROR(INDEX($AY$29:$AY$34,MATCH(0,INDEX(COUNTIF(AY$35:$AY37,$AY$29:$AY$34&""),),0)),"") ->  | BA38: =+IF(AND(作業ページ!AY10<>"〇",$AT$28<>AH31),MIN(AH31,$AT$28)&"-"&MAX(AH31,$AT$28),"") -> 
Z39: - | AB39: - | AD39: =+AE39/AE38 ->  | AE39: =+SMALL(AC31:AC40,9) ->  | AG39: 9 | AK39: =+IFERROR(IF(AH39="","",MIN(AH39:AI39)&"-"&MAX(AH39:AI39)),"") ->  | AO39: =+INDEX($AO$28:$AO$37,MATCH(AR39,$AR$28:$AR$37,0)) ->  | AR39: =IFERROR(INDEX($AR$28:$AR$37,MATCH(0,INDEX(COUNTIF(AR38:$AR$38,$AR$28:$AR$37&""),),0)),"") ->  | AU39: =+IF($U$3=AT39,"",AT39) ->  | AY39: =IFERROR(INDEX($AY$29:$AY$34,MATCH(0,INDEX(COUNTIF(AY$35:$AY38,$AY$29:$AY$34&""),),0)),"") ->  | BA39: =+IF(AND(作業ページ!AY11<>"〇",$AT$28<>AI31),MIN(AI31,$AT$28)&"-"&MAX(AI31,$AT$28),"") -> 
Z40: - | AB40: - | AE40: =+SMALL(AC31:AC40,10) ->  | AG40: 10 | AN40: =+AO40/AO39 ->  | AO40: =+INDEX($AO$28:$AO$37,MATCH(AR40,$AR$28:$AR$37,0)) ->  | AR40: =IFERROR(INDEX($AR$28:$AR$37,MATCH(0,INDEX(COUNTIF(AR$38:$AR39,$AR$28:$AR$37&""),),0)),"") ->  | AT40: =+作業ページ!CD2 ->  | AU40: =+IF($U$3=AT40,"",AT40) ->  | AW40: =+IFERROR(INDEX(作業ページ!$AN$2:$AN$220,MATCH(Sheet11!AK45,作業ページ!$D$2:$D$220,0)),"") ->  | AX40: =+IFERROR(INDEX(作業ページ!$AM$2:$AM$220,MATCH(Sheet11!AK45,作業ページ!$D$2:$D$220,0)),"") ->  | AY40: =+IFERROR(INDEX(作業ページ!$AO$2:$AO$220,MATCH(Sheet11!AK45,作業ページ!$D$2:$D$220,0)),"") ->  | AZ40: =+SMALL(AW40:AW49,1) ->  | BA40: =+IFERROR(IF(AZ40<0,INDEX($AK$45:$AK$54,MATCH(AZ40,$AW$40:$AW$49,0)),""),"") ->  | BB40: =+IF(AND(AW40<-11%,AX40<5.6),AK45,IF(AND(AW40>11%,AX40<5.6,AY40>49),AK45,"")) -> 
AN41: =+AO41/AO40 ->  | AR41: =IFERROR(INDEX($AR$28:$AR$37,MATCH(0,INDEX(COUNTIF(AR$38:$AR40,$AR$28:$AR$37&""),),0)),"") ->  | AT41: =+作業ページ!CD3 ->  | AU41: =+IF($U$3=AT41,"",AT41) ->  | AW41: =+IFERROR(INDEX(作業ページ!$AN$2:$AN$220,MATCH(Sheet11!AK46,作業ページ!$D$2:$D$220,0)),"") ->  | AX41: =+IFERROR(INDEX(作業ページ!$AM$2:$AM$220,MATCH(Sheet11!AK46,作業ページ!$D$2:$D$220,0)),"") ->  | AY41: =+IFERROR(INDEX(作業ページ!$AO$2:$AO$220,MATCH(Sheet11!AK46,作業ページ!$D$2:$D$220,0)),"") ->  | AZ41: =+SMALL(AW40:AW49,2) ->  | BA41: =+IFERROR(IF(AZ41<0,INDEX($AK$45:$AK$54,MATCH(AZ41,$AW$40:$AW$49,0)),""),"") ->  | BB41: =IFERROR(INDEX($BB$36:$BB$39,MATCH(0,INDEX(COUNTIF($BB$40:BB40,$BB$36:$BB$39&""),),0)),"") -> 
AR42: =IFERROR(INDEX($AR$28:$AR$37,MATCH(0,INDEX(COUNTIF(AR$38:$AR41,$AR$28:$AR$37&""),),0)),"") ->  | AT42: =+作業ページ!CD4 ->  | AW42: =+IFERROR(INDEX(作業ページ!$AN$2:$AN$220,MATCH(Sheet11!AK47,作業ページ!$D$2:$D$220,0)),"") ->  | AX42: =+IFERROR(INDEX(作業ページ!$AM$2:$AM$220,MATCH(Sheet11!AK47,作業ページ!$D$2:$D$220,0)),"") ->  | AY42: =+IFERROR(INDEX(作業ページ!$AO$2:$AO$220,MATCH(Sheet11!AK47,作業ページ!$D$2:$D$220,0)),"") ->  | AZ42: =+SMALL(AW40:AW49,3) ->  | BA42: =+IFERROR(IF(AZ42<0,INDEX($AK$45:$AK$54,MATCH(AZ42,$AW$40:$AW$49,0)),""),"") ->  | BB42: =IFERROR(INDEX($BB$36:$BB$39,MATCH(0,INDEX(COUNTIF($BB$40:BB41,$BB$36:$BB$39&""),),0)),"") -> 
AR43: =IFERROR(INDEX($AR$28:$AR$37,MATCH(0,INDEX(COUNTIF(AR$38:$AR42,$AR$28:$AR$37&""),),0)),"") ->  | AT43: =+作業ページ!CE2 ->  | AW43: =+IFERROR(INDEX(作業ページ!$AN$2:$AN$220,MATCH(Sheet11!AK48,作業ページ!$D$2:$D$220,0)),"") ->  | AX43: =+IFERROR(INDEX(作業ページ!$AM$2:$AM$220,MATCH(Sheet11!AK48,作業ページ!$D$2:$D$220,0)),"") ->  | AY43: =+IFERROR(INDEX(作業ページ!$AO$2:$AO$220,MATCH(Sheet11!AK48,作業ページ!$D$2:$D$220,0)),"") ->  | AZ43: =+LARGE(AW40:AW49,1) ->  | BA43: =+IFERROR(IF(AZ43>4.9%,INDEX($AK$45:$AK$54,MATCH(AZ43,$AW$40:$AW$49,0)),""),"") ->  | BB43: =IFERROR(INDEX($BB$36:$BB$39,MATCH(0,INDEX(COUNTIF($BB$40:BB42,$BB$36:$BB$39&""),),0)),"") -> 
AD44: =+MAX(AD31:AD40) ->  | AN44: =+IFERROR(AO44/AO43,"") ->  | AO44: =+IFERROR(INDEX($AO$28:$AO$37,MATCH(AR44,$AR$28:$AR$37,0)),"") ->  | AR44: =IFERROR(INDEX($AR$28:$AR$37,MATCH(0,INDEX(COUNTIF(AR$38:$AR43,$AR$28:$AR$37&""),),0)),"") ->  | AT44: =+作業ページ!CE3 ->  | AW44: =+IFERROR(INDEX(作業ページ!$AN$2:$AN$220,MATCH(Sheet11!AK49,作業ページ!$D$2:$D$220,0)),"") ->  | AX44: =+IFERROR(INDEX(作業ページ!$AM$2:$AM$220,MATCH(Sheet11!AK49,作業ページ!$D$2:$D$220,0)),"") ->  | AY44: =+IFERROR(INDEX(作業ページ!$AO$2:$AO$220,MATCH(Sheet11!AK49,作業ページ!$D$2:$D$220,0)),"") ->  | AZ44: =+LARGE(AW40:AW49,2) ->  | BA44: =+IFERROR(IF(AZ44>4.9%,INDEX($AK$45:$AK$54,MATCH(AZ44,$AW$40:$AW$49,0)),""),"") ->  | BB44: =IFERROR(INDEX($BB$36:$BB$39,MATCH(0,INDEX(COUNTIF($BB$40:BB43,$BB$36:$BB$39&""),),0)),"") -> 
AE45: =+IFERROR(INDEX($AE$31:$AE$40,MATCH(AK45,$AF$31:$AF$40,0)),"") ->  | AK45: =IFERROR(INDEX($AK$31:$AK$40,MATCH(0,INDEX(COUNTIF(AK$44:$AK44,$AK$31:$AK$40&""),),0)),"") ->  | AN45: =+IFERROR(AO45/AO44,"") ->  | AO45: =+IFERROR(INDEX($AO$28:$AO$37,MATCH(AR45,$AR$28:$AR$37,0)),"") ->  | AR45: =IFERROR(INDEX($AR$28:$AR$37,MATCH(0,INDEX(COUNTIF(AR$38:$AR44,$AR$28:$AR$37&""),),0)),"") ->  | AT45: =+作業ページ!CE4 ->  | AW45: =+IFERROR(INDEX(作業ページ!$AN$2:$AN$220,MATCH(Sheet11!AK50,作業ページ!$D$2:$D$220,0)),"") ->  | AX45: =+IFERROR(INDEX(作業ページ!$AM$2:$AM$220,MATCH(Sheet11!AK50,作業ページ!$D$2:$D$220,0)),"") ->  | AY45: =+IFERROR(INDEX(作業ページ!$AO$2:$AO$220,MATCH(Sheet11!AK50,作業ページ!$D$2:$D$220,0)),"") ->  | AZ45: =+LARGE(AW40:AW49,3) ->  | BA45: =+IFERROR(IF(AZ45>4.9%,INDEX($AK$45:$AK$54,MATCH(AZ45,$AW$40:$AW$49,0)),""),"") -> 
AK46: =IFERROR(INDEX($AK$31:$AK$40,MATCH(0,INDEX(COUNTIF(AK$44:$AK45,$AK$31:$AK$40&""),),0)),"") ->  | AN46: =+MAX(AN39:AN45) ->  | AR46: =IFERROR(INDEX($AR$28:$AR$37,MATCH(0,INDEX(COUNTIF(AR$38:$AR45,$AR$28:$AR$37&""),),0)),"") ->  | AT46: =+作業ページ!CF2 ->  | AW46: =+IFERROR(INDEX(作業ページ!$AN$2:$AN$220,MATCH(Sheet11!AK51,作業ページ!$D$2:$D$220,0)),"") ->  | AX46: =+IFERROR(INDEX(作業ページ!$AM$2:$AM$220,MATCH(Sheet11!AK51,作業ページ!$D$2:$D$220,0)),"") ->  | AY46: =+IFERROR(INDEX(作業ページ!$AO$2:$AO$220,MATCH(Sheet11!AK51,作業ページ!$D$2:$D$220,0)),"") ->  | AZ46: =+SMALL(AX40:AX49,1) ->  | BA46: =+IFERROR(IF(AZ46<10,INDEX($AK$45:$AK$54,MATCH(AZ46,$AX$40:$AX$49,0)),""),"") -> 
AK47: =IFERROR(INDEX($AK$31:$AK$40,MATCH(0,INDEX(COUNTIF(AK$44:$AK46,$AK$31:$AK$40&""),),0)),"") ->  | AR47: =IFERROR(INDEX($AR$28:$AR$37,MATCH(0,INDEX(COUNTIF(AR$38:$AR46,$AR$28:$AR$37&""),),0)),"") ->  | AT47: =+作業ページ!CF3 ->  | AW47: =+IFERROR(INDEX(作業ページ!$AN$2:$AN$220,MATCH(Sheet11!AK52,作業ページ!$D$2:$D$220,0)),"") ->  | AX47: =+IFERROR(INDEX(作業ページ!$AM$2:$AM$220,MATCH(Sheet11!AK52,作業ページ!$D$2:$D$220,0)),"") ->  | AY47: =+IFERROR(INDEX(作業ページ!$AO$2:$AO$220,MATCH(Sheet11!AK52,作業ページ!$D$2:$D$220,0)),"") ->  | AZ47: =+SMALL(AX40:AX49,2) ->  | BA47: =+IFERROR(IF(AZ47<10,INDEX($AK$45:$AK$54,MATCH(AZ47,$AX$40:$AX$49,0)),""),"") -> 
AK48: =IFERROR(INDEX($AK$31:$AK$40,MATCH(0,INDEX(COUNTIF(AK$44:$AK47,$AK$31:$AK$40&""),),0)),"") ->  | AT48: =+作業ページ!CF4 ->  | AW48: =+IFERROR(INDEX(作業ページ!$AN$2:$AN$220,MATCH(Sheet11!AK53,作業ページ!$D$2:$D$220,0)),"") ->  | AX48: =+IFERROR(INDEX(作業ページ!$AM$2:$AM$220,MATCH(Sheet11!AK53,作業ページ!$D$2:$D$220,0)),"") ->  | AY48: =+IFERROR(INDEX(作業ページ!$AO$2:$AO$220,MATCH(Sheet11!AK53,作業ページ!$D$2:$D$220,0)),"") ->  | AZ48: =+SMALL(AX40:AX49,3) ->  | BA48: =+IFERROR(IF(AZ48<10,INDEX($AK$45:$AK$54,MATCH(AZ48,$AX$40:$AX$49,0)),""),"") -> 
AK49: =IFERROR(INDEX($AK$31:$AK$40,MATCH(0,INDEX(COUNTIF(AK$44:$AK48,$AK$31:$AK$40&""),),0)),"") ->  | AT49: =IFERROR(LEFT(各データ整理!BB13,FIND("-",各データ整理!BB13)-1)*1,"") ->  | AW49: =+IFERROR(INDEX(作業ページ!$AN$2:$AN$220,MATCH(Sheet11!AK54,作業ページ!$D$2:$D$220,0)),"") ->  | AX49: =+IFERROR(INDEX(作業ページ!$AM$2:$AM$220,MATCH(Sheet11!AK54,作業ページ!$D$2:$D$220,0)),"") ->  | AY49: =+IFERROR(INDEX(作業ページ!$AO$2:$AO$220,MATCH(Sheet11!AK54,作業ページ!$D$2:$D$220,0)),"") ->  | AZ49: =+SMALL(AY40:AY49,1) ->  | BA49: =+IFERROR(IF(AZ49<31,INDEX($AK$45:$AK$54,MATCH(AZ49,$AY$40:$AY$49,0)),""),"") -> 
AK50: =IFERROR(INDEX($AK$31:$AK$40,MATCH(0,INDEX(COUNTIF(AK$44:$AK49,$AK$31:$AK$40&""),),0)),"") ->  | AT50: =IFERROR(LEFT(各データ整理!BB14,FIND("-",各データ整理!BB14)-1)*1,"") ->  | AW50: =+COUNTIF(AW40:AW49,"<0") -> 0 | AX50: =+MIN(AX40:AX49) -> 0 | AZ50: =+SMALL(AY40:AY49,2) ->  | BA50: =+IFERROR(IF(AZ50<31,INDEX($AK$45:$AK$54,MATCH(AZ50,$AY$40:$AY$49,0)),""),"") -> 
AK51: =IFERROR(INDEX($AK$31:$AK$40,MATCH(0,INDEX(COUNTIF(AK$44:$AK50,$AK$31:$AK$40&""),),0)),"") ->  | AT51: =IFERROR(LEFT(各データ整理!BB15,FIND("-",各データ整理!BB15)-1)*1,"") ->  | AW51: ↑４以上なら範囲大 | AZ51: =+SMALL(AY40:AY49,3) ->  | BA51: =+IFERROR(IF(AZ51<31,INDEX($AK$45:$AK$54,MATCH(AZ51,$AY$40:$AY$49,0)),""),"") -> 
AK52: =IFERROR(INDEX($AK$31:$AK$40,MATCH(0,INDEX(COUNTIF(AK$44:$AK51,$AK$31:$AK$40&""),),0)),"") ->  | AT52: =IFERROR(LEFT(各データ整理!BB16,FIND("-",各データ整理!BB16)-1)*1,"") ->  | BA52: =+IFERROR(IF(AZ52<0,INDEX($AK$45:$AK$54,MATCH(AZ52,$AW$40:$AW$49,0)),""),"") ->  | BB52: =+IF(AND(AW49<-11%,AX49<5),AK54,"") -> 
AT53: =IFERROR(RIGHT(各データ整理!BB13,LEN(各データ整理!BB13)-FIND("-",各データ整理!BB13,FIND("-",各データ整理!BB13)))*1,"") -> 
AT54: =IFERROR(RIGHT(各データ整理!BB14,LEN(各データ整理!BB14)-FIND("-",各データ整理!BB14,FIND("-",各データ整理!BB14)))*1,"") -> 
AK55: =+IF(各データ整理!BC13>169%,各データ整理!BB13,"") ->  | AT55: =IFERROR(RIGHT(各データ整理!BB15,LEN(各データ整理!BB15)-FIND("-",各データ整理!BB15,FIND("-",各データ整理!BB15)))*1,"") -> 
AK56: =+IF(各データ整理!BC14>169%,各データ整理!BB14,"") ->  | AT56: =IFERROR(RIGHT(各データ整理!BB16,LEN(各データ整理!BB16)-FIND("-",各データ整理!BB16,FIND("-",各データ整理!BB16)))*1,"") -> 
AV57: 個数 | AW57: 候補
AU58: =IFERROR(INDEX($AU$12:$AU$56,MATCH(0,INDEX(COUNTIF(AU$57:$AU57,$AU$12:$AU$56&""),),0)),"") ->  | AV58: =+IF(AU58="","",COUNTIF($AT$12:$AU$54,AU58)) ->  | AW58: =+AV28 -> 
AU59: =IFERROR(INDEX($AU$12:$AU$56,MATCH(0,INDEX(COUNTIF(AU$57:$AU58,$AU$12:$AU$56&""),),0)),"") ->  | AV59: =+IF(AU59="","",COUNTIF($AT$12:$AU$54,AU59)) ->  | AW59: =+AV29 -> 
AU60: =IFERROR(INDEX($AU$12:$AU$56,MATCH(0,INDEX(COUNTIF(AU$57:$AU59,$AU$12:$AU$56&""),),0)),"") ->  | AV60: =+IF(AU60="","",COUNTIF($AT$12:$AU$54,AU60)) ->  | AW60: =+AV34 -> 
AU61: =IFERROR(INDEX($AU$12:$AU$56,MATCH(0,INDEX(COUNTIF(AU$57:$AU60,$AU$12:$AU$56&""),),0)),"") ->  | AV61: =+IF(AU61="","",COUNTIF($AT$12:$AU$54,AU61)) ->  | AW61: =+AV35 -> 
AU62: =IFERROR(INDEX($AU$12:$AU$56,MATCH(0,INDEX(COUNTIF(AU$57:$AU61,$AU$12:$AU$56&""),),0)),"") ->  | AX62: 個数
AU63: =IFERROR(INDEX($AU$12:$AU$56,MATCH(0,INDEX(COUNTIF(AU$57:$AU62,$AU$12:$AU$56&""),),0)),"") ->  | AW63: =IFERROR(INDEX($AW$58:$AW$61,MATCH(0,INDEX(COUNTIF($AW$62:AW62,$AW$58:$AW$61&""),),0)),"") ->  | AX63: =+INDEX(AV58:AV66,MATCH(AW63,AU58:AU66,0)) -> 
AU64: =IFERROR(INDEX($AU$12:$AU$56,MATCH(0,INDEX(COUNTIF(AU$57:$AU63,$AU$12:$AU$56&""),),0)),"") ->  | AW64: =IFERROR(INDEX($AW$58:$AW$61,MATCH(0,INDEX(COUNTIF($AW$62:AW63,$AW$58:$AW$61&""),),0)),"") ->  | AX64: =+INDEX(AV58:AV66,MATCH(AW64,AU58:AU66,0)) -> 
AU65: =IFERROR(INDEX($AU$12:$AU$56,MATCH(0,INDEX(COUNTIF(AU$57:$AU64,$AU$12:$AU$56&""),),0)),"") ->  | AV65: =+IF(AU65="","",COUNTIF($AT$12:$AU$56,AU65)) ->  | AW65: =IFERROR(INDEX($AW$58:$AW$61,MATCH(0,INDEX(COUNTIF($AW$62:AW64,$AW$58:$AW$61&""),),0)),"") ->  | AX65: =+INDEX(AV59:AV67,MATCH(AW65,AU59:AU67,0)) -> 
AU66: =IFERROR(INDEX($AU$12:$AU$56,MATCH(0,INDEX(COUNTIF(AU$57:$AU65,$AU$12:$AU$56&""),),0)),"") ->  | AW66: =IFERROR(INDEX($AW$58:$AW$61,MATCH(0,INDEX(COUNTIF($AW$62:AW65,$AW$58:$AW$61&""),),0)),"") -> 
AU67: 馬番 | AW67: =+AV30 -> 
AU68: =+LARGE(AV58:AV66,1) ->  | AV68: =+INDEX(AU58:AU66,MATCH(AU68,AV58:AV66,0)) ->  | AW68: =+AV36 -> 0
AU69: =+LARGE(AV58:AV66,2) ->  | AV69: =+INDEX(AU58:AU66,MATCH(AU69,AV58:AV66,0)) -> 
AU70: =+LARGE(AV58:AV66,3) ->  | AV70: =+INDEX(AU58:AU66,MATCH(AU70,AV58:AV66,0)) ->  | AW70: =IFERROR(INDEX($AW$63:$AW$68,MATCH(0,INDEX(COUNTIF($AW$69:AW69,$AW$63:$AW$68&""),),0)),"") -> 0
AW71: =IFERROR(INDEX($AW$63:$AW$68,MATCH(0,INDEX(COUNTIF($AW$69:AW70,$AW$63:$AW$68&""),),0)),"") -> 
AW72: =IFERROR(INDEX($AW$63:$AW$68,MATCH(0,INDEX(COUNTIF($AW$69:AW71,$AW$63:$AW$68&""),),0)),"") -> 
AW73: =IFERROR(INDEX($AW$63:$AW$68,MATCH(0,INDEX(COUNTIF($AW$69:AW72,$AW$63:$AW$68&""),),0)),"") -> 
AW74: 単強め

Sheet 作業ページ (hidden)
E1: =+Sheet11!V1 -> 2R | F1: 1 | G1: 2 | H1: 3 | I1: 4 | J1: 5 | K1: 6 | L1: 7 | M1: 8 | N1: 9 | O1: 10 | P1: 11 | Q1: 12 | R1: 13 | S1: 14 | T1: 15 | U1: 16 | V1: 1 | W1: 2 | X1: 3 | Y1: 4 | Z1: 5 | AA1: 6 | AB1: 7 | AC1: 8 | AD1: 9 | AE1: 10 | AF1: 11 | AG1: 12 | AH1: 13 | AI1: 14 | AJ1: 15 | AK1: 16 | AQ1: 1 | AR1: =+INDEX($D$2:$D$132,MATCH(AL133,$AL$2:$AL$132,0)) -> 0 | AW1: =+st!AQ53 -> 0 | AX1: =+INDEX(st!I3:I28,MATCH(作業ページ!AW1,st!AQ3:AQ28,0)) ->  | AY1: =+st!AQ54 -> 0 | AZ1: =+INDEX(st!I3:I28,MATCH(作業ページ!AY1,st!AQ3:AQ28,0)) ->  | BA1: =+st!AQ55 -> 0 | BB1: =+INDEX(st!I3:I28,MATCH(作業ページ!BA1,st!AQ3:AQ28,0)) ->  | BE1: =+AR155 -> 大井2R | BS1: 回収率 | BT1: =+st!Z229 ->  | CG1: 1位確の場合
B2: =+IFERROR(LEFT(D2,FIND("-",D2)-1)*1,"") -> 1 | C2: =+IFERROR(MID(D2,FIND("-",D2)+1,LEN(D2))*1,"") -> 2 | D2: 1-2 | E2: =+IFERROR(INDEX(st!$Z$3:$Z$57,MATCH(作業ページ!D2,st!$Y$3:$Y$57,0)),"") ->  | F2: =+SMALL((B2,C2,$F$1),1)&"-"&SMALL((B2,C2,$F$1),2)&"-"&SMALL((B2,C2,$F$1),3) -> 1-1-2 | G2: =+SMALL((B2,C2,$G$1),1)&"-"&SMALL((B2,C2,$G$1),2)&"-"&SMALL((B2,C2,$G$1),3) -> 1-2-2 | H2: =+SMALL((B2,C2,$H$1),1)&"-"&SMALL((B2,C2,$H$1),2)&"-"&SMALL((B2,C2,$H$1),3) -> 1-2-3 | I2: =+SMALL((B2,C2,$I$1),1)&"-"&SMALL((B2,C2,$I$1),2)&"-"&SMALL((B2,C2,$I$1),3) -> 1-2-4 | J2: =+SMALL((B2,C2,$J$1),1)&"-"&SMALL((B2,C2,$J$1),2)&"-"&SMALL((B2,C2,$J$1),3) -> 1-2-5 | K2: =+SMALL((B2,C2,$K$1),1)&"-"&SMALL((B2,C2,$K$1),2)&"-"&SMALL((B2,C2,$K$1),3) -> 1-2-6 | L2: =+SMALL((B2,C2,$L$1),1)&"-"&SMALL((B2,C2,$L$1),2)&"-"&SMALL((B2,C2,$L$1),3) -> 1-2-7 | M2: =+SMALL((B2,C2,$M$1),1)&"-"&SMALL((B2,C2,$M$1),2)&"-"&SMALL((B2,C2,$M$1),3) -> 1-2-8 | N2: =+SMALL((B2,C2,$N$1),1)&"-"&SMALL((B2,C2,$N$1),2)&"-"&SMALL((B2,C2,$N$1),3) -> 1-2-9 | O2: =+SMALL((B2,C2,$O$1),1)&"-"&SMALL((B2,C2,$O$1),2)&"-"&SMALL((B2,C2,$O$1),3) -> 1-2-10 | P2: =+SMALL((B2,C2,$P$1),1)&"-"&SMALL((B2,C2,$P$1),2)&"-"&SMALL((B2,C2,$P$1),3) -> 1-2-11 | Q2: =+SMALL((B2,C2,$Q$1),1)&"-"&SMALL((B2,C2,$Q$1),2)&"-"&SMALL((B2,C2,$Q$1),3) -> 1-2-12 | R2: =+SMALL((B2,C2,$R$1),1)&"-"&SMALL((B2,C2,$R$1),2)&"-"&SMALL((B2,C2,$R$1),3) -> 1-2-13 | S2: =+SMALL((B2,C2,$S$1),1)&"-"&SMALL((B2,C2,$S$1),2)&"-"&SMALL((B2,C2,$S$1),3) -> 1-2-14 | T2: =+SMALL((B2,C2,$T$1),1)&"-"&SMALL((B2,C2,$T$1),2)&"-"&SMALL((B2,C2,$T$1),3) -> 1-2-15 | U2: =+SMALL((B2,C2,$U$1),1)&"-"&SMALL((B2,C2,$U$1),2)&"-"&SMALL((B2,C2,$U$1),3) -> 1-2-16 | V2: =+IFERROR(INDEX(st!$AI$3:$AI$52,MATCH(作業ページ!F2,st!$AH$3:$AH$52,0)),"") ->  | W2: =+IFERROR(INDEX(st!$AI$3:$AI$52,MATCH(作業ページ!G2,st!$AH$3:$AH$52,0)),"") ->  | X2: =+IFERROR(INDEX(st!$AI$3:$AI$52,MATCH(作業ページ!H2,st!$AH$3:$AH$52,0)),"") ->  | Y2: =+IFERROR(INDEX(st!$AI$3:$AI$52,MATCH(作業ページ!I2,st!$AH$3:$AH$52,0)),"") ->  | Z2: =+IFERROR(INDEX(st!$AI$3:$AI$52,MATCH(作業ページ!J2,st!$AH$3:$AH$52,0)),"") ->  | AA2: =+IFERROR(INDEX(st!$AI$3:$AI$52,MATCH(作業ページ!K2,st!$AH$3:$AH$52,0)),"") ->  | AB2: =+IFERROR(INDEX(st!$AI$3:$AI$52,MATCH(作業ページ!L2,st!$AH$3:$AH$52,0)),"") ->  | AC2: =+IFERROR(INDEX(st!$AI$3:$AI$52,MATCH(作業ページ!M2,st!$AH$3:$AH$52,0)),"") ->  | AD2: =+IFERROR(INDEX(st!$AI$3:$AI$52,MATCH(作業ページ!N2,st!$AH$3:$AH$52,0)),"") ->  | AE2: =+IFERROR(INDEX(st!$AI$3:$AI$52,MATCH(作業ページ!O2,st!$AH$3:$AH$52,0)),"") ->  | AF2: =+IFERROR(INDEX(st!$AI$3:$AI$52,MATCH(作業ページ!P2,st!$AH$3:$AH$52,0)),"") ->  | AG2: =+IFERROR(INDEX(st!$AI$3:$AI$52,MATCH(作業ページ!Q2,st!$AH$3:$AH$52,0)),"") ->  | AH2: =+IFERROR(INDEX(st!$AI$3:$AI$52,MATCH(作業ページ!R2,st!$AH$3:$AH$52,0)),"") ->  | AI2: =+IFERROR(INDEX(st!$AI$3:$AI$52,MATCH(作業ページ!S2,st!$AH$3:$AH$52,0)),"") ->  | AJ2: =+IFERROR(INDEX(st!$AI$3:$AI$52,MATCH(作業ページ!T2,st!$AH$3:$AH$52,0)),"") ->  | AK2: =+IFERROR(INDEX(st!$AI$3:$AI$52,MATCH(作業ページ!U2,st!$AH$3:$AH$52,0)),"") ->  | AL2: =+COUNTIF(V2:AK2,">0.1")+ROW()/10000 -> 0.0002 | AM2: =+IFERROR(SMALL(V2:AK2,1)+ROW()/10000,"") ->  | AN2: =+IFERROR(IF(OR(AM2="",E2="",E2=0),0,1/AM2-1/E2),0) -> 0 | AO2: =IF(AN2="","",IF(AL2<=1,"",SUM(V2:AK2)/AL2)) ->  | AP2: =+COUNTIF(V2:AJ16,">0.1")+ROW()/10000 -> 0.0002 | AQ2: =+C2 -> 2 | AR2: =+INDEX($D$2:$D$132,MATCH(AL134,$AL$2:$AL$132,0)) -> 14-18 | AU2: =+SMALL(AQ133:AQ147,1) ->  | AV2: =+INDEX($AP$133:$AP$147,MATCH(AU2,$AQ$133:$AQ$147,0)) ->  | AW2: =+INDEX(st!AJ3:AJ27,MATCH(作業ページ!AW1,st!AQ3:AQ27,0)) ->  | AX2: =+INDEX(st!AK3:AK27,MATCH(作業ページ!AW1,st!AQ3:AQ27,0)) ->  | AY2: =+INDEX(st!AJ3:AJ27,MATCH(作業ページ!AY1,st!AQ3:AQ27,0)) ->  | AZ2: =+INDEX(st!AK3:AK27,MATCH(作業ページ!AY1,st!AQ3:AQ27,0)) ->  | BA2: =+INDEX(st!AJ3:AJ27,MATCH(作業ページ!BA1,st!AQ3:AQ27,0)) ->  | BB2: =+INDEX(st!AK3:AK27,MATCH(作業ページ!BA1,st!AQ3:AQ27,0)) ->  | BJ2: =+INDEX(各データ整理!AO3:AO6,MATCH(作業ページ!BF14,各データ整理!AU3:AU6,0)) ->  | BK2: =+INDEX(各データ整理!AP3:AP6,MATCH(BF14,各データ整理!AU3:AU6,0)) ->  | BL2: =+INDEX(各データ整理!AQ3:AQ6,MATCH(作業ページ!BF14,各データ整理!AU3:AU6,0)) ->  | BS2: =+INDEX(st!AH3:AH32,MATCH(作業ページ!AW1,st!AQ3:AQ32,0)) ->  | BT2: =+INDEX(st!AI3:AI32,MATCH(作業ページ!AW1,st!AQ3:AQ32,0)) ->  | CD2: =+IFERROR(IF(BS2="","",LEFT(BS2,FIND("-",SUBSTITUTE(BS2,"-","-",4))-1))*1,"") ->  | CE2: =IFERROR(IF(BS2="","",MID(BS2,SEARCH("-",BS2,1)+1,SEARCH("-",BS2,SEARCH("-",BS2,1)+1)-(SEARCH("-",BS2,1)+1)))*1,"") ->  | CF2: =IFERROR(TRIM(MID(SUBSTITUTE(BS2,"-",REPT(" ",100)),100*2,100))*1,"") ->  | CG2: =+IF($BK$43=CD2,"",MIN($BK$43,CD2)&"-"&MAX($BK$43,CD2)) -> 
B3: =+IFERROR(LEFT(D3,FIND("-",D3)-1)*1,"") -> 1 | C3: =+IFERROR(MID(D3,FIND("-",D3)+1,LEN(D3))*1,"") -> 3 | D3: 1-3 | E3: =+IFERROR(INDEX(st!$Z$3:$Z$57,MATCH(作業ページ!D3,st!$Y$3:$Y$57,0)),"") ->  | F3: =+SMALL((B3,C3,$F$1),1)&"-"&SMALL((B3,C3,$F$1),2)&"-"&SMALL((B3,C3,$F$1),3) -> 1-1-3 | G3: =+SMALL((B3,C3,$G$1),1)&"-"&SMALL((B3,C3,$G$1),2)&"-"&SMALL((B3,C3,$G$1),3) -> 1-2-3 | H3: =+SMALL((B3,C3,$H$1),1)&"-"&SMALL((B3,C3,$H$1),2)&"-"&SMALL((B3,C3,$H$1),3) -> 1-3-3 | I3: =+SMALL((B3,C3,$I$1),1)&"-"&SMALL((B3,C3,$I$1),2)&"-"&SMALL((B3,C3,$I$1),3) -> 1-3-4 | J3: =+SMALL((B3,C3,$J$1),1)&"-"&SMALL((B3,C3,$J$1),2)&"-"&SMALL((B3,C3,$J$1),3) -> 1-3-5 | K3: =+SMALL((B3,C3,$K$1),1)&"-"&SMALL((B3,C3,$K$1),2)&"-"&SMALL((B3,C3,$K$1),3) -> 1-3-6 | L3: =+SMALL((B3,C3,$L$1),1)&"-"&SMALL((B3,C3,$L$1),2)&"-"&SMALL((B3,C3,$L$1),3) -> 1-3-7 | M3: =+SMALL((B3,C3,$M$1),1)&"-"&SMALL((B3,C3,$M$1),2)&"-"&SMALL((B3,C3,$M$1),3) -> 1-3-8 | N3: =+SMALL((B3,C3,$N$1),1)&"-"&SMALL((B3,C3,$N$1),2)&"-"&SMALL((B3,C3,$N$1),3) -> 1-3-9 | O3: =+SMALL((B3,C3,$O$1),1)&"-"&SMALL((B3,C3,$O$1),2)&"-"&SMALL((B3,C3,$O$1),3) -> 1-3-10 | P3: =+SMALL((B3,C3,$P$1),1)&"-"&SMALL((B3,C3,$P$1),2)&"-"&SMALL((B3,C3,$P$1),3) -> 1-3-11 | Q3: =+SMALL((B3,C3,$Q$1),1)&"-"&SMALL((B3,C3,$Q$1),2)&"-"&SMALL((B3,C3,$Q$1),3) -> 1-3-12 | R3: =+SMALL((B3,C3,$R$1),1)&"-"&SMALL((B3,C3,$R$1),2)&"-"&SMALL((B3,C3,$R$1),3) -> 1-3-13 | S3: =+SMALL((B3,C3,$S$1),1)&"-"&SMALL((B3,C3,$S$1),2)&"-"&SMALL((B3,C3,$S$1),3) -> 1-3-14 | T3: =+SMALL((B3,C3,$T$1),1)&"-"&SMALL((B3,C3,$T$1),2)&"-"&SMALL((B3,C3,$T$1),3) -> 1-3-15 | U3: =+SMALL((B3,C3,$U$1),1)&"-"&SMALL((B3,C3,$U$1),2)&"-"&SMALL((B3,C3,$U$1),3) -> 1-3-16 | V3: =+IFERROR(INDEX(st!$AI$3:$AI$52,MATCH(作業ページ!F3,st!$AH$3:$AH$52,0)),"") ->  | W3: =+IFERROR(INDEX(st!$AI$3:$AI$52,MATCH(作業ページ!G3,st!$AH$3:$AH$52,0)),"") ->  | X3: =+IFERROR(INDEX(st!$AI$3:$AI$52,MATCH(作業ページ!H3,st!$AH$3:$AH$52,0)),"") ->  | Y3: =+IFERROR(INDEX(st!$AI$3:$AI$52,MATCH(作業ページ!I3,st!$AH$3:$AH$52,0)),"") ->  | Z3: =+IFERROR(INDEX(st!$AI$3:$AI$52,MATCH(作業ページ!J3,st!$AH$3:$AH$52,0)),"") ->  | AA3: =+IFERROR(INDEX(st!$AI$3:$AI$52,MATCH(作業ページ!K3,st!$AH$3:$AH$52,0)),"") ->  | AB3: =+IFERROR(INDEX(st!$AI$3:$AI$52,MATCH(作業ページ!L3,st!$AH$3:$AH$52,0)),"") ->  | AC3: =+IFERROR(INDEX(st!$AI$3:$AI$52,MATCH(作業ページ!M3,st!$AH$3:$AH$52,0)),"") ->  | AD3: =+IFERROR(INDEX(st!$AI$3:$AI$52,MATCH(作業ページ!N3,st!$AH$3:$AH$52,0)),"") ->  | AE3: =+IFERROR(INDEX(st!$AI$3:$AI$52,MATCH(作業ページ!O3,st!$AH$3:$AH$52,0)),"") ->  | AF3: =+IFERROR(INDEX(st!$AI$3:$AI$52,MATCH(作業ページ!P3,st!$AH$3:$AH$52,0)),"") ->  | AG3: =+IFERROR(INDEX(st!$AI$3:$AI$52,MATCH(作業ページ!Q3,st!$AH$3:$AH$52,0)),"") ->  | AH3: =+IFERROR(INDEX(st!$AI$3:$AI$52,MATCH(作業ページ!R3,st!$AH$3:$AH$52,0)),"") ->  | AI3: =+IFERROR(INDEX(st!$AI$3:$AI$52,MATCH(作業ページ!S3,st!$AH$3:$AH$52,0)),"") ->  | AJ3: =+IFERROR(INDEX(st!$AI$3:$AI$52,MATCH(作業ページ!T3,st!$AH$3:$AH$52,0)),"") ->  | AK3: =+IFERROR(INDEX(st!$AI$3:$AI$52,MATCH(作業ページ!U3,st!$AH$3:$AH$52,0)),"") ->  | AL3: =+COUNTIF(V3:AK3,">0.1")+ROW()/10000 -> 0.0003 | AM3: =+IFERROR(SMALL(V3:AK3,1)+ROW()/10000,"") ->  | AN3: =+IFERROR(IF(OR(AM3="",E3="",E3=0),0,1/AM3-1/E3),0) -> 0 | AO3: =IF(AN3="","",IF(AL3<=1,"",SUM(V3:AK3)/AL3)) ->  | AQ3: 3 | AR3: =+INDEX($D$2:$D$132,MATCH(AL135,$AL$2:$AL$132,0)) -> 14-17 | AU3: =+SMALL(AQ133:AQ147,2) ->  | AV3: =+INDEX($AP$133:$AP$147,MATCH(AU3,$AQ$133:$AQ$147,0)) ->  | AW3: =+INDEX(st!AL3:AL27,MATCH(作業ページ!AW1,st!AQ3:AQ27,0)) ->  | AX3: =+INDEX(st!AM3:AM27,MATCH(作業ページ!AW1,st!AQ3:AQ27,0)) ->  | AY3: =+INDEX(st!AL3:AL27,MATCH(作業ページ!AY1,st!AQ3:AQ27,0)) ->  | AZ3: =+INDEX(st!AM3:AM27,MATCH(作業ページ!AY1,st!AQ3:AQ27,0)) ->  | BA3: =+INDEX(st!AL3:AL27,MATCH(作業ページ!BA1,st!AQ3:AQ27,0)) ->  | BB3: =+INDEX(st!AM3:AM27,MATCH(作業ページ!BA1,st!AQ3:AQ27,0)) ->  | BG3: =+IF(AND(BB5>=2,BC5>=1,COUNTIF(AS3:AS5,"1")=1),"〇","") ->  | BJ3: =+INDEX(各データ整理!AO3:AO6,MATCH(各データ整理!AY6,各データ整理!AU3:AU6,0)) ->  | BK3: =+INDEX(各データ整理!AP3:AP6,MATCH(各データ整理!AY6,各データ整理!AU3:AU6,0)) ->  | BL3: =+INDEX(各データ整理!AQ3:AQ6,MATCH(各データ整理!AY6,各データ整理!AU3:AU6,0)) ->  | BS3: =+INDEX(st!AH3:AH22,MATCH(作業ページ!AY1,st!AQ3:AQ22,0)) ->  | BT3: =+INDEX(st!AI3:AI32,MATCH(作業ページ!AY1,st!AQ3:AQ32,0)) ->  | BX3: 例 | BZ3: =+COUNTIF(BZ4:BZ16,">59%") -> 0 | CA3: 例 | CD3: =+IFERROR(IF(BS3="","",LEFT(BS3,FIND("-",SUBSTITUTE(BS3,"-","-",4))-1))*1,"") ->  | CE3: =IFERROR(IF(BS3="","",MID(BS3,SEARCH("-",BS3,1)+1,SEARCH("-",BS3,SEARCH("-",BS3,1)+1)-(SEARCH("-",BS3,1)+1)))*1,"") ->  | CF3: =IFERROR(TRIM(MID(SUBSTITUTE(BS3,"-",REPT(" ",100)),100*2,100))*1,"") ->  | CG3: =+IF($BK$43=CE2,"",MIN($BK$43,CE2)&"-"&MAX($BK$43,CE2)) -> 
B4: 1 | C4: 4 | D4: 1-4 | E4: =+IFERROR(INDEX(st!$Z$3:$Z$57,MATCH(作業ページ!D4,st!$Y$3:$Y$57,0)),"") ->  | F4: =+SMALL((B4,C4,$F$1),1)&"-"&SMALL((B4,C4,$F$1),2)&"-"&SMALL((B4,C4,$F$1),3) -> 1-1-4 | G4: =+SMALL((B4,C4,$G$1),1)&"-"&SMALL((B4,C4,$G$1),2)&"-"&SMALL((B4,C4,$G$1),3) -> 1-2-4 | H4: =+SMALL((B4,C4,$H$1),1)&"-"&SMALL((B4,C4,$H$1),2)&"-"&SMALL((B4,C4,$H$1),3) -> 1-3-4 | I4: =+SMALL((B4,C4,$I$1),1)&"-"&SMALL((B4,C4,$I$1),2)&"-"&SMALL((B4,C4,$I$1),3) -> 1-4-4 | J4: =+SMALL((B4,C4,$J$1),1)&"-"&SMALL((B4,C4,$J$1),2)&"-"&SMALL((B4,C4,$J$1),3) -> 1-4-5 | K4: =+SMALL((B4,C4,$K$1),1)&"-"&SMALL((B4,C4,$K$1),2)&"-"&SMALL((B4,C4,$K$1),3) -> 1-4-6 | L4: =+SMALL((B4,C4,$L$1),1)&"-"&SMALL((B4,C4,$L$1),2)&"-"&SMALL((B4,C4,$L$1),3) -> 1-4-7 | M4: =+SMALL((B4,C4,$M$1),1)&"-"&SMALL((B4,C4,$M$1),2)&"-"&SMALL((B4,C4,$M$1),3) -> 1-4-8 | N4: =+SMALL((B4,C4,$N$1),1)&"-"&SMALL((B4,C4,$N$1),2)&"-"&SMALL((B4,C4,$N$1),3) -> 1-4-9 | O4: =+SMALL((B4,C4,$O$1),1)&"-"&SMALL((B4,C4,$O$1),2)&"-"&SMALL((B4,C4,$O$1),3) -> 1-4-10 | P4: =+SMALL((B4,C4,$P$1),1)&"-"&SMALL((B4,C4,$P$1),2)&"-"&SMALL((B4,C4,$P$1),3) -> 1-4-11 | Q4: =+SMALL((B4,C4,$Q$1),1)&"-"&SMALL((B4,C4,$Q$1),2)&"-"&SMALL((B4,C4,$Q$1),3) -> 1-4-12 | R4: =+SMALL((B4,C4,$R$1),1)&"-"&SMALL((B4,C4,$R$1),2)&"-"&SMALL((B4,C4,$R$1),3) -> 1-4-13 | S4: =+SMALL((B4,C4,$S$1),1)&"-"&SMALL((B4,C4,$S$1),2)&"-"&SMALL((B4,C4,$S$1),3) -> 1-4-14 | T4: =+SMALL((B4,C4,$T$1),1)&"-"&SMALL((B4,C4,$T$1),2)&"-"&SMALL((B4,C4,$T$1),3) -> 1-4-15 | U4: =+SMALL((B4,C4,$U$1),1)&"-"&SMALL((B4,C4,$U$1),2)&"-"&SMALL((B4,C4,$U$1),3) -> 1-4-16 | V4: =+IFERROR(INDEX(st!$AI$3:$AI$52,MATCH(作業ページ!F4,st!$AH$3:$AH$52,0)),"") ->  | W4: =+IFERROR(INDEX(st!$AI$3:$AI$52,MATCH(作業ページ!G4,st!$AH$3:$AH$52,0)),"") ->  | X4: =+IFERROR(INDEX(st!$AI$3:$AI$52,MATCH(作業ページ!H4,st!$AH$3:$AH$52,0)),"") ->  | Y4: =+IFERROR(INDEX(st!$AI$3:$AI$52,MATCH(作業ページ!I4,st!$AH$3:$AH$52,0)),"") ->  | Z4: =+IFERROR(INDEX(st!$AI$3:$AI$52,MATCH(作業ページ!J4,st!$AH$3:$AH$52,0)),"") ->  | AA4: =+IFERROR(INDEX(st!$AI$3:$AI$52,MATCH(作業ページ!K4,st!$AH$3:$AH$52,0)),"") ->  | AB4: =+IFERROR(INDEX(st!$AI$3:$AI$52,MATCH(作業ページ!L4,st!$AH$3:$AH$52,0)),"") ->  | AC4: =+IFERROR(INDEX(st!$AI$3:$AI$52,MATCH(作業ページ!M4,st!$AH$3:$AH$52,0)),"") ->  | AD4: =+IFERROR(INDEX(st!$AI$3:$AI$52,MATCH(作業ページ!N4,st!$AH$3:$AH$52,0)),"") ->  | AE4: =+IFERROR(INDEX(st!$AI$3:$AI$52,MATCH(作業ページ!O4,st!$AH$3:$AH$52,0)),"") ->  | AF4: =+IFERROR(INDEX(st!$AI$3:$AI$52,MATCH(作業ページ!P4,st!$AH$3:$AH$52,0)),"") ->  | AG4: =+IFERROR(INDEX(st!$AI$3:$AI$52,MATCH(作業ページ!Q4,st!$AH$3:$AH$52,0)),"") ->  | AH4: =+IFERROR(INDEX(st!$AI$3:$AI$52,MATCH(作業ページ!R4,st!$AH$3:$AH$52,0)),"") ->  | AI4: =+IFERROR(INDEX(st!$AI$3:$AI$52,MATCH(作業ページ!S4,st!$AH$3:$AH$52,0)),"") ->  | AJ4: =+IFERROR(INDEX(st!$AI$3:$AI$52,MATCH(作業ページ!T4,st!$AH$3:$AH$52,0)),"") ->  | AK4: =+IFERROR(INDEX(st!$AI$3:$AI$52,MATCH(作業ページ!U4,st!$AH$3:$AH$52,0)),"") ->  | AL4: 0.0004 | AN4: 0 | AQ4: 4 | AR4: =+INDEX($D$2:$D$132,MATCH(AL136,$AL$2:$AL$132,0)) -> 14-16 | AU4: =+SMALL(AQ133:AQ147,3) ->  | AW4: =+INDEX(st!AN3:AN27,MATCH(作業ページ!AW1,st!AQ3:AQ27,0)) ->  | AX4: =+INDEX(st!AO3:AO27,MATCH(作業ページ!AW1,st!AQ3:AQ27,0)) ->  | AY4: =+INDEX(st!AN3:AN27,MATCH(作業ページ!AY1,st!AQ3:AQ27,0)) ->  | AZ4: =+INDEX(st!AO3:AO27,MATCH(作業ページ!AY1,st!AQ3:AQ27,0)) ->  | BA4: =+INDEX(st!AN3:AN27,MATCH(作業ページ!BA1,st!AQ3:AQ27,0)) ->  | BB4: =+INDEX(st!AO3:AO27,MATCH(作業ページ!BA1,st!AQ3:AQ27,0)) ->  | BE4: =+IF(BF4<-19.4%,"〇","") ->  | BF4: =+IF(AM138="",0,AM138) -> 0 | BG4: .-10%以下 | BJ4: =+INDEX(各データ整理!AO3:AO19,MATCH(作業ページ!BI9,各データ整理!AS3:AS19,0)) ->  | BK4: =+INDEX(各データ整理!AP3:AP19,MATCH(作業ページ!BI9,各データ整理!AS3:AS19,0)) ->  | BL4: =+INDEX(各データ整理!AQ3:AQ19,MATCH(作業ページ!BI9,各データ整理!AS3:AS19,0)) ->  | BS4: =+INDEX(st!AH3:AH22,MATCH(作業ページ!BA1,st!AQ3:AQ22,0)) ->  | BT4: =+INDEX(st!AI3:AI32,MATCH(作業ページ!BA1,st!AQ3:AQ32,0)) ->  | BX4: -0.403538547 | BY4: ・ | BZ4: =+BF4/BX4 -> 0 | CD4: =+IFERROR(IF(BS4="","",LEFT(BS4,FIND("-",SUBSTITUTE(BS4,"-","-",4))-1))*1,"") ->  | CE4: =IFERROR(IF(BS4="","",MID(BS4,SEARCH("-",BS4,1)+1,SEARCH("-",BS4,SEARCH("-",BS4,1)+1)-(SEARCH("-",BS4,1)+1)))*1,"") ->  | CF4: =IFERROR(TRIM(MID(SUBSTITUTE(BS4,"-",REPT(" ",100)),100*2,100))*1,"") ->  | CG4: =+IF($BK$43=CF2,"",MIN($BK$43,CF2)&"-"&MAX($BK$43,CF2)) -> 
B5: 1 | C5: 5 | D5: 1-5 | E5: =+IFERROR(INDEX(st!$Z$3:$Z$57,MATCH(作業ページ!D5,st!$Y$3:$Y$57,0)),"") ->  | F5: =+SMALL((B5,C5,$F$1),1)&"-"&SMALL((B5,C5,$F$1),2)&"-"&SMALL((B5,C5,$F$1),3) -> 1-1-5 | G5: =+SMALL((B5,C5,$G$1),1)&"-"&SMALL((B5,C5,$G$1),2)&"-"&SMALL((B5,C5,$G$1),3) -> 1-2-5 | H5: =+SMALL((B5,C5,$H$1),1)&"-"&SMALL((B5,C5,$H$1),2)&"-"&SMALL((B5,C5,$H$1),3) -> 1-3-5 | I5: =+SMALL((B5,C5,$I$1),1)&"-"&SMALL((B5,C5,$I$1),2)&"-"&SMALL((B5,C5,$I$1),3) -> 1-4-5 | J5: =+SMALL((B5,C5,$J$1),1)&"-"&SMALL((B5,C5,$J$1),2)&"-"&SMALL((B5,C5,$J$1),3) -> 1-5-5 | K5: =+SMALL((B5,C5,$K$1),1)&"-"&SMALL((B5,C5,$K$1),2)&"-"&SMALL((B5,C5,$K$1),3) -> 1-5-6 | L5: =+SMALL((B5,C5,$L$1),1)&"-"&SMALL((B5,C5,$L$1),2)&"-"&SMALL((B5,C5,$L$1),3) -> 1-5-7 | M5: =+SMALL((B5,C5,$M$1),1)&"-"&SMALL((B5,C5,$M$1),2)&"-"&SMALL((B5,C5,$M$1),3) -> 1-5-8 | N5: =+SMALL((B5,C5,$N$1),1)&"-"&SMALL((B5,C5,$N$1),2)&"-"&SMALL((B5,C5,$N$1),3) -> 1-5-9 | O5: =+SMALL((B5,C5,$O$1),1)&"-"&SMALL((B5,C5,$O$1),2)&"-"&SMALL((B5,C5,$O$1),3) -> 1-5-10 | P5: =+SMALL((B5,C5,$P$1),1)&"-"&SMALL((B5,C5,$P$1),2)&"-"&SMALL((B5,C5,$P$1),3) -> 1-5-11 | Q5: =+SMALL((B5,C5,$Q$1),1)&"-"&SMALL((B5,C5,$Q$1),2)&"-"&SMALL((B5,C5,$Q$1),3) -> 1-5-12 | R5: =+SMALL((B5,C5,$R$1),1)&"-"&SMALL((B5,C5,$R$1),2)&"-"&SMALL((B5,C5,$R$1),3) -> 1-5-13 | S5: =+SMALL((B5,C5,$S$1),1)&"-"&SMALL((B5,C5,$S$1),2)&"-"&SMALL((B5,C5,$S$1),3) -> 1-5-14 | T5: =+SMALL((B5,C5,$T$1),1)&"-"&SMALL((B5,C5,$T$1),2)&"-"&SMALL((B5,C5,$T$1),3) -> 1-5-15 | U5: =+SMALL((B5,C5,$U$1),1)&"-"&SMALL((B5,C5,$U$1),2)&"-"&SMALL((B5,C5,$U$1),3) -> 1-5-16 | V5: =+IFERROR(INDEX(st!$AI$3:$AI$52,MATCH(作業ページ!F5,st!$AH$3:$AH$52,0)),"") ->  | W5: =+IFERROR(INDEX(st!$AI$3:$AI$52,MATCH(作業ページ!G5,st!$AH$3:$AH$52,0)),"") ->  | X5: =+IFERROR(INDEX(st!$AI$3:$AI$52,MATCH(作業ページ!H5,st!$AH$3:$AH$52,0)),"") ->  | Y5: =+IFERROR(INDEX(st!$AI$3:$AI$52,MATCH(作業ページ!I5,st!$AH$3:$AH$52,0)),"") ->  | Z5: =+IFERROR(INDEX(st!$AI$3:$AI$52,MATCH(作業ページ!J5,st!$AH$3:$AH$52,0)),"") ->  | AA5: =+IFERROR(INDEX(st!$AI$3:$AI$52,MATCH(作業ページ!K5,st!$AH$3:$AH$52,0)),"") ->  | AB5: =+IFERROR(INDEX(st!$AI$3:$AI$52,MATCH(作業ページ!L5,st!$AH$3:$AH$52,0)),"") ->  | AC5: =+IFERROR(INDEX(st!$AI$3:$AI$52,MATCH(作業ページ!M5,st!$AH$3:$AH$52,0)),"") ->  | AD5: =+IFERROR(INDEX(st!$AI$3:$AI$52,MATCH(作業ページ!N5,st!$AH$3:$AH$52,0)),"") ->  | AE5: =+IFERROR(INDEX(st!$AI$3:$AI$52,MATCH(作業ページ!O5,st!$AH$3:$AH$52,0)),"") ->  | AF5: =+IFERROR(INDEX(st!$AI$3:$AI$52,MATCH(作業ページ!P5,st!$AH$3:$AH$52,0)),"") ->  | AG5: =+IFERROR(INDEX(st!$AI$3:$AI$52,MATCH(作業ページ!Q5,st!$AH$3:$AH$52,0)),"") ->  | AH5: =+IFERROR(INDEX(st!$AI$3:$AI$52,MATCH(作業ページ!R5,st!$AH$3:$AH$52,0)),"") ->  | AI5: =+IFERROR(INDEX(st!$AI$3:$AI$52,MATCH(作業ページ!S5,st!$AH$3:$AH$52,0)),"") ->  | AJ5: =+IFERROR(INDEX(st!$AI$3:$AI$52,MATCH(作業ページ!T5,st!$AH$3:$AH$52,0)),"") ->  | AK5: =+IFERROR(INDEX(st!$AI$3:$AI$52,MATCH(作業ページ!U5,st!$AH$3:$AH$52,0)),"") ->  | AL5: 0.0005 | AN5: 0 | AQ5: 5 | AR5: =+INDEX($D$2:$D$132,MATCH(AL137,$AL$2:$AL$132,0)) -> 14-15 | AU5: =+SMALL(AQ133:AQ147,4) ->  | AW5: 1人気 | AX5: =+Sheet11!U3 -> 8 | AY5: =+Sheet11!W3 -> 2.100392999 | AZ5: 断層 | BA5: =+Sheet11!AL64 -> 0 | BB5: =+COUNTIF(AT3:AT11,">1.59") -> 0 | BC5: =+COUNTIF(AS3:AS7,"<3") -> 0 | BE5: =+IF(AN133>24%,"★",IF(BF5>9.9%,"〇","")) ->  | BF5: =+MIN(AN133:AN137) -> 0 | BG5: 10%以上 | BK5: ３連単流入 | BM5: 上位３頭との差 | BX5: 0.1261348949 | BY5: ・ | BZ5: =+BF5/BX5 -> 0 | CA5: 0.08835325967 | CG5: =+IF($BN$43=CD2,"",MIN($BN$43,CD2)&"-"&MAX($BN$43,CD2)) -> 
B6: 1 | C6: 6 | D6: 1-6 | E6: =+IFERROR(INDEX(st!$Z$3:$Z$57,MATCH(作業ページ!D6,st!$Y$3:$Y$57,0)),"") ->  | F6: =+SMALL((B6,C6,$F$1),1)&"-"&SMALL((B6,C6,$F$1),2)&"-"&SMALL((B6,C6,$F$1),3) -> 1-1-6 | G6: =+SMALL((B6,C6,$G$1),1)&"-"&SMALL((B6,C6,$G$1),2)&"-"&SMALL((B6,C6,$G$1),3) -> 1-2-6 | H6: =+SMALL((B6,C6,$H$1),1)&"-"&SMALL((B6,C6,$H$1),2)&"-"&SMALL((B6,C6,$H$1),3) -> 1-3-6 | I6: =+SMALL((B6,C6,$I$1),1)&"-"&SMALL((B6,C6,$I$1),2)&"-"&SMALL((B6,C6,$I$1),3) -> 1-4-6 | J6: =+SMALL((B6,C6,$J$1),1)&"-"&SMALL((B6,C6,$J$1),2)&"-"&SMALL((B6,C6,$J$1),3) -> 1-5-6 | K6: =+SMALL((B6,C6,$K$1),1)&"-"&SMALL((B6,C6,$K$1),2)&"-"&SMALL((B6,C6,$K$1),3) -> 1-6-6 | L6: =+SMALL((B6,C6,$L$1),1)&"-"&SMALL((B6,C6,$L$1),2)&"-"&SMALL((B6,C6,$L$1),3) -> 1-6-7 | M6: =+SMALL((B6,C6,$M$1),1)&"-"&SMALL((B6,C6,$M$1),2)&"-"&SMALL((B6,C6,$M$1),3) -> 1-6-8 | N6: =+SMALL((B6,C6,$N$1),1)&"-"&SMALL((B6,C6,$N$1),2)&"-"&SMALL((B6,C6,$N$1),3) -> 1-6-9 | O6: =+SMALL((B6,C6,$O$1),1)&"-"&SMALL((B6,C6,$O$1),2)&"-"&SMALL((B6,C6,$O$1),3) -> 1-6-10 | P6: =+SMALL((B6,C6,$P$1),1)&"-"&SMALL((B6,C6,$P$1),2)&"-"&SMALL((B6,C6,$P$1),3) -> 1-6-11 | Q6: =+SMALL((B6,C6,$Q$1),1)&"-"&SMALL((B6,C6,$Q$1),2)&"-"&SMALL((B6,C6,$Q$1),3) -> 1-6-12 | R6: =+SMALL((B6,C6,$R$1),1)&"-"&SMALL((B6,C6,$R$1),2)&"-"&SMALL((B6,C6,$R$1),3) -> 1-6-13 | S6: =+SMALL((B6,C6,$S$1),1)&"-"&SMALL((B6,C6,$S$1),2)&"-"&SMALL((B6,C6,$S$1),3) -> 1-6-14 | T6: =+SMALL((B6,C6,$T$1),1)&"-"&SMALL((B6,C6,$T$1),2)&"-"&SMALL((B6,C6,$T$1),3) -> 1-6-15 | U6: =+SMALL((B6,C6,$U$1),1)&"-"&SMALL((B6,C6,$U$1),2)&"-"&SMALL((B6,C6,$U$1),3) -> 1-6-16 | V6: =+IFERROR(INDEX(st!$AI$3:$AI$52,MATCH(作業ページ!F6,st!$AH$3:$AH$52,0)),"") ->  | W6: =+IFERROR(INDEX(st!$AI$3:$AI$52,MATCH(作業ページ!G6,st!$AH$3:$AH$52,0)),"") ->  | X6: =+IFERROR(INDEX(st!$AI$3:$AI$52,MATCH(作業ページ!H6,st!$AH$3:$AH$52,0)),"") ->  | Y6: =+IFERROR(INDEX(st!$AI$3:$AI$52,MATCH(作業ページ!I6,st!$AH$3:$AH$52,0)),"") ->  | Z6: =+IFERROR(INDEX(st!$AI$3:$AI$52,MATCH(作業ページ!J6,st!$AH$3:$AH$52,0)),"") ->  | AA6: =+IFERROR(INDEX(st!$AI$3:$AI$52,MATCH(作業ページ!K6,st!$AH$3:$AH$52,0)),"") ->  | AB6: =+IFERROR(INDEX(st!$AI$3:$AI$52,MATCH(作業ページ!L6,st!$AH$3:$AH$52,0)),"") ->  | AC6: =+IFERROR(INDEX(st!$AI$3:$AI$52,MATCH(作業ページ!M6,st!$AH$3:$AH$52,0)),"") ->  | AD6: =+IFERROR(INDEX(st!$AI$3:$AI$52,MATCH(作業ページ!N6,st!$AH$3:$AH$52,0)),"") ->  | AE6: =+IFERROR(INDEX(st!$AI$3:$AI$52,MATCH(作業ページ!O6,st!$AH$3:$AH$52,0)),"") ->  | AF6: =+IFERROR(INDEX(st!$AI$3:$AI$52,MATCH(作業ページ!P6,st!$AH$3:$AH$52,0)),"") ->  | AG6: =+IFERROR(INDEX(st!$AI$3:$AI$52,MATCH(作業ページ!Q6,st!$AH$3:$AH$52,0)),"") ->  | AH6: =+IFERROR(INDEX(st!$AI$3:$AI$52,MATCH(作業ページ!R6,st!$AH$3:$AH$52,0)),"") ->  | AI6: =+IFERROR(INDEX(st!$AI$3:$AI$52,MATCH(作業ページ!S6,st!$AH$3:$AH$52,0)),"") ->  | AJ6: =+IFERROR(INDEX(st!$AI$3:$AI$52,MATCH(作業ページ!T6,st!$AH$3:$AH$52,0)),"") ->  | AK6: =+IFERROR(INDEX(st!$AI$3:$AI$52,MATCH(作業ページ!U6,st!$AH$3:$AH$52,0)),"") ->  | AL6: 0.0006 | AN6: 0 | AQ6: 6 | AR6: =+INDEX($D$2:$D$132,MATCH(AM133,$AM$2:$AM$132,0)) ->  | AU6: =+SMALL(AQ133:AQ147,5) ->  | AX6: 候補 | AY6: =1/AY5 -> 0.4761013775 | AZ6: 馬連 | BA6: 枠連 | BB6: １位飛び | BE6: =+IF(BF6<5,"〇","") ->  | BF6: =+AM133 ->  | BG6: 5以下 | BK6: =+Sheet11!U3 -> 8 | BL6: =+IFERROR(IF(BK6="","",INDEX(Sheet11!$AX$3:$AX$18,MATCH(作業ページ!BK6,Sheet11!$AW$3:$AW$18,0))),"") -> 0 | BM6: =+MAX(BL6:BL8)-MAX(BL9:BL15) -> 0 | BN6: =+IF(BL6="","",BL6/$BL$16) ->  | BX6: 3.80043 | BY6: ・ | BZ6: =+BX6/BF6 ->  | CA6: 1.40183 | CG6: =+IF($BN$43=CE2,"",MIN($BN$43,CE2)&"-"&MAX($BN$43,CE2)) -> 
B7: 1 | C7: 7 | D7: 1-7 | E7: =+IFERROR(INDEX(st!$Z$3:$Z$57,MATCH(作業ページ!D7,st!$Y$3:$Y$57,0)),"") ->  | F7: =+SMALL((B7,C7,$F$1),1)&"-"&SMALL((B7,C7,$F$1),2)&"-"&SMALL((B7,C7,$F$1),3) -> 1-1-7 | G7: =+SMALL((B7,C7,$G$1),1)&"-"&SMALL((B7,C7,$G$1),2)&"-"&SMALL((B7,C7,$G$1),3) -> 1-2-7 | H7: =+SMALL((B7,C7,$H$1),1)&"-"&SMALL((B7,C7,$H$1),2)&"-"&SMALL((B7,C7,$H$1),3) -> 1-3-7 | I7: =+SMALL((B7,C7,$I$1),1)&"-"&SMALL((B7,C7,$I$1),2)&"-"&SMALL((B7,C7,$I$1),3) -> 1-4-7 | J7: =+SMALL((B7,C7,$J$1),1)&"-"&SMALL((B7,C7,$J$1),2)&"-"&SMALL((B7,C7,$J$1),3) -> 1-5-7 | K7: =+SMALL((B7,C7,$K$1),1)&"-"&SMALL((B7,C7,$K$1),2)&"-"&SMALL((B7,C7,$K$1),3) -> 1-6-7 | L7: =+SMALL((B7,C7,$L$1),1)&"-"&SMALL((B7,C7,$L$1),2)&"-"&SMALL((B7,C7,$L$1),3) -> 1-7-7 | M7: =+SMALL((B7,C7,$M$1),1)&"-"&SMALL((B7,C7,$M$1),2)&"-"&SMALL((B7,C7,$M$1),3) -> 1-7-8 | N7: =+SMALL((B7,C7,$N$1),1)&"-"&SMALL((B7,C7,$N$1),2)&"-"&SMALL((B7,C7,$N$1),3) -> 1-7-9 | O7: =+SMALL((B7,C7,$O$1),1)&"-"&SMALL((B7,C7,$O$1),2)&"-"&SMALL((B7,C7,$O$1),3) -> 1-7-10 | P7: =+SMALL((B7,C7,$P$1),1)&"-"&SMALL((B7,C7,$P$1),2)&"-"&SMALL((B7,C7,$P$1),3) -> 1-7-11 | Q7: =+SMALL((B7,C7,$Q$1),1)&"-"&SMALL((B7,C7,$Q$1),2)&"-"&SMALL((B7,C7,$Q$1),3) -> 1-7-12 | R7: =+SMALL((B7,C7,$R$1),1)&"-"&SMALL((B7,C7,$R$1),2)&"-"&SMALL((B7,C7,$R$1),3) -> 1-7-13 | S7: =+SMALL((B7,C7,$S$1),1)&"-"&SMALL((B7,C7,$S$1),2)&"-"&SMALL((B7,C7,$S$1),3) -> 1-7-14 | T7: =+SMALL((B7,C7,$T$1),1)&"-"&SMALL((B7,C7,$T$1),2)&"-"&SMALL((B7,C7,$T$1),3) -> 1-7-15 | U7: =+SMALL((B7,C7,$U$1),1)&"-"&SMALL((B7,C7,$U$1),2)&"-"&SMALL((B7,C7,$U$1),3) -> 1-7-16 | V7: =+IFERROR(INDEX(st!$AI$3:$AI$52,MATCH(作業ページ!F7,st!$AH$3:$AH$52,0)),"") ->  | W7: =+IFERROR(INDEX(st!$AI$3:$AI$52,MATCH(作業ページ!G7,st!$AH$3:$AH$52,0)),"") ->  | X7: =+IFERROR(INDEX(st!$AI$3:$AI$52,MATCH(作業ページ!H7,st!$AH$3:$AH$52,0)),"") ->  | Y7: =+IFERROR(INDEX(st!$AI$3:$AI$52,MATCH(作業ページ!I7,st!$AH$3:$AH$52,0)),"") ->  | Z7: =+IFERROR(INDEX(st!$AI$3:$AI$52,MATCH(作業ページ!J7,st!$AH$3:$AH$52,0)),"") ->  | AA7: =+IFERROR(INDEX(st!$AI$3:$AI$52,MATCH(作業ページ!K7,st!$AH$3:$AH$52,0)),"") ->  | AB7: =+IFERROR(INDEX(st!$AI$3:$AI$52,MATCH(作業ページ!L7,st!$AH$3:$AH$52,0)),"") ->  | AC7: =+IFERROR(INDEX(st!$AI$3:$AI$52,MATCH(作業ページ!M7,st!$AH$3:$AH$52,0)),"") ->  | AD7: =+IFERROR(INDEX(st!$AI$3:$AI$52,MATCH(作業ページ!N7,st!$AH$3:$AH$52,0)),"") ->  | AE7: =+IFERROR(INDEX(st!$AI$3:$AI$52,MATCH(作業ページ!O7,st!$AH$3:$AH$52,0)),"") ->  | AF7: =+IFERROR(INDEX(st!$AI$3:$AI$52,MATCH(作業ページ!P7,st!$AH$3:$AH$52,0)),"") ->  | AG7: =+IFERROR(INDEX(st!$AI$3:$AI$52,MATCH(作業ページ!Q7,st!$AH$3:$AH$52,0)),"") ->  | AH7: =+IFERROR(INDEX(st!$AI$3:$AI$52,MATCH(作業ページ!R7,st!$AH$3:$AH$52,0)),"") ->  | AI7: =+IFERROR(INDEX(st!$AI$3:$AI$52,MATCH(作業ページ!S7,st!$AH$3:$AH$52,0)),"") ->  | AJ7: =+IFERROR(INDEX(st!$AI$3:$AI$52,MATCH(作業ページ!T7,st!$AH$3:$AH$52,0)),"") ->  | AK7: =+IFERROR(INDEX(st!$AI$3:$AI$52,MATCH(作業ページ!U7,st!$AH$3:$AH$52,0)),"") ->  | AL7: 0.0007 | AN7: 0 | AQ7: 7 | AR7: =+INDEX($D$2:$D$132,MATCH(AM134,$AM$2:$AM$132,0)) ->  | AU7: =+SMALL(AQ133:AQ147,6) ->  | AZ7: =+IF($AY$9="×","",IF(OR($AY$9="〇",$AY$10="〇",$BT$30<>""),AZ50,"")) ->  | BA7: =+IF($AY$9="×","",IF(OR($AY$9="〇",$AY$10="〇",$BT$30<>""),BA50,"")) ->  | BB7: =+BB63 ->  | BC7: =+IFERROR(INDEX(Sheet11!W3:W18,MATCH(作業ページ!BB7,Sheet11!U3:U18,0)),"") ->  | BD7: =+BD30 ->  | BE7: =+IF(BF7<51%,"〇","") -> 〇 | BF7: =+各データ整理!AX6 -> 0 | BG7: 50%以下 | BK7: =+Sheet11!U4 -> 11 | BL7: =+IFERROR(IF(BK7="","",INDEX(Sheet11!$AX$3:$AX$18,MATCH(作業ページ!BK7,Sheet11!$AW$3:$AW$18,0))),"") -> 0 | BM7: =+BL6-BL7 -> 0 | BN7: =+IF(BL7="","",BL7/$BL$16) ->  | BX7: 0.35 | CA7: 0.1140307018 | CG7: =+IF($BN$43=CF2,"",MIN($BN$43,CF2)&"-"&MAX($BN$43,CF2)) -> 
B8: 1 | C8: 8 | D8: 1-8 | E8: =+IFERROR(INDEX(st!$Z$3:$Z$57,MATCH(作業ページ!D8,st!$Y$3:$Y$57,0)),"") ->  | F8: =+SMALL((B8,C8,$F$1),1)&"-"&SMALL((B8,C8,$F$1),2)&"-"&SMALL((B8,C8,$F$1),3) -> 1-1-8 | G8: =+SMALL((B8,C8,$G$1),1)&"-"&SMALL((B8,C8,$G$1),2)&"-"&SMALL((B8,C8,$G$1),3) -> 1-2-8 | H8: =+SMALL((B8,C8,$H$1),1)&"-"&SMALL((B8,C8,$H$1),2)&"-"&SMALL((B8,C8,$H$1),3) -> 1-3-8 | I8: =+SMALL((B8,C8,$I$1),1)&"-"&SMALL((B8,C8,$I$1),2)&"-"&SMALL((B8,C8,$I$1),3) -> 1-4-8 | J8: =+SMALL((B8,C8,$J$1),1)&"-"&SMALL((B8,C8,$J$1),2)&"-"&SMALL((B8,C8,$J$1),3) -> 1-5-8 | K8: =+SMALL((B8,C8,$K$1),1)&"-"&SMALL((B8,C8,$K$1),2)&"-"&SMALL((B8,C8,$K$1),3) -> 1-6-8 | L8: =+SMALL((B8,C8,$L$1),1)&"-"&SMALL((B8,C8,$L$1),2)&"-"&SMALL((B8,C8,$L$1),3) -> 1-7-8 | M8: =+SMALL((B8,C8,$M$1),1)&"-"&SMALL((B8,C8,$M$1),2)&"-"&SMALL((B8,C8,$M$1),3) -> 1-8-8 | N8: =+SMALL((B8,C8,$N$1),1)&"-"&SMALL((B8,C8,$N$1),2)&"-"&SMALL((B8,C8,$N$1),3) -> 1-8-9 | O8: =+SMALL((B8,C8,$O$1),1)&"-"&SMALL((B8,C8,$O$1),2)&"-"&SMALL((B8,C8,$O$1),3) -> 1-8-10 | P8: =+SMALL((B8,C8,$P$1),1)&"-"&SMALL((B8,C8,$P$1),2)&"-"&SMALL((B8,C8,$P$1),3) -> 1-8-11 | Q8: =+SMALL((B8,C8,$Q$1),1)&"-"&SMALL((B8,C8,$Q$1),2)&"-"&SMALL((B8,C8,$Q$1),3) -> 1-8-12 | R8: =+SMALL((B8,C8,$R$1),1)&"-"&SMALL((B8,C8,$R$1),2)&"-"&SMALL((B8,C8,$R$1),3) -> 1-8-13 | S8: =+SMALL((B8,C8,$S$1),1)&"-"&SMALL((B8,C8,$S$1),2)&"-"&SMALL((B8,C8,$S$1),3) -> 1-8-14 | T8: =+SMALL((B8,C8,$T$1),1)&"-"&SMALL((B8,C8,$T$1),2)&"-"&SMALL((B8,C8,$T$1),3) -> 1-8-15 | U8: =+SMALL((B8,C8,$U$1),1)&"-"&SMALL((B8,C8,$U$1),2)&"-"&SMALL((B8,C8,$U$1),3) -> 1-8-16 | V8: =+IFERROR(INDEX(st!$AI$3:$AI$52,MATCH(作業ページ!F8,st!$AH$3:$AH$52,0)),"") ->  | W8: =+IFERROR(INDEX(st!$AI$3:$AI$52,MATCH(作業ページ!G8,st!$AH$3:$AH$52,0)),"") ->  | X8: =+IFERROR(INDEX(st!$AI$3:$AI$52,MATCH(作業ページ!H8,st!$AH$3:$AH$52,0)),"") ->  | Y8: =+IFERROR(INDEX(st!$AI$3:$AI$52,MATCH(作業ページ!I8,st!$AH$3:$AH$52,0)),"") ->  | Z8: =+IFERROR(INDEX(st!$AI$3:$AI$52,MATCH(作業ページ!J8,st!$AH$3:$AH$52,0)),"") ->  | AA8: =+IFERROR(INDEX(st!$AI$3:$AI$52,MATCH(作業ページ!K8,st!$AH$3:$AH$52,0)),"") ->  | AB8: =+IFERROR(INDEX(st!$AI$3:$AI$52,MATCH(作業ページ!L8,st!$AH$3:$AH$52,0)),"") ->  | AC8: =+IFERROR(INDEX(st!$AI$3:$AI$52,MATCH(作業ページ!M8,st!$AH$3:$AH$52,0)),"") ->  | AD8: =+IFERROR(INDEX(st!$AI$3:$AI$52,MATCH(作業ページ!N8,st!$AH$3:$AH$52,0)),"") ->  | AE8: =+IFERROR(INDEX(st!$AI$3:$AI$52,MATCH(作業ページ!O8,st!$AH$3:$AH$52,0)),"") ->  | AF8: =+IFERROR(INDEX(st!$AI$3:$AI$52,MATCH(作業ページ!P8,st!$AH$3:$AH$52,0)),"") ->  | AG8: =+IFERROR(INDEX(st!$AI$3:$AI$52,MATCH(作業ページ!Q8,st!$AH$3:$AH$52,0)),"") ->  | AH8: =+IFERROR(INDEX(st!$AI$3:$AI$52,MATCH(作業ページ!R8,st!$AH$3:$AH$52,0)),"") ->  | AI8: =+IFERROR(INDEX(st!$AI$3:$AI$52,MATCH(作業ページ!S8,st!$AH$3:$AH$52,0)),"") ->  | AJ8: =+IFERROR(INDEX(st!$AI$3:$AI$52,MATCH(作業ページ!T8,st!$AH$3:$AH$52,0)),"") ->  | AK8: =+IFERROR(INDEX(st!$AI$3:$AI$52,MATCH(作業ページ!U8,st!$AH$3:$AH$52,0)),"") ->  | AL8: 0.0008 | AN8: 0 | AQ8: 8 | AR8: =+INDEX($D$2:$D$132,MATCH(AM135,$AM$2:$AM$132,0)) ->  | AU8: =+SMALL(AQ133:AQ147,7) ->  | AZ8: =+IF($AY$9="×","",IF(OR($AY$9="〇",$AY$10="〇",$BT$30<>""),AZ51,"")) ->  | BB8: =+BB64 ->  | BC8: =+IFERROR(INDEX(Sheet11!W3:W18,MATCH(作業ページ!BB8,Sheet11!U3:U18,0)),"") ->  | BD8: =+BD31 ->  | BE8: =+IF(BF8<300%,"〇","") -> 〇 | BF8: =+Sheet11!AT1 -> 0 | BG8: 250%以下 | BK8: =+Sheet11!U5 -> 1 | BL8: =+IFERROR(IF(BK8="","",INDEX(Sheet11!$AX$3:$AX$18,MATCH(作業ページ!BK8,Sheet11!$AW$3:$AW$18,0))),"") -> 0 | BM8: =+BL6-BL8 -> 0 | BX8: 2.2 | BY8: ・ | BZ8: =+BX8/BF8 ->  | CA8: 1.227180497
B9: 1 | C9: 9 | D9: 1-9 | E9: =+IFERROR(INDEX(st!$Z$3:$Z$57,MATCH(作業ページ!D9,st!$Y$3:$Y$57,0)),"") ->  | F9: =+SMALL((B9,C9,$F$1),1)&"-"&SMALL((B9,C9,$F$1),2)&"-"&SMALL((B9,C9,$F$1),3) -> 1-1-9 | G9: =+SMALL((B9,C9,$G$1),1)&"-"&SMALL((B9,C9,$G$1),2)&"-"&SMALL((B9,C9,$G$1),3) -> 1-2-9 | H9: =+SMALL((B9,C9,$H$1),1)&"-"&SMALL((B9,C9,$H$1),2)&"-"&SMALL((B9,C9,$H$1),3) -> 1-3-9 | I9: =+SMALL((B9,C9,$I$1),1)&"-"&SMALL((B9,C9,$I$1),2)&"-"&SMALL((B9,C9,$I$1),3) -> 1-4-9 | J9: =+SMALL((B9,C9,$J$1),1)&"-"&SMALL((B9,C9,$J$1),2)&"-"&SMALL((B9,C9,$J$1),3) -> 1-5-9 | K9: =+SMALL((B9,C9,$K$1),1)&"-"&SMALL((B9,C9,$K$1),2)&"-"&SMALL((B9,C9,$K$1),3) -> 1-6-9 | L9: =+SMALL((B9,C9,$L$1),1)&"-"&SMALL((B9,C9,$L$1),2)&"-"&SMALL((B9,C9,$L$1),3) -> 1-7-9 | M9: =+SMALL((B9,C9,$M$1),1)&"-"&SMALL((B9,C9,$M$1),2)&"-"&SMALL((B9,C9,$M$1),3) -> 1-8-9 | N9: =+SMALL((B9,C9,$N$1),1)&"-"&SMALL((B9,C9,$N$1),2)&"-"&SMALL((B9,C9,$N$1),3) -> 1-9-9 | O9: =+SMALL((B9,C9,$O$1),1)&"-"&SMALL((B9,C9,$O$1),2)&"-"&SMALL((B9,C9,$O$1),3) -> 1-9-10 | P9: =+SMALL((B9,C9,$P$1),1)&"-"&SMALL((B9,C9,$P$1),2)&"-"&SMALL((B9,C9,$P$1),3) -> 1-9-11 | Q9: =+SMALL((B9,C9,$Q$1),1)&"-"&SMALL((B9,C9,$Q$1),2)&"-"&SMALL((B9,C9,$Q$1),3) -> 1-9-12 | R9: =+SMALL((B9,C9,$R$1),1)&"-"&SMALL((B9,C9,$R$1),2)&"-"&SMALL((B9,C9,$R$1),3) -> 1-9-13 | S9: =+SMALL((B9,C9,$S$1),1)&"-"&SMALL((B9,C9,$S$1),2)&"-"&SMALL((B9,C9,$S$1),3) -> 1-9-14 | T9: =+SMALL((B9,C9,$T$1),1)&"-"&SMALL((B9,C9,$T$1),2)&"-"&SMALL((B9,C9,$T$1),3) -> 1-9-15 | U9: =+SMALL((B9,C9,$U$1),1)&"-"&SMALL((B9,C9,$U$1),2)&"-"&SMALL((B9,C9,$U$1),3) -> 1-9-16 | V9: =+IFERROR(INDEX(st!$AI$3:$AI$52,MATCH(作業ページ!F9,st!$AH$3:$AH$52,0)),"") ->  | W9: =+IFERROR(INDEX(st!$AI$3:$AI$52,MATCH(作業ページ!G9,st!$AH$3:$AH$52,0)),"") ->  | X9: =+IFERROR(INDEX(st!$AI$3:$AI$52,MATCH(作業ページ!H9,st!$AH$3:$AH$52,0)),"") ->  | Y9: =+IFERROR(INDEX(st!$AI$3:$AI$52,MATCH(作業ページ!I9,st!$AH$3:$AH$52,0)),"") ->  | Z9: =+IFERROR(INDEX(st!$AI$3:$AI$52,MATCH(作業ページ!J9,st!$AH$3:$AH$52,0)),"") ->  | AA9: =+IFERROR(INDEX(st!$AI$3:$AI$52,MATCH(作業ページ!K9,st!$AH$3:$AH$52,0)),"") ->  | AB9: =+IFERROR(INDEX(st!$AI$3:$AI$52,MATCH(作業ページ!L9,st!$AH$3:$AH$52,0)),"") ->  | AC9: =+IFERROR(INDEX(st!$AI$3:$AI$52,MATCH(作業ページ!M9,st!$AH$3:$AH$52,0)),"") ->  | AD9: =+IFERROR(INDEX(st!$AI$3:$AI$52,MATCH(作業ページ!N9,st!$AH$3:$AH$52,0)),"") ->  | AE9: =+IFERROR(INDEX(st!$AI$3:$AI$52,MATCH(作業ページ!O9,st!$AH$3:$AH$52,0)),"") ->  | AF9: =+IFERROR(INDEX(st!$AI$3:$AI$52,MATCH(作業ページ!P9,st!$AH$3:$AH$52,0)),"") ->  | AG9: =+IFERROR(INDEX(st!$AI$3:$AI$52,MATCH(作業ページ!Q9,st!$AH$3:$AH$52,0)),"") ->  | AH9: =+IFERROR(INDEX(st!$AI$3:$AI$52,MATCH(作業ページ!R9,st!$AH$3:$AH$52,0)),"") ->  | AI9: =+IFERROR(INDEX(st!$AI$3:$AI$52,MATCH(作業ページ!S9,st!$AH$3:$AH$52,0)),"") ->  | AJ9: =+IFERROR(INDEX(st!$AI$3:$AI$52,MATCH(作業ページ!T9,st!$AH$3:$AH$52,0)),"") ->  | AK9: =+IFERROR(INDEX(st!$AI$3:$AI$52,MATCH(作業ページ!U9,st!$AH$3:$AH$52,0)),"") ->  | AL9: 0.0009 | AN9: 0 | AQ9: 9 | AR9: =+INDEX($D$2:$D$132,MATCH(AM136,$AM$2:$AM$132,0)) ->  | AU9: =+SMALL(AQ133:AQ147,8) ->  | AW9: 範囲判定 | AY9: =+IFERROR(IF(AND(BJ23<10%,BK23<10%,BJ24<10%,BK24<10%,AY33>9%),"〇",IF(AND(Sheet11!AX50>3.9,Sheet11!AL63>1,Sheet11!AL64>1),"",IF(AND(AX1>4,BT35="",BT37="",BT38="",BN32>=7),"×",IF(AND(AX1<3,AZ1<3,AW1<-19%,AY1<-19%,BA5<6,BZ3>4,Sheet11!AL63<=3,Sheet11!AL64>2,BC32<6),"〇",IF(AND(BE11=1,AW1<-49%,Sheet11!AL63<=3,Sheet11!AL64>2,BC32<6),"〇",IF(AND(Sheet11!BD28<=2,Sheet11!BC28>=2,BC32<6),"〇",IF(AND(BC32<=5,BQ34<=5,BQ36>=2,BN32<6),"〇",""))))))),"") ->  | BC9: =+IFERROR(INDEX(Sheet11!W3:W18,MATCH(作業ページ!BB9,Sheet11!U3:U18,0)),"") ->  | BE9: =+IF(BF9<-34.9%,"★","") ->  | BF9: =+AQ155 -> 0 | BG9: .-34%以下 | BI9: =+INDEX(st!AH3:AH22,MATCH(作業ページ!BF9,st!AQ3:AQ22,0)) ->  | BK9: =+Sheet11!U6 -> 5 | BL9: =+IFERROR(IF(BK9="","",INDEX(Sheet11!$AX$3:$AX$18,MATCH(作業ページ!BK9,Sheet11!$AW$3:$AW$18,0))),"") -> 0 | BX9: -0.9433881631 | BZ9: =+BF9/BX9 -> 0 | CA9: -1.785673878 | CG9: =IFERROR(INDEX($CG$2:$CG$7,MATCH(0,INDEX(COUNTIF($CG8:CG$8,$CG$2:$CG$7&""),),0)),"") ->  | CH9: S/SS
B10: 1 | C10: 10 | D10: 1-10 | E10: =+IFERROR(INDEX(st!$Z$3:$Z$57,MATCH(作業ページ!D10,st!$Y$3:$Y$57,0)),"") ->  | F10: =+SMALL((B10,C10,$F$1),1)&"-"&SMALL((B10,C10,$F$1),2)&"-"&SMALL((B10,C10,$F$1),3) -> 1-1-10 | G10: =+SMALL((B10,C10,$G$1),1)&"-"&SMALL((B10,C10,$G$1),2)&"-"&SMALL((B10,C10,$G$1),3) -> 1-2-10 | H10: =+SMALL((B10,C10,$H$1),1)&"-"&SMALL((B10,C10,$H$1),2)&"-"&SMALL((B10,C10,$H$1),3) -> 1-3-10 | I10: =+SMALL((B10,C10,$I$1),1)&"-"&SMALL((B10,C10,$I$1),2)&"-"&SMALL((B10,C10,$I$1),3) -> 1-4-10 | J10: =+SMALL((B10,C10,$J$1),1)&"-"&SMALL((B10,C10,$J$1),2)&"-"&SMALL((B10,C10,$J$1),3) -> 1-5-10 | K10: =+SMALL((B10,C10,$K$1),1)&"-"&SMALL((B10,C10,$K$1),2)&"-"&SMALL((B10,C10,$K$1),3) -> 1-6-10 | L10: =+SMALL((B10,C10,$L$1),1)&"-"&SMALL((B10,C10,$L$1),2)&"-"&SMALL((B10,C10,$L$1),3) -> 1-7-10 | M10: =+SMALL((B10,C10,$M$1),1)&"-"&SMALL((B10,C10,$M$1),2)&"-"&SMALL((B10,C10,$M$1),3) -> 1-8-10 | N10: =+SMALL((B10,C10,$N$1),1)&"-"&SMALL((B10,C10,$N$1),2)&"-"&SMALL((B10,C10,$N$1),3) -> 1-9-10 | O10: =+SMALL((B10,C10,$O$1),1)&"-"&SMALL((B10,C10,$O$1),2)&"-"&SMALL((B10,C10,$O$1),3) -> 1-10-10 | P10: =+SMALL((B10,C10,$P$1),1)&"-"&SMALL((B10,C10,$P$1),2)&"-"&SMALL((B10,C10,$P$1),3) -> 1-10-11 | Q10: =+SMALL((B10,C10,$Q$1),1)&"-"&SMALL((B10,C10,$Q$1),2)&"-"&SMALL((B10,C10,$Q$1),3) -> 1-10-12 | R10: =+SMALL((B10,C10,$R$1),1)&"-"&SMALL((B10,C10,$R$1),2)&"-"&SMALL((B10,C10,$R$1),3) -> 1-10-13 | S10: =+SMALL((B10,C10,$S$1),1)&"-"&SMALL((B10,C10,$S$1),2)&"-"&SMALL((B10,C10,$S$1),3) -> 1-10-14 | T10: =+SMALL((B10,C10,$T$1),1)&"-"&SMALL((B10,C10,$T$1),2)&"-"&SMALL((B10,C10,$T$1),3) -> 1-10-15 | U10: =+SMALL((B10,C10,$U$1),1)&"-"&SMALL((B10,C10,$U$1),2)&"-"&SMALL((B10,C10,$U$1),3) -> 1-10-16 | V10: =+IFERROR(INDEX(st!$AI$3:$AI$52,MATCH(作業ページ!F10,st!$AH$3:$AH$52,0)),"") ->  | W10: =+IFERROR(INDEX(st!$AI$3:$AI$52,MATCH(作業ページ!G10,st!$AH$3:$AH$52,0)),"") ->  | X10: =+IFERROR(INDEX(st!$AI$3:$AI$52,MATCH(作業ページ!H10,st!$AH$3:$AH$52,0)),"") ->  | Y10: =+IFERROR(INDEX(st!$AI$3:$AI$52,MATCH(作業ページ!I10,st!$AH$3:$AH$52,0)),"") ->  | Z10: =+IFERROR(INDEX(st!$AI$3:$AI$52,MATCH(作業ページ!J10,st!$AH$3:$AH$52,0)),"") ->  | AA10: =+IFERROR(INDEX(st!$AI$3:$AI$52,MATCH(作業ページ!K10,st!$AH$3:$AH$52,0)),"") ->  | AB10: =+IFERROR(INDEX(st!$AI$3:$AI$52,MATCH(作業ページ!L10,st!$AH$3:$AH$52,0)),"") ->  | AC10: =+IFERROR(INDEX(st!$AI$3:$AI$52,MATCH(作業ページ!M10,st!$AH$3:$AH$52,0)),"") ->  | AD10: =+IFERROR(INDEX(st!$AI$3:$AI$52,MATCH(作業ページ!N10,st!$AH$3:$AH$52,0)),"") ->  | AE10: =+IFERROR(INDEX(st!$AI$3:$AI$52,MATCH(作業ページ!O10,st!$AH$3:$AH$52,0)),"") ->  | AF10: =+IFERROR(INDEX(st!$AI$3:$AI$52,MATCH(作業ページ!P10,st!$AH$3:$AH$52,0)),"") ->  | AG10: =+IFERROR(INDEX(st!$AI$3:$AI$52,MATCH(作業ページ!Q10,st!$AH$3:$AH$52,0)),"") ->  | AH10: =+IFERROR(INDEX(st!$AI$3:$AI$52,MATCH(作業ページ!R10,st!$AH$3:$AH$52,0)),"") ->  | AI10: =+IFERROR(INDEX(st!$AI$3:$AI$52,MATCH(作業ページ!S10,st!$AH$3:$AH$52,0)),"") ->  | AJ10: =+IFERROR(INDEX(st!$AI$3:$AI$52,MATCH(作業ページ!T10,st!$AH$3:$AH$52,0)),"") ->  | AK10: =+IFERROR(INDEX(st!$AI$3:$AI$52,MATCH(作業ページ!U10,st!$AH$3:$AH$52,0)),"") ->  | AL10: 0.001 | AN10: 0 | AQ10: 10 | AR10: =+INDEX($D$2:$D$132,MATCH(AM137,$AM$2:$AM$132,0)) ->  | AU10: =+SMALL(AQ133:AQ147,9) ->  | AW10: アタマ判定 | AY10: =+IF(AX89>=1,"〇","") ->  | BC10: =+IFERROR(INDEX(Sheet11!W3:W18,MATCH(作業ページ!BB10,Sheet11!U3:U18,0)),"") ->  | BE10: =+IF(AT154>15.9%,"★","") ->  | BF10: =+AT154 -> 0 | BG10: 複 24.9%以上 | BI10: =+INDEX(AR30:AR45,MATCH(BF10,AS30:AS45,0)) -> 1 | BJ10: =+INDEX(AS17:AS29,MATCH(BF15,AZ17:AZ29,0)) ->  | BK10: =+Sheet11!U7 -> 4 | BL10: =+IFERROR(IF(BK10="","",INDEX(Sheet11!$AX$3:$AX$18,MATCH(作業ページ!BK10,Sheet11!$AW$3:$AW$18,0))),"") -> 0 | BX10: 0.2376625484 | BZ10: =+BF10/BX10 -> 0 | CA10: 0.6443368588 | CG10: =IFERROR(INDEX($CG$2:$CG$7,MATCH(0,INDEX(COUNTIF($CG$8:CG9,$CG$2:$CG$7&""),),0)),"") -> 
B11: 1 | C11: 11 | D11: 1-11 | E11: =+IFERROR(INDEX(st!$Z$3:$Z$57,MATCH(作業ページ!D11,st!$Y$3:$Y$57,0)),"") ->  | F11: =+SMALL((B11,C11,$F$1),1)&"-"&SMALL((B11,C11,$F$1),2)&"-"&SMALL((B11,C11,$F$1),3) -> 1-1-11 | G11: =+SMALL((B11,C11,$G$1),1)&"-"&SMALL((B11,C11,$G$1),2)&"-"&SMALL((B11,C11,$G$1),3) -> 1-2-11 | H11: =+SMALL((B11,C11,$H$1),1)&"-"&SMALL((B11,C11,$H$1),2)&"-"&SMALL((B11,C11,$H$1),3) -> 1-3-11 | I11: =+SMALL((B11,C11,$I$1),1)&"-"&SMALL((B11,C11,$I$1),2)&"-"&SMALL((B11,C11,$I$1),3) -> 1-4-11 | J11: =+SMALL((B11,C11,$J$1),1)&"-"&SMALL((B11,C11,$J$1),2)&"-"&SMALL((B11,C11,$J$1),3) -> 1-5-11 | K11: =+SMALL((B11,C11,$K$1),1)&"-"&SMALL((B11,C11,$K$1),2)&"-"&SMALL((B11,C11,$K$1),3) -> 1-6-11 | L11: =+SMALL((B11,C11,$L$1),1)&"-"&SMALL((B11,C11,$L$1),2)&"-"&SMALL((B11,C11,$L$1),3) -> 1-7-11 | M11: =+SMALL((B11,C11,$M$1),1)&"-"&SMALL((B11,C11,$M$1),2)&"-"&SMALL((B11,C11,$M$1),3) -> 1-8-11 | N11: =+SMALL((B11,C11,$N$1),1)&"-"&SMALL((B11,C11,$N$1),2)&"-"&SMALL((B11,C11,$N$1),3) -> 1-9-11 | O11: =+SMALL((B11,C11,$O$1),1)&"-"&SMALL((B11,C11,$O$1),2)&"-"&SMALL((B11,C11,$O$1),3) -> 1-10-11 | P11: =+SMALL((B11,C11,$P$1),1)&"-"&SMALL((B11,C11,$P$1),2)&"-"&SMALL((B11,C11,$P$1),3) -> 1-11-11 | Q11: =+SMALL((B11,C11,$Q$1),1)&"-"&SMALL((B11,C11,$Q$1),2)&"-"&SMALL((B11,C11,$Q$1),3) -> 1-11-12 | R11: =+SMALL((B11,C11,$R$1),1)&"-"&SMALL((B11,C11,$R$1),2)&"-"&SMALL((B11,C11,$R$1),3) -> 1-11-13 | S11: =+SMALL((B11,C11,$S$1),1)&"-"&SMALL((B11,C11,$S$1),2)&"-"&SMALL((B11,C11,$S$1),3) -> 1-11-14 | T11: =+SMALL((B11,C11,$T$1),1)&"-"&SMALL((B11,C11,$T$1),2)&"-"&SMALL((B11,C11,$T$1),3) -> 1-11-15 | U11: =+SMALL((B11,C11,$U$1),1)&"-"&SMALL((B11,C11,$U$1),2)&"-"&SMALL((B11,C11,$U$1),3) -> 1-11-16 | V11: =+IFERROR(INDEX(st!$AI$3:$AI$52,MATCH(作業ページ!F11,st!$AH$3:$AH$52,0)),"") ->  | W11: =+IFERROR(INDEX(st!$AI$3:$AI$52,MATCH(作業ページ!G11,st!$AH$3:$AH$52,0)),"") ->  | X11: =+IFERROR(INDEX(st!$AI$3:$AI$52,MATCH(作業ページ!H11,st!$AH$3:$AH$52,0)),"") ->  | Y11: =+IFERROR(INDEX(st!$AI$3:$AI$52,MATCH(作業ページ!I11,st!$AH$3:$AH$52,0)),"") ->  | Z11: =+IFERROR(INDEX(st!$AI$3:$AI$52,MATCH(作業ページ!J11,st!$AH$3:$AH$52,0)),"") ->  | AA11: =+IFERROR(INDEX(st!$AI$3:$AI$52,MATCH(作業ページ!K11,st!$AH$3:$AH$52,0)),"") ->  | AB11: =+IFERROR(INDEX(st!$AI$3:$AI$52,MATCH(作業ページ!L11,st!$AH$3:$AH$52,0)),"") ->  | AC11: =+IFERROR(INDEX(st!$AI$3:$AI$52,MATCH(作業ページ!M11,st!$AH$3:$AH$52,0)),"") ->  | AD11: =+IFERROR(INDEX(st!$AI$3:$AI$52,MATCH(作業ページ!N11,st!$AH$3:$AH$52,0)),"") ->  | AE11: =+IFERROR(INDEX(st!$AI$3:$AI$52,MATCH(作業ページ!O11,st!$AH$3:$AH$52,0)),"") ->  | AF11: =+IFERROR(INDEX(st!$AI$3:$AI$52,MATCH(作業ページ!P11,st!$AH$3:$AH$52,0)),"") ->  | AG11: =+IFERROR(INDEX(st!$AI$3:$AI$52,MATCH(作業ページ!Q11,st!$AH$3:$AH$52,0)),"") ->  | AH11: =+IFERROR(INDEX(st!$AI$3:$AI$52,MATCH(作業ページ!R11,st!$AH$3:$AH$52,0)),"") ->  | AI11: =+IFERROR(INDEX(st!$AI$3:$AI$52,MATCH(作業ページ!S11,st!$AH$3:$AH$52,0)),"") ->  | AJ11: =+IFERROR(INDEX(st!$AI$3:$AI$52,MATCH(作業ページ!T11,st!$AH$3:$AH$52,0)),"") ->  | AK11: =+IFERROR(INDEX(st!$AI$3:$AI$52,MATCH(作業ページ!U11,st!$AH$3:$AH$52,0)),"") ->  | AL11: 0.0011 | AN11: 0 | AQ11: 11 | AR11: =+IF(AN133="","",INDEX($D$2:$D$132,MATCH(AN133,$AN$2:$AN$132,0))) -> 1-2 | AU11: =+SMALL(AQ133:AQ147,10) ->  | AW11: 1位飛び | AY11: =+IFERROR(IF(BY42=0,"",IF(AND(Sheet11!AL63>=2,作業ページ!BZ3<5,作業ページ!BK16<10,作業ページ!BF33<>Sheet11!U3),"飛",IF(AND(BZ3<4,BE11<>1,AW1>-9%,AY9<>"〇",AY10<>"〇",各データ整理!AY10>134%),"飛",IF(AND(st!O3<1.5,作業ページ!BZ3<5,BE11<>1,AY10<>"〇",BI33<31),"飛",IF(AND(各データ整理!AW7>=1,BZ3<3),"飛",IF(OR(BC18="飛"),"飛","")))))),"") ->  | BC11: =+IFERROR(INDEX(Sheet11!W3:W18,MATCH(作業ページ!BB11,Sheet11!U3:U18,0)),"") ->  | BE11: =+MIN(AP155:AP157) -> 20 | BI11: =+Sheet11!AK45 ->  | BJ11: =+Sheet11!AR39 ->  | BK11: =+Sheet11!U8 -> 3 | BL11: =+IFERROR(IF(BK11="","",INDEX(Sheet11!$AX$3:$AX$18,MATCH(作業ページ!BK11,Sheet11!$AW$3:$AW$18,0))),"") -> 0 | BW11: 2 | BX11: ←【3】以降なら１位飛ぶ？ | CA11: ←【3】以降なら１位飛ぶ？ | CG11: =IFERROR(INDEX($CG$2:$CG$7,MATCH(0,INDEX(COUNTIF($CG$8:CG10,$CG$2:$CG$7&""),),0)),"") -> 
B12: 1 | C12: 12 | D12: 1-12 | E12: =+IFERROR(INDEX(st!$Z$3:$Z$57,MATCH(作業ページ!D12,st!$Y$3:$Y$57,0)),"") ->  | F12: =+SMALL((B12,C12,$F$1),1)&"-"&SMALL((B12,C12,$F$1),2)&"-"&SMALL((B12,C12,$F$1),3) -> 1-1-12 | G12: =+SMALL((B12,C12,$G$1),1)&"-"&SMALL((B12,C12,$G$1),2)&"-"&SMALL((B12,C12,$G$1),3) -> 1-2-12 | H12: =+SMALL((B12,C12,$H$1),1)&"-"&SMALL((B12,C12,$H$1),2)&"-"&SMALL((B12,C12,$H$1),3) -> 1-3-12 | I12: =+SMALL((B12,C12,$I$1),1)&"-"&SMALL((B12,C12,$I$1),2)&"-"&SMALL((B12,C12,$I$1),3) -> 1-4-12 | J12: =+SMALL((B12,C12,$J$1),1)&"-"&SMALL((B12,C12,$J$1),2)&"-"&SMALL((B12,C12,$J$1),3) -> 1-5-12 | K12: =+SMALL((B12,C12,$K$1),1)&"-"&SMALL((B12,C12,$K$1),2)&"-"&SMALL((B12,C12,$K$1),3) -> 1-6-12 | L12: =+SMALL((B12,C12,$L$1),1)&"-"&SMALL((B12,C12,$L$1),2)&"-"&SMALL((B12,C12,$L$1),3) -> 1-7-12 | M12: =+SMALL((B12,C12,$M$1),1)&"-"&SMALL((B12,C12,$M$1),2)&"-"&SMALL((B12,C12,$M$1),3) -> 1-8-12 | N12: =+SMALL((B12,C12,$N$1),1)&"-"&SMALL((B12,C12,$N$1),2)&"-"&SMALL((B12,C12,$N$1),3) -> 1-9-12 | O12: =+SMALL((B12,C12,$O$1),1)&"-"&SMALL((B12,C12,$O$1),2)&"-"&SMALL((B12,C12,$O$1),3) -> 1-10-12 | P12: =+SMALL((B12,C12,$P$1),1)&"-"&SMALL((B12,C12,$P$1),2)&"-"&SMALL((B12,C12,$P$1),3) -> 1-11-12 | Q12: =+SMALL((B12,C12,$Q$1),1)&"-"&SMALL((B12,C12,$Q$1),2)&"-"&SMALL((B12,C12,$Q$1),3) -> 1-12-12 | R12: =+SMALL((B12,C12,$R$1),1)&"-"&SMALL((B12,C12,$R$1),2)&"-"&SMALL((B12,C12,$R$1),3) -> 1-12-13 | S12: =+SMALL((B12,C12,$S$1),1)&"-"&SMALL((B12,C12,$S$1),2)&"-"&SMALL((B12,C12,$S$1),3) -> 1-12-14 | T12: =+SMALL((B12,C12,$T$1),1)&"-"&SMALL((B12,C12,$T$1),2)&"-"&SMALL((B12,C12,$T$1),3) -> 1-12-15 | U12: =+SMALL((B12,C12,$U$1),1)&"-"&SMALL((B12,C12,$U$1),2)&"-"&SMALL((B12,C12,$U$1),3) -> 1-12-16 | V12: =+IFERROR(INDEX(st!$AI$3:$AI$52,MATCH(作業ページ!F12,st!$AH$3:$AH$52,0)),"") ->  | W12: =+IFERROR(INDEX(st!$AI$3:$AI$52,MATCH(作業ページ!G12,st!$AH$3:$AH$52,0)),"") ->  | X12: =+IFERROR(INDEX(st!$AI$3:$AI$52,MATCH(作業ページ!H12,st!$AH$3:$AH$52,0)),"") ->  | Y12: =+IFERROR(INDEX(st!$AI$3:$AI$52,MATCH(作業ページ!I12,st!$AH$3:$AH$52,0)),"") ->  | Z12: =+IFERROR(INDEX(st!$AI$3:$AI$52,MATCH(作業ページ!J12,st!$AH$3:$AH$52,0)),"") ->  | AA12: =+IFERROR(INDEX(st!$AI$3:$AI$52,MATCH(作業ページ!K12,st!$AH$3:$AH$52,0)),"") ->  | AB12: =+IFERROR(INDEX(st!$AI$3:$AI$52,MATCH(作業ページ!L12,st!$AH$3:$AH$52,0)),"") ->  | AC12: =+IFERROR(INDEX(st!$AI$3:$AI$52,MATCH(作業ページ!M12,st!$AH$3:$AH$52,0)),"") ->  | AD12: =+IFERROR(INDEX(st!$AI$3:$AI$52,MATCH(作業ページ!N12,st!$AH$3:$AH$52,0)),"") ->  | AE12: =+IFERROR(INDEX(st!$AI$3:$AI$52,MATCH(作業ページ!O12,st!$AH$3:$AH$52,0)),"") ->  | AF12: =+IFERROR(INDEX(st!$AI$3:$AI$52,MATCH(作業ページ!P12,st!$AH$3:$AH$52,0)),"") ->  | AG12: =+IFERROR(INDEX(st!$AI$3:$AI$52,MATCH(作業ページ!Q12,st!$AH$3:$AH$52,0)),"") ->  | AH12: =+IFERROR(INDEX(st!$AI$3:$AI$52,MATCH(作業ページ!R12,st!$AH$3:$AH$52,0)),"") ->  | AI12: =+IFERROR(INDEX(st!$AI$3:$AI$52,MATCH(作業ページ!S12,st!$AH$3:$AH$52,0)),"") ->  | AJ12: =+IFERROR(INDEX(st!$AI$3:$AI$52,MATCH(作業ページ!T12,st!$AH$3:$AH$52,0)),"") ->  | AK12: =+IFERROR(INDEX(st!$AI$3:$AI$52,MATCH(作業ページ!U12,st!$AH$3:$AH$52,0)),"") ->  | AL12: 0.0012 | AN12: 0 | AQ12: 12 | AR12: =+IF(AN134="","",INDEX($D$2:$D$132,MATCH(AN134,$AN$2:$AN$132,0))) -> 1-2 | AW12: ワイド１点 | AY12: =+IFERROR(IF(AY13="","",IF(AND(AY13<>BV33,OR(AY13<>"",BV33<>"")),MIN(AY13,BV33)&"-"&MAX(AY13,BV33),"")),"") ->  | BC12: =+IFERROR(INDEX(Sheet11!W3:W18,MATCH(作業ページ!BB12,Sheet11!U3:U18,0)),"") ->  | BE12: =+IF(AX1=1,AW1,IF(AZ1=1,AY1,IF(BB1=1,BA1,""))) ->  | BK12: =+Sheet11!U9 -> 6 | BL12: =+IFERROR(IF(BK12="","",INDEX(Sheet11!$AX$3:$AX$18,MATCH(作業ページ!BK12,Sheet11!$AW$3:$AW$18,0))),"") -> 0 | BX12: 11 | BZ12: =+BF12/BX12 -> 0 | CA12: 10 | CG12: =IFERROR(INDEX($CG$2:$CG$7,MATCH(0,INDEX(COUNTIF($CG$8:CG11,$CG$2:$CG$7&""),),0)),"") -> 
B13: 1 | C13: 13 | D13: 1-13 | E13: =+IFERROR(INDEX(st!$Z$3:$Z$57,MATCH(作業ページ!D13,st!$Y$3:$Y$57,0)),"") ->  | F13: =+SMALL((B13,C13,$F$1),1)&"-"&SMALL((B13,C13,$F$1),2)&"-"&SMALL((B13,C13,$F$1),3) -> 1-1-13 | G13: =+SMALL((B13,C13,$G$1),1)&"-"&SMALL((B13,C13,$G$1),2)&"-"&SMALL((B13,C13,$G$1),3) -> 1-2-13 | H13: =+SMALL((B13,C13,$H$1),1)&"-"&SMALL((B13,C13,$H$1),2)&"-"&SMALL((B13,C13,$H$1),3) -> 1-3-13 | I13: =+SMALL((B13,C13,$I$1),1)&"-"&SMALL((B13,C13,$I$1),2)&"-"&SMALL((B13,C13,$I$1),3) -> 1-4-13 | J13: =+SMALL((B13,C13,$J$1),1)&"-"&SMALL((B13,C13,$J$1),2)&"-"&SMALL((B13,C13,$J$1),3) -> 1-5-13 | K13: =+SMALL((B13,C13,$K$1),1)&"-"&SMALL((B13,C13,$K$1),2)&"-"&SMALL((B13,C13,$K$1),3) -> 1-6-13 | L13: =+SMALL((B13,C13,$L$1),1)&"-"&SMALL((B13,C13,$L$1),2)&"-"&SMALL((B13,C13,$L$1),3) -> 1-7-13 | M13: =+SMALL((B13,C13,$M$1),1)&"-"&SMALL((B13,C13,$M$1),2)&"-"&SMALL((B13,C13,$M$1),3) -> 1-8-13 | N13: =+SMALL((B13,C13,$N$1),1)&"-"&SMALL((B13,C13,$N$1),2)&"-"&SMALL((B13,C13,$N$1),3) -> 1-9-13 | O13: =+SMALL((B13,C13,$O$1),1)&"-"&SMALL((B13,C13,$O$1),2)&"-"&SMALL((B13,C13,$O$1),3) -> 1-10-13 | P13: =+SMALL((B13,C13,$P$1),1)&"-"&SMALL((B13,C13,$P$1),2)&"-"&SMALL((B13,C13,$P$1),3) -> 1-11-13 | Q13: =+SMALL((B13,C13,$Q$1),1)&"-"&SMALL((B13,C13,$Q$1),2)&"-"&SMALL((B13,C13,$Q$1),3) -> 1-12-13 | R13: =+SMALL((B13,C13,$R$1),1)&"-"&SMALL((B13,C13,$R$1),2)&"-"&SMALL((B13,C13,$R$1),3) -> 1-13-13 | S13: =+SMALL((B13,C13,$S$1),1)&"-"&SMALL((B13,C13,$S$1),2)&"-"&SMALL((B13,C13,$S$1),3) -> 1-13-14 | T13: =+SMALL((B13,C13,$T$1),1)&"-"&SMALL((B13,C13,$T$1),2)&"-"&SMALL((B13,C13,$T$1),3) -> 1-13-15 | U13: =+SMALL((B13,C13,$U$1),1)&"-"&SMALL((B13,C13,$U$1),2)&"-"&SMALL((B13,C13,$U$1),3) -> 1-13-16 | V13: =+IFERROR(INDEX(st!$AI$3:$AI$52,MATCH(作業ページ!F13,st!$AH$3:$AH$52,0)),"") ->  | W13: =+IFERROR(INDEX(st!$AI$3:$AI$52,MATCH(作業ページ!G13,st!$AH$3:$AH$52,0)),"") ->  | X13: =+IFERROR(INDEX(st!$AI$3:$AI$52,MATCH(作業ページ!H13,st!$AH$3:$AH$52,0)),"") ->  | Y13: =+IFERROR(INDEX(st!$AI$3:$AI$52,MATCH(作業ページ!I13,st!$AH$3:$AH$52,0)),"") ->  | Z13: =+IFERROR(INDEX(st!$AI$3:$AI$52,MATCH(作業ページ!J13,st!$AH$3:$AH$52,0)),"") ->  | AA13: =+IFERROR(INDEX(st!$AI$3:$AI$52,MATCH(作業ページ!K13,st!$AH$3:$AH$52,0)),"") ->  | AB13: =+IFERROR(INDEX(st!$AI$3:$AI$52,MATCH(作業ページ!L13,st!$AH$3:$AH$52,0)),"") ->  | AC13: =+IFERROR(INDEX(st!$AI$3:$AI$52,MATCH(作業ページ!M13,st!$AH$3:$AH$52,0)),"") ->  | AD13: =+IFERROR(INDEX(st!$AI$3:$AI$52,MATCH(作業ページ!N13,st!$AH$3:$AH$52,0)),"") ->  | AE13: =+IFERROR(INDEX(st!$AI$3:$AI$52,MATCH(作業ページ!O13,st!$AH$3:$AH$52,0)),"") ->  | AF13: =+IFERROR(INDEX(st!$AI$3:$AI$52,MATCH(作業ページ!P13,st!$AH$3:$AH$52,0)),"") ->  | AG13: =+IFERROR(INDEX(st!$AI$3:$AI$52,MATCH(作業ページ!Q13,st!$AH$3:$AH$52,0)),"") ->  | AH13: =+IFERROR(INDEX(st!$AI$3:$AI$52,MATCH(作業ページ!R13,st!$AH$3:$AH$52,0)),"") ->  | AI13: =+IFERROR(INDEX(st!$AI$3:$AI$52,MATCH(作業ページ!S13,st!$AH$3:$AH$52,0)),"") ->  | AJ13: =+IFERROR(INDEX(st!$AI$3:$AI$52,MATCH(作業ページ!T13,st!$AH$3:$AH$52,0)),"") ->  | AK13: =+IFERROR(INDEX(st!$AI$3:$AI$52,MATCH(作業ページ!U13,st!$AH$3:$AH$52,0)),"") ->  | AL13: 0.0013 | AN13: 0 | AQ13: 13 | AR13: =+IF(AN135="","",INDEX($D$2:$D$132,MATCH(AN135,$AN$2:$AN$132,0))) -> 1-2 | AW13: 単 | AX13: =+ROUNDDOWN(AY5,1) -> 2.1 | AY13: =+IFERROR(IF(AND(AX5=BI20,BC21<-49%,BL33>30%,BJ33>34%,BE56=1,BE11=1,BE12<-39%,OR(AY14<100%,AX14<30%)),AX5,IF(AND(AX5=BI20,BL33>32%,BJ33>25%,CI22>259%,BE56=1,BJ33>39%,OR(AX14<35%,AY14<35%)),BI20,IF(AND($AX$5=BI20,BJ20>32%,BK20>37%,$AZ$31>14%,AX1=1,AW1<-49.9%),AX5,""))),"") ->  | BC13: =+IFERROR(INDEX(Sheet11!W3:W18,MATCH(作業ページ!BB13,Sheet11!U3:U18,0)),"") ->  | BF13: =+IFERROR(INDEX(AS30:AS45,MATCH(BH30,AR30:AR45,0)),"") ->  | BG13: ←9以上 | BK13: =+Sheet11!U10 -> 12 | BL13: =+IFERROR(IF(BK13="","",INDEX(Sheet11!$AX$3:$AX$18,MATCH(作業ページ!BK13,Sheet11!$AW$3:$AW$18,0))),"") -> 0 | BX13: 0.2376625484 | BY13: ・ | BZ13: =+IFERROR(BF13/BX13,"") ->  | CG13: =IFERROR(INDEX($CG$2:$CG$7,MATCH(0,INDEX(COUNTIF($CG$8:CG12,$CG$2:$CG$7&""),),0)),"") -> 
B14: 1 | C14: 14 | D14: 1-14 | E14: =+IFERROR(INDEX(st!$Z$3:$Z$57,MATCH(作業ページ!D14,st!$Y$3:$Y$57,0)),"") ->  | F14: =+SMALL((B14,C14,$F$1),1)&"-"&SMALL((B14,C14,$F$1),2)&"-"&SMALL((B14,C14,$F$1),3) -> 1-1-14 | G14: =+SMALL((B14,C14,$G$1),1)&"-"&SMALL((B14,C14,$G$1),2)&"-"&SMALL((B14,C14,$G$1),3) -> 1-2-14 | H14: =+SMALL((B14,C14,$H$1),1)&"-"&SMALL((B14,C14,$H$1),2)&"-"&SMALL((B14,C14,$H$1),3) -> 1-3-14 | I14: =+SMALL((B14,C14,$I$1),1)&"-"&SMALL((B14,C14,$I$1),2)&"-"&SMALL((B14,C14,$I$1),3) -> 1-4-14 | J14: =+SMALL((B14,C14,$J$1),1)&"-"&SMALL((B14,C14,$J$1),2)&"-"&SMALL((B14,C14,$J$1),3) -> 1-5-14 | K14: =+SMALL((B14,C14,$K$1),1)&"-"&SMALL((B14,C14,$K$1),2)&"-"&SMALL((B14,C14,$K$1),3) -> 1-6-14 | L14: =+SMALL((B14,C14,$L$1),1)&"-"&SMALL((B14,C14,$L$1),2)&"-"&SMALL((B14,C14,$L$1),3) -> 1-7-14 | M14: =+SMALL((B14,C14,$M$1),1)&"-"&SMALL((B14,C14,$M$1),2)&"-"&SMALL((B14,C14,$M$1),3) -> 1-8-14 | N14: =+SMALL((B14,C14,$N$1),1)&"-"&SMALL((B14,C14,$N$1),2)&"-"&SMALL((B14,C14,$N$1),3) -> 1-9-14 | O14: =+SMALL((B14,C14,$O$1),1)&"-"&SMALL((B14,C14,$O$1),2)&"-"&SMALL((B14,C14,$O$1),3) -> 1-10-14 | P14: =+SMALL((B14,C14,$P$1),1)&"-"&SMALL((B14,C14,$P$1),2)&"-"&SMALL((B14,C14,$P$1),3) -> 1-11-14 | Q14: =+SMALL((B14,C14,$Q$1),1)&"-"&SMALL((B14,C14,$Q$1),2)&"-"&SMALL((B14,C14,$Q$1),3) -> 1-12-14 | R14: =+SMALL((B14,C14,$R$1),1)&"-"&SMALL((B14,C14,$R$1),2)&"-"&SMALL((B14,C14,$R$1),3) -> 1-13-14 | S14: =+SMALL((B14,C14,$S$1),1)&"-"&SMALL((B14,C14,$S$1),2)&"-"&SMALL((B14,C14,$S$1),3) -> 1-14-14 | T14: =+SMALL((B14,C14,$T$1),1)&"-"&SMALL((B14,C14,$T$1),2)&"-"&SMALL((B14,C14,$T$1),3) -> 1-14-15 | U14: =+SMALL((B14,C14,$U$1),1)&"-"&SMALL((B14,C14,$U$1),2)&"-"&SMALL((B14,C14,$U$1),3) -> 1-14-16 | V14: =+IFERROR(INDEX(st!$AI$3:$AI$52,MATCH(作業ページ!F14,st!$AH$3:$AH$52,0)),"") ->  | W14: =+IFERROR(INDEX(st!$AI$3:$AI$52,MATCH(作業ページ!G14,st!$AH$3:$AH$52,0)),"") ->  | X14: =+IFERROR(INDEX(st!$AI$3:$AI$52,MATCH(作業ページ!H14,st!$AH$3:$AH$52,0)),"") ->  | Y14: =+IFERROR(INDEX(st!$AI$3:$AI$52,MATCH(作業ページ!I14,st!$AH$3:$AH$52,0)),"") ->  | Z14: =+IFERROR(INDEX(st!$AI$3:$AI$52,MATCH(作業ページ!J14,st!$AH$3:$AH$52,0)),"") ->  | AA14: =+IFERROR(INDEX(st!$AI$3:$AI$52,MATCH(作業ページ!K14,st!$AH$3:$AH$52,0)),"") ->  | AB14: =+IFERROR(INDEX(st!$AI$3:$AI$52,MATCH(作業ページ!L14,st!$AH$3:$AH$52,0)),"") ->  | AC14: =+IFERROR(INDEX(st!$AI$3:$AI$52,MATCH(作業ページ!M14,st!$AH$3:$AH$52,0)),"") ->  | AD14: =+IFERROR(INDEX(st!$AI$3:$AI$52,MATCH(作業ページ!N14,st!$AH$3:$AH$52,0)),"") ->  | AE14: =+IFERROR(INDEX(st!$AI$3:$AI$52,MATCH(作業ページ!O14,st!$AH$3:$AH$52,0)),"") ->  | AF14: =+IFERROR(INDEX(st!$AI$3:$AI$52,MATCH(作業ページ!P14,st!$AH$3:$AH$52,0)),"") ->  | AG14: =+IFERROR(INDEX(st!$AI$3:$AI$52,MATCH(作業ページ!Q14,st!$AH$3:$AH$52,0)),"") ->  | AH14: =+IFERROR(INDEX(st!$AI$3:$AI$52,MATCH(作業ページ!R14,st!$AH$3:$AH$52,0)),"") ->  | AI14: =+IFERROR(INDEX(st!$AI$3:$AI$52,MATCH(作業ページ!S14,st!$AH$3:$AH$52,0)),"") ->  | AJ14: =+IFERROR(INDEX(st!$AI$3:$AI$52,MATCH(作業ページ!T14,st!$AH$3:$AH$52,0)),"") ->  | AK14: =+IFERROR(INDEX(st!$AI$3:$AI$52,MATCH(作業ページ!U14,st!$AH$3:$AH$52,0)),"") ->  | AL14: 0.0014 | AN14: 0 | AQ14: 14 | AR14: =+IF(AN136="","",INDEX($D$2:$D$132,MATCH(AN136,$AN$2:$AN$132,0))) -> 1-2 | AS14: 馬番→ | AT14: =+st!M3 -> 8 | AU14: =+COUNTIF(AT17:AU20,AT14) -> 0 | AV14: ←個数 | AX14: =+Sheet11!AO2 ->  | AY14: =+Sheet11!AM2 ->  | BC14: =+IFERROR(INDEX(Sheet11!W3:W18,MATCH(作業ページ!BB14,Sheet11!U3:U18,0)),"") ->  | BE14: =+IF(BF14<61%,"〇","") -> 〇 | BF14: =+各データ整理!AX6 -> 0 | BG14: ←５０以下なら本命 | BK14: =+Sheet11!U11 -> 10 | BL14: =+IFERROR(IF(BK14="","",INDEX(Sheet11!$AX$3:$AX$18,MATCH(作業ページ!BK14,Sheet11!$AW$3:$AW$18,0))),"") -> 0 | BX14: 0.33 | BZ14: =+BX14/BF14 ->  | CA14: 0.1140307018
B15: 1 | C15: 15 | D15: 1-15 | E15: =+IFERROR(INDEX(st!$Z$3:$Z$57,MATCH(作業ページ!D15,st!$Y$3:$Y$57,0)),"") ->  | F15: =+SMALL((B15,C15,$F$1),1)&"-"&SMALL((B15,C15,$F$1),2)&"-"&SMALL((B15,C15,$F$1),3) -> 1-1-15 | G15: =+SMALL((B15,C15,$G$1),1)&"-"&SMALL((B15,C15,$G$1),2)&"-"&SMALL((B15,C15,$G$1),3) -> 1-2-15 | H15: =+SMALL((B15,C15,$H$1),1)&"-"&SMALL((B15,C15,$H$1),2)&"-"&SMALL((B15,C15,$H$1),3) -> 1-3-15 | I15: =+SMALL((B15,C15,$I$1),1)&"-"&SMALL((B15,C15,$I$1),2)&"-"&SMALL((B15,C15,$I$1),3) -> 1-4-15 | J15: =+SMALL((B15,C15,$J$1),1)&"-"&SMALL((B15,C15,$J$1),2)&"-"&SMALL((B15,C15,$J$1),3) -> 1-5-15 | K15: =+SMALL((B15,C15,$K$1),1)&"-"&SMALL((B15,C15,$K$1),2)&"-"&SMALL((B15,C15,$K$1),3) -> 1-6-15 | L15: =+SMALL((B15,C15,$L$1),1)&"-"&SMALL((B15,C15,$L$1),2)&"-"&SMALL((B15,C15,$L$1),3) -> 1-7-15 | M15: =+SMALL((B15,C15,$M$1),1)&"-"&SMALL((B15,C15,$M$1),2)&"-"&SMALL((B15,C15,$M$1),3) -> 1-8-15 | N15: =+SMALL((B15,C15,$N$1),1)&"-"&SMALL((B15,C15,$N$1),2)&"-"&SMALL((B15,C15,$N$1),3) -> 1-9-15 | O15: =+SMALL((B15,C15,$O$1),1)&"-"&SMALL((B15,C15,$O$1),2)&"-"&SMALL((B15,C15,$O$1),3) -> 1-10-15 | P15: =+SMALL((B15,C15,$P$1),1)&"-"&SMALL((B15,C15,$P$1),2)&"-"&SMALL((B15,C15,$P$1),3) -> 1-11-15 | Q15: =+SMALL((B15,C15,$Q$1),1)&"-"&SMALL((B15,C15,$Q$1),2)&"-"&SMALL((B15,C15,$Q$1),3) -> 1-12-15 | R15: =+SMALL((B15,C15,$R$1),1)&"-"&SMALL((B15,C15,$R$1),2)&"-"&SMALL((B15,C15,$R$1),3) -> 1-13-15 | S15: =+SMALL((B15,C15,$S$1),1)&"-"&SMALL((B15,C15,$S$1),2)&"-"&SMALL((B15,C15,$S$1),3) -> 1-14-15 | T15: =+SMALL((B15,C15,$T$1),1)&"-"&SMALL((B15,C15,$T$1),2)&"-"&SMALL((B15,C15,$T$1),3) -> 1-15-15 | U15: =+SMALL((B15,C15,$U$1),1)&"-"&SMALL((B15,C15,$U$1),2)&"-"&SMALL((B15,C15,$U$1),3) -> 1-15-16 | V15: =+IFERROR(INDEX(st!$AI$3:$AI$52,MATCH(作業ページ!F15,st!$AH$3:$AH$52,0)),"") ->  | W15: =+IFERROR(INDEX(st!$AI$3:$AI$52,MATCH(作業ページ!G15,st!$AH$3:$AH$52,0)),"") ->  | X15: =+IFERROR(INDEX(st!$AI$3:$AI$52,MATCH(作業ページ!H15,st!$AH$3:$AH$52,0)),"") ->  | Y15: =+IFERROR(INDEX(st!$AI$3:$AI$52,MATCH(作業ページ!I15,st!$AH$3:$AH$52,0)),"") ->  | Z15: =+IFERROR(INDEX(st!$AI$3:$AI$52,MATCH(作業ページ!J15,st!$AH$3:$AH$52,0)),"") ->  | AA15: =+IFERROR(INDEX(st!$AI$3:$AI$52,MATCH(作業ページ!K15,st!$AH$3:$AH$52,0)),"") ->  | AB15: =+IFERROR(INDEX(st!$AI$3:$AI$52,MATCH(作業ページ!L15,st!$AH$3:$AH$52,0)),"") ->  | AC15: =+IFERROR(INDEX(st!$AI$3:$AI$52,MATCH(作業ページ!M15,st!$AH$3:$AH$52,0)),"") ->  | AD15: =+IFERROR(INDEX(st!$AI$3:$AI$52,MATCH(作業ページ!N15,st!$AH$3:$AH$52,0)),"") ->  | AE15: =+IFERROR(INDEX(st!$AI$3:$AI$52,MATCH(作業ページ!O15,st!$AH$3:$AH$52,0)),"") ->  | AF15: =+IFERROR(INDEX(st!$AI$3:$AI$52,MATCH(作業ページ!P15,st!$AH$3:$AH$52,0)),"") ->  | AG15: =+IFERROR(INDEX(st!$AI$3:$AI$52,MATCH(作業ページ!Q15,st!$AH$3:$AH$52,0)),"") ->  | AH15: =+IFERROR(INDEX(st!$AI$3:$AI$52,MATCH(作業ページ!R15,st!$AH$3:$AH$52,0)),"") ->  | AI15: =+IFERROR(INDEX(st!$AI$3:$AI$52,MATCH(作業ページ!S15,st!$AH$3:$AH$52,0)),"") ->  | AJ15: =+IFERROR(INDEX(st!$AI$3:$AI$52,MATCH(作業ページ!T15,st!$AH$3:$AH$52,0)),"") ->  | AK15: =+IFERROR(INDEX(st!$AI$3:$AI$52,MATCH(作業ページ!U15,st!$AH$3:$AH$52,0)),"") ->  | AL15: 0.0015 | AN15: 0 | AQ15: 15 | AR15: =+IF(AN137="","",INDEX($D$2:$D$132,MATCH(AN137,$AN$2:$AN$132,0))) -> 1-2 | AT15: =+st!M4 -> 11 | AU15: =+COUNTIF(AT17:AU20,AT15) -> 0 | AX15: 最大 | BA15: =+IFERROR(st!Z175,"") ->  | BB15: =+IFERROR(st!Z245,"") ->  | BC15: =+IFERROR(st!Z159,"") ->  | BF15: =+AN133 -> 0 | BG15: 19以上なら緑色上位 | BK15: =+Sheet11!U12 -> 13 | BL15: =+IFERROR(IF(BK15="","",INDEX(Sheet11!$AX$3:$AX$18,MATCH(作業ページ!BK15,Sheet11!$AW$3:$AW$18,0))),"") -> 0 | BX15: 0.2376625484 | BZ15: =+BF15/BX15 -> 0 | CA15: 0.6443368588
B16: 1 | C16: 16 | D16: 1-16 | E16: =+IFERROR(INDEX(st!$Z$3:$Z$57,MATCH(作業ページ!D16,st!$Y$3:$Y$57,0)),"") ->  | F16: =+SMALL((B16,C16,$F$1),1)&"-"&SMALL((B16,C16,$F$1),2)&"-"&SMALL((B16,C16,$F$1),3) -> 1-1-16 | G16: =+SMALL((B16,C16,$G$1),1)&"-"&SMALL((B16,C16,$G$1),2)&"-"&SMALL((B16,C16,$G$1),3) -> 1-2-16 | H16: =+SMALL((B16,C16,$H$1),1)&"-"&SMALL((B16,C16,$H$1),2)&"-"&SMALL((B16,C16,$H$1),3) -> 1-3-16 | I16: =+SMALL((B16,C16,$I$1),1)&"-"&SMALL((B16,C16,$I$1),2)&"-"&SMALL((B16,C16,$I$1),3) -> 1-4-16 | J16: =+SMALL((B16,C16,$J$1),1)&"-"&SMALL((B16,C16,$J$1),2)&"-"&SMALL((B16,C16,$J$1),3) -> 1-5-16 | K16: =+SMALL((B16,C16,$K$1),1)&"-"&SMALL((B16,C16,$K$1),2)&"-"&SMALL((B16,C16,$K$1),3) -> 1-6-16 | L16: =+SMALL((B16,C16,$L$1),1)&"-"&SMALL((B16,C16,$L$1),2)&"-"&SMALL((B16,C16,$L$1),3) -> 1-7-16 | M16: =+SMALL((B16,C16,$M$1),1)&"-"&SMALL((B16,C16,$M$1),2)&"-"&SMALL((B16,C16,$M$1),3) -> 1-8-16 | N16: =+SMALL((B16,C16,$N$1),1)&"-"&SMALL((B16,C16,$N$1),2)&"-"&SMALL((B16,C16,$N$1),3) -> 1-9-16 | O16: =+SMALL((B16,C16,$O$1),1)&"-"&SMALL((B16,C16,$O$1),2)&"-"&SMALL((B16,C16,$O$1),3) -> 1-10-16 | P16: =+SMALL((B16,C16,$P$1),1)&"-"&SMALL((B16,C16,$P$1),2)&"-"&SMALL((B16,C16,$P$1),3) -> 1-11-16 | Q16: =+SMALL((B16,C16,$Q$1),1)&"-"&SMALL((B16,C16,$Q$1),2)&"-"&SMALL((B16,C16,$Q$1),3) -> 1-12-16 | R16: =+SMALL((B16,C16,$R$1),1)&"-"&SMALL((B16,C16,$R$1),2)&"-"&SMALL((B16,C16,$R$1),3) -> 1-13-16 | S16: =+SMALL((B16,C16,$S$1),1)&"-"&SMALL((B16,C16,$S$1),2)&"-"&SMALL((B16,C16,$S$1),3) -> 1-14-16 | T16: =+SMALL((B16,C16,$T$1),1)&"-"&SMALL((B16,C16,$T$1),2)&"-"&SMALL((B16,C16,$T$1),3) -> 1-15-16 | U16: =+SMALL((B16,C16,$U$1),1)&"-"&SMALL((B16,C16,$U$1),2)&"-"&SMALL((B16,C16,$U$1),3) -> 1-16-16 | V16: =+IFERROR(INDEX(st!$AI$3:$AI$52,MATCH(作業ページ!F16,st!$AH$3:$AH$52,0)),"") ->  | W16: =+IFERROR(INDEX(st!$AI$3:$AI$52,MATCH(作業ページ!G16,st!$AH$3:$AH$52,0)),"") ->  | X16: =+IFERROR(INDEX(st!$AI$3:$AI$52,MATCH(作業ページ!H16,st!$AH$3:$AH$52,0)),"") ->  | Y16: =+IFERROR(INDEX(st!$AI$3:$AI$52,MATCH(作業ページ!I16,st!$AH$3:$AH$52,0)),"") ->  | Z16: =+IFERROR(INDEX(st!$AI$3:$AI$52,MATCH(作業ページ!J16,st!$AH$3:$AH$52,0)),"") ->  | AA16: =+IFERROR(INDEX(st!$AI$3:$AI$52,MATCH(作業ページ!K16,st!$AH$3:$AH$52,0)),"") ->  | AB16: =+IFERROR(INDEX(st!$AI$3:$AI$52,MATCH(作業ページ!L16,st!$AH$3:$AH$52,0)),"") ->  | AC16: =+IFERROR(INDEX(st!$AI$3:$AI$52,MATCH(作業ページ!M16,st!$AH$3:$AH$52,0)),"") ->  | AD16: =+IFERROR(INDEX(st!$AI$3:$AI$52,MATCH(作業ページ!N16,st!$AH$3:$AH$52,0)),"") ->  | AE16: =+IFERROR(INDEX(st!$AI$3:$AI$52,MATCH(作業ページ!O16,st!$AH$3:$AH$52,0)),"") ->  | AF16: =+IFERROR(INDEX(st!$AI$3:$AI$52,MATCH(作業ページ!P16,st!$AH$3:$AH$52,0)),"") ->  | AG16: =+IFERROR(INDEX(st!$AI$3:$AI$52,MATCH(作業ページ!Q16,st!$AH$3:$AH$52,0)),"") ->  | AH16: =+IFERROR(INDEX(st!$AI$3:$AI$52,MATCH(作業ページ!R16,st!$AH$3:$AH$52,0)),"") ->  | AI16: =+IFERROR(INDEX(st!$AI$3:$AI$52,MATCH(作業ページ!S16,st!$AH$3:$AH$52,0)),"") ->  | AJ16: =+IFERROR(INDEX(st!$AI$3:$AI$52,MATCH(作業ページ!T16,st!$AH$3:$AH$52,0)),"") ->  | AK16: =+IFERROR(INDEX(st!$AI$3:$AI$52,MATCH(作業ページ!U16,st!$AH$3:$AH$52,0)),"") ->  | AL16: 0.0016 | AN16: 0 | AQ16: 16 | AR16: =+Sheet11!U1&Sheet11!V1 -> 大井2R | AS16: ワイド | AT16: =+st!M5 -> 1 | AU16: =+COUNTIF(AT17:AU20,AT16) -> 0 | AV16: 個数 | AW16: 7以上 | AX16: 最小 | AY16: オッズ | AZ16: =+COUNTIF(AZ17:AZ29,">19%") -> 0 | BA16: 馬枠 | BB16: 単多 | BC16: ワイド | BF16: =+AT154 -> 0 | BG16: 24%以上で断層あり | BJ16: = | BK16: =+INDEX(BL6:BL15,MATCH(AX5,BK6:BK15,0)) -> 0 | BL16: =SUM(BL6:BL15) -> 0 | BS16: アタマ | BX16: 0.2376625484 | BZ16: =+BF16/BX16 -> 0 | CA16: 0.6443368588
B17: 2 | C17: 3 | D17: 2-3 | E17: =+IFERROR(INDEX(st!$Z$3:$Z$57,MATCH(作業ページ!D17,st!$Y$3:$Y$57,0)),"") ->  | F17: =+SMALL((B17,C17,$F$1),1)&"-"&SMALL((B17,C17,$F$1),2)&"-"&SMALL((B17,C17,$F$1),3) -> 1-2-3 | G17: =+SMALL((B17,C17,$G$1),1)&"-"&SMALL((B17,C17,$G$1),2)&"-"&SMALL((B17,C17,$G$1),3) -> 2-2-3 | H17: =+SMALL((B17,C17,$H$1),1)&"-"&SMALL((B17,C17,$H$1),2)&"-"&SMALL((B17,C17,$H$1),3) -> 2-3-3 | I17: =+SMALL((B17,C17,$I$1),1)&"-"&SMALL((B17,C17,$I$1),2)&"-"&SMALL((B17,C17,$I$1),3) -> 2-3-4 | J17: =+SMALL((B17,C17,$J$1),1)&"-"&SMALL((B17,C17,$J$1),2)&"-"&SMALL((B17,C17,$J$1),3) -> 2-3-5 | K17: =+SMALL((B17,C17,$K$1),1)&"-"&SMALL((B17,C17,$K$1),2)&"-"&SMALL((B17,C17,$K$1),3) -> 2-3-6 | L17: =+SMALL((B17,C17,$L$1),1)&"-"&SMALL((B17,C17,$L$1),2)&"-"&SMALL((B17,C17,$L$1),3) -> 2-3-7 | M17: =+SMALL((B17,C17,$M$1),1)&"-"&SMALL((B17,C17,$M$1),2)&"-"&SMALL((B17,C17,$M$1),3) -> 2-3-8 | N17: =+SMALL((B17,C17,$N$1),1)&"-"&SMALL((B17,C17,$N$1),2)&"-"&SMALL((B17,C17,$N$1),3) -> 2-3-9 | O17: =+SMALL((B17,C17,$O$1),1)&"-"&SMALL((B17,C17,$O$1),2)&"-"&SMALL((B17,C17,$O$1),3) -> 2-3-10 | P17: =+SMALL((B17,C17,$P$1),1)&"-"&SMALL((B17,C17,$P$1),2)&"-"&SMALL((B17,C17,$P$1),3) -> 2-3-11 | Q17: =+SMALL((B17,C17,$Q$1),1)&"-"&SMALL((B17,C17,$Q$1),2)&"-"&SMALL((B17,C17,$Q$1),3) -> 2-3-12 | R17: =+SMALL((B17,C17,$R$1),1)&"-"&SMALL((B17,C17,$R$1),2)&"-"&SMALL((B17,C17,$R$1),3) -> 2-3-13 | S17: =+SMALL((B17,C17,$S$1),1)&"-"&SMALL((B17,C17,$S$1),2)&"-"&SMALL((B17,C17,$S$1),3) -> 2-3-14 | T17: =+SMALL((B17,C17,$T$1),1)&"-"&SMALL((B17,C17,$T$1),2)&"-"&SMALL((B17,C17,$T$1),3) -> 2-3-15 | U17: =+SMALL((B17,C17,$U$1),1)&"-"&SMALL((B17,C17,$U$1),2)&"-"&SMALL((B17,C17,$U$1),3) -> 2-3-16 | V17: =+IFERROR(INDEX(st!$AI$3:$AI$52,MATCH(作業ページ!F17,st!$AH$3:$AH$52,0)),"") ->  | W17: =+IFERROR(INDEX(st!$AI$3:$AI$52,MATCH(作業ページ!G17,st!$AH$3:$AH$52,0)),"") ->  | X17: =+IFERROR(INDEX(st!$AI$3:$AI$52,MATCH(作業ページ!H17,st!$AH$3:$AH$52,0)),"") ->  | Y17: =+IFERROR(INDEX(st!$AI$3:$AI$52,MATCH(作業ページ!I17,st!$AH$3:$AH$52,0)),"") ->  | Z17: =+IFERROR(INDEX(st!$AI$3:$AI$52,MATCH(作業ページ!J17,st!$AH$3:$AH$52,0)),"") ->  | AA17: =+IFERROR(INDEX(st!$AI$3:$AI$52,MATCH(作業ページ!K17,st!$AH$3:$AH$52,0)),"") ->  | AB17: =+IFERROR(INDEX(st!$AI$3:$AI$52,MATCH(作業ページ!L17,st!$AH$3:$AH$52,0)),"") ->  | AC17: =+IFERROR(INDEX(st!$AI$3:$AI$52,MATCH(作業ページ!M17,st!$AH$3:$AH$52,0)),"") ->  | AD17: =+IFERROR(INDEX(st!$AI$3:$AI$52,MATCH(作業ページ!N17,st!$AH$3:$AH$52,0)),"") ->  | AE17: =+IFERROR(INDEX(st!$AI$3:$AI$52,MATCH(作業ページ!O17,st!$AH$3:$AH$52,0)),"") ->  | AF17: =+IFERROR(INDEX(st!$AI$3:$AI$52,MATCH(作業ページ!P17,st!$AH$3:$AH$52,0)),"") ->  | AG17: =+IFERROR(INDEX(st!$AI$3:$AI$52,MATCH(作業ページ!Q17,st!$AH$3:$AH$52,0)),"") ->  | AH17: =+IFERROR(INDEX(st!$AI$3:$AI$52,MATCH(作業ページ!R17,st!$AH$3:$AH$52,0)),"") ->  | AI17: =+IFERROR(INDEX(st!$AI$3:$AI$52,MATCH(作業ページ!S17,st!$AH$3:$AH$52,0)),"") ->  | AJ17: =+IFERROR(INDEX(st!$AI$3:$AI$52,MATCH(作業ページ!T17,st!$AH$3:$AH$52,0)),"") ->  | AK17: =+IFERROR(INDEX(st!$AI$3:$AI$52,MATCH(作業ページ!U17,st!$AH$3:$AH$52,0)),"") ->  | AL17: 0.0017 | AN17: 0 | AP17: =+COUNTIF(V17:AJ30,">0.1")+ROW()/10000+AL2 -> 0.0019 | AQ17: 3 | AR17: =IFERROR(INDEX($AR$1:$AR$15,MATCH(0,INDEX(COUNTIF($AR16:AR$16,$AR$1:$AR$15&""),),0)),"") -> 0 | AS17: =+INDEX($D$2:$D$132,MATCH(AZ17,$AN$2:$AN$132,0)) ->  | AT17: =IFERROR(LEFT(AR17,FIND("-",AR17)-1)*1,"") ->  | AU17: =IFERROR(RIGHT(AR17,LEN(AR17)-FIND("-",AR17,FIND("-",AR17)))*1,"") ->  | AV17: =+COUNTIF($AR$1:$AR$15,AR17) -> 1 | AW17: =+IF(AR17="","",INDEX($AL$2:$AL$132,MATCH(AR17,$D$2:$D$132,0))) ->  | AX17: =+IF(AR17="","",INDEX($AN$2:$AN$132,MATCH(AR17,$D$2:$D$132,0))) ->  | AY17: =+IF(AR17="","",INDEX($AM$2:$AM$132,MATCH(AR17,$D$2:$D$132,0))) ->  | AZ17: =+IF(LARGE(AN2:AN132,1)>0,LARGE(AN2:AN132,1),"") ->  | BC17: 実験中 | BS17: =+IFERROR(IF(AY10="〇",AX5,""),"") -> 
B18: 2 | C18: 4 | D18: 2-4 | E18: =+IFERROR(INDEX(st!$Z$3:$Z$57,MATCH(作業ページ!D18,st!$Y$3:$Y$57,0)),"") ->  | F18: =+SMALL((B18,C18,$F$1),1)&"-"&SMALL((B18,C18,$F$1),2)&"-"&SMALL((B18,C18,$F$1),3) -> 1-2-4 | G18: =+SMALL((B18,C18,$G$1),1)&"-"&SMALL((B18,C18,$G$1),2)&"-"&SMALL((B18,C18,$G$1),3) -> 2-2-4 | H18: =+SMALL((B18,C18,$H$1),1)&"-"&SMALL((B18,C18,$H$1),2)&"-"&SMALL((B18,C18,$H$1),3) -> 2-3-4 | I18: =+SMALL((B18,C18,$I$1),1)&"-"&SMALL((B18,C18,$I$1),2)&"-"&SMALL((B18,C18,$I$1),3) -> 2-4-4 | J18: =+SMALL((B18,C18,$J$1),1)&"-"&SMALL((B18,C18,$J$1),2)&"-"&SMALL((B18,C18,$J$1),3) -> 2-4-5 | K18: =+SMALL((B18,C18,$K$1),1)&"-"&SMALL((B18,C18,$K$1),2)&"-"&SMALL((B18,C18,$K$1),3) -> 2-4-6 | L18: =+SMALL((B18,C18,$L$1),1)&"-"&SMALL((B18,C18,$L$1),2)&"-"&SMALL((B18,C18,$L$1),3) -> 2-4-7 | M18: =+SMALL((B18,C18,$M$1),1)&"-"&SMALL((B18,C18,$M$1),2)&"-"&SMALL((B18,C18,$M$1),3) -> 2-4-8 | N18: =+SMALL((B18,C18,$N$1),1)&"-"&SMALL((B18,C18,$N$1),2)&"-"&SMALL((B18,C18,$N$1),3) -> 2-4-9 | O18: =+SMALL((B18,C18,$O$1),1)&"-"&SMALL((B18,C18,$O$1),2)&"-"&SMALL((B18,C18,$O$1),3) -> 2-4-10 | P18: =+SMALL((B18,C18,$P$1),1)&"-"&SMALL((B18,C18,$P$1),2)&"-"&SMALL((B18,C18,$P$1),3) -> 2-4-11 | Q18: =+SMALL((B18,C18,$Q$1),1)&"-"&SMALL((B18,C18,$Q$1),2)&"-"&SMALL((B18,C18,$Q$1),3) -> 2-4-12 | R18: =+SMALL((B18,C18,$R$1),1)&"-"&SMALL((B18,C18,$R$1),2)&"-"&SMALL((B18,C18,$R$1),3) -> 2-4-13 | S18: =+SMALL((B18,C18,$S$1),1)&"-"&SMALL((B18,C18,$S$1),2)&"-"&SMALL((B18,C18,$S$1),3) -> 2-4-14 | T18: =+SMALL((B18,C18,$T$1),1)&"-"&SMALL((B18,C18,$T$1),2)&"-"&SMALL((B18,C18,$T$1),3) -> 2-4-15 | U18: =+SMALL((B18,C18,$U$1),1)&"-"&SMALL((B18,C18,$U$1),2)&"-"&SMALL((B18,C18,$U$1),3) -> 2-4-16 | V18: =+IFERROR(INDEX(st!$AI$3:$AI$52,MATCH(作業ページ!F18,st!$AH$3:$AH$52,0)),"") ->  | W18: =+IFERROR(INDEX(st!$AI$3:$AI$52,MATCH(作業ページ!G18,st!$AH$3:$AH$52,0)),"") ->  | X18: =+IFERROR(INDEX(st!$AI$3:$AI$52,MATCH(作業ページ!H18,st!$AH$3:$AH$52,0)),"") ->  | Y18: =+IFERROR(INDEX(st!$AI$3:$AI$52,MATCH(作業ページ!I18,st!$AH$3:$AH$52,0)),"") ->  | Z18: =+IFERROR(INDEX(st!$AI$3:$AI$52,MATCH(作業ページ!J18,st!$AH$3:$AH$52,0)),"") ->  | AA18: =+IFERROR(INDEX(st!$AI$3:$AI$52,MATCH(作業ページ!K18,st!$AH$3:$AH$52,0)),"") ->  | AB18: =+IFERROR(INDEX(st!$AI$3:$AI$52,MATCH(作業ページ!L18,st!$AH$3:$AH$52,0)),"") ->  | AC18: =+IFERROR(INDEX(st!$AI$3:$AI$52,MATCH(作業ページ!M18,st!$AH$3:$AH$52,0)),"") ->  | AD18: =+IFERROR(INDEX(st!$AI$3:$AI$52,MATCH(作業ページ!N18,st!$AH$3:$AH$52,0)),"") ->  | AE18: =+IFERROR(INDEX(st!$AI$3:$AI$52,MATCH(作業ページ!O18,st!$AH$3:$AH$52,0)),"") ->  | AF18: =+IFERROR(INDEX(st!$AI$3:$AI$52,MATCH(作業ページ!P18,st!$AH$3:$AH$52,0)),"") ->  | AG18: =+IFERROR(INDEX(st!$AI$3:$AI$52,MATCH(作業ページ!Q18,st!$AH$3:$AH$52,0)),"") ->  | AH18: =+IFERROR(INDEX(st!$AI$3:$AI$52,MATCH(作業ページ!R18,st!$AH$3:$AH$52,0)),"") ->  | AI18: =+IFERROR(INDEX(st!$AI$3:$AI$52,MATCH(作業ページ!S18,st!$AH$3:$AH$52,0)),"") ->  | AJ18: =+IFERROR(INDEX(st!$AI$3:$AI$52,MATCH(作業ページ!T18,st!$AH$3:$AH$52,0)),"") ->  | AK18: =+IFERROR(INDEX(st!$AI$3:$AI$52,MATCH(作業ページ!U18,st!$AH$3:$AH$52,0)),"") ->  | AL18: 0.0018 | AN18: 0 | AQ18: 4 | AR18: =IFERROR(INDEX($AR$1:$AR$15,MATCH(0,INDEX(COUNTIF($AR$16:AR17,$AR$1:$AR$15&""),),0)),"") -> 14-18 | AS18: =+INDEX($D$2:$D$132,MATCH(AZ18,$AN$2:$AN$132,0)) ->  | AT18: =IFERROR(LEFT(AR18,FIND("-",AR18)-1)*1,"") -> 14 | AU18: =IFERROR(RIGHT(AR18,LEN(AR18)-FIND("-",AR18,FIND("-",AR18)))*1,"") -> 18 | AV18: =+COUNTIF($AR$1:$AR$15,AR18) -> 1 | AW18: =+IF(AR18="","",INDEX($AL$2:$AL$132,MATCH(AR18,$D$2:$D$132,0))) -> 0.0131 | AX18: =+IF(AR18="","",INDEX($AN$2:$AN$132,MATCH(AR18,$D$2:$D$132,0))) -> 0 | AY18: =+IF(AR18="","",INDEX($AM$2:$AM$132,MATCH(AR18,$D$2:$D$132,0))) ->  | AZ18: =+IF(LARGE(AN2:AN132,2)>0,LARGE(AN2:AN132,2),"") ->  | BC18: =+IF(AND(AX5=BI20,BC20<0,AX5<>CD19,BJ20<31%,BE56=1,BE11=1,BE12<-39%),"飛",IF(AND(BL33<29%,BJ33<10%,BE11<>1),"飛",IF(AND(BC20>54%,BC21<-109%,AX5=BI20,BJ20>31%,BK20>29%,BE56=1,BE11=1,BE12<-39%),"単",IF(AND(AX5=BF33,BJ33>39%,BH33>24%,AY31>39%),"単","")))) ->  | BE18: 20以下 | BG18: Ｃ | BH18: =+BE1 -> 大井2R | BJ18: A | BK18: B | BL18: =+IFERROR(IF(AND(BC32>6,BC33>8,BC34>3,BQ40>7,BE52>19),"見送り",""),"") ->  | BP18: =+IFERROR(IF(OR(AY10="〇",BS17<>"",BY42=0),"",IF(AND(BG33>-5%,BH33<7%,BJ33<15%),"飛",IF(AND(BH33<7.4%,BI33<34,BJ33<10%,BK33<25),"飛",IF(AY11="飛","飛","")))),"") ->  | BR18: D | BW18: =+IFERROR(IF(LARGE(BS20:BS28,1)>4.9%,LARGE(BS20:BS28,1),""),"") ->  | BX18: =+IFERROR(INDEX($BI$20:$BI$29,MATCH(BW18,$BS$20:$BS$29,0)),"") -> 16 | BY18: =+IF($AX$5=BX18,"",BX18) -> 16 | BZ18: １飛び推奨馬検証 | CE18: =+BF33 -> 8
B19: 2 | C19: 5 | D19: 2-5 | E19: =+IFERROR(INDEX(st!$Z$3:$Z$57,MATCH(作業ページ!D19,st!$Y$3:$Y$57,0)),"") ->  | F19: =+SMALL((B19,C19,$F$1),1)&"-"&SMALL((B19,C19,$F$1),2)&"-"&SMALL((B19,C19,$F$1),3) -> 1-2-5 | G19: =+SMALL((B19,C19,$G$1),1)&"-"&SMALL((B19,C19,$G$1),2)&"-"&SMALL((B19,C19,$G$1),3) -> 2-2-5 | H19: =+SMALL((B19,C19,$H$1),1)&"-"&SMALL((B19,C19,$H$1),2)&"-"&SMALL((B19,C19,$H$1),3) -> 2-3-5 | I19: =+SMALL((B19,C19,$I$1),1)&"-"&SMALL((B19,C19,$I$1),2)&"-"&SMALL((B19,C19,$I$1),3) -> 2-4-5 | J19: =+SMALL((B19,C19,$J$1),1)&"-"&SMALL((B19,C19,$J$1),2)&"-"&SMALL((B19,C19,$J$1),3) -> 2-5-5 | K19: =+SMALL((B19,C19,$K$1),1)&"-"&SMALL((B19,C19,$K$1),2)&"-"&SMALL((B19,C19,$K$1),3) -> 2-5-6 | L19: =+SMALL((B19,C19,$L$1),1)&"-"&SMALL((B19,C19,$L$1),2)&"-"&SMALL((B19,C19,$L$1),3) -> 2-5-7 | M19: =+SMALL((B19,C19,$M$1),1)&"-"&SMALL((B19,C19,$M$1),2)&"-"&SMALL((B19,C19,$M$1),3) -> 2-5-8 | N19: =+SMALL((B19,C19,$N$1),1)&"-"&SMALL((B19,C19,$N$1),2)&"-"&SMALL((B19,C19,$N$1),3) -> 2-5-9 | O19: =+SMALL((B19,C19,$O$1),1)&"-"&SMALL((B19,C19,$O$1),2)&"-"&SMALL((B19,C19,$O$1),3) -> 2-5-10 | P19: =+SMALL((B19,C19,$P$1),1)&"-"&SMALL((B19,C19,$P$1),2)&"-"&SMALL((B19,C19,$P$1),3) -> 2-5-11 | Q19: =+SMALL((B19,C19,$Q$1),1)&"-"&SMALL((B19,C19,$Q$1),2)&"-"&SMALL((B19,C19,$Q$1),3) -> 2-5-12 | R19: =+SMALL((B19,C19,$R$1),1)&"-"&SMALL((B19,C19,$R$1),2)&"-"&SMALL((B19,C19,$R$1),3) -> 2-5-13 | S19: =+SMALL((B19,C19,$S$1),1)&"-"&SMALL((B19,C19,$S$1),2)&"-"&SMALL((B19,C19,$S$1),3) -> 2-5-14 | T19: =+SMALL((B19,C19,$T$1),1)&"-"&SMALL((B19,C19,$T$1),2)&"-"&SMALL((B19,C19,$T$1),3) -> 2-5-15 | U19: =+SMALL((B19,C19,$U$1),1)&"-"&SMALL((B19,C19,$U$1),2)&"-"&SMALL((B19,C19,$U$1),3) -> 2-5-16 | V19: =+IFERROR(INDEX(st!$AI$3:$AI$52,MATCH(作業ページ!F19,st!$AH$3:$AH$52,0)),"") ->  | W19: =+IFERROR(INDEX(st!$AI$3:$AI$52,MATCH(作業ページ!G19,st!$AH$3:$AH$52,0)),"") ->  | X19: =+IFERROR(INDEX(st!$AI$3:$AI$52,MATCH(作業ページ!H19,st!$AH$3:$AH$52,0)),"") ->  | Y19: =+IFERROR(INDEX(st!$AI$3:$AI$52,MATCH(作業ページ!I19,st!$AH$3:$AH$52,0)),"") ->  | Z19: =+IFERROR(INDEX(st!$AI$3:$AI$52,MATCH(作業ページ!J19,st!$AH$3:$AH$52,0)),"") ->  | AA19: =+IFERROR(INDEX(st!$AI$3:$AI$52,MATCH(作業ページ!K19,st!$AH$3:$AH$52,0)),"") ->  | AB19: =+IFERROR(INDEX(st!$AI$3:$AI$52,MATCH(作業ページ!L19,st!$AH$3:$AH$52,0)),"") ->  | AC19: =+IFERROR(INDEX(st!$AI$3:$AI$52,MATCH(作業ページ!M19,st!$AH$3:$AH$52,0)),"") ->  | AD19: =+IFERROR(INDEX(st!$AI$3:$AI$52,MATCH(作業ページ!N19,st!$AH$3:$AH$52,0)),"") ->  | AE19: =+IFERROR(INDEX(st!$AI$3:$AI$52,MATCH(作業ページ!O19,st!$AH$3:$AH$52,0)),"") ->  | AF19: =+IFERROR(INDEX(st!$AI$3:$AI$52,MATCH(作業ページ!P19,st!$AH$3:$AH$52,0)),"") ->  | AG19: =+IFERROR(INDEX(st!$AI$3:$AI$52,MATCH(作業ページ!Q19,st!$AH$3:$AH$52,0)),"") ->  | AH19: =+IFERROR(INDEX(st!$AI$3:$AI$52,MATCH(作業ページ!R19,st!$AH$3:$AH$52,0)),"") ->  | AI19: =+IFERROR(INDEX(st!$AI$3:$AI$52,MATCH(作業ページ!S19,st!$AH$3:$AH$52,0)),"") ->  | AJ19: =+IFERROR(INDEX(st!$AI$3:$AI$52,MATCH(作業ページ!T19,st!$AH$3:$AH$52,0)),"") ->  | AK19: =+IFERROR(INDEX(st!$AI$3:$AI$52,MATCH(作業ページ!U19,st!$AH$3:$AH$52,0)),"") ->  | AL19: 0.0019 | AN19: 0 | AQ19: 5 | AR19: =IFERROR(INDEX($AR$1:$AR$15,MATCH(0,INDEX(COUNTIF($AR$16:AR18,$AR$1:$AR$15&""),),0)),"") -> 14-17 | AS19: =+INDEX($D$2:$D$132,MATCH(AZ19,$AN$2:$AN$132,0)) ->  | AT19: 14 | AU19: 17 | AV19: 1 | AW19: 0.013 | AX19: 0 | AZ19: =+IF(LARGE(AN2:AN132,3)>0,LARGE(AN2:AN132,3),"") ->  | BC19: 最小値 | BE19: Ａ:↓↓ | BF19: 断層 | BG19: 35以上？ | BI19: 指数番 | BL19: 個数 | BM19: Fｵｯｽﾞ | BN19: 単順 | BO19: 馬単 | BP19: 最小値 | BQ19: 最大値 | BR19: =SUM(BR20:BR28) -> 0 | BS19: 25以上 | BU19: =+IFERROR(IF(LARGE(BS20:BS28,1)>6%,LARGE(BS20:BS28,1),""),"") ->  | BV19: =+INDEX($BI$20:$BI$29,MATCH(BU19,$BS$20:$BS$29,0)) -> 16 | BW19: =+IFERROR(IF(LARGE(BS20:BS28,2)>4.9%,LARGE(BS20:BS28,2),""),"") ->  | BX19: =+IFERROR(INDEX($BI$20:$BI$29,MATCH(BW19,$BS$20:$BS$29,0)),"") -> 16 | BY19: =+IF($AX$5=BX19,"",BX19) -> 16 | BZ19: =+LARGE(BL20:BL29,1) -> 0 | CD19: =+IFERROR(IF(BZ19>9,INDEX($BI$20:$BI$29,MATCH(BZ19,$BL$20:$BL$29,0)),""),"") ->  | CE19: =+IF($BF$33=CF19,"",CF19) ->  | CF19: =+IF(st!$M$19<7,BI20,IF(AND(BB20<=$BC$32,OR(BL20>4,BS20>9%,BK20>9%)),BI20,"")) -> 
B20: 2 | C20: 6 | D20: 2-6 | E20: =+IFERROR(INDEX(st!$Z$3:$Z$57,MATCH(作業ページ!D20,st!$Y$3:$Y$57,0)),"") ->  | F20: =+SMALL((B20,C20,$F$1),1)&"-"&SMALL((B20,C20,$F$1),2)&"-"&SMALL((B20,C20,$F$1),3) -> 1-2-6 | G20: =+SMALL((B20,C20,$G$1),1)&"-"&SMALL((B20,C20,$G$1),2)&"-"&SMALL((B20,C20,$G$1),3) -> 2-2-6 | H20: =+SMALL((B20,C20,$H$1),1)&"-"&SMALL((B20,C20,$H$1),2)&"-"&SMALL((B20,C20,$H$1),3) -> 2-3-6 | I20: =+SMALL((B20,C20,$I$1),1)&"-"&SMALL((B20,C20,$I$1),2)&"-"&SMALL((B20,C20,$I$1),3) -> 2-4-6 | J20: =+SMALL((B20,C20,$J$1),1)&"-"&SMALL((B20,C20,$J$1),2)&"-"&SMALL((B20,C20,$J$1),3) -> 2-5-6 | K20: =+SMALL((B20,C20,$K$1),1)&"-"&SMALL((B20,C20,$K$1),2)&"-"&SMALL((B20,C20,$K$1),3) -> 2-6-6 | L20: =+SMALL((B20,C20,$L$1),1)&"-"&SMALL((B20,C20,$L$1),2)&"-"&SMALL((B20,C20,$L$1),3) -> 2-6-7 | M20: =+SMALL((B20,C20,$M$1),1)&"-"&SMALL((B20,C20,$M$1),2)&"-"&SMALL((B20,C20,$M$1),3) -> 2-6-8 | N20: =+SMALL((B20,C20,$N$1),1)&"-"&SMALL((B20,C20,$N$1),2)&"-"&SMALL((B20,C20,$N$1),3) -> 2-6-9 | O20: =+SMALL((B20,C20,$O$1),1)&"-"&SMALL((B20,C20,$O$1),2)&"-"&SMALL((B20,C20,$O$1),3) -> 2-6-10 | P20: =+SMALL((B20,C20,$P$1),1)&"-"&SMALL((B20,C20,$P$1),2)&"-"&SMALL((B20,C20,$P$1),3) -> 2-6-11 | Q20: =+SMALL((B20,C20,$Q$1),1)&"-"&SMALL((B20,C20,$Q$1),2)&"-"&SMALL((B20,C20,$Q$1),3) -> 2-6-12 | R20: =+SMALL((B20,C20,$R$1),1)&"-"&SMALL((B20,C20,$R$1),2)&"-"&SMALL((B20,C20,$R$1),3) -> 2-6-13 | S20: =+SMALL((B20,C20,$S$1),1)&"-"&SMALL((B20,C20,$S$1),2)&"-"&SMALL((B20,C20,$S$1),3) -> 2-6-14 | T20: =+SMALL((B20,C20,$T$1),1)&"-"&SMALL((B20,C20,$T$1),2)&"-"&SMALL((B20,C20,$T$1),3) -> 2-6-15 | U20: =+SMALL((B20,C20,$U$1),1)&"-"&SMALL((B20,C20,$U$1),2)&"-"&SMALL((B20,C20,$U$1),3) -> 2-6-16 | V20: =+IFERROR(INDEX(st!$AI$3:$AI$52,MATCH(作業ページ!F20,st!$AH$3:$AH$52,0)),"") ->  | W20: =+IFERROR(INDEX(st!$AI$3:$AI$52,MATCH(作業ページ!G20,st!$AH$3:$AH$52,0)),"") ->  | X20: =+IFERROR(INDEX(st!$AI$3:$AI$52,MATCH(作業ページ!H20,st!$AH$3:$AH$52,0)),"") ->  | Y20: =+IFERROR(INDEX(st!$AI$3:$AI$52,MATCH(作業ページ!I20,st!$AH$3:$AH$52,0)),"") ->  | Z20: =+IFERROR(INDEX(st!$AI$3:$AI$52,MATCH(作業ページ!J20,st!$AH$3:$AH$52,0)),"") ->  | AA20: =+IFERROR(INDEX(st!$AI$3:$AI$52,MATCH(作業ページ!K20,st!$AH$3:$AH$52,0)),"") ->  | AB20: =+IFERROR(INDEX(st!$AI$3:$AI$52,MATCH(作業ページ!L20,st!$AH$3:$AH$52,0)),"") ->  | AC20: =+IFERROR(INDEX(st!$AI$3:$AI$52,MATCH(作業ページ!M20,st!$AH$3:$AH$52,0)),"") ->  | AD20: =+IFERROR(INDEX(st!$AI$3:$AI$52,MATCH(作業ページ!N20,st!$AH$3:$AH$52,0)),"") ->  | AE20: =+IFERROR(INDEX(st!$AI$3:$AI$52,MATCH(作業ページ!O20,st!$AH$3:$AH$52,0)),"") ->  | AF20: =+IFERROR(INDEX(st!$AI$3:$AI$52,MATCH(作業ページ!P20,st!$AH$3:$AH$52,0)),"") ->  | AG20: =+IFERROR(INDEX(st!$AI$3:$AI$52,MATCH(作業ページ!Q20,st!$AH$3:$AH$52,0)),"") ->  | AH20: =+IFERROR(INDEX(st!$AI$3:$AI$52,MATCH(作業ページ!R20,st!$AH$3:$AH$52,0)),"") ->  | AI20: =+IFERROR(INDEX(st!$AI$3:$AI$52,MATCH(作業ページ!S20,st!$AH$3:$AH$52,0)),"") ->  | AJ20: =+IFERROR(INDEX(st!$AI$3:$AI$52,MATCH(作業ページ!T20,st!$AH$3:$AH$52,0)),"") ->  | AK20: =+IFERROR(INDEX(st!$AI$3:$AI$52,MATCH(作業ページ!U20,st!$AH$3:$AH$52,0)),"") ->  | AL20: 0.002 | AN20: 0 | AQ20: 6 | AR20: =IFERROR(INDEX($AR$1:$AR$15,MATCH(0,INDEX(COUNTIF($AR$16:AR19,$AR$1:$AR$15&""),),0)),"") -> 14-16 | AS20: =+INDEX($D$2:$D$132,MATCH(AZ20,$AN$2:$AN$132,0)) ->  | AT20: 14 | AU20: 16 | AV20: 1 | AW20: 0.0129 | AX20: 0 | AZ20: =+IF(LARGE(AN2:AN132,4)>0,LARGE(AN2:AN132,4),"") ->  | BA20: =+IFERROR(IF(AND(RANK(BO20,$BO$20:$BO$29,1)<4,BD20-RANK(BO20,$BO$20:$BO$29,1)>=3,BL20>25,OR(BJ20>29%,BS20>19%,BK20>14%)),"〇",IF(AND($AX$5=BI20,BJ20>32%,BK20>37%,$AZ$31>14%,AX1=1,AW1<-49.9%),"〇",IF(AND($AX$5=BI20,BB20<>0,BL20<22,BS20<10%,BC20<6%,メイン!$N$25<1.4,$BB$82>159%,$BJ$70>7.9),"飛",IF(AND($AX$5=BI20,BJ20>32%,BK20>37%,$AY$33>19%,AX1=1,AW1<-49.9%),"〇","")))),"") ->  | BB20: 0 | BC20: =+IFERROR(SUM(1/BE21-1/BE20)/(1/BE21),"") -> 0 | BD20: 1 | BE20: =+IFERROR(INDEX(各データ整理!$AR$3:$AR$42,MATCH(作業ページ!$BI$21&"-"&BI20,各データ整理!$CI$3:$CI$42,0)),200) -> 200 | BG20: =+LARGE(AP2:AP131,1) -> 0.1321 | BH20: =+BG20/$BG$30 -> 0.1652076038 | BI20: =+IF(BH20<1%,"",INDEX($B$2:$B$132,MATCH(BG20,$AP$2:$AP$131,0))) -> 16 | BJ20: =+IFERROR(INDEX($BN$6:$BN$15,MATCH(BI20,$BK$6:$BK$15,0)),"") ->  | BK20: =+IFERROR(INDEX(各データ整理!$Q$4:$Q$19,MATCH(作業ページ!BI20,各データ整理!$D$4:$D$19,0)),"") ->  | BL20: =+IFERROR(INDEX(Sheet11!$AV$58:$AV$66,MATCH(BI20,Sheet11!$AU$58:$AU$66,0)),0)+IFERROR(INDEX($BL$6:$BL$15,MATCH(BI20,$BK$6:$BK$15,0))+ROW()/10000,0) -> 0 | BM20: =+IFERROR(INDEX(st!$BK$3:$BK$16,MATCH(作業ページ!BI20,st!$M$3:$M$18,0)),"") ->  | BN20: =+Sheet11!U3 -> 8 | BO20: =+IFERROR(INDEX(st!$R$3:$R$42,MATCH(作業ページ!$BI$21&"-"&BI20,st!$Q$3:$Q$42,0)),"") ->  | BQ20: =+IFERROR(INDEX(st!$BL$3:$BL$16,MATCH(BI20,st!$M$3:$M$18,0)),"") ->  | BR20: =+IFERROR((SUM(1/BE20)-(1/BO20))/(1/BM20),"") ->  | BS20: =+IFERROR(BR20/$BR$19,"") ->  | BT20: =+IF(AND(BS20>14%,BB20=0,BI20<>$BF$33,BL20>24,BJ20>33.9%,BK20>24.9%),"〇",IF(AND(BS20>15%,BO20>14,BL20>19,BK20>21.9%,BJ20>29%,BG20>33,$BF$33<>BI20),"〇",IF(AND(BS20>16.9%,BO20>9.9,BG20>29,$BF$33<>BI20,BH20>24%),"〇",IF(AND(BS20>16.9%,BO20>15,BL20>19,BH20>24%,BG20>32.9,$BF$33<>BI20),"〇",IF(AND(BS20>19.9%,BO20>29.9,BL20>1,BK20>7%,BH20>19%,BG20>15,$BF$33<>BI20),"〇",IF(AND(BS20>39%,BL20>24,BG20>24,BH20>23%,$BF$33<>BI20),"〇",IF(AND(BO20>19.9,BL20>29,BJ20>33.9%,BH20>23%,BI20<>$BF$33,BL20<>"",$BF$33<>BI20),"〇",""))))))) ->  | BU20: =+IFERROR(IF(LARGE(BS20:BS28,2)>6%,LARGE(BS20:BS28,2),""),"") ->  | BV20: =+IFERROR(INDEX($BI$20:$BI$29,MATCH(BU20,$BS$20:$BS$29,0)),"") -> 16 | BW20: =+IFERROR(IF(LARGE(BS20:BS28,3)>4.9%,LARGE(BS20:BS28,3),""),"") ->  | BX20: =+IFERROR(INDEX($BI$20:$BI$29,MATCH(BW20,$BS$20:$BS$29,0)),"") -> 16 | BY20: 16 | BZ20: =+LARGE(BL20:BL29,2) -> 0 | CD20: =+IFERROR(IF(BZ20>9,INDEX($BI$20:$BI$29,MATCH(BZ20,$BL$20:$BL$29,0)),""),"") ->  | CE20: =+IF($BF$33=CF20,"",CF20) ->  | CF20: =+IF(st!$M$19<7,BI21,IF(AND(BB21<=$BC$32,OR(BL21>4,BS21>9%,BK21>9%)),BI21,"")) -> 
B21: 2 | C21: 7 | D21: 2-7 | E21: =+IFERROR(INDEX(st!$Z$3:$Z$57,MATCH(作業ページ!D21,st!$Y$3:$Y$57,0)),"") ->  | F21: =+SMALL((B21,C21,$F$1),1)&"-"&SMALL((B21,C21,$F$1),2)&"-"&SMALL((B21,C21,$F$1),3) -> 1-2-7 | G21: =+SMALL((B21,C21,$G$1),1)&"-"&SMALL((B21,C21,$G$1),2)&"-"&SMALL((B21,C21,$G$1),3) -> 2-2-7 | H21: =+SMALL((B21,C21,$H$1),1)&"-"&SMALL((B21,C21,$H$1),2)&"-"&SMALL((B21,C21,$H$1),3) -> 2-3-7 | I21: =+SMALL((B21,C21,$I$1),1)&"-"&SMALL((B21,C21,$I$1),2)&"-"&SMALL((B21,C21,$I$1),3) -> 2-4-7 | J21: =+SMALL((B21,C21,$J$1),1)&"-"&SMALL((B21,C21,$J$1),2)&"-"&SMALL((B21,C21,$J$1),3) -> 2-5-7 | K21: =+SMALL((B21,C21,$K$1),1)&"-"&SMALL((B21,C21,$K$1),2)&"-"&SMALL((B21,C21,$K$1),3) -> 2-6-7 | L21: =+SMALL((B21,C21,$L$1),1)&"-"&SMALL((B21,C21,$L$1),2)&"-"&SMALL((B21,C21,$L$1),3) -> 2-7-7 | M21: =+SMALL((B21,C21,$M$1),1)&"-"&SMALL((B21,C21,$M$1),2)&"-"&SMALL((B21,C21,$M$1),3) -> 2-7-8 | N21: =+SMALL((B21,C21,$N$1),1)&"-"&SMALL((B21,C21,$N$1),2)&"-"&SMALL((B21,C21,$N$1),3) -> 2-7-9 | O21: =+SMALL((B21,C21,$O$1),1)&"-"&SMALL((B21,C21,$O$1),2)&"-"&SMALL((B21,C21,$O$1),3) -> 2-7-10 | P21: =+SMALL((B21,C21,$P$1),1)&"-"&SMALL((B21,C21,$P$1),2)&"-"&SMALL((B21,C21,$P$1),3) -> 2-7-11 | Q21: =+SMALL((B21,C21,$Q$1),1)&"-"&SMALL((B21,C21,$Q$1),2)&"-"&SMALL((B21,C21,$Q$1),3) -> 2-7-12 | R21: =+SMALL((B21,C21,$R$1),1)&"-"&SMALL((B21,C21,$R$1),2)&"-"&SMALL((B21,C21,$R$1),3) -> 2-7-13 | S21: =+SMALL((B21,C21,$S$1),1)&"-"&SMALL((B21,C21,$S$1),2)&"-"&SMALL((B21,C21,$S$1),3) -> 2-7-14 | T21: =+SMALL((B21,C21,$T$1),1)&"-"&SMALL((B21,C21,$T$1),2)&"-"&SMALL((B21,C21,$T$1),3) -> 2-7-15 | U21: =+SMALL((B21,C21,$U$1),1)&"-"&SMALL((B21,C21,$U$1),2)&"-"&SMALL((B21,C21,$U$1),3) -> 2-7-16 | V21: =+IFERROR(INDEX(st!$AI$3:$AI$52,MATCH(作業ページ!F21,st!$AH$3:$AH$52,0)),"") ->  | W21: =+IFERROR(INDEX(st!$AI$3:$AI$52,MATCH(作業ページ!G21,st!$AH$3:$AH$52,0)),"") ->  | X21: =+IFERROR(INDEX(st!$AI$3:$AI$52,MATCH(作業ページ!H21,st!$AH$3:$AH$52,0)),"") ->  | Y21: =+IFERROR(INDEX(st!$AI$3:$AI$52,MATCH(作業ページ!I21,st!$AH$3:$AH$52,0)),"") ->  | Z21: =+IFERROR(INDEX(st!$AI$3:$AI$52,MATCH(作業ページ!J21,st!$AH$3:$AH$52,0)),"") ->  | AA21: =+IFERROR(INDEX(st!$AI$3:$AI$52,MATCH(作業ページ!K21,st!$AH$3:$AH$52,0)),"") ->  | AB21: =+IFERROR(INDEX(st!$AI$3:$AI$52,MATCH(作業ページ!L21,st!$AH$3:$AH$52,0)),"") ->  | AC21: =+IFERROR(INDEX(st!$AI$3:$AI$52,MATCH(作業ページ!M21,st!$AH$3:$AH$52,0)),"") ->  | AD21: =+IFERROR(INDEX(st!$AI$3:$AI$52,MATCH(作業ページ!N21,st!$AH$3:$AH$52,0)),"") ->  | AE21: =+IFERROR(INDEX(st!$AI$3:$AI$52,MATCH(作業ページ!O21,st!$AH$3:$AH$52,0)),"") ->  | AF21: =+IFERROR(INDEX(st!$AI$3:$AI$52,MATCH(作業ページ!P21,st!$AH$3:$AH$52,0)),"") ->  | AG21: =+IFERROR(INDEX(st!$AI$3:$AI$52,MATCH(作業ページ!Q21,st!$AH$3:$AH$52,0)),"") ->  | AH21: =+IFERROR(INDEX(st!$AI$3:$AI$52,MATCH(作業ページ!R21,st!$AH$3:$AH$52,0)),"") ->  | AI21: =+IFERROR(INDEX(st!$AI$3:$AI$52,MATCH(作業ページ!S21,st!$AH$3:$AH$52,0)),"") ->  | AJ21: =+IFERROR(INDEX(st!$AI$3:$AI$52,MATCH(作業ページ!T21,st!$AH$3:$AH$52,0)),"") ->  | AK21: =+IFERROR(INDEX(st!$AI$3:$AI$52,MATCH(作業ページ!U21,st!$AH$3:$AH$52,0)),"") ->  | AL21: =+COUNTIF(V21:AK21,">0.1")+ROW()/10000 -> 0.0021 | AN21: 0 | AQ21: 7 | AR21: =IFERROR(INDEX($AR$1:$AR$15,MATCH(0,INDEX(COUNTIF($AR$16:AR20,$AR$1:$AR$15&""),),0)),"") -> 14-15 | AS21: =+INDEX($D$2:$D$132,MATCH(AZ21,$AN$2:$AN$132,0)) ->  | AT21: 14 | AU21: 15 | AV21: =+COUNTIF($AR$1:$AR$15,AR21) -> 1 | AW21: 0.0128 | AX21: =+IF(AR21="","",INDEX($AN$2:$AN$132,MATCH(AR21,$D$2:$D$132,0))) -> 0 | AZ21: =+IF(LARGE(AN2:AN132,5)>0,LARGE(AN2:AN132,5),"") ->  | BA21: =+IFERROR(IF(AND(RANK(BO21,$BO$20:$BO$29,1)<4,BD21-RANK(BO21,$BO$20:$BO$29,1)>=3,BL21>25,OR(BJ21>29%,BS21>19%,BK21>14%)),"〇",IF(AND($AX$5=BI21,BJ21>32%,BK21>37%,$AZ$31>14%,AX2=1,AW2<-49.9%),"〇",IF(AND($AX$5=BI21,BB21<>0,BL21<22,BS21<10%,BC21<6%,メイン!$N$25<1.4,$BB$82>159%,$BJ$70>7.9),"飛",IF(AND($AX$5=BI21,BJ21>32%,BK21>37%,$AY$33>19%,AX2=1,AW2<-49.9%),"〇","")))),"") ->  | BB21: 1 | BC21: =+IFERROR(SUM(1/BE20-1/BE21)/(1/BE20),"") -> 0 | BD21: 2 | BE21: =+IFERROR(INDEX(各データ整理!$AR$3:$AR$42,MATCH(作業ページ!$BI$20&"-"&BI21,各データ整理!$CI$3:$CI$42,0)),200) -> 200 | BF21: =+BH20/BH21 -> 1.011485452 | BG21: =+LARGE(AP2:AP131,2) -> 0.1306 | BH21: =+BG21/$BG$30 -> 0.1633316658 | BI21: =+IF(BH21<1%,"",INDEX($B$2:$B$132,MATCH(BG21,$AP$2:$AP$131,0))) -> 15 | BJ21: =+IFERROR(INDEX($BN$6:$BN$15,MATCH(BI21,$BK$6:$BK$15,0)),"") ->  | BK21: =+IFERROR(INDEX(各データ整理!$Q$4:$Q$19,MATCH(作業ページ!BI21,各データ整理!$D$4:$D$19,0)),"") ->  | BL21: =+IFERROR(INDEX(Sheet11!$AV$58:$AV$66,MATCH(作業ページ!BI21,Sheet11!$AU$58:$AU$66,0))+INDEX($BL$6:$BL$15,MATCH(BI21,$BK$6:$BK$15,0))+ROW()/10000,0) -> 0 | BM21: =+IFERROR(INDEX(st!$BK$3:$BK$16,MATCH(作業ページ!BI21,st!$M$3:$M$18,0)),"") ->  | BN21: =+Sheet11!U4 -> 11 | BO21: =+IFERROR(INDEX(st!$R$3:$R$42,MATCH(作業ページ!$BI$20&"-"&BI21,st!$Q$3:$Q$42,0)),"") ->  | BP21: =+IFERROR(SUM(1/BE21-1/BO21)/(1/BE21),"") ->  | BQ21: =+IFERROR(INDEX(st!$BL$3:$BL$16,MATCH(BI21,st!$M$3:$M$18,0)),"") ->  | BR21: =+IFERROR((SUM(1/BE21)-(1/BO21))/(1/BM21),"") ->  | BS21: =+IFERROR(BR21/$BR$19,"") ->  | BT21: =+IF(AND(BS21>14%,BB21=0,BI21<>$BF$33,BL21>24,BJ21>33.9%,BK21>24.9%),"〇",IF(AND(BS21>15%,BO21>14,BL21>19,BK21>21.9%,BJ21>29%,BG21>33,$BF$33<>BI21),"〇",IF(AND(BS21>16.9%,BO21>9.9,BG21>29,$BF$33<>BI21,BH21>24%),"〇",IF(AND(BS21>16.9%,BO21>15,BL21>19,BH21>24%,BG21>32.9,$BF$33<>BI21),"〇",IF(AND(BS21>19.9%,BO21>29.9,BL21>1,BK21>7%,BH21>19%,BG21>15,$BF$33<>BI21),"〇",IF(AND(BS21>39%,BL21>24,BG21>24,BH21>23%,$BF$33<>BI21),"〇",IF(AND(BO21>19.9,BL21>29,BJ21>33.9%,BH21>23%,BI21<>$BF$33,BL21<>"",$BF$33<>BI21),"〇",""))))))) ->  | BU21: =+IFERROR(IF(LARGE(BS20:BS28,3)>6%,LARGE(BS20:BS28,3),""),"") ->  | BV21: 16 | BW21: =+IFERROR(IF(LARGE(BS20:BS28,4)>4.9%,LARGE(BS20:BS28,4),""),"") ->  | BX21: =+IFERROR(INDEX($BI$20:$BI$29,MATCH(BW21,$BS$20:$BS$29,0)),"") -> 16 | BY21: 16 | BZ21: =+LARGE(BL20:BL29,3) -> 0 | CE21: =+IF($BF$33=CF21,"",CF21) ->  | CF21: =+IF(st!$M$19<7,BI22,IF(AND(BB22<=$BC$32,OR(BL22>4,BS22>9%,BK22>9%)),BI22,"")) ->  | CH21: =+IFERROR(INDEX(各データ整理!$AR$3:$AR$42,MATCH(作業ページ!$BI$21&"-"&BI20,各データ整理!$CI$3:$CI$42,0)),200) -> 200
B22: 2 | C22: 8 | D22: 2-8 | E22: =+IFERROR(INDEX(st!$Z$3:$Z$57,MATCH(作業ページ!D22,st!$Y$3:$Y$57,0)),"") ->  | F22: =+SMALL((B22,C22,$F$1),1)&"-"&SMALL((B22,C22,$F$1),2)&"-"&SMALL((B22,C22,$F$1),3) -> 1-2-8 | G22: =+SMALL((B22,C22,$G$1),1)&"-"&SMALL((B22,C22,$G$1),2)&"-"&SMALL((B22,C22,$G$1),3) -> 2-2-8 | H22: =+SMALL((B22,C22,$H$1),1)&"-"&SMALL((B22,C22,$H$1),2)&"-"&SMALL((B22,C22,$H$1),3) -> 2-3-8 | I22: =+SMALL((B22,C22,$I$1),1)&"-"&SMALL((B22,C22,$I$1),2)&"-"&SMALL((B22,C22,$I$1),3) -> 2-4-8 | J22: =+SMALL((B22,C22,$J$1),1)&"-"&SMALL((B22,C22,$J$1),2)&"-"&SMALL((B22,C22,$J$1),3) -> 2-5-8 | K22: =+SMALL((B22,C22,$K$1),1)&"-"&SMALL((B22,C22,$K$1),2)&"-"&SMALL((B22,C22,$K$1),3) -> 2-6-8 | L22: =+SMALL((B22,C22,$L$1),1)&"-"&SMALL((B22,C22,$L$1),2)&"-"&SMALL((B22,C22,$L$1),3) -> 2-7-8 | M22: =+SMALL((B22,C22,$M$1),1)&"-"&SMALL((B22,C22,$M$1),2)&"-"&SMALL((B22,C22,$M$1),3) -> 2-8-8 | N22: =+SMALL((B22,C22,$N$1),1)&"-"&SMALL((B22,C22,$N$1),2)&"-"&SMALL((B22,C22,$N$1),3) -> 2-8-9 | O22: =+SMALL((B22,C22,$O$1),1)&"-"&SMALL((B22,C22,$O$1),2)&"-"&SMALL((B22,C22,$O$1),3) -> 2-8-10 | P22: =+SMALL((B22,C22,$P$1),1)&"-"&SMALL((B22,C22,$P$1),2)&"-"&SMALL((B22,C22,$P$1),3) -> 2-8-11 | Q22: =+SMALL((B22,C22,$Q$1),1)&"-"&SMALL((B22,C22,$Q$1),2)&"-"&SMALL((B22,C22,$Q$1),3) -> 2-8-12 | R22: =+SMALL((B22,C22,$R$1),1)&"-"&SMALL((B22,C22,$R$1),2)&"-"&SMALL((B22,C22,$R$1),3) -> 2-8-13 | S22: =+SMALL((B22,C22,$S$1),1)&"-"&SMALL((B22,C22,$S$1),2)&"-"&SMALL((B22,C22,$S$1),3) -> 2-8-14 | T22: =+SMALL((B22,C22,$T$1),1)&"-"&SMALL((B22,C22,$T$1),2)&"-"&SMALL((B22,C22,$T$1),3) -> 2-8-15 | U22: =+SMALL((B22,C22,$U$1),1)&"-"&SMALL((B22,C22,$U$1),2)&"-"&SMALL((B22,C22,$U$1),3) -> 2-8-16 | V22: =+IFERROR(INDEX(st!$AI$3:$AI$52,MATCH(作業ページ!F22,st!$AH$3:$AH$52,0)),"") ->  | W22: =+IFERROR(INDEX(st!$AI$3:$AI$52,MATCH(作業ページ!G22,st!$AH$3:$AH$52,0)),"") ->  | X22: =+IFERROR(INDEX(st!$AI$3:$AI$52,MATCH(作業ページ!H22,st!$AH$3:$AH$52,0)),"") ->  | Y22: =+IFERROR(INDEX(st!$AI$3:$AI$52,MATCH(作業ページ!I22,st!$AH$3:$AH$52,0)),"") ->  | Z22: =+IFERROR(INDEX(st!$AI$3:$AI$52,MATCH(作業ページ!J22,st!$AH$3:$AH$52,0)),"") ->  | AA22: =+IFERROR(INDEX(st!$AI$3:$AI$52,MATCH(作業ページ!K22,st!$AH$3:$AH$52,0)),"") ->  | AB22: =+IFERROR(INDEX(st!$AI$3:$AI$52,MATCH(作業ページ!L22,st!$AH$3:$AH$52,0)),"") ->  | AC22: =+IFERROR(INDEX(st!$AI$3:$AI$52,MATCH(作業ページ!M22,st!$AH$3:$AH$52,0)),"") ->  | AD22: =+IFERROR(INDEX(st!$AI$3:$AI$52,MATCH(作業ページ!N22,st!$AH$3:$AH$52,0)),"") ->  | AE22: =+IFERROR(INDEX(st!$AI$3:$AI$52,MATCH(作業ページ!O22,st!$AH$3:$AH$52,0)),"") ->  | AF22: =+IFERROR(INDEX(st!$AI$3:$AI$52,MATCH(作業ページ!P22,st!$AH$3:$AH$52,0)),"") ->  | AG22: =+IFERROR(INDEX(st!$AI$3:$AI$52,MATCH(作業ページ!Q22,st!$AH$3:$AH$52,0)),"") ->  | AH22: =+IFERROR(INDEX(st!$AI$3:$AI$52,MATCH(作業ページ!R22,st!$AH$3:$AH$52,0)),"") ->  | AI22: =+IFERROR(INDEX(st!$AI$3:$AI$52,MATCH(作業ページ!S22,st!$AH$3:$AH$52,0)),"") ->  | AJ22: =+IFERROR(INDEX(st!$AI$3:$AI$52,MATCH(作業ページ!T22,st!$AH$3:$AH$52,0)),"") ->  | AK22: =+IFERROR(INDEX(st!$AI$3:$AI$52,MATCH(作業ページ!U22,st!$AH$3:$AH$52,0)),"") ->  | AL22: 0.0022 | AN22: 0 | AQ22: 8 | AR22: =IFERROR(INDEX($AR$1:$AR$15,MATCH(0,INDEX(COUNTIF($AR$16:AR21,$AR$1:$AR$15&""),),0)),"") ->  | AV22: 0 | BA22: =+IFERROR(IF(AND(RANK(BO22,$BO$20:$BO$29,1)<4,BD22-RANK(BO22,$BO$20:$BO$29,1)>=3,BL22>25,OR(BJ22>29%,BS22>19%,BK22>14%)),"〇",IF(AND($AX$5=BI22,BJ22>32%,BK22>37%,$AZ$31>14%,AX3=1,AW3<-49.9%),"〇",IF(AND($AX$5=BI22,BB22<>0,BL22<22,BS22<10%,BC22<6%,メイン!$N$25<1.4,$BB$82>159%,$BJ$70>7.9),"飛",IF(AND($AX$5=BI22,BJ22>32%,BK22>37%,$AY$33>19%,AX3=1,AW3<-49.9%),"〇","")))),"") ->  | BB22: 2 | BC22: =+IFERROR(SUM(1/BE21-1/BE22)/(1/BE21),"") -> 0 | BD22: 3 | BE22: =+IFERROR(INDEX(各データ整理!$AR$3:$AR$42,MATCH(作業ページ!$BI$20&"-"&BI22,各データ整理!$CI$3:$CI$42,0)),200) -> 200 | BF22: =+BH21/BH22 -> 1.122957868 | BG22: =+LARGE(AP2:AP131,3) -> 0.1163 | BH22: 0.1454477239 | BI22: 14 | BK22: =+IFERROR(INDEX(各データ整理!$Q$4:$Q$19,MATCH(作業ページ!BI22,各データ整理!$D$4:$D$19,0)),"") ->  | BL22: =+IFERROR(INDEX(Sheet11!$AV$58:$AV$66,MATCH(作業ページ!BI22,Sheet11!$AU$58:$AU$66,0))+INDEX($BL$6:$BL$15,MATCH(BI22,$BK$6:$BK$15,0))+ROW()/10000,0) -> 0 | BM22: =+IFERROR(INDEX(st!$BK$3:$BK$16,MATCH(作業ページ!BI22,st!$M$3:$M$18,0)),"") ->  | BN22: =+Sheet11!U5 -> 1 | BO22: =+IFERROR(INDEX(st!$R$3:$R$42,MATCH(作業ページ!$BI$20&"-"&BI22,st!$Q$3:$Q$42,0)),"") ->  | BP22: =+IFERROR(SUM(1/BE22-1/BO22)/(1/BE22),"") ->  | BQ22: =+IFERROR(INDEX(st!$BL$3:$BL$16,MATCH(BI22,st!$M$3:$M$18,0)),"") ->  | BR22: =+IFERROR((SUM(1/BE22)-(1/BO22))/(1/BM22),"") ->  | BT22: =+IF(AND(BS22>14%,BB22=0,BI22<>$BF$33,BL22>24,BJ22>33.9%,BK22>24.9%),"〇",IF(AND(BS22>15%,BO22>14,BL22>19,BK22>21.9%,BJ22>29%,BG22>33,$BF$33<>BI22),"〇",IF(AND(BS22>16.9%,BO22>9.9,BG22>29,$BF$33<>BI22,BH22>24%),"〇",IF(AND(BS22>16.9%,BO22>15,BL22>19,BH22>24%,BG22>32.9,$BF$33<>BI22),"〇",IF(AND(BS22>19.9%,BO22>29.9,BL22>1,BK22>7%,BH22>19%,BG22>15,$BF$33<>BI22),"〇",IF(AND(BS22>39%,BL22>24,BG22>24,BH22>23%,$BF$33<>BI22),"〇",IF(AND(BO22>19.9,BL22>29,BJ22>33.9%,BH22>23%,BI22<>$BF$33,BL22<>"",$BF$33<>BI22),"〇",""))))))) ->  | BU22: =+IFERROR(IF(LARGE(BS20:BS28,4)>6%,LARGE(BS20:BS28,4),""),"") ->  | BV22: 16 | BW22: =+IFERROR(IF(LARGE(BS20:BS28,5)>4.9%,LARGE(BS20:BS28,5),""),"") ->  | BX22: 16 | BY22: 16 | BZ22: =+LARGE(BL20:BL29,4) -> 0 | CE22: =+IF($BF$33=CF22,"",CF22) ->  | CF22: =+IF(st!$M$19<7,BI23,IF(AND(BB23<=$BC$32,OR(BL23>4,BS23>9%,BK23>9%)),BI23,"")) ->  | CH22: =+IFERROR(INDEX(各データ整理!$AR$3:$AR$42,MATCH(作業ページ!$BI$21&"-"&BI22,各データ整理!$CI$3:$CI$42,0)),200) -> 200 | CI22: =SUM(CH22/BE22) -> 1
B23: 2 | C23: 9 | D23: 2-9 | E23: =+IFERROR(INDEX(st!$Z$3:$Z$57,MATCH(作業ページ!D23,st!$Y$3:$Y$57,0)),"") ->  | F23: =+SMALL((B23,C23,$F$1),1)&"-"&SMALL((B23,C23,$F$1),2)&"-"&SMALL((B23,C23,$F$1),3) -> 1-2-9 | G23: =+SMALL((B23,C23,$G$1),1)&"-"&SMALL((B23,C23,$G$1),2)&"-"&SMALL((B23,C23,$G$1),3) -> 2-2-9 | H23: =+SMALL((B23,C23,$H$1),1)&"-"&SMALL((B23,C23,$H$1),2)&"-"&SMALL((B23,C23,$H$1),3) -> 2-3-9 | I23: =+SMALL((B23,C23,$I$1),1)&"-"&SMALL((B23,C23,$I$1),2)&"-"&SMALL((B23,C23,$I$1),3) -> 2-4-9 | J23: =+SMALL((B23,C23,$J$1),1)&"-"&SMALL((B23,C23,$J$1),2)&"-"&SMALL((B23,C23,$J$1),3) -> 2-5-9 | K23: =+SMALL((B23,C23,$K$1),1)&"-"&SMALL((B23,C23,$K$1),2)&"-"&SMALL((B23,C23,$K$1),3) -> 2-6-9 | L23: =+SMALL((B23,C23,$L$1),1)&"-"&SMALL((B23,C23,$L$1),2)&"-"&SMALL((B23,C23,$L$1),3) -> 2-7-9 | M23: =+SMALL((B23,C23,$M$1),1)&"-"&SMALL((B23,C23,$M$1),2)&"-"&SMALL((B23,C23,$M$1),3) -> 2-8-9 | N23: =+SMALL((B23,C23,$N$1),1)&"-"&SMALL((B23,C23,$N$1),2)&"-"&SMALL((B23,C23,$N$1),3) -> 2-9-9 | O23: =+SMALL((B23,C23,$O$1),1)&"-"&SMALL((B23,C23,$O$1),2)&"-"&SMALL((B23,C23,$O$1),3) -> 2-9-10 | P23: =+SMALL((B23,C23,$P$1),1)&"-"&SMALL((B23,C23,$P$1),2)&"-"&SMALL((B23,C23,$P$1),3) -> 2-9-11 | Q23: =+SMALL((B23,C23,$Q$1),1)&"-"&SMALL((B23,C23,$Q$1),2)&"-"&SMALL((B23,C23,$Q$1),3) -> 2-9-12 | R23: =+SMALL((B23,C23,$R$1),1)&"-"&SMALL((B23,C23,$R$1),2)&"-"&SMALL((B23,C23,$R$1),3) -> 2-9-13 | S23: =+SMALL((B23,C23,$S$1),1)&"-"&SMALL((B23,C23,$S$1),2)&"-"&SMALL((B23,C23,$S$1),3) -> 2-9-14 | T23: =+SMALL((B23,C23,$T$1),1)&"-"&SMALL((B23,C23,$T$1),2)&"-"&SMALL((B23,C23,$T$1),3) -> 2-9-15 | U23: =+SMALL((B23,C23,$U$1),1)&"-"&SMALL((B23,C23,$U$1),2)&"-"&SMALL((B23,C23,$U$1),3) -> 2-9-16 | V23: =+IFERROR(INDEX(st!$AI$3:$AI$52,MATCH(作業ページ!F23,st!$AH$3:$AH$52,0)),"") ->  | W23: =+IFERROR(INDEX(st!$AI$3:$AI$52,MATCH(作業ページ!G23,st!$AH$3:$AH$52,0)),"") ->  | X23: =+IFERROR(INDEX(st!$AI$3:$AI$52,MATCH(作業ページ!H23,st!$AH$3:$AH$52,0)),"") ->  | Y23: =+IFERROR(INDEX(st!$AI$3:$AI$52,MATCH(作業ページ!I23,st!$AH$3:$AH$52,0)),"") ->  | Z23: =+IFERROR(INDEX(st!$AI$3:$AI$52,MATCH(作業ページ!J23,st!$AH$3:$AH$52,0)),"") ->  | AA23: =+IFERROR(INDEX(st!$AI$3:$AI$52,MATCH(作業ページ!K23,st!$AH$3:$AH$52,0)),"") ->  | AB23: =+IFERROR(INDEX(st!$AI$3:$AI$52,MATCH(作業ページ!L23,st!$AH$3:$AH$52,0)),"") ->  | AC23: =+IFERROR(INDEX(st!$AI$3:$AI$52,MATCH(作業ページ!M23,st!$AH$3:$AH$52,0)),"") ->  | AD23: =+IFERROR(INDEX(st!$AI$3:$AI$52,MATCH(作業ページ!N23,st!$AH$3:$AH$52,0)),"") ->  | AE23: =+IFERROR(INDEX(st!$AI$3:$AI$52,MATCH(作業ページ!O23,st!$AH$3:$AH$52,0)),"") ->  | AF23: =+IFERROR(INDEX(st!$AI$3:$AI$52,MATCH(作業ページ!P23,st!$AH$3:$AH$52,0)),"") ->  | AG23: =+IFERROR(INDEX(st!$AI$3:$AI$52,MATCH(作業ページ!Q23,st!$AH$3:$AH$52,0)),"") ->  | AH23: =+IFERROR(INDEX(st!$AI$3:$AI$52,MATCH(作業ページ!R23,st!$AH$3:$AH$52,0)),"") ->  | AI23: =+IFERROR(INDEX(st!$AI$3:$AI$52,MATCH(作業ページ!S23,st!$AH$3:$AH$52,0)),"") ->  | AJ23: =+IFERROR(INDEX(st!$AI$3:$AI$52,MATCH(作業ページ!T23,st!$AH$3:$AH$52,0)),"") ->  | AK23: =+IFERROR(INDEX(st!$AI$3:$AI$52,MATCH(作業ページ!U23,st!$AH$3:$AH$52,0)),"") ->  | AL23: 0.0023 | AN23: 0 | AQ23: 9 | AR23: =IFERROR(INDEX($AR$1:$AR$15,MATCH(0,INDEX(COUNTIF($AR$16:AR22,$AR$1:$AR$15&""),),0)),"") ->  | AV23: 0 | BA23: =+IFERROR(IF(AND(RANK(BO23,$BO$20:$BO$29,1)<4,BD23-RANK(BO23,$BO$20:$BO$29,1)>=3,BL23>25,OR(BJ23>29%,BS23>19%,BK23>14%)),"〇",IF(AND($AX$5=BI23,BJ23>32%,BK23>37%,$AZ$31>14%,AX4=1,AW4<-49.9%),"〇",IF(AND($AX$5=BI23,BB23<>0,BL23<22,BS23<10%,BC23<6%,メイン!$N$25<1.4,$BB$82>159%,$BJ$70>7.9),"飛",IF(AND($AX$5=BI23,BJ23>32%,BK23>37%,$AY$33>19%,AX4=1,AW4<-49.9%),"〇","")))),"") ->  | BB23: 3 | BC23: =+IFERROR(SUM(1/BE22-1/BE23)/(1/BE22),"") -> 0 | BD23: 4 | BE23: =+IFERROR(INDEX(各データ整理!$AR$3:$AR$42,MATCH(作業ページ!$BI$20&"-"&BI23,各データ整理!$CI$3:$CI$42,0)),200) -> 200 | BF23: 1.136852395 | BG23: =+LARGE(AP2:AP131,4) -> 0.1023 | BH23: 0.1279389695 | BI23: 13 | BK23: =+IFERROR(INDEX(各データ整理!$Q$4:$Q$19,MATCH(作業ページ!BI23,各データ整理!$D$4:$D$19,0)),"") ->  | BL23: =+IFERROR(INDEX(Sheet11!$AV$58:$AV$66,MATCH(作業ページ!BI23,Sheet11!$AU$58:$AU$66,0))+INDEX($BL$6:$BL$15,MATCH(BI23,$BK$6:$BK$15,0))+ROW()/10000,0) -> 0 | BM23: =+IFERROR(INDEX(st!$BK$3:$BK$16,MATCH(作業ページ!BI23,st!$M$3:$M$18,0)),"") -> 0 | BN23: =+Sheet11!U6 -> 5 | BO23: =+IFERROR(INDEX(st!$R$3:$R$42,MATCH(作業ページ!$BI$20&"-"&BI23,st!$Q$3:$Q$42,0)),"") ->  | BP23: =+IFERROR(SUM(1/BE23-1/BO23)/(1/BE23),"") ->  | BQ23: =+IFERROR(INDEX(st!$BL$3:$BL$16,MATCH(BI23,st!$M$3:$M$18,0)),"") -> 0 | BU23: =+IFERROR(IF(LARGE(BS20:BS28,5)>6%,LARGE(BS20:BS28,5),""),"") ->  | BV23: 16 | BW23: =+IFERROR(IF(LARGE(BS20:BS28,6)>4.9%,LARGE(BS20:BS28,6),""),"") ->  | BX23: 16 | BY23: 16 | BZ23: =+LARGE(BL20:BL29,5) -> 0 | CD23: =+IFERROR(IF(st!M19<7,INDEX($BI$20:$BI$29,MATCH(BZ23,$BL$20:$BL$29,0)),IF(BZ23>9,INDEX($BI$20:$BI$29,MATCH(BZ23,$BL$20:$BL$29,0)),"")),"") ->  | CE23: =+IF($BF$33=CF23,"",CF23) ->  | CF23: =+IF(st!$M$19<7,BI24,IF(AND(BB24<=$BC$32,OR(BL24>4,BS24>9%,BK24>9%)),BI24,"")) ->  | CH23: =+IFERROR(INDEX(各データ整理!$AR$3:$AR$42,MATCH(作業ページ!$BI$21&"-"&BI23,各データ整理!$CI$3:$CI$42,0)),200) -> 200 | CI23: =SUM(CH23/BE23) -> 1
B24: 2 | C24: 10 | D24: 2-10 | E24: =+IFERROR(INDEX(st!$Z$3:$Z$57,MATCH(作業ページ!D24,st!$Y$3:$Y$57,0)),"") ->  | F24: =+SMALL((B24,C24,$F$1),1)&"-"&SMALL((B24,C24,$F$1),2)&"-"&SMALL((B24,C24,$F$1),3) -> 1-2-10 | G24: =+SMALL((B24,C24,$G$1),1)&"-"&SMALL((B24,C24,$G$1),2)&"-"&SMALL((B24,C24,$G$1),3) -> 2-2-10 | H24: =+SMALL((B24,C24,$H$1),1)&"-"&SMALL((B24,C24,$H$1),2)&"-"&SMALL((B24,C24,$H$1),3) -> 2-3-10 | I24: =+SMALL((B24,C24,$I$1),1)&"-"&SMALL((B24,C24,$I$1),2)&"-"&SMALL((B24,C24,$I$1),3) -> 2-4-10 | J24: =+SMALL((B24,C24,$J$1),1)&"-"&SMALL((B24,C24,$J$1),2)&"-"&SMALL((B24,C24,$J$1),3) -> 2-5-10 | K24: =+SMALL((B24,C24,$K$1),1)&"-"&SMALL((B24,C24,$K$1),2)&"-"&SMALL((B24,C24,$K$1),3) -> 2-6-10 | L24: =+SMALL((B24,C24,$L$1),1)&"-"&SMALL((B24,C24,$L$1),2)&"-"&SMALL((B24,C24,$L$1),3) -> 2-7-10 | M24: =+SMALL((B24,C24,$M$1),1)&"-"&SMALL((B24,C24,$M$1),2)&"-"&SMALL((B24,C24,$M$1),3) -> 2-8-10 | N24: =+SMALL((B24,C24,$N$1),1)&"-"&SMALL((B24,C24,$N$1),2)&"-"&SMALL((B24,C24,$N$1),3) -> 2-9-10 | O24: =+SMALL((B24,C24,$O$1),1)&"-"&SMALL((B24,C24,$O$1),2)&"-"&SMALL((B24,C24,$O$1),3) -> 2-10-10 | P24: =+SMALL((B24,C24,$P$1),1)&"-"&SMALL((B24,C24,$P$1),2)&"-"&SMALL((B24,C24,$P$1),3) -> 2-10-11 | Q24: =+SMALL((B24,C24,$Q$1),1)&"-"&SMALL((B24,C24,$Q$1),2)&"-"&SMALL((B24,C24,$Q$1),3) -> 2-10-12 | R24: =+SMALL((B24,C24,$R$1),1)&"-"&SMALL((B24,C24,$R$1),2)&"-"&SMALL((B24,C24,$R$1),3) -> 2-10-13 | S24: =+SMALL((B24,C24,$S$1),1)&"-"&SMALL((B24,C24,$S$1),2)&"-"&SMALL((B24,C24,$S$1),3) -> 2-10-14 | T24: =+SMALL((B24,C24,$T$1),1)&"-"&SMALL((B24,C24,$T$1),2)&"-"&SMALL((B24,C24,$T$1),3) -> 2-10-15 | U24: =+SMALL((B24,C24,$U$1),1)&"-"&SMALL((B24,C24,$U$1),2)&"-"&SMALL((B24,C24,$U$1),3) -> 2-10-16 | V24: =+IFERROR(INDEX(st!$AI$3:$AI$52,MATCH(作業ページ!F24,st!$AH$3:$AH$52,0)),"") ->  | W24: =+IFERROR(INDEX(st!$AI$3:$AI$52,MATCH(作業ページ!G24,st!$AH$3:$AH$52,0)),"") ->  | X24: =+IFERROR(INDEX(st!$AI$3:$AI$52,MATCH(作業ページ!H24,st!$AH$3:$AH$52,0)),"") ->  | Y24: =+IFERROR(INDEX(st!$AI$3:$AI$52,MATCH(作業ページ!I24,st!$AH$3:$AH$52,0)),"") ->  | Z24: =+IFERROR(INDEX(st!$AI$3:$AI$52,MATCH(作業ページ!J24,st!$AH$3:$AH$52,0)),"") ->  | AA24: =+IFERROR(INDEX(st!$AI$3:$AI$52,MATCH(作業ページ!K24,st!$AH$3:$AH$52,0)),"") ->  | AB24: =+IFERROR(INDEX(st!$AI$3:$AI$52,MATCH(作業ページ!L24,st!$AH$3:$AH$52,0)),"") ->  | AC24: =+IFERROR(INDEX(st!$AI$3:$AI$52,MATCH(作業ページ!M24,st!$AH$3:$AH$52,0)),"") ->  | AD24: =+IFERROR(INDEX(st!$AI$3:$AI$52,MATCH(作業ページ!N24,st!$AH$3:$AH$52,0)),"") ->  | AE24: =+IFERROR(INDEX(st!$AI$3:$AI$52,MATCH(作業ページ!O24,st!$AH$3:$AH$52,0)),"") ->  | AF24: =+IFERROR(INDEX(st!$AI$3:$AI$52,MATCH(作業ページ!P24,st!$AH$3:$AH$52,0)),"") ->  | AG24: =+IFERROR(INDEX(st!$AI$3:$AI$52,MATCH(作業ページ!Q24,st!$AH$3:$AH$52,0)),"") ->  | AH24: =+IFERROR(INDEX(st!$AI$3:$AI$52,MATCH(作業ページ!R24,st!$AH$3:$AH$52,0)),"") ->  | AI24: =+IFERROR(INDEX(st!$AI$3:$AI$52,MATCH(作業ページ!S24,st!$AH$3:$AH$52,0)),"") ->  | AJ24: =+IFERROR(INDEX(st!$AI$3:$AI$52,MATCH(作業ページ!T24,st!$AH$3:$AH$52,0)),"") ->  | AK24: =+IFERROR(INDEX(st!$AI$3:$AI$52,MATCH(作業ページ!U24,st!$AH$3:$AH$52,0)),"") ->  | AL24: 0.0024 | AN24: 0 | AQ24: 10 | AR24: =IFERROR(INDEX($AR$1:$AR$15,MATCH(0,INDEX(COUNTIF($AR$16:AR23,$AR$1:$AR$15&""),),0)),"") ->  | AV24: 0 | BA24: =+IFERROR(IF(AND(RANK(BO24,$BO$20:$BO$29,1)<4,BD24-RANK(BO24,$BO$20:$BO$29,1)>=3,BL24>25,OR(BJ24>29%,BS24>19%,BK24>14%)),"〇",IF(AND($AX$5=BI24,BJ24>32%,BK24>37%,$AZ$31>14%,AX5=1,AW5<-49.9%),"〇",IF(AND($AX$5=BI24,BB24<>0,BL24<22,BS24<10%,BC24<6%,メイン!$N$25<1.4,$BB$82>159%,$BJ$70>7.9),"飛",IF(AND($AX$5=BI24,BJ24>32%,BK24>37%,$AY$33>19%,AX5=1,AW5<-49.9%),"〇","")))),"") ->  | BB24: 4 | BC24: =+IFERROR(SUM(1/BE23-1/BE24)/(1/BE23),"") -> 0 | BD24: 5 | BE24: =+IFERROR(INDEX(各データ整理!$AR$3:$AR$42,MATCH(作業ページ!$BI$20&"-"&BI24,各データ整理!$CI$3:$CI$42,0)),200) -> 200 | BF24: 1.15462754 | BG24: =+LARGE(AP2:AP131,5) -> 0.0886 | BH24: 0.1108054027 | BI24: 12 | BK24: =+IFERROR(INDEX(各データ整理!$Q$4:$Q$19,MATCH(作業ページ!BI24,各データ整理!$D$4:$D$19,0)),"") ->  | BL24: =+IFERROR(INDEX(Sheet11!$AV$58:$AV$66,MATCH(作業ページ!BI24,Sheet11!$AU$58:$AU$66,0))+INDEX($BL$6:$BL$15,MATCH(BI24,$BK$6:$BK$15,0))+ROW()/10000,0) -> 0 | BM24: =+IFERROR(INDEX(st!$BK$3:$BK$16,MATCH(作業ページ!BI24,st!$M$3:$M$18,0)),"") -> 0 | BN24: =+Sheet11!U7 -> 4 | BO24: =+IFERROR(INDEX(st!$R$3:$R$42,MATCH(作業ページ!$BI$20&"-"&BI24,st!$Q$3:$Q$42,0)),"") ->  | BQ24: =+IFERROR(INDEX(st!$BL$3:$BL$16,MATCH(BI24,st!$M$3:$M$18,0)),"") -> 0 | BU24: =+IFERROR(IF(LARGE(BS20:BS28,6)>6%,LARGE(BS20:BS28,6),""),"") ->  | BV24: 16 | BW24: =+IFERROR(IF(LARGE(BS20:BS28,7)>4.9%,LARGE(BS20:BS28,7),""),"") ->  | BX24: 16 | BY24: 16 | BZ24: =+LARGE(BS20:BS29,1) -> 0 | CD24: =+IFERROR(IF(BZ24>14%,INDEX($BI$20:$BI$29,MATCH(BZ24,$BS$20:$BS$29,0)),""),"") ->  | CE24: =+IF($BF$33=CF24,"",CF24) ->  | CF24: =+IF(st!$M$19<7,BI25,IF(AND(BB25<=$BC$32,OR(BL25>4,BS25>9%,BK25>9%)),BI25,"")) ->  | CH24: =+IFERROR(INDEX(各データ整理!$AR$3:$AR$42,MATCH(作業ページ!$BI$21&"-"&BI24,各データ整理!$CI$3:$CI$42,0)),200) -> 200 | CI24: 1
B25: 2 | C25: 11 | D25: 2-11 | E25: =+IFERROR(INDEX(st!$Z$3:$Z$57,MATCH(作業ページ!D25,st!$Y$3:$Y$57,0)),"") ->  | F25: =+SMALL((B25,C25,$F$1),1)&"-"&SMALL((B25,C25,$F$1),2)&"-"&SMALL((B25,C25,$F$1),3) -> 1-2-11 | G25: =+SMALL((B25,C25,$G$1),1)&"-"&SMALL((B25,C25,$G$1),2)&"-"&SMALL((B25,C25,$G$1),3) -> 2-2-11 | H25: =+SMALL((B25,C25,$H$1),1)&"-"&SMALL((B25,C25,$H$1),2)&"-"&SMALL((B25,C25,$H$1),3) -> 2-3-11 | I25: =+SMALL((B25,C25,$I$1),1)&"-"&SMALL((B25,C25,$I$1),2)&"-"&SMALL((B25,C25,$I$1),3) -> 2-4-11 | J25: =+SMALL((B25,C25,$J$1),1)&"-"&SMALL((B25,C25,$J$1),2)&"-"&SMALL((B25,C25,$J$1),3) -> 2-5-11 | K25: =+SMALL((B25,C25,$K$1),1)&"-"&SMALL((B25,C25,$K$1),2)&"-"&SMALL((B25,C25,$K$1),3) -> 2-6-11 | L25: =+SMALL((B25,C25,$L$1),1)&"-"&SMALL((B25,C25,$L$1),2)&"-"&SMALL((B25,C25,$L$1),3) -> 2-7-11 | M25: =+SMALL((B25,C25,$M$1),1)&"-"&SMALL((B25,C25,$M$1),2)&"-"&SMALL((B25,C25,$M$1),3) -> 2-8-11 | N25: =+SMALL((B25,C25,$N$1),1)&"-"&SMALL((B25,C25,$N$1),2)&"-"&SMALL((B25,C25,$N$1),3) -> 2-9-11 | O25: =+SMALL((B25,C25,$O$1),1)&"-"&SMALL((B25,C25,$O$1),2)&"-"&SMALL((B25,C25,$O$1),3) -> 2-10-11 | P25: =+SMALL((B25,C25,$P$1),1)&"-"&SMALL((B25,C25,$P$1),2)&"-"&SMALL((B25,C25,$P$1),3) -> 2-11-11 | Q25: =+SMALL((B25,C25,$Q$1),1)&"-"&SMALL((B25,C25,$Q$1),2)&"-"&SMALL((B25,C25,$Q$1),3) -> 2-11-12 | R25: =+SMALL((B25,C25,$R$1),1)&"-"&SMALL((B25,C25,$R$1),2)&"-"&SMALL((B25,C25,$R$1),3) -> 2-11-13 | S25: =+SMALL((B25,C25,$S$1),1)&"-"&SMALL((B25,C25,$S$1),2)&"-"&SMALL((B25,C25,$S$1),3) -> 2-11-14 | T25: =+SMALL((B25,C25,$T$1),1)&"-"&SMALL((B25,C25,$T$1),2)&"-"&SMALL((B25,C25,$T$1),3) -> 2-11-15 | U25: =+SMALL((B25,C25,$U$1),1)&"-"&SMALL((B25,C25,$U$1),2)&"-"&SMALL((B25,C25,$U$1),3) -> 2-11-16 | V25: =+IFERROR(INDEX(st!$AI$3:$AI$52,MATCH(作業ページ!F25,st!$AH$3:$AH$52,0)),"") ->  | W25: =+IFERROR(INDEX(st!$AI$3:$AI$52,MATCH(作業ページ!G25,st!$AH$3:$AH$52,0)),"") ->  | X25: =+IFERROR(INDEX(st!$AI$3:$AI$52,MATCH(作業ページ!H25,st!$AH$3:$AH$52,0)),"") ->  | Y25: =+IFERROR(INDEX(st!$AI$3:$AI$52,MATCH(作業ページ!I25,st!$AH$3:$AH$52,0)),"") ->  | Z25: =+IFERROR(INDEX(st!$AI$3:$AI$52,MATCH(作業ページ!J25,st!$AH$3:$AH$52,0)),"") ->  | AA25: =+IFERROR(INDEX(st!$AI$3:$AI$52,MATCH(作業ページ!K25,st!$AH$3:$AH$52,0)),"") ->  | AB25: =+IFERROR(INDEX(st!$AI$3:$AI$52,MATCH(作業ページ!L25,st!$AH$3:$AH$52,0)),"") ->  | AC25: =+IFERROR(INDEX(st!$AI$3:$AI$52,MATCH(作業ページ!M25,st!$AH$3:$AH$52,0)),"") ->  | AD25: =+IFERROR(INDEX(st!$AI$3:$AI$52,MATCH(作業ページ!N25,st!$AH$3:$AH$52,0)),"") ->  | AE25: =+IFERROR(INDEX(st!$AI$3:$AI$52,MATCH(作業ページ!O25,st!$AH$3:$AH$52,0)),"") ->  | AF25: =+IFERROR(INDEX(st!$AI$3:$AI$52,MATCH(作業ページ!P25,st!$AH$3:$AH$52,0)),"") ->  | AG25: =+IFERROR(INDEX(st!$AI$3:$AI$52,MATCH(作業ページ!Q25,st!$AH$3:$AH$52,0)),"") ->  | AH25: =+IFERROR(INDEX(st!$AI$3:$AI$52,MATCH(作業ページ!R25,st!$AH$3:$AH$52,0)),"") ->  | AI25: =+IFERROR(INDEX(st!$AI$3:$AI$52,MATCH(作業ページ!S25,st!$AH$3:$AH$52,0)),"") ->  | AJ25: =+IFERROR(INDEX(st!$AI$3:$AI$52,MATCH(作業ページ!T25,st!$AH$3:$AH$52,0)),"") ->  | AK25: =+IFERROR(INDEX(st!$AI$3:$AI$52,MATCH(作業ページ!U25,st!$AH$3:$AH$52,0)),"") ->  | AL25: 0.0025 | AN25: 0 | AQ25: 11 | AR25: =IFERROR(INDEX($AR$1:$AR$15,MATCH(0,INDEX(COUNTIF($AR$16:AR24,$AR$1:$AR$15&""),),0)),"") ->  | AV25: 0 | BA25: =+IFERROR(IF(AND(RANK(BO25,$BO$20:$BO$29,1)<4,BD25-RANK(BO25,$BO$20:$BO$29,1)>=3,BL25>25,OR(BJ25>29%,BS25>19%,BK25>14%)),"〇",IF(AND($AX$5=BI25,BJ25>32%,BK25>37%,$AZ$31>14%,AX6=1,AW6<-49.9%),"〇",IF(AND($AX$5=BI25,BB25<>0,BL25<22,BS25<10%,BC25<6%,メイン!$N$25<1.4,$BB$82>159%,$BJ$70>7.9),"飛",IF(AND($AX$5=BI25,BJ25>32%,BK25>37%,$AY$33>19%,AX6=1,AW6<-49.9%),"〇","")))),"") ->  | BB25: 5 | BC25: =+IFERROR(SUM(1/BE24-1/BE25)/(1/BE24),"") -> 0 | BD25: 6 | BE25: =+IFERROR(INDEX(各データ整理!$AR$3:$AR$42,MATCH(作業ページ!$BI$20&"-"&BI25,各データ整理!$CI$3:$CI$42,0)),200) -> 200 | BF25: 1.173509934 | BG25: =+LARGE(AP2:AP131,6) -> 0.0755 | BH25: 0.09442221111 | BI25: 11 | BK25: =+IFERROR(INDEX(各データ整理!$Q$4:$Q$19,MATCH(作業ページ!BI25,各データ整理!$D$4:$D$19,0)),"") ->  | BL25: =+IFERROR(INDEX(Sheet11!$AV$58:$AV$66,MATCH(作業ページ!BI25,Sheet11!$AU$58:$AU$66,0))+INDEX($BL$6:$BL$15,MATCH(BI25,$BK$6:$BK$15,0))+ROW()/10000,0) -> 0 | BM25: =+IFERROR(INDEX(st!$BK$3:$BK$16,MATCH(作業ページ!BI25,st!$M$3:$M$18,0)),"") -> 0 | BN25: =+Sheet11!U8 -> 3 | BO25: =+IFERROR(INDEX(st!$R$3:$R$42,MATCH(作業ページ!$BI$20&"-"&BI25,st!$Q$3:$Q$42,0)),"") ->  | BQ25: =+IFERROR(INDEX(st!$BL$3:$BL$16,MATCH(BI25,st!$M$3:$M$18,0)),"") -> 0 | BU25: =+IFERROR(IF(LARGE(BS20:BS28,7)>6%,LARGE(BS20:BS28,7),""),"") ->  | BV25: 16 | BX25: 0 | BY25: 0 | BZ25: =+LARGE(BS20:BS29,2) ->  | CD25: =+IFERROR(IF(BZ25>14%,INDEX($BI$20:$BI$29,MATCH(BZ25,$BS$20:$BS$29,0)),""),"") ->  | CE25: =+IF($BF$33=CF25,"",CF25) ->  | CF25: =+IF(st!$M$19<7,BI26,IF(AND(BB26<=$BC$32,OR(BL26>4,BS26>9%,BK26>9%)),BI26,"")) ->  | CH25: =+IFERROR(INDEX(各データ整理!$AR$3:$AR$42,MATCH(作業ページ!$BI$21&"-"&BI25,各データ整理!$CI$3:$CI$42,0)),200) -> 200 | CI25: 1
